Workbook

Sheet Read-Me
A1: This spreadsheet represents all the calculations for Chapter 2, "Using specific conductance as a tracer of water infiltration in macropore soils"
A3: Each tab represents a unique rainfall event (or set of events if accompanied with a parentheses), marked consecutively, numbered from 1 to 40:
A4: * Before the event number, the year the event occurred is shown (parentheses denotes multiple events)
A6: Each event tab has the following data copied for the event:
A7: Air temperature (in degrees) {Column B}
A8: 21-cm subsurface drain temp., unedited (°C) {Column C}1
A9: 21-cm subsurface drain temp. (°C) {Column D}1
A10: 21-cm subsurface drain SC, unedited (mS/cm) {Column E}1
A11: 21-cm subsurface drain SC, unedited (mS/cm) {Column F}1,2
A12: Precip (inch) {Column G}
A13: Cumulative Precip (inch) {Column H}
A14: Gage height (feet), relative {Column I}3
A15: SCEO (mS/cm) {Column J}4
A16: SC50 (mS/cm) {Column K}4
A17: SC90 (mS/cm) {Column L}4
A18: tS {Column M, timing denoted by an X}4
A19: tEO {Column N, timing denoted by an X}4
A20: tEM {Column O, timing denoted by an X}4
A21: t50 {Column P, timing denoted by an X}4
A22: t90 {Column Q, timing denoted by an X}4
A23: Time (minutes) {Column R)4,5
A25: 1 For further details on how the data was screened, refer to section 3.1 (Methods) in Chapter 2
A26: 2 Orange highlight denotes the selected event low, SCEM and tEM
A27: 3 Unadjusted for a datum correction, only a relative scale at the 05451080 (Blairsburg gaging station)
A28: 4 For further details on these parameters, refer to section 3.3 (Methods) in Chapter 2
A29: 5 Orange highlight denotes the selected time for the marked t parameters, timing denotes time since tS

Sheet 2006_1
A1: Date/Time | B1: Air Temperature (deg C) | C1: 21-cm subsurface drain temp., unedited (°C) | D1: 21-cm subsurface drain temp. (°C) | E1: 21-cm subsurface drain SC, unedited (mS/cm) | F1: 21-cm subsurface drain SC (mS/cm) | G1: Precip (inch) | H1: Cumulative Precip (inch) | I1: Gage height (feet), relative | J1: SCEO (mS/cm) | K1: SC50 (mS/cm) | L1: SC90 (mS/cm) | M1: tS | N1: tEO | O1: tEM | P1: t50 | Q1: t90 | R1: Time (minutes)
A2: 2006-12-11T18:30:00 | B2: 4.804 | C2: 7.67 | D2: 7.67 | E2: 717 | F2: 717 | G2: 0 | I2: 4.27
A3: 2006-12-11T18:45:00 | B3: 4.731 | C3: 7.67 | D3: 7.67 | E3: 717 | F3: 717
A4: 2006-12-11T19:00:00 | B4: 4.727 | C4: 7.67 | D4: 7.67 | E4: 718 | F4: 718 | G4: 0.01 | I4: 4.28 | M4: X | R4: 0
A5: 2006-12-11T19:15:00 | B5: 4.715 | C5: 7.66 | D5: 7.66 | E5: 718 | F5: 718 | R5: =R4+15 -> 15
A6: 2006-12-11T19:30:00 | B6: 4.661 | C6: 7.66 | D6: 7.66 | E6: 719 | F6: 719 | G6: 0.01 | I6: 4.27 | R6: =R5+15 -> 30
A7: 2006-12-11T19:45:00 | B7: 4.646 | C7: 7.66 | D7: 7.66 | E7: 719 | F7: 719 | R7: 45
A8: 2006-12-11T20:00:00 | B8: 4.646 | C8: 7.66 | D8: 7.66 | E8: 719 | F8: 719 | G8: 0 | I8: 4.27 | R8: 60
A9: 2006-12-11T20:15:00 | B9: 4.694 | C9: 7.66 | D9: 7.66 | E9: 719 | F9: 719 | R9: 75
A10: 2006-12-11T20:30:00 | B10: 4.731 | C10: 7.66 | D10: 7.66 | E10: 720 | F10: 720 | G10: 0.03 | I10: 4.27 | R10: 90
A11: 2006-12-11T20:45:00 | B11: 4.82 | C11: 7.66 | D11: 7.66 | E11: 721 | F11: 721 | R11: 105
A12: 2006-12-11T21:00:00 | B12: 4.789 | C12: 7.65 | D12: 7.65 | E12: 723 | F12: 723 | G12: 0.03 | I12: 4.28 | R12: 120
A13: 2006-12-11T21:15:00 | B13: 4.728 | C13: 7.64 | D13: 7.64 | E13: 718 | F13: 718 | R13: 135
A14: 2006-12-11T21:30:00 | B14: 4.594 | C14: 7.64 | D14: 7.64 | E14: 715 | F14: 715 | G14: 0.03 | I14: 4.29 | R14: 150
A15: 2006-12-11T21:45:00 | B15: 4.554 | C15: 7.64 | D15: 7.64 | E15: 717 | F15: 717 | J15: =AVERAGE(F8:F15) -> 719 | K15: =F32+((J15-F32)*0.5) -> 538.3 | L15: =F32+((J15-F32)*0.9) -> 682.86 | R15: 165
A16: 2006-12-11T22:00:00 | B16: 4.336 | C16: 7.67 | D16: 7.67 | E16: 709 | F16: 709 | G16: 0 | I16: 4.29 | N16: X | R16: =R15+15 -> 180
A17: 2006-12-11T22:15:00 | B17: 4.276 | C17: 7.64 | D17: 7.64 | E17: 687.9 | F17: 687.9 | R17: =R16+15 -> 195
A18: 2006-12-11T22:30:00 | B18: 4.11 | C18: 7.61 | D18: 7.61 | E18: 684.7 | F18: 684.7 | G18: 0 | I18: 4.3 | R18: 210
A19: 2006-12-11T22:45:00 | B19: 4.145 | C19: 7.6 | D19: 7.6 | E19: 622.8 | F19: 622.8 | R19: 225
A20: 2006-12-11T23:00:00 | B20: 4.159 | C20: 7.6 | D20: 7.6 | E20: 587.9 | F20: 587.9 | G20: 0.01 | I20: 4.3 | R20: =R19+15 -> 240
A21: 2006-12-11T23:15:00 | B21: 4.015 | C21: 7.58 | D21: 7.58 | E21: 604.9 | F21: 604.9 | R21: =R20+15 -> 255
A22: 2006-12-11T23:30:00 | B22: 4.167 | C22: 7.56 | D22: 7.56 | E22: 622.2 | F22: 622.2 | G22: 0.04 | I22: 4.3 | R22: 270
A23: 2006-12-11T23:45:00 | B23: 4.26 | C23: 7.56 | D23: 7.56 | E23: 633.2 | F23: 633.2 | R23: 285
A24: 2006-12-12 | B24: 4.268 | C24: 7.57 | D24: 7.57 | E24: 626.9 | F24: 626.9 | G24: 0 | I24: 4.3 | R24: 300
A25: 2006-12-12T00:15:00 | B25: 4.556 | C25: 7.57 | D25: 7.57 | E25: 645 | F25: 645 | R25: 315
A26: 2006-12-12T00:30:00 | B26: 5.143 | C26: 7.61 | D26: 7.61 | E26: 662.7 | F26: 662.7 | G26: 0.08 | I26: 4.31 | R26: 330
A27: 2006-12-12T00:45:00 | B27: 5.904 | C27: 7.6 | D27: 7.6 | E27: 684.1 | F27: 684.1 | R27: 345
A28: 2006-12-12T01:00:00 | B28: 5.497 | C28: 7.53 | D28: 7.53 | E28: 682.8 | F28: 682.8 | G28: 0.02 | H28: =SUM(G2:G28) -> 0.26 | I28: 4.31 | R28: 360
A29: 2006-12-12T01:15:00 | B29: 5.05 | C29: 7.5 | D29: 7.5 | E29: 548.3 | F29: 548.3 | R29: 375
A30: 2006-12-12T01:30:00 | B30: 4.656 | C30: 7.45 | D30: 7.45 | E30: 581.8 | F30: 581.8 | G30: 0 | I30: 4.31 | R30: 390
A31: 2006-12-12T01:45:00 | B31: 4.537 | C31: 7.1 | D31: 7.1 | E31: 411.8 | F31: 411.8 | R31: 405
A32: 2006-12-12T02:00:00 | B32: 4.495 | C32: 6.846 | D32: 6.846 | E32: 357.6 | F32: 357.6 | G32: 0 | I32: 4.32 | O32: X | R32: 420
A33: 2006-12-12T02:15:00 | B33: 4.624 | C33: 6.82 | D33: 6.82 | E33: 423.5 | F33: 423.5 | R33: 435
A34: 2006-12-12T02:30:00 | B34: 4.652 | C34: 6.889 | D34: 6.889 | E34: 482.4 | F34: 482.4 | G34: 0 | I34: 4.32 | R34: 450
A35: 2006-12-12T02:45:00 | B35: 4.367 | C35: 6.97 | D35: 6.97 | E35: 529 | F35: 529 | R35: 465
A36: 2006-12-12T03:00:00 | B36: 4.171 | C36: 7.05 | D36: 7.05 | E36: 569.7 | F36: 569.7 | G36: 0 | I36: 4.32 | P36: X | R36: =R35+(15*((K15-F35)/(F36-F35))) -> 468.4275184
A37: 2006-12-12T03:15:00 | B37: 3.585 | C37: 7.11 | D37: 7.11 | E37: 607.1 | F37: 607.1 | R37: =R35+30 -> 495
A38: 2006-12-12T03:30:00 | B38: 3.398 | C38: 7.17 | D38: 7.17 | E38: 633 | F38: 633 | G38: 0 | I38: 4.32 | R38: =R37+15 -> 510
A39: 2006-12-12T03:45:00 | B39: 3.261 | C39: 7.22 | D39: 7.22 | E39: 649.3 | F39: 649.3 | R39: 525
A40: 2006-12-12T04:00:00 | B40: 3.105 | C40: 7.25 | D40: 7.25 | E40: 662.7 | F40: 662.7 | G40: 0 | I40: 4.31 | R40: 540
A41: 2006-12-12T04:15:00 | B41: 2.92 | C41: 7.28 | D41: 7.28 | E41: 672.6 | F41: 672.6 | R41: 555
A42: 2006-12-12T04:30:00 | B42: 2.88 | C42: 7.31 | D42: 7.31 | E42: 676.9 | F42: 676.9 | G42: 0 | I42: 4.32 | R42: 570
A43: 2006-12-12T04:45:00 | B43: 2.91 | C43: 7.34 | D43: 7.34 | E43: 680.5 | F43: 680.5 | R43: 585
A44: 2006-12-12T05:00:00 | B44: 3.221 | C44: 7.36 | D44: 7.36 | E44: 694.2 | F44: 694.2 | G44: 0 | I44: 4.32 | Q44: X | R44: =R43+(15*((L15-F43)/(F44-F43))) -> 587.5839416
A45: 2006-12-12T05:15:00 | B45: 3.158 | C45: 7.38 | D45: 7.38 | E45: 701 | F45: 701
A46: 2006-12-12T05:30:00 | B46: 2.573 | C46: 7.39 | D46: 7.39 | E46: 707 | F46: 707 | G46: 0 | I46: 4.33

Sheet 2006_2 (2)
A1: Date/Time | B1: Air Temperature (deg C) | C1: 21-cm subsurface drain temp., unedited (°C) | D1: 21-cm subsurface drain temp. (°C) | E1: 21-cm subsurface drain SC, unedited (mS/cm) | F1: 21-cm subsurface drain SC (mS/cm) | G1: Precip (inch) | H1: Cumulative Precip (inch) | I1: Gage height (feet), relative | J1: SCEO (mS/cm) | K1: SC50 (mS/cm) | L1: SC90 (mS/cm) | M1: tS | N1: tEO | O1: tEM | P1: t50 | Q1: t90 | R1: Time (minutes)
A2: 2006-12-20T13:30:00 | B2: 0.852 | C2: 6.852 | E2: 736 | F2: 736 | G2: 0.01 | I2: 4.22 | M2: X | R2: 0
A3: 2006-12-20T13:45:00 | B3: 0.642 | C3: 6.858 | E3: 737 | F3: 737 | R3: =R2+15 -> 15
A4: 2006-12-20T14:00:00 | B4: 0.513 | C4: 6.844 | E4: 749 | G4: 0.02 | I4: 4.23 | R4: =R3+15 -> 30
A5: 2006-12-20T14:15:00 | B5: 0.414 | C5: 6.83 | E5: 758 | R5: 45
A6: 2006-12-20T14:30:00 | B6: 0.349 | C6: 6.816 | D6: 6.816 | E6: 740 | G6: 0.03 | I6: 4.22 | R6: 60
A7: 2006-12-20T14:45:00 | B7: 0.36 | C7: 6.859 | D7: 6.859 | E7: 734 | F7: 734 | R7: 75
A8: 2006-12-20T15:00:00 | B8: 0.343 | C8: 6.87 | D8: 6.87 | E8: 734 | F8: 734 | G8: 0.03 | I8: 4.24 | R8: 90
A9: 2006-12-20T15:15:00 | B9: 0.361 | C9: 6.866 | D9: 6.866 | E9: 735 | F9: 735 | R9: 105
A10: 2006-12-20T15:30:00 | B10: 0.218 | C10: 6.881 | D10: 6.881 | E10: 735 | F10: 735 | G10: 0.03 | I10: 4.24 | R10: 120
A11: 2006-12-20T15:45:00 | B11: 0.208 | C11: 6.886 | D11: 6.886 | E11: 736 | F11: 736 | R11: 135
A12: 2006-12-20T16:00:00 | B12: 0.176 | C12: 6.875 | D12: 6.875 | E12: 736 | F12: 736 | G12: 0.02 | I12: 4.24 | R12: 150
A13: 2006-12-20T16:15:00 | B13: 0.088 | C13: 6.866 | D13: 6.866 | E13: 737 | F13: 737 | J13: =AVERAGE(F3:F13) -> 735.5 | K13: =F30+((J13-F30)*0.5) -> 572.45 | L13: =F30+((J13-F30)*0.9) -> 702.89 | R13: 165
A14: 2006-12-20T16:30:00 | B14: 0.013 | C14: 6.866 | D14: 6.866 | E14: 724 | F14: 724 | G14: 0.04 | I14: 4.23 | N14: X | R14: =R13+15 -> 180
A15: 2006-12-20T16:45:00 | B15: 0.051 | C15: 6.882 | D15: 6.882 | E15: 678.2 | F15: 678.2 | R15: =R14+15 -> 195
A16: 2006-12-20T17:00:00 | B16: 0.116 | C16: 6.863 | D16: 6.863 | E16: 640 | F16: 640 | G16: 0.02 | I16: 4.24 | R16: 210
A17: 2006-12-20T17:15:00 | B17: 0.256 | C17: 6.831 | D17: 6.831 | E17: 586.3 | F17: 586.3 | R17: 225
A18: 2006-12-20T17:30:00 | B18: 0.471 | C18: 6.767 | D18: 6.767 | E18: 552.3 | F18: 552.3 | G18: 0.03 | I18: 4.25 | R18: 240
A19: 2006-12-20T17:45:00 | B19: 0.619 | C19: 6.606 | D19: 6.606 | E19: 552.3 | F19: 552.3 | R19: 255
A20: 2006-12-20T18:00:00 | B20: 0.71 | C20: 6.418 | D20: 6.418 | E20: 500.6 | F20: 500.6 | G20: 0.04 | I20: 4.26 | R20: 270
A21: 2006-12-20T18:15:00 | B21: 0.781 | C21: 6.257 | D21: 6.257 | E21: 483.3 | F21: 483.3 | R21: 285
A22: 2006-12-20T18:30:00 | B22: 0.754 | C22: 6.139 | D22: 6.139 | E22: 475.6 | F22: 475.6 | G22: 0.02 | I22: 4.26 | R22: 300
A23: 2006-12-20T18:45:00 | B23: 0.708 | C23: 6.036 | D23: 6.036 | E23: 468.9 | F23: 468.9 | R23: 315
A24: 2006-12-20T19:00:00 | B24: 0.741 | C24: 5.912 | D24: 5.912 | E24: 460 | F24: 460 | G24: 0.04 | I24: 4.27 | R24: 330
A25: 2006-12-20T19:15:00 | B25: 0.797 | C25: 5.811 | D25: 5.811 | E25: 437.8 | F25: 437.8 | R25: 345
A26: 2006-12-20T19:30:00 | B26: 0.845 | C26: 5.776 | D26: 5.776 | E26: 439 | F26: 439 | G26: 0.02 | I26: 4.28 | R26: 360
A27: 2006-12-20T19:45:00 | B27: 0.885 | C27: 5.784 | D27: 5.784 | E27: 464 | F27: 464 | R27: 375
A28: 2006-12-20T20:00:00 | B28: 0.817 | C28: 5.789 | D28: 5.789 | E28: 486.2 | F28: 486.2 | G28: 0.01 | I28: 4.29 | R28: 390
A29: 2006-12-20T20:15:00 | B29: 0.899 | C29: 5.685 | D29: 5.685 | E29: 440 | F29: 440 | R29: 405
A30: 2006-12-20T20:30:00 | B30: 1.059 | C30: 5.595 | D30: 5.595 | E30: 409.4 | F30: 409.4 | G30: 0.01 | I30: 4.28 | O30: X | R30: 420
A31: 2006-12-20T20:45:00 | B31: 1.074 | C31: 5.584 | D31: 5.584 | E31: 436.5 | F31: 436.5 | R31: 435
A32: 2006-12-20T21:00:00 | B32: 1.035 | C32: 5.621 | D32: 5.621 | E32: 472.7 | F32: 472.7 | G32: 0.01 | I32: 4.28 | R32: 450
A33: 2006-12-20T21:15:00 | B33: 0.879 | C33: 5.693 | D33: 5.693 | E33: 503.9 | F33: 503.9 | R33: 465
A34: 2006-12-20T21:30:00 | B34: 0.804 | C34: 5.768 | D34: 5.768 | E34: 529.6 | F34: 529.6 | G34: 0 | I34: 4.29 | R34: 480
A35: 2006-12-20T21:45:00 | B35: 0.812 | C35: 5.825 | D35: 5.825 | E35: 547.6 | F35: 547.6 | R35: =R34+15 -> 495
A36: 2006-12-20T22:00:00 | B36: 0.832 | C36: 5.885 | D36: 5.885 | E36: 574.9 | F36: 574.9 | G36: 0.01 | I36: 4.29 | P36: X | R36: =R35+(15*((K13-F35)/(F36-F35))) -> 508.6538462
A37: 2006-12-20T22:15:00 | B37: 0.888 | C37: 5.952 | D37: 5.952 | E37: 575.8 | F37: 575.8 | R37: =R35+30 -> 525
A38: 2006-12-20T22:30:00 | B38: 0.912 | C38: 6.003 | D38: 6.003 | E38: 596.5 | F38: 596.5 | G38: 0.02 | I38: 4.3 | R38: 540
A39: 2006-12-20T22:45:00 | B39: 0.969 | C39: 6.028 | D39: 6.028 | E39: 603 | F39: 603 | R39: 555
A40: 2006-12-20T23:00:00 | B40: 1.02 | C40: 6.063 | D40: 6.063 | E40: 611.2 | F40: 611.2 | G40: 0 | I40: 4.32 | R40: 570
A41: 2006-12-20T23:15:00 | B41: 1.095 | C41: 6.095 | D41: 6.095 | E41: 601.8 | F41: 601.8 | R41: 585
A42: 2006-12-20T23:30:00 | B42: 1.027 | C42: 6.125 | D42: 6.125 | E42: 621.4 | F42: 621.4 | G42: 0.01 | I42: 4.33 | R42: 600
A43: 2006-12-20T23:45:00 | B43: 1.042 | C43: 6.13 | D43: 6.13 | E43: 622.6 | F43: 622.6 | R43: 615
A44: 2006-12-21 | B44: 1.103 | C44: 6.114 | D44: 6.114 | E44: 610.7 | F44: 610.7 | G44: 0.02 | H44: =SUM(G2:G44) -> 0.44 | I44: 4.34 | R44: 630
A45: 2006-12-21T00:15:00 | B45: 1.141 | C45: 6.182 | D45: 6.182 | E45: 589.9 | F45: 589.9 | R45: 645
A46: 2006-12-21T00:30:00 | B46: 1.148 | C46: 6.16 | D46: 6.16 | E46: 595.6 | F46: 595.6 | G46: 0 | I46: 4.34 | R46: 660
A47: 2006-12-21T00:45:00 | B47: 1.138 | C47: 6.192 | D47: 6.192 | E47: 620.1 | F47: 620.1 | R47: 675
A48: 2006-12-21T01:00:00 | B48: 1.175 | C48: 6.192 | D48: 6.192 | E48: 649 | F48: 649 | G48: 0 | I48: 4.36 | R48: 690
A49: 2006-12-21T01:15:00 | B49: 1.19 | C49: 6.186 | D49: 6.186 | E49: 665.5 | F49: 665.5 | R49: 705
A50: 2006-12-21T01:30:00 | B50: 1.224 | C50: 6.162 | D50: 6.162 | E50: 645.8 | F50: 645.8 | G50: 0 | I50: 4.36 | R50: 720
A51: 2006-12-21T01:45:00 | B51: 1.278 | C51: 6.15 | D51: 6.15 | E51: 599.3 | F51: 599.3 | R51: 735
A52: 2006-12-21T02:00:00 | B52: 1.324 | C52: 6.162 | D52: 6.162 | E52: 615.6 | F52: 615.6 | G52: 0 | I52: 4.38 | R52: 750
A53: 2006-12-21T02:15:00 | B53: 1.408 | C53: 6.171 | D53: 6.171 | E53: 647.6 | F53: 647.6 | R53: 765
A54: 2006-12-21T02:30:00 | B54: 1.486 | C54: 6.186 | D54: 6.186 | E54: 663.4 | F54: 663.4 | G54: 0 | I54: 4.4 | R54: 780
A55: 2006-12-21T02:45:00 | B55: 1.511 | C55: 6.205 | D55: 6.205 | E55: 676.9 | F55: 676.9 | R55: 795
A56: 2006-12-21T03:00:00 | B56: 1.544 | C56: 6.223 | D56: 6.223 | E56: 685.8 | F56: 685.8 | G56: 0 | I56: 4.42 | R56: 810
A57: 2006-12-21T03:15:00 | B57: 1.563 | C57: 6.242 | D57: 6.242 | E57: 692.3 | F57: 692.3 | R57: 825
A58: 2006-12-21T03:30:00 | B58: 1.574 | C58: 6.26 | D58: 6.26 | E58: 699.2 | F58: 699.2 | G58: 0 | I58: 4.42 | R58: =R57+15 -> 840
A59: 2006-12-21T03:45:00 | B59: 1.562 | C59: 6.279 | D59: 6.279 | E59: 703 | F59: 703 | Q59: X | R59: =R58+(15*((L13-F58)/(F59-F58))) -> 854.5657895
A60: 2006-12-21T04:00:00 | B60: 1.543 | C60: 6.3 | D60: 6.3 | E60: 708 | F60: 708 | G60: 0.01 | I60: 4.44 | M60: X | R60: 0
A61: 2006-12-21T04:15:00 | B61: 1.53 | C61: 6.317 | D61: 6.317 | E61: 712 | F61: 712 | R61: =R60+15 -> 15
A62: 2006-12-21T04:30:00 | B62: 1.544 | C62: 6.329 | D62: 6.329 | E62: 716 | F62: 716 | G62: 0 | I62: 4.44 | R62: =R61+15 -> 30
A63: 2006-12-21T04:45:00 | B63: 1.538 | C63: 6.341 | D63: 6.341 | E63: 720 | F63: 720 | R63: 45
A64: 2006-12-21T05:00:00 | B64: 1.557 | C64: 6.353 | D64: 6.353 | E64: 724 | F64: 724 | G64: 0.01 | I64: 4.46 | R64: 60
A65: 2006-12-21T05:15:00 | B65: 1.562 | C65: 6.363 | D65: 6.363 | E65: 727 | F65: 727 | R65: 75
A66: 2006-12-21T05:30:00 | B66: 1.566 | C66: 6.372 | D66: 6.372 | E66: 730 | F66: 730 | G66: 0 | I66: 4.47 | R66: 90
A67: 2006-12-21T05:45:00 | B67: 1.563 | C67: 6.378 | D67: 6.378 | E67: 730 | F67: 730 | R67: 105
A68: 2006-12-21T06:00:00 | B68: 1.627 | C68: 6.38 | D68: 6.38 | E68: 728 | F68: 728 | G68: 0.04 | I68: 4.48 | J68: =AVERAGE(F61:F68) -> 723.375 | K68: =F74+((J68-F74)*0.5) -> 622.1875 | L68: =F74+((J68-F74)*0.9) -> 703.1375 | R68: 120
A69: 2006-12-21T06:15:00 | B69: 1.686 | C69: 6.374 | D69: 6.374 | E69: 716 | F69: 716 | N69: X | R69: 135
A70: 2006-12-21T06:30:00 | B70: 1.602 | C70: 6.359 | D70: 6.359 | E70: 704 | F70: 704 | G70: 0.01 | I70: 4.48 | R70: 150
A71: 2006-12-21T06:45:00 | B71: 1.571 | C71: 6.348 | D71: 6.348 | E71: 683.7 | F71: 683.7 | R71: 165
A72: 2006-12-21T07:00:00 | B72: 1.552 | C72: 6.327 | D72: 6.327 | E72: 679.7 | F72: 679.7 | G72: 0.01 | I72: 4.49 | R72: 180
A73: 2006-12-21T07:15:00 | B73: 1.527 | C73: 6.212 | D73: 6.212 | E73: 622.4 | F73: 622.4 | R73: 195
A74: 2006-12-21T07:30:00 | B74: 1.519 | C74: 6.07 | D74: 6.07 | E74: 521 | F74: 521 | G74: 0.02 | I74: 4.49 | O74: X | R74: 210
A75: 2006-12-21T07:45:00 | B75: 1.577 | C75: 5.973 | D75: 5.973 | E75: 561.4 | F75: 561.4 | R75: 225
A76: 2006-12-21T08:00:00 | B76: 1.574 | C76: 5.964 | D76: 5.964 | E76: 602 | F76: 602 | G76: 0.01 | I76: 4.51 | R76: 240
A77: 2006-12-21T08:15:00 | B77: 1.673 | C77: 6 | D77: 6 | E77: 614.8 | F77: 614.8 | R77: 255
A78: 2006-12-21T08:30:00 | B78: 1.81 | C78: 6.045 | D78: 6.045 | E78: 646.4 | F78: 646.4 | G78: 0.01 | I78: 4.52 | P78: X | R78: =R77+(15*((K68-F77)/(F78-F77))) -> 258.5067247
A79: 2006-12-21T08:45:00 | B79: 1.816 | C79: 6.09 | D79: 6.09 | E79: 686 | F79: 686 | R79: =R77+30 -> 285
A80: 2006-12-21T09:00:00 | B80: 1.845 | C80: 6.122 | D80: 6.122 | E80: 686.9 | F80: 686.9 | G80: 0.01 | I80: 4.53 | R80: =R79+15 -> 300
A81: 2006-12-21T09:15:00 | B81: 1.872 | C81: 6.117 | D81: 6.117 | E81: 676.3 | F81: 676.3 | R81: 315
A82: 2006-12-21T09:30:00 | B82: 1.902 | C82: 6.122 | D82: 6.122 | E82: 658.4 | F82: 658.4 | G82: 0 | I82: 4.54 | R82: 330
A83: 2006-12-21T09:45:00 | B83: 2.045 | C83: 6.123 | D83: 6.123 | E83: 677.8 | F83: 677.8 | R83: 345
A84: 2006-12-21T10:00:00 | B84: 2.236 | C84: 6.124 | D84: 6.124 | E84: 668.9 | F84: 668.9 | G84: 0.01 | H84: =SUM(G60:G84) -> 0.14 | I84: 4.57 | R84: 360
A85: 2006-12-21T10:15:00 | B85: 2.41 | C85: 6.126 | D85: 6.126 | E85: 661.4 | F85: 661.4 | R85: 375
A86: 2006-12-21T10:30:00 | B86: 2.508 | C86: 6.14 | D86: 6.14 | E86: 671.5 | F86: 671.5 | G86: 0 | I86: 4.6 | R86: 390
A87: 2006-12-21T10:45:00 | B87: 2.544 | C87: 6.164 | D87: 6.164 | E87: 682.3 | F87: 682.3 | R87: 405
A88: 2006-12-21T11:00:00 | B88: 2.688 | C88: 6.184 | D88: 6.184 | E88: 679.7 | F88: 679.7 | G88: 0 | I88: 4.62 | R88: 420
A89: 2006-12-21T11:15:00 | B89: 2.739 | C89: 6.203 | D89: 6.203 | E89: 701 | F89: 701 | R89: =R88+15 -> 435
A90: 2006-12-21T11:30:00 | B90: 2.815 | C90: 6.222 | D90: 6.222 | E90: 711 | F90: 711 | G90: 0 | I90: 4.69 | Q90: X | R90: =R89+(15*((L68-F89)/(F90-F89))) -> 438.20625

Sheet 2007_3
A1: Date/Time | B1: Air Temperature (deg C) | C1: 21-cm subsurface drain temp., unedited (°C) | D1: 21-cm subsurface drain temp. (°C) | E1: 21-cm subsurface drain SC, unedited (mS/cm) | F1: 21-cm subsurface drain SC (mS/cm) | G1: Precip (inch) | H1: Cumulative Precip (inch) | I1: Gage height (feet), relative | J1: SCEO (mS/cm) | K1: SC50 (mS/cm) | L1: SC90 (mS/cm) | M1: tS | N1: tEO | O1: tEM | P1: t50 | Q1: t90 | R1: Time (minutes)
A2: 2007-01-03T10:00:00 | B2: 2.104 | C2: 6.608 | D2: 6.608 | E2: 705 | F2: 705 | G2: 0 | I2: 5.36
A3: 2007-01-03T10:15:00 | B3: 2.172 | C3: 6.61 | D3: 6.61 | E3: 705 | F3: 705
A4: 2007-01-03T10:30:00 | B4: 2.483 | C4: 6.613 | D4: 6.613 | E4: 705 | F4: 705 | G4: 0 | I4: 5.36
A5: 2007-01-03T10:45:00 | B5: 2.887 | C5: 6.613 | D5: 6.613 | E5: 705 | F5: 705
A6: 2007-01-03T11:00:00 | B6: 3.176 | C6: 6.609 | D6: 6.609 | E6: 705 | F6: 705 | G6: 0 | I6: 5.36 | M6: X | R6: 0
A7: 2007-01-03T11:15:00 | B7: 3.519 | C7: 6.612 | D7: 6.612 | E7: 705 | F7: 705 | R7: =R6+15 -> 15
A8: 2007-01-03T11:30:00 | B8: 3.938 | C8: 6.608 | D8: 6.608 | E8: 705 | F8: 705 | G8: 0 | I8: 5.36 | R8: =R7+15 -> 30
A9: 2007-01-03T11:45:00 | B9: 4.285 | C9: 6.607 | D9: 6.607 | E9: 705 | F9: 705 | R9: 45
A10: 2007-01-03T12:00:00 | B10: 4.605 | C10: 6.61 | D10: 6.61 | E10: 705 | F10: 705 | G10: 0 | I10: 5.35 | R10: 60
A11: 2007-01-03T12:15:00 | B11: 5.067 | C11: 6.606 | D11: 6.606 | E11: 705 | F11: 705 | R11: 75
A12: 2007-01-03T12:30:00 | B12: 5.491 | C12: 6.605 | D12: 6.605 | E12: 705 | F12: 705 | G12: 0 | I12: 5.34 | R12: =R11+15 -> 90
A13: 2007-01-03T12:45:00 | B13: 5.799 | C13: 6.601 | D13: 6.601 | E13: 705 | F13: 705 | R13: =R12+15 -> 105
A14: 2007-01-03T13:00:00 | B14: 5.956 | C14: 6.601 | D14: 6.601 | E14: 705 | F14: 705 | G14: 0 | I14: 5.32 | R14: =R13+15 -> 120
A15: 2007-01-03T13:15:00 | B15: 6.06 | C15: 6.599 | D15: 6.599 | E15: 705 | F15: 705 | R15: 135
A16: 2007-01-03T13:30:00 | B16: 6.236 | C16: 6.598 | D16: 6.598 | E16: 705 | F16: 705 | G16: 0 | I16: 5.32 | R16: 150
A17: 2007-01-03T13:45:00 | B17: 6.426 | C17: 6.593 | D17: 6.593 | E17: 705 | F17: 705 | R17: 165
A18: 2007-01-03T14:00:00 | B18: 6.636 | C18: 6.591 | D18: 6.591 | E18: 705 | F18: 705 | G18: 0 | I18: 5.31 | R18: 180
A19: 2007-01-03T14:15:00 | B19: 6.789 | C19: 6.59 | D19: 6.59 | E19: 705 | F19: 705 | R19: 195
A20: 2007-01-03T14:30:00 | B20: 6.89 | C20: 6.585 | D20: 6.585 | E20: 705 | F20: 705 | G20: 0 | I20: 5.31 | R20: 210
A21: 2007-01-03T14:45:00 | B21: 6.973 | C21: 6.579 | D21: 6.579 | E21: 706 | F21: 706 | R21: 225
A22: 2007-01-03T15:00:00 | B22: 7.1 | C22: 6.565 | D22: 6.565 | E22: 707 | F22: 707 | G22: 0 | I22: 5.32 | J22: =AVERAGE(F15:F22) -> 705.375 | K22: =F24+((J22-F24)*0.5) -> 660.1375 | L22: =F24+((J22-F24)*0.9) -> 696.3275 | R22: 240
A23: 2007-01-03T15:15:00 | B23: 6.993 | C23: 6.537 | D23: 6.537 | E23: 656.8 | F23: 656.8 | N23: X | R23: =R22+15 -> 255
A24: 2007-01-03T15:30:00 | B24: 7.01 | C24: 6.395 | D24: 6.395 | E24: 614.9 | F24: 614.9 | G24: 0 | I24: 5.32 | O24: X | R24: =R23+15 -> 270
A25: 2007-01-03T15:45:00 | B25: 6.752 | C25: 6.227 | D25: 6.227 | E25: 619 | F25: 619 | R25: =R24+15 -> 285
A26: 2007-01-03T16:00:00 | B26: 6.444 | C26: 6.15 | D26: 6.15 | E26: 629.9 | F26: 629.9 | G26: 0 | I26: 5.33 | R26: 300
A27: 2007-01-03T16:15:00 | B27: 6.379 | C27: 6.137 | D27: 6.137 | E27: 642.5 | F27: 642.5 | R27: 315
A28: 2007-01-03T16:30:00 | B28: 5.711 | C28: 6.158 | D28: 6.158 | E28: 654.3 | F28: 654.3 | G28: 0 | I28: 5.31 | R28: =R27+15 -> 330
A29: 2007-01-03T16:45:00 | B29: 5.409 | C29: 6.19 | D29: 6.19 | E29: 665.5 | F29: 665.5 | R29: =R28+15 -> 345
A30: 2007-01-03T17:00:00 | B30: 4.224 | C30: 6.225 | D30: 6.225 | E30: 674.6 | F30: 674.6 | G30: 0 | I30: 5.31 | R30: =R28+30 -> 360
A31: 2007-01-03T17:15:00 | B31: 3.879 | C31: 6.261 | D31: 6.261 | E31: 677.7 | F31: 677.7 | R31: =R30+15 -> 375
A32: 2007-01-03T17:30:00 | B32: 3.634 | C32: 6.292 | D32: 6.292 | E32: 681.7 | F32: 681.7 | G32: 0 | I32: 5.31 | R32: =R31+15 -> 390
A33: 2007-01-03T17:45:00 | B33: 3.161 | C33: 6.319 | D33: 6.319 | E33: 683.1 | F33: 683.1 | R33: 405
A34: 2007-01-03T18:00:00 | B34: 3.54 | C34: 6.333 | D34: 6.333 | E34: 659.2 | F34: 659.2 | G34: 0 | I34: 5.33 | R34: 420
A35: 2007-01-03T18:15:00 | B35: 3.375 | C35: 6.349 | D35: 6.349 | E35: 656.9 | F35: 656.9 | R35: 435
A36: 2007-01-03T18:30:00 | B36: 3.428 | C36: 6.364 | D36: 6.364 | E36: 643.7 | F36: 643.7 | G36: 0 | I36: 5.34 | R36: 450
A37: 2007-01-03T18:45:00 | B37: 2.955 | C37: 6.379 | D37: 6.379 | E37: 665.6 | F37: 665.6 | P37: X | R37: =R36+(15*((K22-F36)/(F37-F36))) -> 461.2585616
A38: 2007-01-03T19:00:00 | B38: 2.248 | C38: 6.393 | D38: 6.393 | E38: 673.4 | F38: 673.4 | G38: 0 | I38: 5.35 | R38: =R36+30 -> 480
A39: 2007-01-03T19:15:00 | B39: 2.255 | C39: 6.4 | D39: 6.4 | E39: 696.8 | F39: 696.8 | Q39: X | R39: =R38+(15*((L22-F38)/(F39-F38))) -> 494.6971154
A40: 2007-01-03T19:30:00 | B40: 2.679 | C40: 6.406 | D40: 6.406 | E40: 704 | F40: 704 | G40: 0 | I40: 5.36

Sheet 2007_4
A1: Date/Time | B1: Air Temperature (deg C) | C1: 21-cm subsurface drain temp., unedited (°C) | D1: 21-cm subsurface drain temp. (°C) | E1: 21-cm subsurface drain SC, unedited (mS/cm) | F1: 21-cm subsurface drain SC (mS/cm) | G1: Precip (inch) | H1: Cumulative Precip (inch) | I1: Gage height (feet), relative | J1: SCEO (mS/cm) | K1: SC50 (mS/cm) | L1: SC90 (mS/cm) | M1: tS | N1: tEO | O1: tEM | P1: t50 | Q1: t90 | R1: Time (minutes)
A2: 2007-01-26T11:15:00 | B2: 2.182 | C2: 5.275 | D2: 5.275 | E2: 703 | F2: 703
A3: 2007-01-26T11:30:00 | B3: 2.507 | C3: 5.275 | D3: 5.275 | E3: 703 | F3: 703 | G3: 0 | I3: 4.34
A4: 2007-01-26T11:45:00 | B4: 3.032 | C4: 5.274 | D4: 5.274 | E4: 702 | F4: 702
A5: 2007-01-26T12:00:00 | B5: 3.024 | C5: 5.273 | D5: 5.273 | E5: 702 | F5: 702 | G5: 0 | I5: 4.33
A6: 2007-01-26T12:15:00 | B6: 2.904 | C6: 5.269 | D6: 5.269 | E6: 703 | F6: 703 | M6: X | R6: 0
A7: 2007-01-26T12:30:00 | B7: 2.837 | C7: 5.263 | D7: 5.263 | E7: 703 | F7: 703 | G7: 0 | I7: 4.32 | R7: =R6+15 -> 15
A8: 2007-01-26T12:45:00 | B8: 2.838 | C8: 5.259 | D8: 5.259 | E8: 703 | F8: 703 | R8: =R7+15 -> 30
A9: 2007-01-26T13:00:00 | B9: 2.742 | C9: 5.255 | D9: 5.255 | E9: 704 | F9: 704 | G9: 0 | I9: 4.34 | R9: 45
A10: 2007-01-26T13:15:00 | B10: 2.934 | C10: 5.253 | D10: 5.253 | E10: 704 | F10: 704 | R10: 60
A11: 2007-01-26T13:30:00 | B11: 2.667 | C11: 5.25 | D11: 5.25 | E11: 706 | F11: 706 | G11: 0 | I11: 4.33 | R11: 75
A12: 2007-01-26T13:45:00 | B12: 2.55 | C12: 5.248 | D12: 5.248 | E12: 706 | F12: 706 | R12: 90
A13: 2007-01-26T14:00:00 | B13: 2.692 | C13: 5.239 | D13: 5.239 | E13: 714 | F13: 714 | G13: 0 | I13: 4.34 | R13: 105
A14: 2007-01-26T14:15:00 | B14: 2.994 | C14: 5.229 | D14: 5.229 | E14: 707 | F14: 707 | R14: 120
A15: 2007-01-26T14:30:00 | B15: 2.843 | C15: 5.227 | D15: 5.227 | E15: 705 | F15: 705 | G15: 0 | I15: 4.36 | R15: 135
A16: 2007-01-26T14:45:00 | B16: 3.038 | C16: 5.231 | D16: 5.231 | E16: 705 | F16: 705 | R16: 150
A17: 2007-01-26T15:00:00 | B17: 3.061 | C17: 5.24 | D17: 5.24 | E17: 705 | F17: 705 | G17: 0 | I17: 4.34 | R17: 165
A18: 2007-01-26T15:15:00 | B18: 2.724 | C18: 5.251 | D18: 5.251 | E18: 705 | F18: 705 | J18: =AVERAGE(F11:F18) -> 706.625 | K18: =F21+((J18-F21)*0.5) -> 655.6625 | L18: =F21+((J18-F21)*0.9) -> 696.4325 | R18: 180
A19: 2007-01-26T15:30:00 | B19: 2.362 | C19: 5.224 | D19: 5.224 | E19: 691.4 | F19: 691.4 | G19: 0 | I19: 4.35 | N19: X | R19: 195
A20: 2007-01-26T15:45:00 | B20: 2.063 | C20: 5.2 | D20: 5.2 | E20: 621.9 | F20: 621.9 | R20: 210
A21: 2007-01-26T16:00:00 | B21: 2.028 | C21: 5.18 | D21: 5.18 | E21: 604.7 | F21: 604.7 | G21: 0 | I21: 4.35 | O21: X | R21: 225
A22: 2007-01-26T16:15:00 | B22: 1.899 | C22: 5.145 | D22: 5.145 | E22: 607.5 | F22: 607.5 | R22: 240
A23: 2007-01-26T16:30:00 | B23: 1.708 | C23: 5.122 | D23: 5.122 | E23: 625.5 | F23: 625.5 | G23: 0 | I23: 4.33 | R23: 255
A24: 2007-01-26T16:45:00 | B24: 1.415 | C24: 5.105 | D24: 5.105 | E24: 647 | F24: 647 | R24: 270
A25: 2007-01-26T17:00:00 | B25: 1.238 | C25: 5.094 | D25: 5.094 | E25: 659 | F25: 659 | G25: 0 | I25: 4.35 | P25: X | R25: =R24+(15*((K18-F24)/(F25-F24))) -> 280.828125
A26: 2007-01-26T17:15:00 | B26: 0.977 | C26: 5.078 | D26: 5.078 | E26: 657 | F26: 657 | R26: =R24+30 -> 300
A27: 2007-01-26T17:30:00 | B27: 0.824 | C27: 5.09 | D27: 5.09 | E27: 658.3 | F27: 658.3 | G27: 0 | I27: 4.35 | R27: =R26+15 -> 315
A28: 2007-01-26T17:45:00 | B28: 0.695 | C28: 5.097 | D28: 5.097 | E28: 656.5 | F28: 656.5 | R28: 330
A29: 2007-01-26T18:00:00 | B29: 0.525 | C29: 5.109 | D29: 5.109 | E29: 658.9 | F29: 658.9 | G29: 0 | I29: 4.35 | R29: 345
A30: 2007-01-26T18:15:00 | B30: 0.427 | C30: 5.119 | D30: 5.119 | E30: 662.9 | F30: 662.9 | R30: 360
A31: 2007-01-26T18:30:00 | B31: 0.359 | C31: 5.124 | D31: 5.124 | E31: 668.5 | F31: 668.5 | G31: 0 | I31: 4.33 | R31: 375
A32: 2007-01-26T18:45:00 | B32: 0.187 | C32: 5.131 | D32: 5.131 | E32: 672.7 | F32: 672.7 | R32: 390
A33: 2007-01-26T19:00:00 | B33: 0.002 | C33: 5.138 | D33: 5.138 | E33: 673.3 | F33: 673.3 | G33: 0 | I33: 4.33 | R33: 405
A34: 2007-01-26T19:15:00 | B34: 0.026 | C34: 5.144 | D34: 5.144 | E34: 676.5 | F34: 676.5 | R34: 420
A35: 2007-01-26T19:30:00 | B35: -0.136 | C35: 5.148 | D35: 5.148 | E35: 680.7 | F35: 680.7 | G35: 0 | I35: 4.34 | R35: 435
A36: 2007-01-26T19:45:00 | B36: -0.113 | C36: 5.154 | D36: 5.154 | E36: 683.4 | F36: 683.4 | R36: 450
A37: 2007-01-26T20:00:00 | B37: -0.595 | C37: 5.158 | D37: 5.158 | E37: 686.2 | F37: 686.2 | G37: 0 | I37: 4.33 | R37: 465
A38: 2007-01-26T20:15:00 | B38: -0.955 | C38: 5.165 | D38: 5.165 | E38: 689 | F38: 689 | R38: 480
A39: 2007-01-26T20:30:00 | B39: -1.134 | C39: 5.172 | D39: 5.172 | E39: 691.5 | F39: 691.5 | G39: 0 | I39: 4.33 | R39: 495
A40: 2007-01-26T20:45:00 | B40: -1.222 | C40: 5.176 | D40: 5.176 | E40: 693.8 | F40: 693.8 | R40: 510
A41: 2007-01-26T21:00:00 | B41: -1.39 | C41: 5.18 | D41: 5.18 | E41: 696 | F41: 696 | G41: 0 | I41: 4.32 | R41: 525
A42: 2007-01-26T21:15:00 | B42: -1.705 | C42: 5.181 | D42: 5.181 | E42: 697.7 | F42: 697.7 | Q42: X | R42: =R41+(15*((L18-F41)/(F42-F41))) -> 528.8161765
A43: 2007-01-26T21:30:00 | B43: -1.807 | C43: 5.186 | D43: 5.186 | E43: 698.5 | F43: 698.5 | G43: 0 | I43: 4.32

Sheet 2007_5 (4)
A1: Date/Time | B1: Air Temperature (deg C) | C1: 21-cm subsurface drain temp., unedited (°C) | D1: 21-cm subsurface drain temp. (°C) | E1: 21-cm subsurface drain SC, unedited (mS/cm) | F1: 21-cm subsurface drain SC (mS/cm) | G1: Precip (inch) | H1: Cumulative Precip (inch) | I1: Gage height (feet), relative | J1: SCEO (mS/cm) | K1: SC50 (mS/cm) | L1: SC90 (mS/cm) | M1: tS | N1: tEO | O1: tEM | P1: t50 | Q1: t90 | R1: Time (minutes)
A2: 2007-02-19T09:15:00 | B2: 2.771 | C2: 4.043 | D2: 4.043 | E2: 703 | F2: 703
A3: 2007-02-19T09:30:00 | B3: 3.333 | C3: 4.042 | D3: 4.042 | E3: 703 | F3: 703 | G3: 0 | I3: 3.97
A4: 2007-02-19T09:45:00 | B4: 3.312 | C4: 4.043 | D4: 4.043 | E4: 702 | F4: 702
A5: 2007-02-19T10:00:00 | B5: 3.314 | C5: 4.049 | D5: 4.049 | E5: 706 | F5: 706 | G5: 0 | I5: 3.96
A6: 2007-02-19T10:15:00 | B6: 3.347 | C6: 4.041 | E6: 728 | M6: X | R6: 0
A7: 2007-02-19T10:30:00 | B7: 3.478 | C7: 4.038 | D7: 4.038 | E7: 705 | F7: 705 | G7: 0 | I7: 3.98 | R7: =R6+15 -> 15
A8: 2007-02-19T10:45:00 | B8: 3.497 | C8: 4.04 | E8: 721 | R8: =R7+15 -> 30
A9: 2007-02-19T11:00:00 | B9: 3.478 | C9: 4.016 | E9: 723 | G9: 0 | I9: 3.98 | R9: 45
A10: 2007-02-19T11:15:00 | B10: 3.304 | C10: 4.01 | D10: 4.01 | E10: 707 | F10: 707 | R10: 60
A11: 2007-02-19T11:30:00 | B11: 3.39 | C11: 4.011 | D11: 4.011 | E11: 704 | F11: 704 | G11: 0 | I11: 3.98 | R11: 75
A12: 2007-02-19T11:45:00 | B12: 3.522 | C12: 4.013 | D12: 4.013 | E12: 704 | F12: 704 | R12: 90
A13: 2007-02-19T12:00:00 | B13: 3.887 | C13: 4.008 | D13: 4.008 | E13: 704 | F13: 704 | G13: 0 | I13: 3.97 | R13: 105
A14: 2007-02-19T12:15:00 | B14: 4.01 | C14: 4.006 | D14: 4.006 | E14: 703 | F14: 703 | R14: =R13+15 -> 120
A15: 2007-02-19T12:30:00 | B15: 4.761 | C15: 4.007 | D15: 4.007 | E15: 703 | F15: 703 | G15: 0 | I15: 3.97 | R15: 135
A16: 2007-02-19T12:45:00 | B16: 5.708 | C16: 4.01 | D16: 4.01 | E16: 703 | F16: 703 | R16: 150
A17: 2007-02-19T13:00:00 | B17: 4.732 | C17: 4.011 | D17: 4.011 | E17: 703 | F17: 703 | G17: 0 | I17: 3.97 | R17: 165
A18: 2007-02-19T13:15:00 | B18: 4.222 | C18: 4.007 | D18: 4.007 | E18: 703 | F18: 703 | R18: 180
A19: 2007-02-19T13:30:00 | B19: 3.583 | C19: 4.006 | D19: 4.006 | E19: 703 | F19: 703 | G19: 0 | I19: 3.97 | R19: 195
A20: 2007-02-19T13:45:00 | B20: 3.548 | C20: 4.003 | D20: 4.003 | E20: 703 | F20: 703 | R20: 210
A21: 2007-02-19T14:00:00 | B21: 3.588 | C21: 4.033 | D21: 4.033 | E21: 703 | F21: 703 | G21: 0 | I21: 3.99 | R21: 225
A22: 2007-02-19T14:15:00 | B22: 3.474 | C22: 4.183 | D22: 4.183 | E22: 709 | F22: 709 | R22: 240
A23: 2007-02-19T14:30:00 | B23: 3.152 | C23: 4.163 | E23: 724 | G23: 0 | I23: 4 | R23: 255
A24: 2007-02-19T14:45:00 | B24: 3.417 | C24: 4.071 | D24: 4.071 | E24: 701 | F24: 701 | J24: =AVERAGE(F16:F24) -> 703.5 | K24: =F30+((J24-F30)*0.5) -> 605 | L24: =F30+((J24-F30)*0.9) -> 683.8 | R24: 270
A25: 2007-02-19T15:00:00 | B25: 3.498 | C25: 4.001 | D25: 4.001 | E25: 616.3 | F25: 616.3 | G25: 0 | I25: 4.01 | N25: X | R25: 285
A26: 2007-02-19T15:15:00 | B26: 3.059 | C26: 3.93 | D26: 3.93 | E26: 577.2 | F26: 577.2 | R26: 300
A27: 2007-02-19T15:30:00 | B27: 3.037 | C27: 3.874 | D27: 3.874 | E27: 549.8 | F27: 549.8 | G27: 0 | I27: 4.01 | R27: 315
A28: 2007-02-19T15:45:00 | B28: 2.987 | C28: 3.819 | D28: 3.819 | E28: 529.6 | F28: 529.6 | R28: 330
A29: 2007-02-19T16:00:00 | B29: 2.96 | C29: 3.77 | D29: 3.77 | E29: 519.2 | F29: 519.2 | G29: 0 | I29: 4 | R29: 345
A30: 2007-02-19T16:15:00 | B30: 3.099 | C30: 3.729 | D30: 3.729 | E30: 506.5 | F30: 506.5 | O30: X | R30: 360
A31: 2007-02-19T16:30:00 | B31: 2.69 | C31: 3.694 | D31: 3.694 | E31: 511.4 | F31: 511.4 | G31: 0 | I31: 4.01 | R31: 375
A32: 2007-02-19T16:45:00 | B32: 2.142 | C32: 3.671 | D32: 3.671 | E32: 536.9 | F32: 536.9 | R32: 390
A33: 2007-02-19T17:00:00 | B33: 2.03 | C33: 3.659 | D33: 3.659 | E33: 570.2 | F33: 570.2 | G33: 0 | I33: 4.01 | R33: 405
A34: 2007-02-19T17:15:00 | B34: 1.803 | C34: 3.666 | D34: 3.666 | E34: 590.1 | F34: 590.1 | R34: 420
A35: 2007-02-19T17:30:00 | B35: 1.459 | C35: 3.685 | D35: 3.685 | E35: 594.8 | F35: 594.8 | G35: 0 | I35: 4.02 | R35: 435
A36: 2007-02-19T17:45:00 | B36: 1.163 | C36: 3.705 | D36: 3.705 | E36: 590.7 | F36: 590.7 | R36: 450
A37: 2007-02-19T18:00:00 | B37: 1.176 | C37: 3.721 | D37: 3.721 | E37: 593.5 | F37: 593.5 | G37: 0 | I37: 4.02 | R37: 465
A38: 2007-02-19T18:15:00 | B38: 0.917 | C38: 3.737 | D38: 3.737 | E38: 601.5 | F38: 601.5 | R38: 480
A39: 2007-02-19T18:30:00 | B39: 0.823 | C39: 3.746 | D39: 3.746 | E39: 606 | F39: 606 | G39: 0 | I39: 4 | P39: X | R39: =R38+(15*((K24-F38)/(F39-F38))) -> 491.6666667
A40: 2007-02-19T18:45:00 | B40: 0.605 | C40: 3.754 | D40: 3.754 | E40: 601.6 | F40: 601.6 | R40: =R38+30 -> 510
A41: 2007-02-19T19:00:00 | B41: -0.044 | C41: 3.762 | D41: 3.762 | E41: 612.6 | F41: 612.6 | G41: 0 | I41: 3.99 | R41: 525
A42: 2007-02-19T19:15:00 | B42: -0.056 | C42: 3.772 | D42: 3.772 | E42: 619.9 | F42: 619.9 | R42: 540
A43: 2007-02-19T19:30:00 | B43: 0.306 | C43: 3.779 | D43: 3.779 | E43: 625.9 | F43: 625.9 | G43: 0 | I43: 3.99 | R43: 555
A44: 2007-02-19T19:45:00 | B44: 0.421 | C44: 3.786 | D44: 3.786 | E44: 637.9 | F44: 637.9 | R44: 570
A45: 2007-02-19T20:00:00 | B45: 0.427 | C45: 3.79 | D45: 3.79 | E45: 645.3 | F45: 645.3 | G45: 0 | I45: 3.99 | R45: 585
A46: 2007-02-19T20:15:00 | B46: 0.478 | C46: 3.795 | D46: 3.795 | E46: 648.6 | F46: 648.6 | R46: 600
A47: 2007-02-19T20:30:00 | B47: 0.512 | C47: 3.802 | D47: 3.802 | E47: 653.2 | F47: 653.2 | G47: 0 | I47: 3.98 | R47: 615
A48: 2007-02-19T20:45:00 | B48: 0.5 | C48: 3.811 | D48: 3.811 | E48: 658.3 | F48: 658.3 | R48: 630
A49: 2007-02-19T21:00:00 | B49: 0.481 | C49: 3.818 | D49: 3.818 | E49: 664.1 | F49: 664.1 | G49: 0 | I49: 3.98 | R49: 645
A50: 2007-02-19T21:15:00 | B50: 0.405 | C50: 3.83 | D50: 3.83 | E50: 669.4 | F50: 669.4 | R50: 660
A51: 2007-02-19T21:30:00 | B51: 0.507 | C51: 3.839 | D51: 3.839 | E51: 673.4 | F51: 673.4 | G51: 0 | I51: 3.98 | R51: 675
A52: 2007-02-19T21:45:00 | B52: 0.583 | C52: 3.845 | D52: 3.845 | E52: 676.8 | F52: 676.8 | R52: 690
A53: 2007-02-19T22:00:00 | B53: 0.558 | C53: 3.851 | D53: 3.851 | E53: 679.9 | F53: 679.9 | G53: 0 | I53: 3.98 | R53: 705
A54: 2007-02-19T22:15:00 | B54: 0.197 | C54: 3.857 | D54: 3.857 | E54: 683.2 | F54: 683.2 | R54: 720
A55: 2007-02-19T22:30:00 | B55: 0.255 | C55: 3.86 | D55: 3.86 | E55: 686.1 | F55: 686.1 | G55: 0 | I55: 3.97 | Q55: X | R55: =R54+(15*((L24-F54)/(F55-F54))) -> 723.1034483
A56: 2007-02-19T22:45:00 | B56: 0.471 | C56: 3.866 | D56: 3.866 | E56: 694.9 | F56: 694.9
A57: 2007-02-19T23:00:00 | B57: 0.65 | C57: 3.869 | D57: 3.869 | E57: 695.7 | F57: 695.7 | G57: 0 | I57: 3.96
A58: 2007-02-20T08:30:00 | B58: 3.265 | C58: 3.928 | D58: 3.928 | E58: 704 | F58: 704 | G58: 0 | I58: 3.93
A59: 2007-02-20T08:45:00 | B59: 2.444 | C59: 3.932 | D59: 3.932 | E59: 704 | F59: 704
A60: 2007-02-20T09:00:00 | B60: 2.537 | C60: 3.928 | D60: 3.928 | E60: 704 | F60: 704 | G60: 0 | I60: 3.92
A61: 2007-02-20T09:15:00 | B61: 2.451 | C61: 3.928 | D61: 3.928 | E61: 704 | F61: 704
A62: 2007-02-20T09:30:00 | B62: 3.321 | C62: 3.927 | D62: 3.927 | E62: 704 | F62: 704 | G62: 0 | I62: 3.91 | M62: X | R62: 0
A63: 2007-02-20T09:45:00 | B63: 3.173 | C63: 3.93 | D63: 3.93 | E63: 704 | F63: 704 | R63: =R62+15 -> 15
A64: 2007-02-20T10:00:00 | B64: 1.899 | C64: 3.925 | D64: 3.925 | E64: 706 | F64: 706 | G64: 0 | I64: 3.92 | R64: 30
A65: 2007-02-20T10:15:00 | B65: 1.138 | C65: 3.928 | D65: 3.928 | E65: 706 | F65: 706 | R65: 45
A66: 2007-02-20T10:30:00 | B66: 2.719 | C66: 3.925 | D66: 3.925 | E66: 705 | F66: 705 | G66: 0 | I66: 3.92 | R66: 60
A67: 2007-02-20T10:45:00 | B67: 3.331 | C67: 3.926 | D67: 3.926 | E67: 704 | F67: 704 | R67: 75
A68: 2007-02-20T11:00:00 | B68: 3.61 | C68: 3.927 | D68: 3.927 | E68: 704 | F68: 704 | G68: 0 | I68: 3.92 | R68: 90
A69: 2007-02-20T11:15:00 | B69: 4.891 | C69: 3.929 | D69: 3.929 | E69: 704 | F69: 704 | R69: 105
A70: 2007-02-20T11:30:00 | B70: 5.474 | C70: 3.928 | D70: 3.928 | E70: 704 | F70: 704 | G70: 0 | I70: 3.92 | R70: 120
A71: 2007-02-20T11:45:00 | B71: 5.262 | C71: 3.927 | D71: 3.927 | E71: 703 | F71: 703 | R71: 135
A72: 2007-02-20T12:00:00 | B72: 7.59 | C72: 3.933 | D72: 3.933 | E72: 704 | F72: 704 | G72: 0 | I72: 3.93 | R72: =R71+15 -> 150
A73: 2007-02-20T12:15:00 | B73: 6.614 | C73: 3.931 | D73: 3.931 | E73: 704 | F73: 704 | R73: =R72+15 -> 165
A74: 2007-02-20T12:30:00 | B74: 8.14 | C74: 3.933 | D74: 3.933 | E74: 704 | F74: 704 | G74: 0 | I74: 3.93 | R74: 180
A75: 2007-02-20T12:45:00 | B75: 9.05 | C75: 3.926 | D75: 3.926 | E75: 704 | F75: 704 | R75: =R74+15 -> 195
A76: 2007-02-20T13:00:00 | B76: 7.76 | C76: 3.932 | D76: 3.932 | E76: 709 | F76: 709 | G76: 0 | I76: 3.93 | R76: 210
A77: 2007-02-20T13:15:00 | B77: 5.728 | C77: 3.945 | D77: 3.945 | E77: 708 | F77: 708 | R77: 225
A78: 2007-02-20T13:30:00 | B78: 4.435 | C78: 3.97 | D78: 3.97 | E78: 704 | F78: 704 | G78: 0 | I78: 3.95 | R78: 240
A79: 2007-02-20T13:45:00 | B79: 4.319 | C79: 4.002 | D79: 4.002 | E79: 705 | F79: 705 | R79: 255
A80: 2007-02-20T14:00:00 | B80: 4.712 | C80: 4.025 | D80: 4.025 | E80: 710 | F80: 710 | G80: 0 | I80: 3.96 | R80: 270
A81: 2007-02-20T14:15:00 | B81: 4.514 | C81: 4.029 | D81: 4.029 | E81: 711 | F81: 711 | R81: 285
A82: 2007-02-20T14:30:00 | B82: 4.551 | C82: 4.016 | D82: 4.016 | E82: 710 | F82: 710 | G82: 0 | I82: 3.99 | R82: 300
A83: 2007-02-20T14:45:00 | B83: 4.865 | C83: 3.991 | D83: 3.991 | E83: 702 | F83: 702 | J83: =AVERAGE(F76:F83) -> 707.375 | K83: =F86+((J83-F86)*0.5) -> 664.8375 | L83: =F86+((J83-F86)*0.9) -> 698.8675 | R83: 315
A84: 2007-02-20T15:00:00 | B84: 4.911 | C84: 3.971 | D84: 3.971 | E84: 658.9 | F84: 658.9 | G84: 0 | I84: 4.01 | N84: X | R84: 330
A85: 2007-02-20T15:15:00 | B85: 4.774 | C85: 3.957 | D85: 3.957 | E85: 631.1 | F85: 631.1 | R85: 345
A86: 2007-02-20T15:30:00 | B86: 5.053 | C86: 3.949 | D86: 3.949 | E86: 622.3 | F86: 622.3 | G86: 0 | I86: 4.02 | O86: X | R86: 360
A87: 2007-02-20T15:45:00 | B87: 5.408 | C87: 3.939 | D87: 3.939 | E87: 622.3 | F87: 622.3 | R87: 375
A88: 2007-02-20T16:00:00 | B88: 4.929 | C88: 3.932 | D88: 3.932 | E88: 627.4 | F88: 627.4 | G88: 0 | I88: 4.03 | R88: 390
A89: 2007-02-20T16:15:00 | B89: 4.816 | C89: 3.928 | D89: 3.928 | E89: 633.3 | F89: 633.3 | R89: 405
A90: 2007-02-20T16:30:00 | B90: 4.456 | C90: 3.923 | D90: 3.923 | E90: 637.3 | F90: 637.3 | G90: 0 | I90: 4.1 | R90: 420
A91: 2007-02-20T16:45:00 | B91: 3.576 | C91: 3.912 | D91: 3.912 | E91: 645.7 | F91: 645.7 | R91: 435
A92: 2007-02-20T17:00:00 | B92: 2.656 | C92: 3.907 | D92: 3.907 | E92: 643.6 | F92: 643.6 | G92: 0 | I92: 4.09 | R92: 450
A93: 2007-02-20T17:15:00 | B93: 2.4 | C93: 3.903 | D93: 3.903 | E93: 644.1 | F93: 644.1 | R93: 465
A94: 2007-02-20T17:30:00 | B94: 1.822 | C94: 3.902 | D94: 3.902 | E94: 645.9 | F94: 645.9 | G94: 0 | I94: 4.09 | R94: 480
A95: 2007-02-20T17:45:00 | B95: 1.311 | C95: 3.902 | D95: 3.902 | E95: 650.4 | F95: 650.4 | R95: 495
A96: 2007-02-20T18:00:00 | B96: 0.477 | C96: 3.9 | D96: 3.9 | E96: 654.6 | F96: 654.6 | G96: 0 | I96: 4.07 | R96: 510
A97: 2007-02-20T18:15:00 | B97: -0.216 | C97: 3.896 | D97: 3.896 | E97: 654.7 | F97: 654.7 | R97: 525
A98: 2007-02-20T18:30:00 | B98: -0.875 | C98: 3.895 | D98: 3.895 | E98: 661.9 | F98: 661.9 | G98: 0 | I98: 4.05 | R98: 540
A99: 2007-02-20T18:45:00 | B99: -1.231 | C99: 3.895 | D99: 3.895 | E99: 661.7 | F99: 661.7 | R99: 555
A100: 2007-02-20T19:00:00 | B100: -1.371 | C100: 3.902 | D100: 3.902 | E100: 662.4 | F100: 662.4 | G100: 0 | I100: 4.04 | R100: 570
A101: 2007-02-20T19:15:00 | B101: -1.366 | C101: 3.914 | E101: 682.7 | F101: 682.7 | P101: X | R101: =R100+(15*((K83-F100)/(F101-F100))) -> 571.8011084
A102: 2007-02-20T19:30:00 | B102: -1.818 | C102: 3.903 | E102: 688.4 | F102: 688.4 | G102: 0 | I102: 4.04 | R102: =R100+30 -> 600
A103: 2007-02-20T19:45:00 | B103: -1.923 | C103: 3.89 | E103: 1295 | R103: 615
A104: 2007-02-20T20:00:00 | B104: -1.738 | C104: 3.893 | E104: 3338 | G104: 0 | I104: 4.03 | R104: 630
A105: 2007-02-20T20:15:00 | B105: -1.798 | C105: 3.901 | E105: 902 | R105: 645
A106: 2007-02-20T20:30:00 | B106: -1.356 | C106: 3.899 | E106: 713 | G106: 0 | I106: 4.02 | R106: 660
A107: 2007-02-20T20:45:00 | B107: -0.919 | C107: 3.897 | D107: 3.897 | E107: 705 | R107: 675
A108: 2007-02-20T21:00:00 | B108: -1.315 | C108: 3.896 | D108: 3.896 | E108: 690.9 | F108: 690.9 | G108: 0 | I108: 4 | R108: 690
A109: 2007-02-20T21:15:00 | B109: -1.465 | C109: 3.895 | D109: 3.895 | E109: 684.6 | F109: 684.6 | R109: 705
A110: 2007-02-20T21:30:00 | B110: -1.385 | C110: 3.897 | D110: 3.897 | E110: 683.4 | F110: 683.4 | G110: 0 | I110: 4 | R110: 720
A111: 2007-02-20T21:45:00 | B111: -1.412 | C111: 3.896 | D111: 3.896 | E111: 684.2 | F111: 684.2 | R111: 735
A112: 2007-02-20T22:00:00 | B112: -1.275 | C112: 3.896 | D112: 3.896 | E112: 685.8 | F112: 685.8 | G112: 0 | I112: 4 | R112: 750
A113: 2007-02-20T22:15:00 | B113: -1.782 | C113: 3.897 | D113: 3.897 | E113: 687.2 | F113: 687.2 | R113: 765
A114: 2007-02-20T22:30:00 | B114: -1.679 | C114: 3.897 | D114: 3.897 | E114: 696.4 | F114: 696.4 | G114: 0 | I114: 4.01 | R114: 780
A115: 2007-02-20T22:45:00 | B115: -1.544 | C115: 3.894 | D115: 3.894 | E115: 701 | F115: 701 | Q115: X | R115: =R114+(15*((L83-F114)/(F115-F114))) -> 788.0461957
A116: 2007-02-20T23:00:00 | B116: -1.205 | C116: 3.893 | D116: 3.893 | E116: 694.8 | F116: 694.8 | G116: 0 | I116: 3.98
A117: 2007-02-21T08:45:00 | B117: 2.283 | C117: 3.905 | D117: 3.905 | E117: 699.3 | F117: 699.3
A118: 2007-02-21T09:00:00 | B118: 2.883 | C118: 3.912 | D118: 3.912 | E118: 699 | F118: 699 | G118: 0 | I118: 3.94
A119: 2007-02-21T09:15:00 | B119: 2.363 | C119: 3.912 | D119: 3.912 | E119: 701 | F119: 701
A120: 2007-02-21T09:30:00 | B120: 2.505 | C120: 3.913 | D120: 3.913 | E120: 701 | F120: 701 | G120: 0 | I120: 3.94
A121: 2007-02-21T09:45:00 | B121: 3.568 | C121: 3.914 | D121: 3.914 | E121: 699.7 | F121: 699.7 | M121: X | R121: 0
A122: 2007-02-21T10:00:00 | B122: 3.679 | C122: 3.917 | D122: 3.917 | E122: 699.5 | F122: 699.5 | G122: 0 | I122: 3.93 | R122: =R121+15 -> 15
A123: 2007-02-21T10:15:00 | B123: 3.918 | C123: 3.926 | D123: 3.926 | E123: 702 | F123: 702 | R123: =R122+15 -> 30
A124: 2007-02-21T10:30:00 | B124: 3.974 | C124: 3.932 | E124: 753 | G124: 0 | I124: 3.95 | R124: 45
A125: 2007-02-21T10:45:00 | B125: 4.472 | C125: 3.923 | E125: 732 | R125: 60
A126: 2007-02-21T11:00:00 | B126: 4.807 | C126: 3.92 | D126: 3.92 | E126: 714 | G126: 0 | I126: 3.96 | R126: 75
A127: 2007-02-21T11:15:00 | B127: 4.986 | C127: 3.926 | D127: 3.926 | E127: 717 | R127: 90
A128: 2007-02-21T11:30:00 | B128: 5.179 | C128: 3.911 | D128: 3.911 | E128: 721 | G128: 0 | I128: 3.96 | R128: 105
A129: 2007-02-21T11:45:00 | B129: 5.151 | C129: 3.902 | D129: 3.902 | E129: 708 | F129: 708 | R129: 120
A130: 2007-02-21T12:00:00 | B130: 5.518 | C130: 3.902 | D130: 3.902 | E130: 704 | F130: 704 | G130: 0 | I130: 3.97 | R130: =R129+15 -> 135
A131: 2007-02-21T12:15:00 | B131: 6.235 | C131: 3.903 | D131: 3.903 | E131: 703 | F131: 703 | R131: 150
A132: 2007-02-21T12:30:00 | B132: 6.402 | C132: 3.905 | D132: 3.905 | E132: 702 | F132: 702 | G132: 0 | I132: 3.98 | R132: 165
A133: 2007-02-21T12:45:00 | B133: 6.498 | C133: 3.906 | D133: 3.906 | E133: 702 | F133: 702 | R133: 180
A134: 2007-02-21T13:00:00 | B134: 7.17 | C134: 3.907 | D134: 3.907 | E134: 702 | F134: 702 | G134: 0 | I134: 4.05 | R134: 195
A135: 2007-02-21T13:15:00 | B135: 7.86 | C135: 3.913 | D135: 3.913 | E135: 701 | F135: 701 | R135: 210
A136: 2007-02-21T13:30:00 | B136: 8.32 | C136: 3.916 | D136: 3.916 | E136: 700 | F136: 700 | G136: 0 | I136: 4.12 | R136: 225
A137: 2007-02-21T13:45:00 | B137: 8.9 | C137: 3.919 | D137: 3.919 | E137: 697.9 | F137: 697.9 | R137: 240
A138: 2007-02-21T14:00:00 | B138: 9.37 | C138: 3.927 | D138: 3.927 | E138: 695.3 | F138: 695.3 | G138: 0 | I138: 4.26 | R138: 255
A139: 2007-02-21T14:15:00 | B139: 9.41 | C139: 3.936 | D139: 3.936 | E139: 700 | F139: 700 | R139: 270
A140: 2007-02-21T14:30:00 | B140: 8.85 | C140: 3.934 | D140: 3.934 | E140: 707 | F140: 707 | G140: 0 | I140: 4.38 | J140: =AVERAGE(F133:F140) -> 700.65 | K140: =F157+((J140-F157)*0.5) -> 640.175 | L140: =F157+((J140-F157)*0.9) -> 688.555 | R140: 285
A141: 2007-02-21T14:45:00 | B141: 8.95 | C141: 3.92 | D141: 3.92 | E141: 691.9 | F141: 691.9 | N141: X | R141: 300
A142: 2007-02-21T15:00:00 | B142: 8.57 | C142: 3.922 | D142: 3.922 | E142: 685.3 | F142: 685.3 | G142: 0 | I142: 4.55 | R142: 315
A143: 2007-02-21T15:15:00 | B143: 8.68 | C143: 3.917 | D143: 3.917 | E143: 681.4 | F143: 681.4 | R143: 330
A144: 2007-02-21T15:30:00 | B144: 8.59 | C144: 3.913 | D144: 3.913 | E144: 675.7 | F144: 675.7 | G144: 0 | I144: 4.62 | R144: 345
A145: 2007-02-21T15:45:00 | B145: 8.62 | C145: 3.909 | D145: 3.909 | E145: 670.8 | F145: 670.8 | R145: 360
A146: 2007-02-21T16:00:00 | B146: 8.18 | C146: 3.907 | D146: 3.907 | E146: 665.3 | F146: 665.3 | G146: 0 | I146: 4.74 | R146: 375
A147: 2007-02-21T16:15:00 | B147: 7.85 | C147: 3.901 | D147: 3.901 | E147: 655.8 | F147: 655.8 | R147: 390
A148: 2007-02-21T16:30:00 | B148: 7.37 | C148: 3.892 | D148: 3.892 | E148: 640 | F148: 640 | G148: 0 | I148: 4.88 | R148: 405
A149: 2007-02-21T16:45:00 | B149: 6.778 | C149: 3.884 | D149: 3.884 | E149: 625.9 | F149: 625.9 | R149: 420
A150: 2007-02-21T17:00:00 | B150: 6.335 | C150: 3.872 | D150: 3.872 | E150: 613.7 | F150: 613.7 | G150: 0 | I150: 5 | R150: 435
A151: 2007-02-21T17:15:00 | B151: 5.703 | C151: 3.861 | D151: 3.861 | E151: 606.6 | F151: 606.6 | R151: 450
A152: 2007-02-21T17:30:00 | B152: 4.961 | C152: 3.847 | D152: 3.847 | E152: 605.7 | F152: 605.7 | G152: 0 | I152: 5.12 | R152: 465
A153: 2007-02-21T17:45:00 | B153: 4.478 | C153: 3.82 | D153: 3.82 | E153: 602.8 | F153: 602.8 | R153: 480
A154: 2007-02-21T18:00:00 | B154: 4.047 | C154: 3.81 | D154: 3.81 | E154: 593.9 | F154: 593.9 | G154: 0 | I154: 5.21 | R154: 495
A155: 2007-02-21T18:15:00 | B155: 3.703 | C155: 3.807 | D155: 3.807 | E155: 588.5 | F155: 588.5 | R155: 510
A156: 2007-02-21T18:30:00 | B156: 3.349 | C156: 3.802 | D156: 3.802 | E156: 583 | F156: 583 | G156: 0 | I156: 5.29 | R156: 525
A157: 2007-02-21T18:45:00 | B157: 3.257 | C157: 3.797 | D157: 3.797 | E157: 579.7 | F157: 579.7 | O157: X | R157: 540
A158: 2007-02-21T19:00:00 | B158: 2.9 | C158: 3.792 | D158: 3.792 | E158: 582.2 | F158: 582.2 | G158: 0 | I158: 5.31 | R158: =R156+30 -> 555
A159: 2007-02-21T19:15:00 | B159: 2.817 | C159: 3.786 | D159: 3.786 | E159: 586.2 | F159: 586.2 | R159: =R157+30 -> 570
A160: 2007-02-21T19:30:00 | B160: 2.693 | C160: 3.78 | D160: 3.78 | E160: 588.7 | F160: 588.7 | G160: 0 | I160: 5.39 | R160: 585
A161: 2007-02-21T19:45:00 | B161: 2.578 | C161: 3.776 | D161: 3.776 | E161: 591.9 | F161: 591.9 | R161: 600
A162: 2007-02-21T20:00:00 | B162: 2.357 | C162: 3.776 | D162: 3.776 | E162: 595.5 | F162: 595.5 | G162: 0 | I162: 5.53 | R162: 615
A163: 2007-02-21T20:15:00 | B163: 2.37 | C163: 3.774 | D163: 3.774 | E163: 599.4 | F163: 599.4 | R163: 630
A164: 2007-02-21T20:30:00 | B164: 2.055 | C164: 3.774 | D164: 3.774 | E164: 603.5 | F164: 603.5 | G164: 0 | I164: 5.62 | R164: 645
A165: 2007-02-21T20:45:00 | B165: 2.059 | C165: 3.773 | D165: 3.773 | E165: 607.5 | F165: 607.5 | R165: 660
A166: 2007-02-21T21:00:00 | B166: 2.118 | C166: 3.772 | D166: 3.772 | E166: 611.7 | F166: 611.7 | G166: 0 | I166: 5.74 | R166: 675
A167: 2007-02-21T21:15:00 | B167: 2.113 | C167: 3.77 | D167: 3.77 | E167: 614.6 | F167: 614.6 | R167: 690
A168: 2007-02-21T21:30:00 | B168: 2.09 | C168: 3.769 | D168: 3.769 | E168: 617.2 | F168: 617.2 | G168: 0 | I168: 5.74 | R168: 705
A169: 2007-02-21T21:45:00 | B169: 1.99 | C169: 3.772 | D169: 3.772 | E169: 619.4 | F169: 619.4 | R169: 720
A170: 2007-02-21T22:00:00 | B170: 1.965 | C170: 3.772 | D170: 3.772 | E170: 622.9 | F170: 622.9 | G170: 0 | I170: 5.76 | R170: 735
A171: 2007-02-21T22:15:00 | B171: 1.896 | C171: 3.77 | D171: 3.77 | E171: 626.1 | F171: 626.1 | R171: 750
A172: 2007-02-21T22:30:00 | B172: 1.708 | C172: 3.768 | D172: 3.768 | E172: 629.3 | F172: 629.3 | G172: 0 | I172: 5.77 | R172: 765
A173: 2007-02-21T22:45:00 | B173: 1.408 | C173: 3.77 | D173: 3.77 | E173: 632.2 | F173: 632.2 | R173: 780
A174: 2007-02-21T23:00:00 | B174: 1.237 | C174: 3.771 | D174: 3.771 | E174: 635 | F174: 635 | G174: 0 | I174: 5.78 | R174: 795
A175: 2007-02-21T23:15:00 | B175: 1.36 | C175: 3.771 | D175: 3.771 | E175: 637.9 | F175: 637.9 | R175: 810
A176: 2007-02-21T23:30:00 | B176: 1.619 | C176: 3.772 | D176: 3.772 | E176: 641.6 | F176: 641.6 | G176: 0 | I176: 5.77 | P176: X | R176: =R175+(15*((K140-F175)/(F176-F175))) -> 819.222973
A177: 2007-02-21T23:45:00 | B177: 1.777 | C177: 3.772 | D177: 3.772 | E177: 648.3 | F177: 648.3 | R177: =R175+30 -> 840
A178: 2007-02-22 | B178: 1.474 | C178: 3.78 | D178: 3.78 | E178: 651.1 | F178: 651.1 | G178: 0 | I178: 5.75 | R178: =R177+15 -> 855
A179: 2007-02-22T00:15:00 | B179: 1.222 | C179: 3.785 | D179: 3.785 | E179: 683.8 | F179: 683.8 | R179: 870
A180: 2007-02-22T00:30:00 | B180: 1.088 | C180: 3.833 | D180: 3.833 | E180: 655.8 | F180: 655.8 | G180: 0 | I180: 5.73 | R180: 885
A181: 2007-02-22T00:45:00 | B181: 0.992 | C181: 3.82 | D181: 3.82 | E181: 657.4 | F181: 657.4 | R181: 900
A182: 2007-02-22T01:00:00 | B182: 0.63 | C182: 3.82 | D182: 3.82 | E182: 658.6 | F182: 658.6 | G182: 0 | I182: 5.7 | R182: 915
A183: 2007-02-22T01:15:00 | B183: 0.337 | C183: 3.795 | D183: 3.795 | E183: 661.4 | F183: 661.4 | R183: 930
A184: 2007-02-22T01:30:00 | B184: 0.205 | C184: 3.789 | D184: 3.789 | E184: 662.9 | F184: 662.9 | G184: 0 | I184: 5.6 | R184: 945
A185: 2007-02-22T01:45:00 | B185: -0.184 | C185: 3.783 | D185: 3.783 | E185: 664.1 | F185: 664.1 | R185: 960
A186: 2007-02-22T02:00:00 | B186: -0.701 | C186: 3.781 | D186: 3.781 | E186: 665.6 | F186: 665.6 | G186: 0 | I186: 5.59 | R186: 975
A187: 2007-02-22T02:15:00 | B187: -1.164 | C187: 3.783 | D187: 3.783 | E187: 667.5 | F187: 667.5 | R187: 990
A188: 2007-02-22T02:30:00 | B188: -1.422 | C188: 3.782 | D188: 3.782 | E188: 668.9 | F188: 668.9 | G188: 0 | I188: 5.59 | R188: 1005
A189: 2007-02-22T02:45:00 | B189: -1.656 | C189: 3.782 | D189: 3.782 | E189: 669.9 | F189: 669.9 | R189: 1020
A190: 2007-02-22T03:00:00 | B190: -1.838 | C190: 3.779 | D190: 3.779 | E190: 671.3 | F190: 671.3 | G190: 0 | I190: 5.59 | R190: 1035
A191: 2007-02-22T03:15:00 | B191: -2.073 | C191: 3.778 | D191: 3.778 | E191: 672.6 | F191: 672.6 | R191: 1050
A192: 2007-02-22T03:30:00 | B192: -2.24 | C192: 3.779 | D192: 3.779 | E192: 673.5 | F192: 673.5 | G192: 0 | I192: 5.58 | R192: 1065
A193: 2007-02-22T03:45:00 | B193: -2.307 | C193: 3.78 | D193: 3.78 | E193: 673.9 | F193: 673.9 | R193: 1080
A194: 2007-02-22T04:00:00 | B194: -2.38 | C194: 3.778 | D194: 3.778 | E194: 675.1 | F194: 675.1 | G194: 0 | I194: 5.6 | R194: 1095
A195: 2007-02-22T04:15:00 | B195: -2.543 | C195: 3.775 | D195: 3.775 | E195: 675.8 | F195: 675.8 | R195: 1110
A196: 2007-02-22T04:30:00 | B196: -2.714 | C196: 3.776 | D196: 3.776 | E196: 676.7 | F196: 676.7 | G196: 0 | I196: 5.61 | R196: 1125
A197: 2007-02-22T04:45:00 | B197: -2.919 | C197: 3.776 | D197: 3.776 | E197: 677.1 | F197: 677.1 | R197: 1140
A198: 2007-02-22T05:00:00 | B198: -3.057 | C198: 3.776 | D198: 3.776 | E198: 678 | F198: 678 | G198: 0 | I198: 5.61 | R198: 1155
A199: 2007-02-22T05:15:00 | B199: -3.29 | C199: 3.775 | D199: 3.775 | E199: 678.7 | F199: 678.7 | R199: 1170
A200: 2007-02-22T05:30:00 | B200: -3.487 | C200: 3.774 | D200: 3.774 | E200: 679.7 | F200: 679.7 | G200: 0 | I200: 5.63 | R200: 1185
... 54 more rows

Sheet 2007_6 (3)
A1: Date/Time | B1: Air Temperature (deg C) | C1: 21-cm subsurface drain temp., unedited (°C) | D1: 21-cm subsurface drain temp. (°C) | E1: 21-cm subsurface drain SC, unedited (mS/cm) | F1: 21-cm subsurface drain SC (mS/cm) | G1: Precip (inch) | H1: Cumulative Precip (inch) | I1: Gage height (feet), relative | J1: SCEO (mS/cm) | K1: SC50 (mS/cm) | L1: SC90 (mS/cm) | M1: tS | N1: tEO | O1: tEM | P1: t50 | Q1: t90 | R1: Time (minutes)
A2: 2007-03-08T13:00:00 | B2: 2.086 | C2: 3.039 | D2: 3.039 | E2: 725 | F2: 725 | G2: 0 | I2: 5.79
A3: 2007-03-08T13:15:00 | B3: 2.204 | C3: 2.969 | D3: 2.969 | E3: 726 | F3: 726
A4: 2007-03-08T13:30:00 | B4: 2.267 | C4: 2.967 | D4: 2.967 | E4: 727 | F4: 727 | G4: 0 | I4: 5.8
A5: 2007-03-08T13:45:00 | B5: 2.18 | C5: 2.907 | D5: 2.907 | E5: 727 | F5: 727
A6: 2007-03-08T14:00:00 | B6: 2.294 | C6: 2.878 | D6: 2.878 | E6: 728 | F6: 728 | G6: 0.01 | I6: 5.8 | M6: X | R6: 0
A7: 2007-03-08T14:15:00 | B7: 2.277 | C7: 2.842 | D7: 2.842 | E7: 729 | F7: 729 | R7: =R6+15 -> 15
A8: 2007-03-08T14:30:00 | B8: 2.402 | C8: 2.843 | D8: 2.843 | E8: 731 | F8: 731 | G8: 0 | I8: 5.79 | R8: =R7+15 -> 30
A9: 2007-03-08T14:45:00 | B9: 2.454 | C9: 2.853 | D9: 2.853 | E9: 730 | F9: 730 | R9: 45
A10: 2007-03-08T15:00:00 | B10: 2.466 | C10: 2.872 | D10: 2.872 | E10: 729 | F10: 729 | G10: 0 | I10: 5.78 | R10: 60
A11: 2007-03-08T15:15:00 | B11: 2.286 | C11: 2.869 | D11: 2.869 | E11: 729 | F11: 729 | R11: 75
A12: 2007-03-08T15:30:00 | B12: 2.223 | C12: 2.997 | D12: 2.997 | E12: 729 | F12: 729 | G12: 0 | I12: 5.77 | R12: 90
A13: 2007-03-08T15:45:00 | B13: 2.266 | C13: 3.267 | D13: 3.267 | E13: 724 | F13: 724 | R13: 105
A14: 2007-03-08T16:00:00 | B14: 2.218 | C14: 3.382 | D14: 3.382 | E14: 727 | F14: 727 | G14: 0 | I14: 5.77 | R14: 120
A15: 2007-03-08T16:15:00 | B15: 2.131 | C15: 3.387 | D15: 3.387 | E15: 727 | F15: 727 | J15: =AVERAGE(F8:F15) -> 728.25 | K15: =F21+((J15-F21)*0.5) -> 621.875 | L15: =F21+((J15-F21)*0.9) -> 706.975 | R15: 135
A16: 2007-03-08T16:30:00 | B16: 1.999 | C16: 3.387 | D16: 3.387 | E16: 690.7 | F16: 690.7 | G16: 0 | I16: 5.79 | N16: X | R16: =R15+15 -> 150
A17: 2007-03-08T16:45:00 | B17: 1.879 | C17: 3.376 | D17: 3.376 | E17: 569.6 | F17: 569.6 | R17: 165
A18: 2007-03-08T17:00:00 | B18: 1.701 | C18: 3.351 | D18: 3.351 | E18: 537.2 | F18: 537.2 | G18: 0 | I18: 5.8 | R18: 180
A19: 2007-03-08T17:15:00 | B19: 1.5 | C19: 3.3 | D19: 3.3 | E19: 527.5 | F19: 527.5 | R19: 195
A20: 2007-03-08T17:30:00 | B20: 1.419 | C20: 3.253 | D20: 3.253 | E20: 516 | F20: 516 | G20: 0 | I20: 5.79 | R20: 210
A21: 2007-03-08T17:45:00 | B21: 1.29 | C21: 3.204 | D21: 3.204 | E21: 515.5 | F21: 515.5 | O21: X | R21: 225
A22: 2007-03-08T18:00:00 | B22: 0.994 | C22: 3.179 | D22: 3.179 | E22: 518.7 | F22: 518.7 | G22: 0 | I22: 5.78 | R22: 240
A23: 2007-03-08T18:15:00 | B23: 0.725 | C23: 3.137 | D23: 3.137 | E23: 526.9 | F23: 526.9 | R23: 255
A24: 2007-03-08T18:30:00 | B24: 0.641 | C24: 3.134 | D24: 3.134 | E24: 535.1 | F24: 535.1 | G24: 0 | I24: 5.79 | R24: 270
A25: 2007-03-08T18:45:00 | B25: 0.704 | C25: 3.122 | D25: 3.122 | E25: 548.2 | F25: 548.2 | R25: 285
A26: 2007-03-08T19:00:00 | B26: 0.843 | C26: 3.119 | D26: 3.119 | E26: 565.2 | F26: 565.2 | G26: 0 | I26: 5.78 | R26: 300
A27: 2007-03-08T19:15:00 | B27: 0.743 | C27: 3.118 | D27: 3.118 | E27: 576.7 | F27: 576.7 | R27: 315
A28: 2007-03-08T19:30:00 | B28: 0.635 | C28: 3.105 | D28: 3.105 | E28: 588.2 | F28: 588.2 | G28: 0 | I28: 5.8 | R28: 330
A29: 2007-03-08T19:45:00 | B29: 0.464 | C29: 3.124 | D29: 3.124 | E29: 602.4 | F29: 602.4 | R29: 345
A30: 2007-03-08T20:00:00 | B30: 0.541 | C30: 3.151 | D30: 3.151 | E30: 603.7 | F30: 603.7 | G30: 0 | I30: 5.8 | R30: 360
A31: 2007-03-08T20:15:00 | B31: 0.995 | C31: 3.171 | D31: 3.171 | E31: 608.4 | F31: 608.4 | R31: 375
A32: 2007-03-08T20:30:00 | B32: 1.132 | C32: 3.19 | D32: 3.19 | E32: 615.4 | F32: 615.4 | G32: 0 | I32: 5.8 | R32: 390
A33: 2007-03-08T20:45:00 | B33: 0.993 | C33: 3.188 | D33: 3.188 | E33: 624.7 | F33: 624.7 | P33: X | R33: =R32+(15*((K15-F32)/(F33-F32))) -> 400.4435484
A34: 2007-03-08T21:00:00 | B34: 0.919 | C34: 3.189 | D34: 3.189 | E34: 633.4 | F34: 633.4 | G34: 0 | I34: 5.81 | R34: =R32+30 -> 420
A35: 2007-03-08T21:15:00 | B35: 0.828 | C35: 3.2 | D35: 3.2 | E35: 640.7 | F35: 640.7 | R35: =R34+15 -> 435
A36: 2007-03-08T21:30:00 | B36: 1.01 | C36: 3.194 | D36: 3.194 | E36: 648.3 | F36: 648.3 | G36: 0 | I36: 5.8 | R36: 450
A37: 2007-03-08T21:45:00 | B37: 1.358 | C37: 3.198 | D37: 3.198 | E37: 654.7 | F37: 654.7 | R37: 465
A38: 2007-03-08T22:00:00 | B38: 1.432 | C38: 3.202 | D38: 3.202 | E38: 661.6 | F38: 661.6 | G38: 0 | I38: 5.8 | R38: 480
A39: 2007-03-08T22:15:00 | B39: 1.106 | C39: 3.21 | D39: 3.21 | E39: 668.6 | F39: 668.6 | R39: 495
A40: 2007-03-08T22:30:00 | B40: 0.99 | C40: 3.201 | E40: 726 | G40: 0 | I40: 5.81 | R40: 510
A41: 2007-03-08T22:45:00 | B41: 0.89 | C41: 3.218 | D41: 3.218 | E41: 693.5 | F41: 693.5 | R41: 525
A42: 2007-03-08T23:00:00 | B42: 0.67 | C42: 3.223 | D42: 3.223 | E42: 686.6 | F42: 686.6 | G42: 0 | I42: 5.8 | R42: 540
A43: 2007-03-08T23:15:00 | B43: 0.763 | C43: 3.218 | D43: 3.218 | E43: 689.9 | F43: 689.9 | R43: 555
A44: 2007-03-08T23:30:00 | B44: 0.901 | C44: 3.207 | D44: 3.207 | E44: 693.7 | F44: 693.7 | G44: 0 | I44: 5.8 | R44: 570
A45: 2007-03-08T23:45:00 | B45: 0.821 | C45: 3.214 | D45: 3.214 | E45: 698.7 | F45: 698.7 | R45: 585
A46: 2007-03-09 | B46: 0.755 | C46: 3.204 | D46: 3.204 | E46: 700 | F46: 700 | G46: 0 | I46: 5.78 | R46: 600
A47: 2007-03-09T00:15:00 | B47: 0.637 | C47: 3.228 | D47: 3.228 | E47: 709 | F47: 709 | Q47: X | R47: =R46+(15*((L15-F46)/(F47-F46))) -> 611.625
A48: 2007-03-09T09:15:00 | B48: 2.056 | C48: 3.223 | D48: 3.223 | E48: 721 | F48: 721
A49: 2007-03-09T09:30:00 | B49: 2.272 | C49: 3.22 | D49: 3.22 | E49: 722 | F49: 722 | G49: 0 | I49: 5.83
A50: 2007-03-09T09:45:00 | B50: 2.308 | C50: 3.215 | D50: 3.215 | E50: 722 | F50: 722
A51: 2007-03-09T10:00:00 | B51: 2.479 | C51: 3.235 | D51: 3.235 | E51: 722 | F51: 722 | G51: 0 | I51: 5.83
A52: 2007-03-09T10:15:00 | B52: 2.516 | C52: 3.251 | D52: 3.251 | E52: 723 | F52: 723 | M52: X | R52: 0
A53: 2007-03-09T10:30:00 | B53: 3.011 | C53: 3.248 | D53: 3.248 | E53: 728 | F53: 728 | G53: 0 | I53: 5.83 | R53: =R52+15 -> 15
A54: 2007-03-09T10:45:00 | B54: 3.285 | C54: 3.254 | D54: 3.254 | E54: 722 | F54: 722 | R54: =R53+15 -> 30
A55: 2007-03-09T11:00:00 | B55: 4.351 | C55: 3.238 | D55: 3.238 | E55: 721 | F55: 721 | G55: 0 | I55: 5.84 | R55: 45
A56: 2007-03-09T11:15:00 | B56: 6.144 | C56: 3.247 | D56: 3.247 | E56: 721 | F56: 721 | R56: 60
A57: 2007-03-09T11:30:00 | B57: 6.355 | C57: 3.266 | D57: 3.266 | E57: 721 | F57: 721 | G57: 0 | I57: 5.86 | R57: 75
A58: 2007-03-09T11:45:00 | B58: 3.912 | C58: 3.268 | D58: 3.268 | E58: 721 | F58: 721 | R58: 90
A59: 2007-03-09T12:00:00 | B59: 4.078 | C59: 3.293 | D59: 3.293 | E59: 721 | F59: 721 | G59: 0 | I59: 5.86 | R59: 105
A60: 2007-03-09T12:15:00 | B60: 5.115 | C60: 3.298 | D60: 3.298 | E60: 726 | F60: 726 | R60: 120
A61: 2007-03-09T12:30:00 | B61: 3.245 | C61: 3.274 | D61: 3.274 | E61: 722 | F61: 722 | G61: 0 | I61: 5.86 | R61: 135
A62: 2007-03-09T12:45:00 | B62: 2.562 | C62: 3.24 | D62: 3.24 | E62: 721 | F62: 721 | R62: 150
A63: 2007-03-09T13:00:00 | B63: 2.833 | C63: 3.213 | D63: 3.213 | E63: 722 | F63: 722 | G63: 0 | I63: 5.87 | R63: 165
A64: 2007-03-09T13:15:00 | B64: 2.625 | C64: 3.184 | D64: 3.184 | E64: 723 | F64: 723 | R64: 180
A65: 2007-03-09T13:30:00 | B65: 2.15 | C65: 3.178 | D65: 3.178 | E65: 724 | F65: 724 | G65: 0 | I65: 5.86 | R65: 195
A66: 2007-03-09T13:45:00 | B66: 1.89 | C66: 3.31 | D66: 3.31 | E66: 722 | F66: 722 | R66: 210
A67: 2007-03-09T14:00:00 | B67: 1.885 | C67: 3.317 | D67: 3.317 | E67: 735 | F67: 735 | G67: 0 | I67: 5.88 | J67: =AVERAGE(F61:F67) -> 724.1428571 | K67: =F81+((J67-F81)*0.5) -> 569.2714286 | L67: =F81+((J67-F81)*0.9) -> 693.1685714 | R67: 225
A68: 2007-03-09T14:15:00 | B68: 1.757 | C68: 3.263 | E68: 711 | F68: 711 | N68: X | R68: 240
A69: 2007-03-09T14:30:00 | B69: 1.992 | C69: 3.271 | E69: 571.1 | F69: 571.1 | G69: 0 | I69: 5.89 | R69: 255
A70: 2007-03-09T14:45:00 | B70: 2.232 | C70: 3.237 | E70: 1933 | R70: 270
A71: 2007-03-09T15:00:00 | B71: 2.281 | C71: 3.212 | E71: 591.5 | F71: 591.5 | G71: 0 | I71: 5.88 | R71: 285
A72: 2007-03-09T15:15:00 | B72: 2.372 | C72: 3.166 | E72: 531.3 | F72: 531.3 | R72: 300
A73: 2007-03-09T15:30:00 | B73: 2.365 | C73: 3.131 | D73: 3.131 | E73: 527.9 | F73: 527.9 | G73: 0 | I73: 5.9 | R73: 315
A74: 2007-03-09T15:45:00 | B74: 2.372 | C74: 3.084 | D74: 3.084 | E74: 528.3 | F74: 528.3 | R74: 330
A75: 2007-03-09T16:00:00 | B75: 2.443 | C75: 3.062 | D75: 3.062 | E75: 520.4 | F75: 520.4 | G75: 0 | I75: 5.91 | R75: 345
A76: 2007-03-09T16:15:00 | B76: 2.51 | C76: 3.029 | D76: 3.029 | E76: 505.2 | F76: 505.2 | R76: 360
A77: 2007-03-09T16:30:00 | B77: 2.495 | C77: 2.996 | D77: 2.996 | E77: 487.4 | F77: 487.4 | G77: 0 | I77: 5.93 | R77: 375
A78: 2007-03-09T16:45:00 | B78: 2.5 | C78: 2.972 | D78: 2.972 | E78: 471.7 | F78: 471.7 | R78: 390
A79: 2007-03-09T17:00:00 | B79: 2.416 | C79: 2.944 | D79: 2.944 | E79: 458.3 | F79: 458.3 | G79: 0 | I79: 5.92 | R79: 405
A80: 2007-03-09T17:15:00 | B80: 2.217 | C80: 2.782 | D80: 2.782 | E80: 427.5 | F80: 427.5 | R80: 420
A81: 2007-03-09T17:30:00 | B81: 2.182 | C81: 2.704 | D81: 2.704 | E81: 414.4 | F81: 414.4 | G81: 0 | I81: 5.91 | O81: X | R81: 435
A82: 2007-03-09T17:45:00 | B82: 1.937 | C82: 2.61 | D82: 2.61 | E82: 438 | F82: 438 | R82: 450
A83: 2007-03-09T18:00:00 | B83: 1.612 | C83: 2.565 | D83: 2.565 | E83: 456 | F83: 456 | G83: 0 | I83: 5.93 | R83: 465
A84: 2007-03-09T18:15:00 | B84: 1.259 | C84: 2.545 | D84: 2.545 | E84: 471.5 | F84: 471.5 | R84: 480
A85: 2007-03-09T18:30:00 | B85: 1.168 | C85: 2.6 | D85: 2.6 | E85: 525.4 | F85: 525.4 | G85: 0 | I85: 5.93 | R85: 495
A86: 2007-03-09T18:45:00 | B86: 1.369 | C86: 2.583 | D86: 2.583 | E86: 508.3 | F86: 508.3 | R86: 510
A87: 2007-03-09T19:00:00 | B87: 0.95 | C87: 2.589 | D87: 2.589 | E87: 521.4 | F87: 521.4 | G87: 0 | I87: 5.95 | R87: 525
A88: 2007-03-09T19:15:00 | B88: 0.453 | C88: 2.644 | D88: 2.644 | E88: 541 | F88: 541 | R88: 540
A89: 2007-03-09T19:30:00 | B89: 0.502 | C89: 2.703 | D89: 2.703 | E89: 589.2 | F89: 589.2 | G89: 0 | I89: 5.97 | P89: X | R89: =R88+(15*((K67-F88)/(F89-F88))) -> 548.7981624
A90: 2007-03-09T19:45:00 | B90: 0.917 | C90: 2.633 | D90: 2.633 | E90: 582 | F90: 582 | R90: =R88+30 -> 570
A91: 2007-03-09T20:00:00 | B91: 0.925 | C91: 2.633 | D91: 2.633 | E91: 599.3 | F91: 599.3 | G91: 0 | I91: 5.98 | R91: =R90+15 -> 585
A92: 2007-03-09T20:15:00 | B92: 0.028 | C92: 2.671 | D92: 2.671 | E92: 609.9 | F92: 609.9 | R92: 600
A93: 2007-03-09T20:30:00 | B93: -0.003 | C93: 2.603 | D93: 2.603 | E93: 640.2 | F93: 640.2 | G93: 0 | I93: 5.97 | R93: 615
A94: 2007-03-09T20:45:00 | B94: -0.475 | C94: 2.58 | D94: 2.58 | E94: 645.8 | F94: 645.8 | R94: 630
A95: 2007-03-09T21:00:00 | B95: -0.505 | C95: 2.599 | D95: 2.599 | E95: 648.9 | F95: 648.9 | G95: 0 | I95: 6 | R95: 645
A96: 2007-03-09T21:15:00 | B96: -0.636 | C96: 2.62 | D96: 2.62 | E96: 654.8 | F96: 654.8 | R96: 660
A97: 2007-03-09T21:30:00 | B97: -0.505 | C97: 2.635 | D97: 2.635 | E97: 661.8 | F97: 661.8 | G97: 0 | I97: 6 | R97: 675
A98: 2007-03-09T21:45:00 | B98: -0.515 | C98: 2.657 | D98: 2.657 | E98: 668.1 | F98: 668.1 | R98: 690
A99: 2007-03-09T22:00:00 | B99: -0.675 | C99: 2.723 | D99: 2.723 | E99: 671.8 | F99: 671.8 | G99: 0 | I99: 6 | R99: 705
A100: 2007-03-09T22:15:00 | B100: -1.145 | C100: 2.691 | D100: 2.691 | E100: 677.9 | F100: 677.9 | R100: 720
A101: 2007-03-09T22:30:00 | B101: -1.346 | C101: 2.67 | D101: 2.67 | E101: 682.9 | F101: 682.9 | G101: 0 | I101: 6 | R101: 735
A102: 2007-03-09T22:45:00 | B102: -1.566 | C102: 2.707 | D102: 2.707 | E102: 686.4 | F102: 686.4 | R102: 750
A103: 2007-03-09T23:00:00 | B103: -1.398 | C103: 2.693 | D103: 2.693 | E103: 690 | F103: 690 | G103: 0 | I103: 6 | R103: =R102+15 -> 765
A104: 2007-03-09T23:15:00 | B104: -1.983 | C104: 2.685 | D104: 2.685 | E104: 693.3 | F104: 693.3 | Q104: X | R104: =R103+(15*((L67-F103)/(F104-F103))) -> 779.4025974
A105: 2007-03-10T09:00:00 | B105: 2.662 | C105: 2.649 | D105: 2.649 | E105: 730 | F105: 730 | G105: 0 | I105: 6.07
A106: 2007-03-10T09:15:00 | B106: 3.173 | C106: 2.605 | D106: 2.605 | E106: 732 | F106: 732
A107: 2007-03-10T09:30:00 | B107: 3.869 | C107: 2.621 | D107: 2.621 | E107: 735 | F107: 735 | G107: 0 | I107: 6.07
A108: 2007-03-10T09:45:00 | B108: 4.716 | C108: 2.594 | D108: 2.594 | E108: 733 | F108: 733
A109: 2007-03-10T10:00:00 | B109: 3.476 | C109: 2.632 | D109: 2.632 | E109: 731 | F109: 731 | G109: 0 | I109: 6.08 | M109: X | R109: 0
A110: 2007-03-10T10:15:00 | B110: 3.339 | C110: 2.583 | D110: 2.583 | E110: 732 | F110: 732 | R110: =R109+15 -> 15
A111: 2007-03-10T10:30:00 | B111: 3.588 | C111: 2.602 | D111: 2.602 | E111: 731 | F111: 731 | G111: 0 | I111: 6.09 | R111: 30
A112: 2007-03-10T10:45:00 | B112: 4.75 | C112: 2.593 | D112: 2.593 | E112: 731 | F112: 731 | R112: 45
A113: 2007-03-10T11:00:00 | B113: 5.604 | C113: 2.564 | D113: 2.564 | E113: 732 | F113: 732 | G113: 0 | I113: 6.08 | R113: 60
A114: 2007-03-10T11:15:00 | B114: 5.945 | C114: 2.57 | D114: 2.57 | E114: 732 | F114: 732 | R114: 75
A115: 2007-03-10T11:30:00 | B115: 5.145 | C115: 2.576 | D115: 2.576 | E115: 732 | F115: 732 | G115: 0 | I115: 6.07 | R115: 90
A116: 2007-03-10T11:45:00 | B116: 4.321 | C116: 2.615 | D116: 2.615 | E116: 732 | F116: 732 | R116: 105
A117: 2007-03-10T12:00:00 | B117: 3.865 | C117: 3.029 | D117: 3.029 | E117: 732 | F117: 732 | G117: 0 | I117: 6.07 | J117: =AVERAGE(F110:F117) -> 731.75 | K117: =F126+((J117-F126)*0.5) -> 535.125 | L117: =F126+((J117-F126)*0.9) -> 692.425 | R117: 120
A118: 2007-03-10T12:15:00 | B118: 3.702 | C118: 3.37 | D118: 3.37 | E118: 727 | F118: 727 | N118: X | R118: 135
A119: 2007-03-10T12:30:00 | B119: 3.225 | C119: 3.391 | D119: 3.391 | E119: 664.6 | F119: 664.6 | G119: 0 | I119: 6.07 | R119: 150
A120: 2007-03-10T12:45:00 | B120: 3.219 | C120: 3.275 | D120: 3.275 | E120: 443.3 | F120: 443.3 | R120: 165
A121: 2007-03-10T13:00:00 | B121: 3.686 | C121: 3.038 | D121: 3.038 | E121: 395.9 | F121: 395.9 | G121: 0 | I121: 6.08 | R121: 180
A122: 2007-03-10T13:15:00 | B122: 3.82 | C122: 2.835 | D122: 2.835 | E122: 373.8 | F122: 373.8 | R122: 195
A123: 2007-03-10T13:30:00 | B123: 3.796 | C123: 2.703 | D123: 2.703 | E123: 364.1 | F123: 364.1 | G123: 0 | I123: 6.09 | R123: 210
A124: 2007-03-10T13:45:00 | B124: 5.46 | C124: 2.593 | D124: 2.593 | E124: 354.9 | F124: 354.9 | R124: 225
A125: 2007-03-10T14:00:00 | B125: 9.52 | C125: 2.533 | D125: 2.533 | E125: 343 | F125: 343 | G125: 0 | I125: 6.1 | R125: 240
A126: 2007-03-10T14:15:00 | B126: 10.18 | C126: 2.503 | D126: 2.503 | E126: 338.5 | F126: 338.5 | O126: X | R126: 255
A127: 2007-03-10T14:30:00 | B127: 7.53 | C127: 2.493 | D127: 2.493 | E127: 341.2 | F127: 341.2 | G127: 0 | I127: 6.11 | R127: 270
A128: 2007-03-10T14:45:00 | B128: 6.089 | C128: 2.495 | D128: 2.495 | E128: 343.7 | F128: 343.7 | R128: 285
A129: 2007-03-10T15:00:00 | B129: 5.627 | C129: 2.506 | D129: 2.506 | E129: 346 | F129: 346 | G129: 0 | I129: 6.11 | R129: 300
A130: 2007-03-10T15:15:00 | B130: 5.175 | C130: 2.528 | D130: 2.528 | E130: 347.1 | F130: 347.1 | R130: 315
A131: 2007-03-10T15:30:00 | B131: 7.16 | C131: 2.542 | D131: 2.542 | E131: 352.3 | F131: 352.3 | G131: 0 | I131: 6.12 | R131: 330
A132: 2007-03-10T15:45:00 | B132: 10.51 | C132: 2.551 | D132: 2.551 | E132: 361.1 | F132: 361.1 | R132: 345
A133: 2007-03-10T16:00:00 | B133: 8.78 | C133: 2.557 | D133: 2.557 | E133: 370.8 | F133: 370.8 | G133: 0 | I133: 6.15 | R133: 360
A134: 2007-03-10T16:15:00 | B134: 9.33 | C134: 2.552 | D134: 2.552 | E134: 385 | F134: 385 | R134: 375
A135: 2007-03-10T16:30:00 | B135: 6.279 | C135: 2.562 | D135: 2.562 | E135: 400.2 | F135: 400.2 | G135: 0 | I135: 6.16 | R135: 390
A136: 2007-03-10T16:45:00 | B136: 6.35 | C136: 2.581 | D136: 2.581 | E136: 413.3 | F136: 413.3 | R136: 405
A137: 2007-03-10T17:00:00 | B137: 7.29 | C137: 2.621 | D137: 2.621 | E137: 424.5 | F137: 424.5 | G137: 0 | I137: 6.17 | R137: 420
A138: 2007-03-10T17:15:00 | B138: 4.642 | C138: 2.666 | D138: 2.666 | E138: 435.5 | F138: 435.5 | R138: 435
A139: 2007-03-10T17:30:00 | B139: 3.142 | C139: 2.731 | D139: 2.731 | E139: 445.2 | F139: 445.2 | G139: 0 | I139: 6.18 | R139: 450
A140: 2007-03-10T17:45:00 | B140: 3.166 | C140: 2.788 | D140: 2.788 | E140: 458.7 | F140: 458.7 | R140: 465
A141: 2007-03-10T18:00:00 | B141: 2.695 | C141: 2.837 | D141: 2.837 | E141: 476.2 | F141: 476.2 | G141: 0 | I141: 6.2 | R141: 480
A142: 2007-03-10T18:15:00 | B142: 0.987 | C142: 2.854 | D142: 2.854 | E142: 497.7 | F142: 497.7 | R142: 495
A143: 2007-03-10T18:30:00 | B143: -0.467 | C143: 2.859 | D143: 2.859 | E143: 519.7 | F143: 519.7 | G143: 0 | I143: 6.2 | R143: =R142+15 -> 510
A144: 2007-03-10T18:45:00 | B144: -0.875 | C144: 2.842 | D144: 2.842 | E144: 541.6 | F144: 541.6 | P144: X | R144: =R143+(15*((K117-F143)/(F144-F143))) -> 520.5650685
A145: 2007-03-10T19:00:00 | B145: -1.404 | C145: 2.856 | D145: 2.856 | E145: 559.7 | F145: 559.7 | G145: 0 | I145: 6.21 | R145: =R143+30 -> 540
A146: 2007-03-10T19:15:00 | B146: -2.06 | C146: 2.924 | D146: 2.924 | E146: 570 | F146: 570 | R146: =R145+15 -> 555
A147: 2007-03-10T19:30:00 | B147: -2.573 | C147: 2.93 | D147: 2.93 | E147: 581.5 | F147: 581.5 | G147: 0 | I147: 6.21 | R147: 570
A148: 2007-03-10T19:45:00 | B148: -2.97 | C148: 2.939 | D148: 2.939 | E148: 593.3 | F148: 593.3 | R148: 585
A149: 2007-03-10T20:00:00 | B149: -3.159 | C149: 2.901 | D149: 2.901 | E149: 608.8 | F149: 608.8 | G149: 0 | I149: 6.22 | R149: 600
A150: 2007-03-10T20:15:00 | B150: -3.118 | C150: 2.934 | D150: 2.934 | E150: 622.3 | F150: 622.3 | R150: 615
A151: 2007-03-10T20:30:00 | B151: -3.431 | C151: 2.983 | D151: 2.983 | E151: 633.3 | F151: 633.3 | G151: 0 | I151: 6.21 | R151: 630
A152: 2007-03-10T20:45:00 | B152: -3.706 | C152: 3.005 | D152: 3.005 | E152: 643.2 | F152: 643.2 | R152: 645
A153: 2007-03-10T21:00:00 | B153: -3.863 | C153: 3.029 | D153: 3.029 | E153: 652.5 | F153: 652.5 | G153: 0 | I153: 6.22 | R153: 660
A154: 2007-03-10T21:15:00 | B154: -3.85 | C154: 3.043 | D154: 3.043 | E154: 665.5 | F154: 665.5 | R154: 675
A155: 2007-03-10T21:30:00 | B155: -4.099 | C155: 3.055 | D155: 3.055 | E155: 678.7 | F155: 678.7 | G155: 0 | I155: 6.22 | R155: 690
A156: 2007-03-10T21:45:00 | B156: -4.364 | C156: 3.084 | D156: 3.084 | E156: 685.1 | F156: 685.1 | R156: 705
A157: 2007-03-10T22:00:00 | B157: -4.037 | C157: 3.098 | D157: 3.098 | E157: 689.2 | F157: 689.2 | G157: 0 | I157: 6.22 | R157: 720
A158: 2007-03-10T22:15:00 | B158: -4.352 | C158: 3.116 | D158: 3.116 | E158: 692.2 | F158: 692.2 | R158: 735
A159: 2007-03-10T22:30:00 | B159: -4.91 | C159: 3.115 | D159: 3.115 | E159: 695 | F159: 695 | G159: 0 | I159: 6.23 | Q159: X | R159: =R158+(15*((L117-F158)/(F159-F158))) -> 736.2053571
A160: 2007-03-10T22:45:00 | B160: -5.263 | C160: 3.131 | D160: 3.131 | E160: 697 | F160: 697

Sheet 2007_7 (3)
A1: Date/Time | B1: Air Temperature (deg C) | C1: 21-cm subsurface drain temp., unedited (°C) | D1: 21-cm subsurface drain temp. (°C) | E1: 21-cm subsurface drain SC, unedited (mS/cm) | F1: 21-cm subsurface drain SC (mS/cm) | G1: Precip (inch) | H1: Cumulative Precip (inch) | I1: Gage height (feet), relative | J1: SCEO (mS/cm) | K1: SC50 (mS/cm) | L1: SC90 (mS/cm) | M1: tS | N1: tEO | O1: tEM | P1: t50 | Q1: t90 | R1: Time (minutes)
A2: 2007-03-29T21:00:00 | B2: 11.02 | C2: 5.129 | D2: 5.129 | E2: 659.3 | F2: 659.3 | G2: 0 | I2: 4.76
A3: 2007-03-29T21:15:00 | B3: 11.05 | C3: 5.131 | D3: 5.131 | E3: 660.7 | F3: 660.7
A4: 2007-03-29T21:30:00 | B4: 11.06 | C4: 5.138 | D4: 5.138 | E4: 660 | F4: 660 | G4: 0 | I4: 4.75
A5: 2007-03-29T21:45:00 | B5: 11 | C5: 5.142 | D5: 5.142 | E5: 660.3 | F5: 660.3
A6: 2007-03-29T22:00:00 | B6: 10.99 | C6: 5.143 | D6: 5.143 | E6: 660.6 | F6: 660.6 | G6: 0.07 | I6: 4.77 | M6: X | R6: 0
A7: 2007-03-29T22:15:00 | B7: 10.95 | C7: 5.147 | D7: 5.147 | E7: 660.2 | F7: 660.2 | R7: =R6+15 -> 15
A8: 2007-03-29T22:30:00 | B8: 10.84 | C8: 5.15 | D8: 5.15 | E8: 660.2 | F8: 660.2 | G8: 0.03 | H8: =SUM(G6:G8) -> 0.1 | I8: 4.77 | R8: =R7+15 -> 30
A9: 2007-03-29T22:45:00 | B9: 10.73 | C9: 5.154 | D9: 5.154 | E9: 660.5 | F9: 660.5 | R9: 45
A10: 2007-03-29T23:00:00 | B10: 10.68 | C10: 5.162 | D10: 5.162 | E10: 671.5 | F10: 671.5 | G10: 0 | I10: 4.76 | J10: =AVERAGE(F3:F10) -> 661.75 | K10: =F11+((J10-F11)*0.5) -> 607.675 | L10: =F11+((J10-F11)*0.9) -> 650.935 | R10: 60
A11: 2007-03-29T23:15:00 | B11: 10.62 | C11: 5.168 | D11: 5.168 | E11: 553.6 | F11: 553.6 | N11: X | O11: X | R11: 75
A12: 2007-03-29T23:30:00 | B12: 10.59 | C12: 5.318 | D12: 5.318 | E12: 557.5 | F12: 557.5 | G12: 0 | I12: 4.76 | R12: 90
A13: 2007-03-29T23:45:00 | B13: 10.55 | C13: 5.417 | D13: 5.417 | E13: 563.6 | F13: 563.6 | R13: 105
A14: 2007-03-30 | B14: 10.56 | C14: 5.441 | D14: 5.441 | E14: 602.1 | F14: 602.1 | G14: 0 | I14: 4.74 | R14: 120
A15: 2007-03-30T00:15:00 | B15: 10.58 | C15: 5.486 | D15: 5.486 | E15: 619.4 | F15: 619.4 | P15: X | R15: =R14+(15*((K10-F14)/(F15-F14))) -> 124.833815
A16: 2007-03-30T00:30:00 | B16: 10.61 | C16: 5.427 | D16: 5.427 | E16: 634.2 | F16: 634.2 | G16: 0 | I16: 4.75 | R16: =R14+30 -> 150
A17: 2007-03-30T00:45:00 | B17: 10.67 | C17: 5.396 | D17: 5.396 | E17: 642.6 | F17: 642.6 | R17: =R16+15 -> 165
A18: 2007-03-30T01:00:00 | B18: 10.61 | C18: 5.34 | D18: 5.34 | E18: 650 | F18: 650 | G18: 0 | I18: 4.75 | R18: 180
A19: 2007-03-30T01:15:00 | B19: 10.49 | C19: 5.314 | D19: 5.314 | E19: 654.6 | F19: 654.6 | Q19: X | R19: =R18+(15*((L10-F18)/(F19-F18))) -> 183.048913
A20: 2007-03-30T02:00:00 | B20: 10.58 | C20: 5.27 | D20: 5.27 | E20: 661.2 | F20: 661.2 | G20: 0 | I20: 4.76
A21: 2007-03-30T02:15:00 | B21: 10.57 | C21: 5.26 | D21: 5.26 | E21: 662.2 | F21: 662.2
A22: 2007-03-30T02:30:00 | B22: 10.54 | C22: 5.253 | D22: 5.253 | E22: 663.9 | F22: 663.9 | G22: 0 | I22: 4.76
A23: 2007-03-30T02:45:00 | B23: 10.6 | C23: 5.254 | D23: 5.254 | E23: 668.7 | F23: 668.7
A24: 2007-03-30T03:00:00 | B24: 10.63 | C24: 5.253 | D24: 5.253 | E24: 673.5 | F24: 673.5 | G24: 0 | I24: 4.74
A25: 2007-03-30T03:15:00 | B25: 10.5 | C25: 5.265 | D25: 5.265 | E25: 672.1 | F25: 672.1
A26: 2007-03-30T03:30:00 | B26: 10.42 | C26: 5.306 | D26: 5.306 | E26: 668.5 | F26: 668.5 | G26: 0.06 | I26: 4.77 | M26: X | R26: 0
A27: 2007-03-30T03:45:00 | B27: 10.56 | C27: 5.351 | D27: 5.351 | E27: 666.1 | F27: 666.1 | R27: =R26+15 -> 15
A28: 2007-03-30T04:00:00 | B28: 10.86 | C28: 5.436 | D28: 5.436 | E28: 668.1 | F28: 668.1 | G28: 0 | I28: 4.77 | J28: =AVERAGE(F21:F28) -> 667.8875 | K28: =F30+((J28-F30)*0.5) -> 582.79375 | L28: =F30+((J28-F30)*0.9) -> 650.86875 | R28: =R27+15 -> 30
A29: 2007-03-30T04:15:00 | B29: 11.84 | C29: 5.864 | D29: 5.864 | E29: 510.4 | F29: 510.4 | N29: X | R29: 45
A30: 2007-03-30T04:30:00 | B30: 12.53 | C30: 6.169 | D30: 6.169 | E30: 497.7 | F30: 497.7 | G30: 0 | I30: 4.76 | O30: X | R30: 60
A31: 2007-03-30T04:45:00 | B31: 12.76 | C31: 6.069 | D31: 6.069 | E31: 539.9 | F31: 539.9 | R31: 75
A32: 2007-03-30T05:00:00 | B32: 12.51 | C32: 5.921 | D32: 5.921 | E32: 590.8 | F32: 590.8 | G32: 0 | I32: 4.77 | P32: X | R32: =R31+(15*((K28-F31)/(F32-F31))) -> 87.6405943
A33: 2007-03-30T05:15:00 | B33: 11.82 | C33: 5.807 | D33: 5.807 | E33: 617.1 | F33: 617.1 | R33: =R31+30 -> 105
A34: 2007-03-30T05:30:00 | B34: 11.44 | C34: 5.717 | D34: 5.717 | E34: 634.4 | F34: 634.4 | G34: 0.01 | H34: =SUM(G26:G34) -> 0.07 | I34: 4.76 | R34: =R32+30 -> 117.6405943
A35: 2007-03-30T05:45:00 | B35: 11.31 | C35: 5.636 | D35: 5.636 | E35: 644 | F35: 644 | R35: =R33+30 -> 135
A36: 2007-03-30T06:00:00 | B36: 11.16 | C36: 5.573 | D36: 5.573 | E36: 651 | F36: 651 | G36: 0 | I36: 4.77 | Q36: X | R36: =R35+(15*((L28-F35)/(F36-F35))) -> 149.71875
A37: 2007-03-30T13:30:00 | B37: 15.38 | C37: 5.42 | D37: 5.42 | E37: 667.7 | F37: 667.7 | G37: 0 | I37: 4.78
A38: 2007-03-30T13:45:00 | B38: 15.18 | C38: 5.392 | D38: 5.392 | E38: 665.5 | F38: 665.5
A39: 2007-03-30T14:00:00 | B39: 15.03 | C39: 5.37 | D39: 5.37 | E39: 665.9 | F39: 665.9 | G39: 0.04 | I39: 4.77 | M39: X | R39: 0
A40: 2007-03-30T14:15:00 | B40: 15.03 | C40: 5.357 | D40: 5.357 | E40: 666.2 | F40: 666.2 | R40: =R39+15 -> 15
A41: 2007-03-30T14:30:00 | B41: 14.95 | C41: 5.351 | D41: 5.351 | E41: 666.2 | F41: 666.2 | G41: 0 | I41: 4.77 | R41: =R40+15 -> 30
A42: 2007-03-30T14:45:00 | B42: 14.97 | C42: 5.351 | D42: 5.351 | E42: 666.2 | F42: 666.2 | R42: 45
A43: 2007-03-30T15:00:00 | B43: 15.08 | C43: 5.349 | D43: 5.349 | E43: 666.2 | F43: 666.2 | G43: 0.04 | I43: 4.79 | R43: 60
A44: 2007-03-30T15:15:00 | B44: 15.16 | C44: 5.352 | D44: 5.352 | E44: 668.2 | F44: 668.2 | R44: 75
A45: 2007-03-30T15:30:00 | B45: 15.65 | C45: 5.36 | D45: 5.36 | E45: 669.5 | F45: 669.5 | G45: 0 | I45: 4.79 | J45: =AVERAGE(F38:F45) -> 666.7375 | K45: =F53+((J45-F53)*0.5) -> 617.86875 | L45: =F53+((J45-F53)*0.9) -> 656.96375 | R45: 90
A46: 2007-03-30T15:45:00 | B46: 15.84 | C46: 5.374 | D46: 5.374 | E46: 654.4 | F46: 654.4 | N46: X | R46: 105
A47: 2007-03-30T16:00:00 | B47: 15.83 | C47: 5.452 | D47: 5.452 | E47: 586.9 | F47: 586.9 | G47: 0.05 | I47: 4.79 | R47: 120
A48: 2007-03-30T16:15:00 | B48: 15.5 | C48: 5.701 | D48: 5.701 | E48: 593.3 | F48: 593.3 | R48: 135
A49: 2007-03-30T16:30:00 | B49: 15.48 | C49: 5.787 | D49: 5.787 | E49: 607.6 | F49: 607.6 | G49: 0.01 | H49: =SUM(G39:G49) -> 0.14 | I49: 4.8 | R49: 150
A50: 2007-03-30T16:45:00 | B50: 15.42 | C50: 5.779 | D50: 5.779 | E50: 617.1 | F50: 617.1 | R50: 165
A51: 2007-03-30T17:00:00 | B51: 15.21 | C51: 5.761 | D51: 5.761 | E51: 636.6 | F51: 636.6 | G51: 0 | I51: 4.8 | R51: 180
A52: 2007-03-30T17:15:00 | B52: 14.59 | C52: 5.774 | D52: 5.774 | E52: 609.7 | F52: 609.7 | R52: 195
A53: 2007-03-30T17:30:00 | B53: 14.25 | C53: 5.852 | D53: 5.852 | E53: 569 | F53: 569 | G53: 0 | I53: 4.78 | O53: X | R53: 210
A54: 2007-03-30T17:45:00 | B54: 14.28 | C54: 5.933 | D54: 5.933 | E54: 595.6 | F54: 595.6 | R54: 225
A55: 2007-03-30T18:00:00 | B55: 14.22 | C55: 5.908 | D55: 5.908 | E55: 617.5 | F55: 617.5 | G55: 0 | I55: 4.79 | P55: X | R55: =R54+(15*((K45-F54)/(F55-F54))) -> 240.2525685
A56: 2007-03-30T18:15:00 | B56: 14.09 | C56: 5.837 | D56: 5.837 | E56: 636.1 | F56: 636.1 | R56: =R54+30 -> 255
A57: 2007-03-30T18:30:00 | B57: 13.97 | C57: 5.77 | D57: 5.77 | E57: 648.4 | F57: 648.4 | G57: 0 | I57: 4.79 | R57: =R56+15 -> 270
A58: 2007-03-30T18:45:00 | B58: 13.87 | C58: 5.709 | D58: 5.709 | E58: 656.5 | F58: 656.5 | R58: =R57+15 -> 285
A59: 2007-03-30T19:00:00 | B59: 13.76 | C59: 5.657 | D59: 5.657 | E59: 659.5 | F59: 659.5 | G59: 0.02 | I59: 4.8 | Q59: X | R59: =R58+(15*((L45-F58)/(F59-F58))) -> 287.31875

Sheet 2007_8 (2)
A1: Date/Time | B1: Air Temperature (deg C) | C1: 21-cm subsurface drain temp., unedited (°C) | D1: 21-cm subsurface drain temp. (°C) | E1: 21-cm subsurface drain SC, unedited (mS/cm) | F1: 21-cm subsurface drain SC (mS/cm) | G1: Precip (inch) | H1: Cumulative Precip (inch) | I1: Gage height (feet), relative | J1: SCEO (mS/cm) | K1: SC50 (mS/cm) | L1: SC90 (mS/cm) | M1: tS | N1: tEO | O1: tEM | P1: t50 | Q1: t90 | R1: Time (minutes)
A2: 2007-03-31T01:30:00 | B2: 10.54 | C2: 5.432 | D2: 5.432 | E2: 668.4 | F2: 668.4 | G2: 0 | I2: 4.85
A3: 2007-03-31T01:45:00 | B3: 10.52 | C3: 5.429 | D3: 5.429 | E3: 668.4 | F3: 668.4
A4: 2007-03-31T02:00:00 | B4: 10.52 | C4: 5.43 | D4: 5.43 | E4: 668.4 | F4: 668.4 | G4: 0.01 | I4: 4.86 | M4: X | R4: 0
A5: 2007-03-31T02:15:00 | B5: 10.44 | C5: 5.432 | D5: 5.432 | E5: 668.1 | F5: 668.1 | R5: =R4+15 -> 15
A6: 2007-03-31T02:30:00 | B6: 10.21 | C6: 5.432 | D6: 5.432 | E6: 668.1 | F6: 668.1 | G6: 0.01 | I6: 4.84 | R6: =R5+15 -> 30
A7: 2007-03-31T02:45:00 | B7: 10.15 | C7: 5.433 | D7: 5.433 | E7: 668.2 | F7: 668.2 | R7: 45
A8: 2007-03-31T03:00:00 | B8: 10.13 | C8: 5.432 | D8: 5.432 | E8: 668.2 | F8: 668.2 | G8: 0.02 | I8: 4.85 | R8: 60
A9: 2007-03-31T03:15:00 | B9: 10.14 | C9: 5.432 | D9: 5.432 | E9: 669.4 | F9: 669.4 | R9: 75
A10: 2007-03-31T03:30:00 | B10: 10.25 | C10: 5.432 | D10: 5.432 | E10: 668.9 | F10: 668.9 | G10: 0 | I10: 4.86 | J10: =AVERAGE(F3:F10) -> 668.4625 | K10: =F17+((J10-F17)*0.5) -> 520.28125 | L10: =F17+((J10-F17)*0.9) -> 638.82625 | R10: 90
A11: 2007-03-31T03:45:00 | B11: 10.45 | C11: 5.432 | D11: 5.432 | E11: 652.6 | F11: 652.6 | N11: X | R11: 105
A12: 2007-03-31T04:00:00 | B12: 10.62 | C12: 5.446 | D12: 5.446 | E12: 646.1 | F12: 646.1 | G12: 0 | I12: 4.87 | R12: 120
A13: 2007-03-31T04:15:00 | B13: 10.68 | C13: 5.473 | D13: 5.473 | E13: 649.8 | F13: 649.8 | R13: 135
A14: 2007-03-31T04:30:00 | B14: 10.59 | C14: 5.504 | D14: 5.504 | E14: 628.1 | F14: 628.1 | G14: 0.26 | I14: 4.91 | R14: 150
A15: 2007-03-31T04:45:00 | B15: 10.56 | C15: 5.534 | D15: 5.534 | E15: 632.2 | F15: 632.2 | R15: 165
A16: 2007-03-31T05:00:00 | B16: 10.38 | C16: 5.793 | D16: 5.793 | E16: 508.1 | F16: 508.1 | G16: 0.03 | I16: 4.92 | R16: 180
A17: 2007-03-31T05:15:00 | B17: 10.23 | C17: 6.769 | D17: 6.769 | E17: 372.1 | F17: 372.1 | O17: X | R17: 195
A18: 2007-03-31T05:30:00 | B18: 10.18 | C18: 6.611 | D18: 6.611 | E18: 467.5 | F18: 467.5 | G18: 0.04 | H18: =SUM(G4:G18) -> 0.37 | I18: 4.93 | R18: 210
A19: 2007-03-31T05:45:00 | B19: 10.04 | C19: 6.342 | D19: 6.342 | E19: 524.6 | F19: 524.6 | P19: X | R19: =R18+(15*((K10-F18)/(F19-F18))) -> 223.8654772
A20: 2007-03-31T06:00:00 | B20: 9.86 | C20: 6.193 | D20: 6.193 | E20: 559.7 | F20: 559.7 | G20: 0 | I20: 4.94 | R20: =R18+30 -> 240
A21: 2007-03-31T06:15:00 | B21: 9.79 | C21: 6.082 | D21: 6.082 | E21: 584.4 | F21: 584.4 | R21: 255
A22: 2007-03-31T06:30:00 | B22: 9.71 | C22: 6.074 | D22: 6.074 | E22: 551.1 | F22: 551.1 | G22: 0 | I22: 4.96 | R22: 270
A23: 2007-03-31T06:45:00 | B23: 9.7 | C23: 6.1 | D23: 6.1 | E23: 562.9 | F23: 562.9 | R23: 285
A24: 2007-03-31T07:00:00 | B24: 9.68 | C24: 6.003 | D24: 6.003 | E24: 601.8 | F24: 601.8 | G24: 0 | I24: 4.98 | R24: 300
A25: 2007-03-31T07:15:00 | B25: 9.69 | C25: 5.904 | D25: 5.904 | E25: 623.4 | F25: 623.4 | R25: 315
A26: 2007-03-31T07:30:00 | B26: 9.69 | C26: 5.834 | D26: 5.834 | E26: 633.4 | F26: 633.4 | G26: 0.02 | I26: 5.05 | M26: X | R26: 330
A27: 2007-03-31T07:45:00 | B27: 9.8 | C27: 5.783 | D27: 5.783 | E27: 639.6 | F27: 639.6 | Q27: X | R27: =R26+(15*((L10-F26)/(F27-F26))) -> 343.1280242
A28: 2007-03-31T08:00:00 | B28: 9.87 | C28: 5.751 | D28: 5.751 | E28: 643.3 | F28: 643.3 | G28: 0 | I28: 5.12 | R28: =45 -> 45
A29: 2007-03-31T08:15:00 | B29: 9.85 | C29: 5.73 | D29: 5.73 | E29: 646.2 | F29: 646.2 | R29: =R28+15 -> 60
A30: 2007-03-31T08:30:00 | B30: 9.86 | C30: 5.716 | D30: 5.716 | E30: 642.4 | F30: 642.4 | G30: 0.02 | I30: 5.14 | R30: =R29+15 -> 75
A31: 2007-03-31T08:45:00 | B31: 9.94 | C31: 5.724 | D31: 5.724 | E31: 625.1 | F31: 625.1 | R31: 90
A32: 2007-03-31T09:00:00 | B32: 10.08 | C32: 5.733 | D32: 5.733 | E32: 634.5 | F32: 634.5 | G32: 0.06 | I32: 5.21 | R32: 105
A33: 2007-03-31T09:15:00 | B33: 10.11 | C33: 5.723 | D33: 5.723 | E33: 637.5 | F33: 637.5 | J33: =AVERAGE(F27:F34) -> 637.5375 | K33: =F37+((J33-F37)*0.5) -> 561.81875 | L33: =F37+((J33-F37)*0.9) -> 622.39375 | R33: 120
A34: 2007-03-31T09:30:00 | B34: 10.18 | C34: 5.736 | D34: 5.736 | E34: 631.7 | F34: 631.7 | G34: 0.05 | I34: 5.24 | N34: X | R34: =R33+15 -> 135
A35: 2007-03-31T09:45:00 | B35: 10.11 | C35: 5.96 | D35: 5.96 | E35: 541 | F35: 541 | R35: =R34+15 -> 150
A36: 2007-03-31T10:00:00 | B36: 10.31 | C36: 6.181 | D36: 6.181 | E36: 524.9 | F36: 524.9 | G36: 0.04 | I36: 5.25 | R36: 165
A37: 2007-03-31T10:15:00 | B37: 10.59 | C37: 6.216 | D37: 6.216 | E37: 486.1 | F37: 486.1 | O37: X | R37: 180
A38: 2007-03-31T10:30:00 | B38: 10.77 | C38: 6.316 | D38: 6.316 | E38: 492.4 | F38: 492.4 | G38: 0.01 | H38: =SUM(G26:G38) -> 0.2 | I38: 5.29 | R38: 195
A39: 2007-03-31T10:45:00 | B39: 10.87 | C39: 6.362 | D39: 6.362 | E39: 524 | F39: 524 | R39: 210
A40: 2007-03-31T11:00:00 | B40: 11.25 | C40: 6.318 | D40: 6.318 | E40: 556.6 | F40: 556.6 | G40: 0 | I40: 5.38 | R40: 225
A41: 2007-03-31T11:15:00 | B41: 11.62 | C41: 6.2 | D41: 6.2 | E41: 583.9 | F41: 583.9 | P41: X | R41: =R40+(15*((K33-F40)/(F41-F40))) -> 227.8674451
A42: 2007-03-31T11:30:00 | B42: 11.76 | C42: 6.109 | D42: 6.109 | E42: 599.8 | F42: 599.8 | G42: 0 | I42: 5.4 | R42: =R40+30 -> 255
A43: 2007-03-31T11:45:00 | B43: 11.85 | C43: 6.047 | D43: 6.047 | E43: 607.6 | F43: 607.6 | R43: =R42+15 -> 270
A44: 2007-03-31T12:00:00 | B44: 12.23 | C44: 6.006 | D44: 6.006 | E44: 612.7 | F44: 612.7 | G44: 0 | I44: 5.48 | R44: 285
A45: 2007-03-31T12:15:00 | B45: 12.52 | C45: 5.987 | D45: 5.987 | E45: 615.4 | F45: 615.4 | R45: 300
A46: 2007-03-31T12:30:00 | B46: 12.56 | C46: 5.968 | D46: 5.968 | E46: 617.5 | F46: 617.5 | G46: 0.01 | I46: 5.49 | R46: 315
A47: 2007-03-31T12:45:00 | B47: 12.67 | C47: 5.956 | D47: 5.956 | E47: 619.1 | F47: 619.1 | Q47: X | R47: 330

Sheet 2007_9
A1: Date/Time | B1: Air Temperature (deg C) | C1: 21-cm subsurface drain temp., unedited (°C) | D1: 21-cm subsurface drain temp. (°C) | E1: 21-cm subsurface drain SC, unedited (mS/cm) | F1: 21-cm subsurface drain SC (mS/cm) | G1: Precip (inch) | H1: Cumulative Precip (inch) | I1: Gage height (feet), relative | J1: SCEO (mS/cm) | K1: SC50 (mS/cm) | L1: SC90 (mS/cm) | M1: tS | N1: tEO | O1: tEM | P1: t50 | Q1: t90 | R1: Time (minutes)
A2: 2007-04-10T17:30:00 | B2: 2.816 | C2: 5.496 | D2: 5.496 | E2: 542.8 | F2: 542.8 | G2: 0.02 | I2: 4.84 | M2: X | R2: 0
A3: 2007-04-10T17:45:00 | B3: 2.708 | C3: 5.495 | D3: 5.495 | E3: 543.1 | F3: 543.1 | R3: =R2+15 -> 15
A4: 2007-04-10T18:00:00 | B4: 2.443 | C4: 5.49 | D4: 5.49 | E4: 545.4 | F4: 545.4 | G4: 0.03 | I4: 4.84 | R4: =R3+15 -> 30
A5: 2007-04-10T18:15:00 | B5: 1.95 | C5: 5.494 | D5: 5.494 | E5: 544 | F5: 544 | R5: 45
A6: 2007-04-10T18:30:00 | B6: 1.661 | C6: 5.494 | D6: 5.494 | E6: 544.8 | F6: 544.8 | G6: 0.03 | I6: 4.85 | R6: 60
A7: 2007-04-10T18:45:00 | B7: 1.691 | C7: 5.496 | D7: 5.496 | E7: 546.3 | F7: 546.3 | R7: 75
A8: 2007-04-10T19:00:00 | B8: 1.6 | C8: 5.492 | D8: 5.492 | E8: 545.9 | F8: 545.9 | G8: 0.01 | I8: 4.83 | R8: 90
A9: 2007-04-10T19:15:00 | B9: 1.611 | C9: 5.494 | E9: 543.9 | R9: 105
A10: 2007-04-10T19:30:00 | B10: 1.816 | C10: 5.493 | E10: 536.9 | G10: 0.02 | I10: 4.84 | R10: 120
A11: 2007-04-10T19:45:00 | B11: 2.231 | C11: 5.489 | E11: 726 | R11: 135
A12: 2007-04-10T20:00:00 | B12: 2.187 | C12: 5.498 | E12: 762 | G12: 0.02 | I12: 4.85 | R12: 150
A13: 2007-04-10T20:15:00 | B13: 1.883 | C13: 5.492 | E13: 580.1 | R13: 165
A14: 2007-04-10T20:30:00 | B14: 1.902 | C14: 5.488 | E14: 549.3 | G14: 0.02 | I14: 4.85 | R14: 180
A15: 2007-04-10T20:45:00 | B15: 1.963 | C15: 5.486 | D15: 5.486 | E15: 544.2 | F15: 544.2 | R15: 195
A16: 2007-04-10T21:00:00 | B16: 1.947 | C16: 5.484 | D16: 5.484 | E16: 546.1 | F16: 546.1 | G16: 0.02 | I16: 4.85 | R16: 210
A17: 2007-04-10T21:15:00 | B17: 1.861 | C17: 5.48 | D17: 5.48 | E17: 540.5 | F17: 540.5 | R17: 225
A18: 2007-04-10T21:30:00 | B18: 1.497 | C18: 5.472 | D18: 5.472 | E18: 536.4 | F18: 536.4 | G18: 0.01 | I18: 4.85 | R18: 240
A19: 2007-04-10T21:45:00 | B19: 1.323 | C19: 5.461 | D19: 5.461 | E19: 532.1 | F19: 532.1 | R19: 255
A20: 2007-04-10T22:00:00 | B20: 0.863 | C20: 5.448 | D20: 5.448 | E20: 521.2 | F20: 521.2 | G20: 0.01 | I20: 4.85 | R20: 270
A21: 2007-04-10T22:15:00 | B21: 0.639 | C21: 5.426 | D21: 5.426 | E21: 515.7 | F21: 515.7 | R21: 285
A22: 2007-04-10T22:30:00 | B22: 0.691 | C22: 5.396 | D22: 5.396 | E22: 512.2 | F22: 512.2 | G22: 0.01 | I22: 4.84 | R22: 300
A23: 2007-04-10T22:45:00 | B23: 0.711 | C23: 5.372 | D23: 5.372 | E23: 512.4 | F23: 512.4 | R23: 315
A24: 2007-04-10T23:00:00 | B24: 0.773 | C24: 5.36 | D24: 5.36 | E24: 512 | F24: 512 | G24: 0.01 | I24: 4.84 | R24: 330
A25: 2007-04-10T23:15:00 | B25: 0.952 | C25: 5.351 | D25: 5.351 | E25: 511.1 | F25: 511.1 | R25: 345
A26: 2007-04-10T23:30:00 | B26: 1.176 | C26: 5.331 | D26: 5.331 | E26: 509.6 | F26: 509.6 | G26: 0.01 | I26: 4.85 | R26: 360
A27: 2007-04-10T23:45:00 | B27: 1.412 | C27: 5.306 | D27: 5.306 | E27: 504.9 | F27: 504.9 | R27: 375
A28: 2007-04-11 | B28: 1.584 | C28: 5.28 | D28: 5.28 | E28: 501.9 | F28: 501.9 | G28: 0.01 | I28: 4.86 | R28: 390
A29: 2007-04-11T00:15:00 | B29: 1.821 | C29: 5.263 | D29: 5.263 | E29: 502.9 | F29: 502.9 | R29: 405
A30: 2007-04-11T00:30:00 | B30: 1.833 | C30: 5.266 | D30: 5.266 | E30: 508.3 | F30: 508.3 | G30: 0.01 | I30: 4.86 | R30: 420
A31: 2007-04-11T00:45:00 | B31: 1.653 | C31: 5.31 | D31: 5.31 | E31: 511.2 | F31: 511.2 | R31: 435
A32: 2007-04-11T01:00:00 | B32: 1.478 | C32: 5.279 | D32: 5.279 | E32: 513.1 | F32: 513.1 | G32: 0 | I32: 4.86 | R32: 450
A33: 2007-04-11T01:15:00 | B33: 1.409 | C33: 5.275 | D33: 5.275 | E33: 510.1 | F33: 510.1 | R33: 465
A34: 2007-04-11T01:30:00 | B34: 1.28 | C34: 5.261 | D34: 5.261 | E34: 511.6 | F34: 511.6 | G34: 0 | I34: 4.86 | R34: 480
A35: 2007-04-11T01:45:00 | B35: 1.116 | C35: 5.262 | D35: 5.262 | E35: 516.4 | F35: 516.4 | R35: 495
A36: 2007-04-11T02:00:00 | B36: 0.776 | C36: 5.27 | D36: 5.27 | E36: 522.2 | F36: 522.2 | G36: 0.01 | H36: =SUM(G2:G36) -> 0.25 | I36: 4.86 | R36: 510
A37: 2007-04-11T02:15:00 | B37: 0.455 | C37: 5.284 | D37: 5.284 | E37: 527.2 | F37: 527.2 | R37: 525
A38: 2007-04-11T02:30:00 | B38: 0.332 | C38: 5.294 | D38: 5.294 | E38: 529.6 | F38: 529.6 | G38: 0 | I38: 4.87 | R38: 540
A39: 2007-04-11T02:45:00 | B39: 0.317 | C39: 5.3 | D39: 5.3 | E39: 530.5 | F39: 530.5 | R39: 555
A40: 2007-04-11T03:00:00 | B40: 0.369 | C40: 5.306 | D40: 5.306 | E40: 532.1 | F40: 532.1 | G40: 0 | I40: 4.88 | R40: 570
A41: 2007-04-11T03:15:00 | B41: 0.355 | C41: 5.314 | D41: 5.314 | E41: 534.1 | F41: 534.1 | R41: 585
A42: 2007-04-11T03:30:00 | B42: 0.231 | C42: 5.324 | D42: 5.324 | E42: 535.9 | F42: 535.9 | G42: 0 | I42: 4.89 | R42: 600
A43: 2007-04-11T03:45:00 | B43: 0.188 | C43: 5.328 | D43: 5.328 | E43: 537.4 | F43: 537.4 | R43: 615
A44: 2007-04-11T04:00:00 | B44: 0.12 | C44: 5.331 | D44: 5.331 | E44: 537.3 | F44: 537.3 | G44: 0 | I44: 4.9 | R44: 630
A45: 2007-04-11T04:15:00 | B45: 0.071 | C45: 5.331 | D45: 5.331 | E45: 535.1 | F45: 535.1 | R45: 645
A46: 2007-04-11T04:30:00 | B46: 0.083 | C46: 5.331 | D46: 5.331 | E46: 533.1 | F46: 533.1 | G46: 0 | I46: 4.9 | R46: 660
A47: 2007-04-11T04:45:00 | B47: 0.033 | C47: 5.321 | D47: 5.321 | E47: 532.1 | F47: 532.1 | R47: 675
A48: 2007-04-11T05:00:00 | B48: 0 | C48: 5.32 | D48: 5.32 | E48: 531.8 | F48: 531.8 | G48: 0 | I48: 4.91 | R48: 690
A49: 2007-04-11T05:15:00 | B49: -0.045 | C49: 5.323 | D49: 5.323 | E49: 535.4 | F49: 535.4 | R49: 705
A50: 2007-04-11T05:30:00 | B50: -0.068 | C50: 5.325 | D50: 5.325 | E50: 538.7 | F50: 538.7 | G50: 0 | I50: 4.92 | R50: 720
A51: 2007-04-11T05:45:00 | B51: -0.095 | C51: 5.331 | D51: 5.331 | E51: 543.9 | F51: 543.9 | R51: 735
A52: 2007-04-11T06:00:00 | B52: -0.097 | C52: 5.343 | D52: 5.343 | E52: 558.5 | F52: 558.5 | G52: 0 | I52: 4.92 | R52: 750
A53: 2007-04-11T06:15:00 | B53: -0.129 | C53: 5.352 | D53: 5.352 | E53: 563.1 | F53: 563.1 | R53: 765
A54: 2007-04-11T06:30:00 | B54: -0.15 | C54: 5.358 | D54: 5.358 | E54: 563 | F54: 563 | G54: 0 | I54: 4.93 | R54: 780
A55: 2007-04-11T06:45:00 | B55: -0.151 | C55: 5.363 | D55: 5.363 | E55: 563.1 | F55: 563.1 | R55: 795
A56: 2007-04-11T07:00:00 | B56: -0.151 | C56: 5.373 | D56: 5.373 | E56: 565.5 | F56: 565.5 | G56: 0 | I56: 4.95 | R56: 810
A57: 2007-04-11T07:15:00 | B57: -0.15 | C57: 5.383 | D57: 5.383 | E57: 564.5 | F57: 564.5 | R57: 825
A58: 2007-04-11T07:30:00 | B58: -0.15 | C58: 5.391 | D58: 5.391 | E58: 562 | F58: 562 | G58: 0 | I58: 4.97 | R58: 840
A59: 2007-04-11T07:45:00 | B59: -0.145 | C59: 5.397 | D59: 5.397 | E59: 561.1 | F59: 561.1 | R59: 855
A60: 2007-04-11T08:00:00 | B60: -0.137 | C60: 5.402 | D60: 5.402 | E60: 560.8 | F60: 560.8 | G60: 0 | I60: 4.96 | R60: 870
A61: 2007-04-11T08:15:00 | B61: -0.132 | C61: 5.406 | D61: 5.406 | E61: 560.8 | F61: 560.8 | R61: 885
A62: 2007-04-11T08:30:00 | B62: -0.124 | C62: 5.411 | D62: 5.411 | E62: 560.6 | F62: 560.6 | G62: 0 | I62: 4.97 | R62: 900
A63: 2007-04-11T08:45:00 | B63: -0.112 | C63: 5.416 | D63: 5.416 | E63: 560 | F63: 560 | R63: 915
A64: 2007-04-11T09:00:00 | B64: -0.081 | C64: 5.424 | D64: 5.424 | E64: 559.9 | F64: 559.9 | G64: 0 | I64: 4.98 | R64: 930
A65: 2007-04-11T09:15:00 | B65: 0.024 | C65: 5.431 | D65: 5.431 | E65: 558.4 | F65: 558.4 | R65: 945
A66: 2007-04-11T09:30:00 | B66: 0.068 | C66: 5.436 | D66: 5.436 | E66: 559.4 | F66: 559.4 | G66: 0 | I66: 4.98 | R66: 960
A67: 2007-04-11T09:45:00 | B67: 0.145 | C67: 5.441 | D67: 5.441 | E67: 558.9 | F67: 558.9 | R67: 975
A68: 2007-04-11T10:00:00 | B68: 0.133 | C68: 5.439 | D68: 5.439 | E68: 559.2 | F68: 559.2 | G68: 0 | I68: 4.99 | R68: =R67+15 -> 990
A69: 2007-04-11T10:15:00 | B69: 0.149 | C69: 5.439 | D69: 5.439 | E69: 559 | F69: 559 | R69: 1005
A70: 2007-04-11T10:30:00 | B70: 0.245 | C70: 5.436 | D70: 5.436 | E70: 556.5 | F70: 556.5 | G70: 0 | I70: 4.99 | J70: =AVERAGE(F63:F70) -> 558.9125 | K70: =F79+((J70-F79)*0.5) -> 506.60625 | L70: =F79+((J70-F79)*0.9) -> 548.45125 | R70: 1020
A71: 2007-04-11T10:45:00 | B71: 0.252 | C71: 5.429 | D71: 5.429 | E71: 529.1 | F71: 529.1 | N71: X | R71: 1035
A72: 2007-04-11T11:00:00 | B72: 0.21 | C72: 5.399 | D72: 5.399 | E72: 521.5 | F72: 521.5 | G72: 0 | I72: 4.99 | R72: 1050
A73: 2007-04-11T11:15:00 | B73: 0.328 | C73: 5.376 | D73: 5.376 | E73: 521.3 | F73: 521.3 | R73: 1065
A74: 2007-04-11T11:30:00 | B74: 0.343 | C74: 5.355 | D74: 5.355 | E74: 518.2 | F74: 518.2 | G74: 0 | I74: 5 | R74: 1080
A75: 2007-04-11T11:45:00 | B75: 0.23 | C75: 5.316 | D75: 5.316 | E75: 497.7 | F75: 497.7 | R75: 1095
A76: 2007-04-11T12:00:00 | B76: 0.2 | C76: 5.26 | D76: 5.26 | E76: 477.3 | F76: 477.3 | G76: 0 | I76: 5.01 | R76: 1110
A77: 2007-04-11T12:15:00 | B77: 0.19 | C77: 5.199 | D77: 5.199 | E77: 480.5 | F77: 480.5 | R77: 1125
A78: 2007-04-11T12:30:00 | B78: 0.159 | C78: 5.131 | D78: 5.131 | E78: 464.5 | F78: 464.5 | G78: 0 | I78: 5 | R78: 1140
A79: 2007-04-11T12:45:00 | B79: 0.065 | C79: 5.072 | D79: 5.072 | E79: 454.3 | F79: 454.3 | O79: X | R79: 1155
A80: 2007-04-11T13:00:00 | B80: 0.096 | C80: 5.041 | D80: 5.041 | E80: 457.2 | F80: 457.2 | G80: 0 | I80: 5.02 | R80: 1170
A81: 2007-04-11T13:15:00 | B81: 0.167 | C81: 5.038 | D81: 5.038 | E81: 467.5 | F81: 467.5 | R81: 1185
A82: 2007-04-11T13:30:00 | B82: 0.16 | C82: 5.044 | D82: 5.044 | E82: 473.4 | F82: 473.4 | G82: 0 | I82: 5.02 | R82: 1200
A83: 2007-04-11T13:45:00 | B83: 0.145 | C83: 5.051 | D83: 5.051 | E83: 480.8 | F83: 480.8 | R83: 1215
A84: 2007-04-11T14:00:00 | B84: 0.092 | C84: 5.053 | D84: 5.053 | E84: 493.4 | F84: 493.4 | G84: 0 | I84: 5.01 | R84: 1230
A85: 2007-04-11T14:15:00 | B85: 0.138 | C85: 5.046 | D85: 5.046 | E85: 492.1 | F85: 492.1 | R85: 1245
A86: 2007-04-11T14:30:00 | B86: 0.103 | C86: 5.033 | D86: 5.033 | E86: 492.7 | F86: 492.7 | G86: 0 | I86: 5.02 | R86: 1260
A87: 2007-04-11T14:45:00 | B87: 0.011 | C87: 5.036 | D87: 5.036 | E87: 493.3 | F87: 493.3 | R87: 1275
A88: 2007-04-11T15:00:00 | B88: 0.029 | C88: 5.053 | D88: 5.053 | E88: 495.6 | F88: 495.6 | G88: 0 | I88: 5.04 | R88: 1290
A89: 2007-04-11T15:15:00 | B89: 0.095 | C89: 5.063 | D89: 5.063 | E89: 498.6 | F89: 498.6 | R89: 1305
A90: 2007-04-11T15:30:00 | B90: 0.037 | C90: 5.072 | D90: 5.072 | E90: 501.4 | F90: 501.4 | G90: 0 | I90: 5.04 | R90: 1320
A91: 2007-04-11T15:45:00 | B91: -0.054 | C91: 5.087 | D91: 5.087 | E91: 505.1 | F91: 505.1 | R91: 1335
A92: 2007-04-11T16:00:00 | B92: -0.094 | C92: 5.112 | D92: 5.112 | E92: 511.5 | F92: 511.5 | G92: 0 | I92: 5.05 | P92: X | R92: =R91+(15*((K70-F91)/(F92-F91))) -> 1338.530273
A93: 2007-04-11T16:15:00 | B93: -0.186 | C93: 5.125 | D93: 5.125 | E93: 517.3 | F93: 517.3 | R93: =R91+30 -> 1365
A94: 2007-04-11T16:30:00 | B94: -0.364 | C94: 5.127 | D94: 5.127 | E94: 510.5 | F94: 510.5 | G94: 0 | I94: 5.07 | R94: 1380
A95: 2007-04-11T16:45:00 | B95: -0.496 | C95: 5.127 | D95: 5.127 | E95: 510.4 | F95: 510.4 | R95: 1395
A96: 2007-04-11T17:00:00 | B96: -0.584 | C96: 5.138 | D96: 5.138 | E96: 516.2 | F96: 516.2 | G96: 0 | I96: 5.06 | R96: 1410
A97: 2007-04-11T17:15:00 | B97: -0.622 | C97: 5.153 | D97: 5.153 | E97: 519.3 | F97: 519.3 | R97: 1425
A98: 2007-04-11T17:30:00 | B98: -0.632 | C98: 5.161 | D98: 5.161 | E98: 518.7 | F98: 518.7 | G98: 0 | I98: 5.06 | R98: 1440
A99: 2007-04-11T17:45:00 | B99: -0.687 | C99: 5.168 | D99: 5.168 | E99: 517.1 | F99: 517.1 | R99: 1455
A100: 2007-04-11T18:00:00 | B100: -0.743 | C100: 5.168 | D100: 5.168 | E100: 516 | F100: 516 | G100: 0 | I100: 5.07 | R100: 1470
A101: 2007-04-11T18:15:00 | B101: -0.737 | C101: 5.17 | D101: 5.17 | E101: 519.4 | F101: 519.4 | R101: 1485
A102: 2007-04-11T18:30:00 | B102: -0.734 | C102: 5.179 | D102: 5.179 | E102: 526.2 | F102: 526.2 | G102: 0 | I102: 5.07 | R102: 1500
A103: 2007-04-11T18:45:00 | B103: -0.811 | C103: 5.194 | D103: 5.194 | E103: 531.5 | F103: 531.5 | R103: 1515
A104: 2007-04-11T19:00:00 | B104: -0.846 | C104: 5.207 | D104: 5.207 | E104: 535.4 | F104: 535.4 | G104: 0 | I104: 5.06 | R104: 1530
A105: 2007-04-11T19:15:00 | B105: -0.916 | C105: 5.223 | D105: 5.223 | E105: 538.1 | F105: 538.1 | R105: 1545
A106: 2007-04-11T19:30:00 | B106: -0.868 | C106: 5.24 | D106: 5.24 | E106: 540.3 | F106: 540.3 | G106: 0 | I106: 5.07 | R106: 1560
A107: 2007-04-11T19:45:00 | B107: -0.827 | C107: 5.247 | D107: 5.247 | E107: 542.4 | F107: 542.4 | R107: 1575
A108: 2007-04-11T20:00:00 | B108: -0.694 | C108: 5.256 | D108: 5.256 | E108: 543.6 | F108: 543.6 | G108: 0 | I108: 5.08 | R108: 1590
A109: 2007-04-11T20:15:00 | B109: -0.699 | C109: 5.264 | D109: 5.264 | E109: 544.6 | F109: 544.6 | R109: 1605
A110: 2007-04-11T20:30:00 | B110: -0.876 | C110: 5.273 | D110: 5.273 | E110: 545.7 | F110: 545.7 | G110: 0 | I110: 5.07 | R110: 1620
A111: 2007-04-11T20:45:00 | B111: -1.187 | C111: 5.278 | D111: 5.278 | E111: 547.6 | F111: 547.6 | R111: 1635
A112: 2007-04-11T21:00:00 | B112: -1.236 | C112: 5.288 | D112: 5.288 | E112: 546.8 | F112: 546.8 | G112: 0 | I112: 5.07 | R112: 1650
A113: 2007-04-11T21:15:00 | B113: -1.177 | C113: 5.293 | D113: 5.293 | E113: 552 | F113: 552 | Q113: X | R113: =R112+(15*((L70-F112)/(F113-F112))) -> 1654.763221
A114: 2007-04-11T21:30:00 | B114: -1.068 | C114: 5.298 | D114: 5.298 | E114: 551.3 | F114: 551.3 | G114: 0 | I114: 5.09
A115: 2007-04-11T21:45:00 | B115: -1.066 | C115: 5.305 | D115: 5.305 | E115: 550.7 | F115: 550.7

Sheet 2007_10 (2)
A1: Date/Time | B1: Air Temperature (deg C) | C1: 21-cm subsurface drain temp., unedited (°C) | D1: 21-cm subsurface drain temp. (°C) | E1: 21-cm subsurface drain SC, unedited (mS/cm) | F1: 21-cm subsurface drain SC (mS/cm) | G1: Precip (inch) | H1: Cumulative Precip (inch) | I1: Gage height (feet), relative | J1: SCEO (mS/cm) | K1: SC50 (mS/cm) | L1: SC90 (mS/cm) | M1: tS | N1: tEO | O1: tEM | P1: t50 | Q1: t90 | R1: Time (minutes)
A2: 2007-04-22T12:30:00 | C2: 6.162 | D2: 6.162 | E2: 658.4 | F2: 658.4 | G2: 0.16 | I2: 4.77826 | M2: X | R2: 0
A3: 2007-04-22T12:45:00 | C3: 6.164 | D3: 6.164 | E3: 654.7 | F3: 654.7 | R3: =R2+15 -> 15
A4: 2007-04-22T13:00:00 | C4: 6.163 | D4: 6.163 | E4: 651.8 | F4: 651.8 | G4: 0.14 | I4: 4.791304 | R4: =R3+15 -> 30
A5: 2007-04-22T13:15:00 | C5: 6.169 | D5: 6.169 | E5: 656.7 | F5: 656.7 | R5: 45
A6: 2007-04-22T13:30:00 | C6: 6.171 | D6: 6.171 | E6: 653.1 | F6: 653.1 | G6: 0.02 | H6: =SUM(G2:G6) -> 0.32 | I6: 4.804347 | R6: 60
A7: 2007-04-22T13:45:00 | C7: 6.172 | D7: 6.172 | E7: 653.5 | F7: 653.5 | R7: 75
A8: 2007-04-22T14:00:00 | C8: 6.178 | D8: 6.178 | E8: 656.3 | F8: 656.3 | G8: 0 | I8: 4.81739 | J8: =AVERAGE(F2:F8) -> 654.9285714 | K8: =F11+((J8-F11)*0.5) -> 547.0642857 | L8: =F11+((J8-F11)*0.9) -> 633.3557143 | R8: 90
A9: 2007-04-22T14:15:00 | C9: 6.194 | D9: 6.194 | E9: 563.5 | F9: 563.5 | N9: X | R9: 105
A10: 2007-04-22T14:30:00 | C10: 6.371 | D10: 6.371 | E10: 522.9 | F10: 522.9 | G10: 0 | I10: 4.830434 | R10: 120
A11: 2007-04-22T14:45:00 | C11: 6.756 | D11: 6.756 | E11: 439.2 | F11: 439.2 | O11: X | R11: 135
A12: 2007-04-22T15:00:00 | C12: 7.16 | D12: 7.16 | E12: 465.6 | F12: 465.6 | G12: 0 | I12: 4.843477 | R12: 150
A13: 2007-04-22T15:15:00 | C13: 7.19 | D13: 7.19 | E13: 507.8 | F13: 507.8 | R13: 165
A14: 2007-04-22T15:30:00 | C14: 7.06 | D14: 7.06 | E14: 523.7 | F14: 523.7 | G14: 0 | I14: 4.856521 | R14: 180
A15: 2007-04-22T15:45:00 | C15: 6.936 | D15: 6.936 | E15: 553.4 | F15: 553.4 | P15: X | R15: =R14+(15*((K8-F14)/(F15-F14))) -> 191.8001443
A16: 2007-04-22T16:00:00 | C16: 6.832 | E16: 581.1 | G16: 0 | I16: 4.869564
A17: 2007-04-22T16:15:00 | C17: 6.741 | D17: 6.741 | E17: 610.9 | F17: 610.9
A18: 2007-04-22T16:30:00 | C18: 6.668 | D18: 6.668 | E18: 616.8 | F18: 616.8 | G18: 0 | I18: 4.882607
A19: 2007-04-22T16:45:00 | C19: 6.602 | D19: 6.602 | E19: 618.7 | F19: 618.7
A20: 2007-04-22T17:00:00 | C20: 6.542 | D20: 6.542 | E20: 621.9 | F20: 621.9 | G20: 0.09 | I20: 4.895651 | M20: X | R20: 0
A21: 2007-04-22T17:15:00 | C21: 6.5 | D21: 6.5 | E21: 623.8 | F21: 623.8 | R21: =R20+15 -> 15
A22: 2007-04-22T17:30:00 | C22: 6.464 | D22: 6.464 | E22: 624.4 | F22: 624.4 | G22: 0.17 | I22: 4.908694 | R22: =R21+15 -> 30
A23: 2007-04-22T17:45:00 | C23: 6.453 | D23: 6.453 | E23: 622.2 | F23: 622.2 | J23: =AVERAGE(F16:F23) -> 619.8142857 | K23: =F26+((J23-F26)*0.5) -> 472.5071429 | L23: =F26+((J23-F26)*0.9) -> 590.3528571 | R23: 45
A24: 2007-04-22T18:00:00 | C24: 6.432 | D24: 6.432 | E24: 609.2 | F24: 609.2 | G24: 0.04 | H24: =SUM(G20:G24) -> 0.3 | I24: 4.921738 | N24: X | R24: 60
A25: 2007-04-22T18:15:00 | C25: 7.25 | D25: 7.25 | E25: 364.8 | F25: 364.8 | R25: 75
A26: 2007-04-22T18:30:00 | C26: 8.55 | D26: 8.55 | E26: 325.2 | F26: 325.2 | G26: 0 | I26: 4.934781 | O26: X | R26: 90
A27: 2007-04-22T18:45:00 | C27: 8.55 | D27: 8.55 | E27: 395 | F27: 395 | R27: 105
A28: 2007-04-22T19:00:00 | C28: 8.47 | D28: 8.47 | E28: 426.2 | F28: 426.2 | G28: 0 | I28: 4.947824 | R28: 120
A29: 2007-04-22T19:15:00 | C29: 7.99 | D29: 7.99 | E29: 517 | F29: 517 | P29: X | R29: =R28+(15*((K23-F28)/(F29-F28))) -> 127.6498584
A30: 2007-04-22T19:30:00 | C30: 7.49 | D30: 7.49 | E30: 570.2 | F30: 570.2 | G30: 0 | I30: 4.960868 | R30: =R28+30 -> 150
A31: 2007-04-22T19:45:00 | C31: 7.19 | D31: 7.19 | E31: 597 | F31: 597 | Q31: X | R31: =R30+(15*((L23-F30)/(F31-F30))) -> 161.2795842
A32: 2007-04-22T20:00:00 | C32: 7 | D32: 7 | E32: 614.7 | F32: 614.7 | G32: 0 | I32: 4.973911

Sheet 2007_11
A1: Date/Time | B1: Air Temperature (deg C) | C1: 21-cm subsurface drain temp., unedited (°C) | D1: 21-cm subsurface drain temp. (°C) | E1: 21-cm subsurface drain SC, unedited (mS/cm) | F1: 21-cm subsurface drain SC (mS/cm) | G1: Precip (inch) | H1: Cumulative Precip (inch) | I1: Gage height (feet), relative | J1: SCEO (mS/cm) | K1: SC50 (mS/cm) | L1: SC90 (mS/cm) | M1: tS | N1: tEO | O1: tEM | P1: t50 | Q1: t90 | R1: Time (minutes)
A2: 2007-05-06T04:00:00 | C2: 8.42 | D2: 8.42 | E2: 592 | F2: 592 | G2: 0.01 | I2: 4.850351 | M2: X | R2: 0
A3: 2007-05-06T04:15:00 | C3: 8.43 | D3: 8.43 | E3: 592.2 | F3: 592.2 | R3: =R2+15 -> 15
A4: 2007-05-06T04:30:00 | C4: 8.43 | D4: 8.43 | E4: 592.4 | F4: 592.4 | G4: 0 | I4: 4.850526 | R4: 30
A5: 2007-05-06T04:45:00 | C5: 8.43 | D5: 8.43 | E5: 592.2 | F5: 592.2 | R5: 45
A6: 2007-05-06T05:00:00 | C6: 8.43 | D6: 8.43 | E6: 592.1 | F6: 592.1 | G6: 0 | I6: 4.850702 | R6: 60
A7: 2007-05-06T05:15:00 | C7: 8.43 | D7: 8.43 | E7: 592.2 | F7: 592.2 | R7: 75
A8: 2007-05-06T05:30:00 | C8: 8.43 | D8: 8.43 | E8: 592.2 | F8: 592.2 | G8: 0.09 | I8: 4.850877 | R8: 90
A9: 2007-05-06T05:45:00 | C9: 8.43 | D9: 8.43 | E9: 592.1 | F9: 592.1 | R9: 105
A10: 2007-05-06T06:00:00 | C10: 8.43 | D10: 8.43 | E10: 592.6 | F10: 592.6 | G10: 0.12 | I10: 4.851053 | R10: 120
A11: 2007-05-06T06:15:00 | C11: 8.44 | D11: 8.44 | E11: 593.2 | F11: 593.2 | R11: 135
A12: 2007-05-06T06:30:00 | C12: 8.45 | D12: 8.45 | E12: 592.9 | F12: 592.9 | G12: 0.15 | I12: 4.851228 | R12: 150
A13: 2007-05-06T06:45:00 | C13: 8.45 | D13: 8.45 | E13: 592.3 | F13: 592.3 | R13: 165
A14: 2007-05-06T07:00:00 | C14: 8.47 | D14: 8.47 | E14: 596.1 | F14: 596.1 | G14: 0.14 | I14: 4.851404 | J14: =AVERAGE(F7:F14) -> 592.95 | K14: =F21+((J14-F21)*0.5) -> 473.875 | L14: =F21+((J14-F21)*0.9) -> 569.135 | R14: 180
A15: 2007-05-06T07:15:00 | C15: 8.54 | D15: 8.54 | E15: 432.9 | F15: 432.9 | N15: X | R15: 195
A16: 2007-05-06T07:30:00 | C16: 8.69 | D16: 8.69 | E16: 478.6 | F16: 478.6 | G16: 0.14 | I16: 4.851579 | R16: 210
A17: 2007-05-06T07:45:00 | C17: 8.77 | D17: 8.77 | E17: 463.7 | F17: 463.7 | R17: 225
A18: 2007-05-06T08:00:00 | C18: 9 | D18: 9 | E18: 398.4 | F18: 398.4 | G18: 0.09 | I18: 4.851755 | R18: 240
A19: 2007-05-06T08:15:00 | C19: 9.19 | D19: 9.19 | E19: 382.6 | F19: 382.6 | R19: 255
A20: 2007-05-06T08:30:00 | C20: 9.31 | D20: 9.31 | E20: 359.7 | F20: 359.7 | G20: 0.06 | I20: 4.85193 | R20: 270
A21: 2007-05-06T08:45:00 | C21: 9.39 | D21: 9.39 | E21: 354.8 | F21: 354.8 | O21: X | R21: 285
A22: 2007-05-06T09:00:00 | C22: 9.39 | D22: 9.39 | E22: 359.8 | F22: 359.8 | G22: 0.09 | I22: 4.852106 | R22: 300
A23: 2007-05-06T09:15:00 | C23: 9.38 | D23: 9.38 | E23: 371.2 | F23: 371.2 | R23: 315
A24: 2007-05-06T09:30:00 | C24: 9.31 | D24: 9.31 | E24: 410.8 | F24: 410.8 | G24: 0.06 | I24: 4.852281 | R24: 330
A25: 2007-05-06T09:45:00 | C25: 9.23 | D25: 9.23 | E25: 447.6 | F25: 447.6 | R25: 345
A26: 2007-05-06T10:00:00 | C26: 9.22 | D26: 9.22 | E26: 455.7 | F26: 455.7 | G26: 0.02 | I26: 4.852457 | R26: 360
A27: 2007-05-06T10:15:00 | C27: 9.21 | D27: 9.21 | E27: 470 | F27: 470 | R27: 375
A28: 2007-05-06T10:30:00 | C28: 9.17 | D28: 9.17 | E28: 495.1 | F28: 495.1 | G28: 0.04 | I28: 4.852632 | P28: X | R28: =R27+(15*((K14-F27)/(F28-F27))) -> 377.3157371
A29: 2007-05-06T10:45:00 | C29: 9.15 | D29: 9.15 | E29: 502.3 | F29: 502.3 | R29: =R27+30 -> 405
A30: 2007-05-06T11:00:00 | C30: 9.14 | D30: 9.14 | E30: 510.8 | F30: 510.8 | G30: 0.01 | H30: =SUM(G2:G30) -> 1.02 | I30: 4.852808 | R30: =R29+15 -> 420
A31: 2007-05-06T11:15:00 | C31: 9.13 | D31: 9.13 | E31: 524.4 | F31: 524.4 | R31: =R30+15 -> 435
A32: 2007-05-06T11:30:00 | C32: 9.11 | D32: 9.11 | E32: 532.6 | F32: 532.6 | G32: 0 | I32: 4.852983 | R32: 450
A33: 2007-05-06T11:45:00 | C33: 9.09 | D33: 9.09 | E33: 542.3 | F33: 542.3 | R33: 465
A34: 2007-05-06T12:00:00 | C34: 9.06 | D34: 9.06 | E34: 551.4 | F34: 551.4 | G34: 0 | I34: 4.853158 | R34: 480
A35: 2007-05-06T12:15:00 | C35: 9.04 | D35: 9.04 | E35: 560.5 | F35: 560.5 | R35: 495
A36: 2007-05-06T12:30:00 | C36: 9.02 | D36: 9.02 | E36: 567 | F36: 567 | G36: 0 | I36: 4.853334 | R36: 510
A37: 2007-05-06T12:45:00 | C37: 9 | D37: 9 | E37: 571 | F37: 571 | Q37: X | R37: =R36+(15*((L14-F36)/(F37-F36))) -> 518.00625

Sheet 2007_12
A1: Date/Time | B1: Air Temperature (deg C) | C1: 21-cm subsurface drain temp., unedited (°C) | D1: 21-cm subsurface drain temp. (°C) | E1: 21-cm subsurface drain SC, unedited (mS/cm) | F1: 21-cm subsurface drain SC (mS/cm) | G1: Precip (inch) | H1: Cumulative Precip (inch) | I1: Gage height (feet), relative | J1: SCEO (mS/cm) | K1: SC50 (mS/cm) | L1: SC90 (mS/cm) | M1: tS | N1: tEO | O1: tEM | P1: t50 | Q1: t90 | R1: Time (minutes)
A2: 2007-05-14T17:00:00 | B2: 31.98 | C2: 9.68 | D2: 9.68 | E2: 615.2 | F2: 615.2 | G2: 0 | I2: 4.83
A3: 2007-05-14T17:15:00 | B3: 31.21 | C3: 9.68 | D3: 9.68 | E3: 615.1 | F3: 615.1
A4: 2007-05-14T17:30:00 | B4: 30.5 | C4: 9.68 | D4: 9.68 | E4: 615.3 | F4: 615.3 | G4: 0 | I4: 4.83
A5: 2007-05-14T17:45:00 | B5: 28.56 | C5: 9.68 | D5: 9.68 | E5: 615.3 | F5: 615.3
A6: 2007-05-14T18:00:00 | B6: 25.25 | C6: 9.69 | D6: 9.69 | E6: 616.5 | F6: 616.5 | G6: 0.08 | I6: 4.83 | M6: X | R6: 0
A7: 2007-05-14T18:15:00 | B7: 22.04 | C7: 9.7 | D7: 9.7 | E7: 618.6 | F7: 618.6 | R7: =R6+15 -> 15
A8: 2007-05-14T18:30:00 | B8: 21.62 | C8: 9.71 | D8: 9.71 | E8: 616.6 | F8: 616.6 | G8: 0.03 | I8: 4.83 | R8: =R7+15 -> 30
A9: 2007-05-14T18:45:00 | B9: 21.65 | C9: 9.7 | D9: 9.7 | E9: 616.2 | F9: 616.2 | H9: =SUM(G6:G8) -> 0.11 | R9: 45
A10: 2007-05-14T19:00:00 | B10: 21.72 | C10: 9.71 | D10: 9.71 | E10: 621.4 | F10: 621.4 | G10: 0 | I10: 4.83 | J10: =AVERAGE(F3:F10) -> 616.875 | K10: =F12+((J10-F12)*0.5) -> 572.9875 | L10: =F12+((J10-F12)*0.9) -> 608.0975 | R10: 60
A11: 2007-05-14T19:15:00 | B11: 22.38 | C11: 9.73 | D11: 9.73 | E11: 589.8 | F11: 589.8 | N11: X | R11: 75
A12: 2007-05-14T19:30:00 | B12: 22.13 | C12: 9.8 | D12: 9.8 | E12: 529.1 | F12: 529.1 | G12: 0 | I12: 4.83 | O12: X | R12: 90
A13: 2007-05-14T19:45:00 | B13: 21.74 | C13: 9.88 | D13: 9.88 | E13: 558.3 | F13: 558.3 | R13: 105
A14: 2007-05-14T20:00:00 | B14: 21.69 | C14: 9.89 | D14: 9.89 | E14: 586.5 | F14: 586.5 | G14: 0 | I14: 4.83 | P14: X | R14: =R12+15+(15*((K10-F13)/(F14-F13))) -> 112.8125
A15: 2007-05-14T20:15:00 | B15: 21.46 | C15: 9.86 | D15: 9.86 | E15: 602.8 | F15: 602.8 | R15: =R13+30 -> 135
A16: 2007-05-14T20:30:00 | B16: 20.98 | C16: 9.83 | D16: 9.83 | E16: 615.4 | F16: 615.4 | G16: 0 | I16: 4.83 | Q16: X | R16: =R15+(15*((L10-F15)/(F16-F15))) -> 141.3065476

Sheet 2007_13
A1: Date/Time | B1: Air Temperature (deg C) | C1: 21-cm subsurface drain temp., unedited (°C) | D1: 21-cm subsurface drain temp. (°C) | E1: 21-cm subsurface drain SC, unedited (mS/cm) | F1: 21-cm subsurface drain SC (mS/cm) | G1: Precip (inch) | H1: Cumulative Precip (inch) | I1: Gage height (feet), relative | J1: SCEO (mS/cm) | K1: SC50 (mS/cm) | L1: SC90 (mS/cm) | M1: tS | N1: tEO | O1: tEM | P1: t50 | Q1: t90 | R1: Time (minutes)
A2: 2007-06-21T15:30:00 | B2: 26.84 | C2: 14.42 | D2: 14.42 | E2: 635.3 | F2: 635.3 | G2: 0 | I2: 4.39
A3: 2007-06-21T15:45:00 | B3: 22.34 | C3: 14.42 | D3: 14.42 | E3: 635.4 | F3: 635.4
A4: 2007-06-21T16:00:00 | B4: 21.12 | C4: 14.42 | D4: 14.42 | E4: 635.7 | F4: 635.7 | G4: 0.11 | H4: =SUM(G4) -> 0.11 | I4: 4.39 | M4: X | R4: 0
A5: 2007-06-21T16:15:00 | B5: 21.58 | C5: 14.43 | D5: 14.43 | E5: 635.4 | F5: 635.4 | R5: =R4+15 -> 15
A6: 2007-06-21T16:30:00 | B6: 21.52 | C6: 14.43 | D6: 14.43 | E6: 634.7 | F6: 634.7 | G6: 0 | I6: 4.38 | R6: =R5+15 -> 30
A7: 2007-06-21T16:45:00 | B7: 21.54 | C7: 14.43 | D7: 14.43 | E7: 640.1 | F7: 640.1 | R7: 45
A8: 2007-06-21T17:00:00 | B8: 21.69 | C8: 14.48 | D8: 14.48 | E8: 641.7 | F8: 641.7 | G8: 0 | I8: 4.38 | R8: 60
A9: 2007-06-21T17:15:00 | B9: 21.99 | C9: 14.5 | D9: 14.5 | E9: 643.4 | F9: 643.4 | J9: =AVERAGE(F2:F9) -> 637.7125 | K9: =F10+((J9-F10)*0.5) -> 594.90625 | L9: =F10+((J9-F10)*0.9) -> 629.15125 | R9: 75
A10: 2007-06-21T17:30:00 | B10: 22.11 | C10: 14.49 | D10: 14.49 | E10: 552.1 | F10: 552.1 | G10: 0 | I10: 4.38 | N10: X | O10: X | R10: 90
A11: 2007-06-21T17:45:00 | B11: 22.16 | C11: 14.49 | D11: 14.49 | E11: 557.8 | F11: 557.8 | R11: 105
A12: 2007-06-21T18:00:00 | B12: 22.07 | C12: 14.52 | D12: 14.52 | E12: 579.4 | F12: 579.4 | G12: 0 | I12: 4.38 | R12: 120
A13: 2007-06-21T18:15:00 | B13: 22.1 | C13: 14.51 | D13: 14.51 | E13: 597.2 | F13: 597.2 | P13: X | R13: =R12+(15*((K9-F12)/(F13-F12))) -> 133.0670646
A14: 2007-06-21T18:30:00 | B14: 22.48 | C14: 14.5 | D14: 14.5 | E14: 615.3 | F14: 615.3 | G14: 0 | I14: 4.38 | R14: =R12+30 -> 150
A15: 2007-06-21T18:45:00 | B15: 23.1 | C15: 14.5 | D15: 14.5 | E15: 626.9 | F15: 626.9 | R15: =R14+15 -> 165
A16: 2007-06-21T19:00:00 | B16: 22.84 | C16: 14.49 | D16: 14.49 | E16: 632.4 | F16: 632.4 | G16: 0 | I16: 4.39 | Q16: X | R16: =R15+(15*((L9-F15)/(F16-F15))) -> 171.1397727

Sheet 2007_14
A1: Date/Time | B1: Air Temperature (deg C) | C1: 21-cm subsurface drain temp., unedited (°C) | D1: 21-cm subsurface drain temp. (°C) | E1: 21-cm subsurface drain SC, unedited (mS/cm) | F1: 21-cm subsurface drain SC (mS/cm) | G1: Precip (inch) | H1: Cumulative Precip (inch) | I1: Gage height (feet), relative | J1: SCEO (mS/cm) | K1: SC50 (mS/cm) | L1: SC90 (mS/cm) | M1: tS | N1: tEO | O1: tEM | P1: t50 | Q1: t90 | R1: Time (minutes)
A2: 2007-06-22T02:00:00 | B2: 20.69 | C2: 14.5 | D2: 14.5 | E2: 634.2 | F2: 634.2 | G2: 0 | I2: 4.39
A3: 2007-06-22T02:15:00 | B3: 20.33 | C3: 14.51 | D3: 14.51 | E3: 634.9 | F3: 634.9
A4: 2007-06-22T02:30:00 | B4: 19.73 | C4: 14.51 | D4: 14.51 | E4: 634.3 | F4: 634.3 | G4: 0.06 | I4: 4.42 | M4: X | R4: 0
A5: 2007-06-22T02:45:00 | B5: 19.74 | C5: 14.51 | D5: 14.51 | E5: 634.1 | F5: 634.1 | R5: =R4+15 -> 15
A6: 2007-06-22T03:00:00 | B6: 19.15 | C6: 14.51 | D6: 14.51 | E6: 630.5 | F6: 630.5 | G6: 0.08 | I6: 4.42 | R6: =R5+15 -> 30
A7: 2007-06-22T03:15:00 | B7: 18.62 | C7: 14.75 | D7: 14.75 | E7: 642.3 | F7: 642.3 | R7: 45
A8: 2007-06-22T03:30:00 | B8: 18.69 | C8: 15.7 | D8: 15.7 | E8: 653.2 | F8: 653.2 | G8: 0.05 | I8: 4.43 | R8: 60
A9: 2007-06-22T03:45:00 | B9: 18.39 | C9: 15.69 | D9: 15.69 | E9: 656 | F9: 656 | J9: =AVERAGE(F2:F9) -> 639.9375 | K9: =F12+((J9-F12)*0.5) -> 471.26875 | L9: =F12+((J9-F12)*0.85) -> 589.336875 | R9: 75
A10: 2007-06-22T04:00:00 | B10: 18.11 | C10: 16.19 | D10: 16.19 | E10: 556.9 | F10: 556.9 | G10: 0.05 | I10: 4.54 | N10: X | R10: 90
A11: 2007-06-22T04:15:00 | B11: 17.64 | C11: 15.9 | D11: 15.9 | E11: 468.2 | F11: 468.2 | R11: 105
A12: 2007-06-22T04:30:00 | B12: 17.86 | C12: 16.13 | D12: 16.13 | E12: 302.6 | F12: 302.6 | G12: 0.09 | I12: 4.86 | O12: X | R12: 120
A13: 2007-06-22T04:45:00 | B13: 17.79 | C13: 16.09 | D13: 16.09 | E13: 317.3 | F13: 317.3 | R13: 135
A14: 2007-06-22T05:00:00 | B14: 17.77 | C14: 15.98 | D14: 15.98 | E14: 337.6 | F14: 337.6 | G14: 0.07 | I14: 4.98 | R14: 150
A15: 2007-06-22T05:15:00 | B15: 17.76 | C15: 15.97 | D15: 15.97 | E15: 365.4 | F15: 365.4 | R15: 165
A16: 2007-06-22T05:30:00 | B16: 17.81 | C16: 15.96 | D16: 15.96 | E16: 384 | F16: 384 | G16: 0.04 | I16: 5.2 | R16: 180
A17: 2007-06-22T05:45:00 | B17: 17.99 | C17: 15.96 | D17: 15.96 | E17: 391.5 | F17: 391.5 | R17: 195
A18: 2007-06-22T06:00:00 | B18: 18.21 | C18: 15.97 | D18: 15.97 | E18: 394.2 | F18: 394.2 | G18: 0.03 | I18: 5.47 | R18: 210
A19: 2007-06-22T06:15:00 | B19: 18.41 | C19: 15.98 | D19: 15.98 | E19: 394.2 | F19: 394.2 | R19: 225
A20: 2007-06-22T06:30:00 | B20: 18.44 | C20: 16.01 | D20: 16.01 | E20: 393.6 | F20: 393.6 | G20: 0.01 | I20: 5.7 | R20: 240
A21: 2007-06-22T06:45:00 | B21: 18.59 | C21: 16.04 | D21: 16.04 | E21: 392.3 | F21: 392.3 | R21: 255
A22: 2007-06-22T07:00:00 | B22: 18.94 | C22: 16.08 | D22: 16.08 | E22: 390.2 | F22: 390.2 | G22: 0.01 | I22: 5.88 | R22: 270
A23: 2007-06-22T07:15:00 | B23: 19.13 | C23: 16.12 | D23: 16.12 | E23: 387.7 | F23: 387.7 | R23: 285
A24: 2007-06-22T07:30:00 | B24: 19.36 | C24: 16.16 | D24: 16.16 | E24: 385.4 | F24: 385.4 | G24: 0.01 | H24: =SUM(G4:G24) -> 0.5 | I24: 5.98 | R24: 300
A25: 2007-06-22T07:45:00 | B25: 19.47 | C25: 16.22 | D25: 16.22 | E25: 382 | F25: 382 | R25: 315
A26: 2007-06-22T08:00:00 | B26: 19.6 | C26: 16.28 | D26: 16.28 | E26: 379.8 | F26: 379.8 | G26: 0 | I26: 5.99 | R26: 330
A27: 2007-06-22T08:15:00 | B27: 19.66 | C27: 16.35 | D27: 16.35 | E27: 376 | F27: 376 | R27: 345
A28: 2007-06-22T08:30:00 | B28: 19.91 | C28: 16.42 | D28: 16.42 | E28: 374 | F28: 374 | G28: 0 | I28: 5.98 | R28: 360
A29: 2007-06-22T08:45:00 | B29: 20.08 | C29: 16.48 | D29: 16.48 | E29: 374.6 | F29: 374.6 | R29: 375
A30: 2007-06-22T09:00:00 | B30: 21 | C30: 16.55 | D30: 16.55 | E30: 372.5 | F30: 372.5 | G30: 0 | I30: 5.95 | R30: 390
A31: 2007-06-22T09:15:00 | B31: 21 | C31: 16.62 | D31: 16.62 | E31: 371.6 | F31: 371.6 | R31: 405
A32: 2007-06-22T09:30:00 | B32: 21.16 | C32: 16.7 | D32: 16.7 | E32: 371.6 | F32: 371.6 | G32: 0 | I32: 5.87 | R32: 420
A33: 2007-06-22T09:45:00 | B33: 21.43 | C33: 16.81 | D33: 16.81 | E33: 373.3 | F33: 373.3 | R33: 435
A34: 2007-06-22T10:00:00 | B34: 21.78 | C34: 16.93 | D34: 16.93 | E34: 375.2 | F34: 375.2 | G34: 0 | I34: 5.84 | R34: 450
A35: 2007-06-22T10:15:00 | B35: 22.12 | C35: 17.01 | D35: 17.01 | E35: 377.8 | F35: 377.8 | R35: 465
A36: 2007-06-22T10:30:00 | B36: 22.34 | C36: 17.07 | D36: 17.07 | E36: 380.7 | F36: 380.7 | G36: 0 | I36: 5.77 | R36: 480
A37: 2007-06-22T10:45:00 | B37: 22.2 | C37: 17.12 | D37: 17.12 | E37: 399 | F37: 399 | R37: 495
A38: 2007-06-22T11:00:00 | B38: 22.17 | C38: 16.74 | D38: 16.74 | E38: 475.2 | F38: 475.2 | G38: 0 | I38: 5.75 | P38: X | R38: =R37+(15*((K9-F37)/(F38-F37))) -> 509.2261319
A39: 2007-06-22T11:15:00 | B39: 22.32 | C39: 16.5 | D39: 16.5 | E39: 496.8 | F39: 496.8 | R39: =R37+30 -> 525
A40: 2007-06-22T11:30:00 | B40: 22.64 | C40: 16.41 | D40: 16.41 | E40: 501.3 | F40: 501.3 | G40: 0 | I40: 5.69 | R40: =R39+15 -> 540
A41: 2007-06-22T11:45:00 | B41: 22.75 | C41: 16.42 | D41: 16.42 | E41: 500.8 | F41: 500.8 | R41: =R40+15 -> 555
A42: 2007-06-22T12:00:00 | B42: 22.22 | C42: 16.45 | D42: 16.45 | E42: 498.2 | F42: 498.2 | G42: 0 | I42: 5.67 | R42: 570
A43: 2007-06-22T12:15:00 | B43: 22.11 | C43: 16.5 | D43: 16.5 | E43: 491.5 | F43: 491.5 | R43: 585
A44: 2007-06-22T12:30:00 | B44: 22.48 | C44: 16.58 | D44: 16.58 | E44: 485.9 | F44: 485.9 | G44: 0.01 | I44: 5.64 | R44: 600
A45: 2007-06-22T12:45:00 | B45: 22.22 | C45: 16.63 | D45: 16.63 | E45: 482 | F45: 482 | R45: 615
A46: 2007-06-22T13:00:00 | B46: 21.64 | C46: 16.69 | D46: 16.69 | E46: 478 | F46: 478 | G46: 0 | I46: 5.62 | R46: 630
A47: 2007-06-22T13:15:00 | B47: 20.37 | C47: 16.75 | D47: 16.75 | E47: 474 | F47: 474 | R47: 645
A48: 2007-06-22T13:30:00 | B48: 19.57 | C48: 16.79 | D48: 16.79 | E48: 469.7 | F48: 469.7 | G48: 0 | I48: 5.59 | R48: 660
A49: 2007-06-22T13:45:00 | B49: 19.25 | C49: 16.8 | D49: 16.8 | E49: 472.1 | F49: 472.1 | R49: 675
A50: 2007-06-22T14:00:00 | B50: 19.09 | C50: 16.52 | D50: 16.52 | E50: 532.3 | F50: 532.3 | G50: 0 | I50: 5.57 | R50: 690
A51: 2007-06-22T14:15:00 | B51: 18.91 | C51: 16.89 | D51: 16.89 | E51: 583.3 | F51: 583.3 | R51: 705

Sheet 2007_15
A1: Date/Time | B1: Air Temperature (deg C) | C1: 21-cm subsurface drain temp., unedited (°C) | D1: 21-cm subsurface drain temp. (°C) | E1: 21-cm subsurface drain SC, unedited (mS/cm) | F1: 21-cm subsurface drain SC (mS/cm) | G1: Precip (inch) | H1: Cumulative Precip (inch) | I1: Gage height (feet), relative | J1: SCEO (mS/cm) | K1: SC50 (mS/cm) | L1: SC90 (mS/cm) | M1: tS | N1: tEO | O1: tEM | P1: t50 | Q1: t90 | R1: Time (minutes)
A2: 2007-07-09T02:00:00 | B2: 21.59 | C2: 16.26 | D2: 16.26 | E2: 622.5 | F2: 622.5 | G2: 0.03 | I2: 4.01 | M2: X | R2: 0
A3: 2007-07-09T02:15:00 | B3: 21.76 | C3: 16.26 | D3: 16.26 | E3: 623.6 | F3: 623.6 | R3: =R2+15 -> 15
A4: 2007-07-09T02:30:00 | B4: 21.72 | C4: 16.26 | D4: 16.26 | E4: 624 | F4: 624 | G4: 0.01 | I4: 4 | R4: =R3+15 -> 30
A5: 2007-07-09T02:45:00 | B5: 21.39 | C5: 16.26 | D5: 16.26 | E5: 623.4 | F5: 623.4 | R5: 45
A6: 2007-07-09T03:00:00 | B6: 21.3 | C6: 16.23 | D6: 16.23 | E6: 625 | F6: 625 | G6: 0 | I6: 4 | R6: 60
A7: 2007-07-09T03:15:00 | B7: 21.23 | C7: 16.21 | D7: 16.21 | E7: 633.7 | F7: 633.7 | R7: 75
A8: 2007-07-09T03:30:00 | B8: 21.22 | C8: 16.25 | D8: 16.25 | E8: 637 | F8: 637 | G8: 0.01 | I8: 4 | R8: 90
A9: 2007-07-09T03:45:00 | B9: 21.2 | C9: 16.29 | D9: 16.29 | E9: 627.8 | F9: 627.8 | R9: 105
A10: 2007-07-09T04:00:00 | B10: 21.17 | C10: 16.29 | D10: 16.29 | E10: 630.6 | F10: 630.6 | G10: 0 | I10: 4 | J10: =AVERAGE(F3:F10) -> 628.1375 | K10: =F12+((J10-F12)*0.5) -> 595.36875 | L10: =F12+((J10-F12)*0.9) -> 621.58375 | R10: 120
A11: 2007-07-09T04:15:00 | B11: 21.08 | C11: 16.29 | D11: 16.29 | E11: 602.3 | F11: 602.3 | N11: X | R11: 135
A12: 2007-07-09T04:30:00 | B12: 20.95 | C12: 16.29 | D12: 16.29 | E12: 562.6 | F12: 562.6 | G12: 0.01 | I12: 4 | O12: X | R12: 150
A13: 2007-07-09T04:45:00 | B13: 20.92 | C13: 16.29 | D13: 16.29 | E13: 568.7 | F13: 568.7 | R13: 165
A14: 2007-07-09T05:00:00 | B14: 20.72 | C14: 16.3 | D14: 16.3 | E14: 579.5 | F14: 579.5 | G14: 0 | I14: 4 | R14: =R13+15 -> 180
A15: 2007-07-09T05:15:00 | B15: 20.6 | C15: 16.29 | D15: 16.29 | E15: 588.5 | F15: 588.5 | R15: =R14+15 -> 195
A16: 2007-07-09T05:30:00 | B16: 20.58 | C16: 16.3 | D16: 16.3 | E16: 589.8 | F16: 589.8 | G16: 0 | I16: 4 | R16: 210
A17: 2007-07-09T05:45:00 | B17: 20.53 | C17: 16.3 | D17: 16.3 | E17: 594.1 | F17: 594.1 | R17: 225
A18: 2007-07-09T06:00:00 | B18: 20.62 | C18: 16.3 | D18: 16.3 | E18: 598.3 | F18: 598.3 | G18: 0 | I18: 4 | P18: X | R18: =R17+(15*((K10-F17)/(F18-F17))) -> 229.53125
A19: 2007-07-09T06:15:00 | B19: 20.73 | C19: 16.3 | D19: 16.3 | E19: 602.8 | F19: 602.8 | R19: =R17+30 -> 255
A20: 2007-07-09T06:30:00 | B20: 20.81 | C20: 16.3 | D20: 16.3 | E20: 605.3 | F20: 605.3 | G20: 0.01 | H20: =SUM(G2:G20) -> 0.07 | I20: 4 | R20: =R19+15 -> 270
A21: 2007-07-09T06:45:00 | B21: 20.99 | C21: 16.3 | D21: 16.3 | E21: 607 | F21: 607 | R21: =R20+15 -> 285
A22: 2007-07-09T07:00:00 | B22: 21.21 | C22: 16.3 | D22: 16.3 | E22: 610.7 | F22: 610.7 | G22: 0 | I22: 4 | R22: 300
A23: 2007-07-09T07:15:00 | B23: 21.49 | C23: 16.31 | D23: 16.31 | E23: 615.1 | F23: 615.1 | R23: 315
A24: 2007-07-09T07:30:00 | B24: 21.88 | C24: 16.31 | D24: 16.31 | E24: 617.3 | F24: 617.3 | G24: 0 | I24: 4 | R24: 330
A25: 2007-07-09T07:45:00 | B25: 22.33 | C25: 16.31 | D25: 16.31 | E25: 617.5 | F25: 617.5 | R25: 345
A26: 2007-07-09T08:00:00 | B26: 23.6 | C26: 16.31 | D26: 16.31 | E26: 617.4 | F26: 617.4 | G26: 0 | I26: 3.99 | R26: 360
A27: 2007-07-09T08:15:00 | B27: 24.02 | C27: 16.31 | D27: 16.31 | E27: 617.7 | F27: 617.7 | R27: 375
A28: 2007-07-09T08:30:00 | B28: 23.4 | C28: 16.31 | D28: 16.31 | E28: 615.9 | F28: 615.9 | G28: 0 | I28: 3.99 | R28: 390
A29: 2007-07-09T08:45:00 | B29: 23.58 | C29: 16.31 | D29: 16.31 | E29: 618.2 | F29: 618.2 | R29: 405
A30: 2007-07-09T09:00:00 | B30: 23.09 | C30: 16.31 | D30: 16.31 | E30: 621.2 | F30: 621.2 | G30: 0.01 | I30: 3.99 | R30: 420
A31: 2007-07-09T09:15:00 | B31: 23.07 | C31: 16.32 | D31: 16.32 | E31: 624 | F31: 624 | Q31: X | R31: =R30+(15*((L10-F30)/(F31-F30))) -> 422.0558036

Sheet 2007_16
A1: Date/Time | B1: Air Temperature (deg C) | C1: 21-cm subsurface drain temp., unedited (°C) | D1: 21-cm subsurface drain temp. (°C) | E1: 21-cm subsurface drain SC, unedited (mS/cm) | F1: 21-cm subsurface drain SC (mS/cm) | G1: Precip (inch) | H1: Cumulative Precip (inch) | I1: Gage height (feet), relative | J1: SCEO (mS/cm) | K1: SC50 (mS/cm) | L1: SC90 (mS/cm) | M1: tS | N1: tEO | O1: tEM | P1: t50 | Q1: t90 | R1: Time (minutes)
A2: 2007-07-18T14:30:00 | B2: 31.95 | C2: 17.32 | D2: 17.32 | E2: 665 | F2: 665 | G2: 0.03 | I2: 3.72 | M2: X | R2: 0
A3: 2007-07-18T14:45:00 | B3: 31.66 | C3: 17.3 | D3: 17.3 | E3: 664.7 | F3: 664.7 | R3: =R2+15 -> 15
A4: 2007-07-18T15:00:00 | B4: 30.75 | C4: 17.28 | D4: 17.28 | E4: 665.8 | F4: 665.8 | G4: 0 | I4: 3.72 | R4: =R3+15 -> 30
A5: 2007-07-18T15:15:00 | B5: 29.43 | C5: 17.25 | D5: 17.25 | E5: 665.8 | F5: 665.8 | R5: 45
A6: 2007-07-18T15:30:00 | B6: 28.65 | C6: 17.24 | D6: 17.24 | E6: 665.5 | F6: 665.5 | G6: 0 | I6: 3.72 | R6: 60
A7: 2007-07-18T15:45:00 | B7: 27.82 | C7: 17.22 | D7: 17.22 | E7: 665.8 | F7: 665.8 | R7: 75
A8: 2007-07-18T16:00:00 | B8: 26.85 | C8: 17.22 | D8: 17.22 | E8: 665.5 | F8: 665.5 | G8: 0.02 | I8: 3.72 | R8: 90
A9: 2007-07-18T16:15:00 | B9: 25.23 | C9: 17.27 | D9: 17.27 | E9: 664.8 | F9: 664.8 | R9: 105
A10: 2007-07-18T16:30:00 | B10: 20.95 | C10: 17.3 | D10: 17.3 | E10: 663.9 | F10: 663.9 | G10: 0.51 | I10: 3.76 | R10: 120
A11: 2007-07-18T16:45:00 | B11: 20.69 | C11: 17.23 | D11: 17.23 | E11: 666.7 | F11: 666.7 | R11: 135
A12: 2007-07-18T17:00:00 | B12: 20.36 | C12: 17.18 | D12: 17.18 | E12: 667.7 | F12: 667.7 | G12: 0.11 | I12: 3.78 | J12: =AVERAGE(F5:F12) -> 665.7125 | K12: =F14+((J12-F14)*0.5) -> 449.90625 | L12: =F14+((J12-F14)*0.9) -> 622.55125 | R12: 150
A13: 2007-07-18T17:15:00 | B13: 20.45 | C13: 17.77 | D13: 17.77 | E13: 383.7 | F13: 383.7 | N13: X | R13: 165
A14: 2007-07-18T17:30:00 | B14: 20.51 | C14: 19.97 | D14: 19.97 | E14: 234.1 | F14: 234.1 | G14: 0 | I14: 3.78 | O14: X | R14: 180
A15: 2007-07-18T17:45:00 | B15: 20.58 | C15: 20.21 | D15: 20.21 | E15: 278 | F15: 278 | R15: 195
A16: 2007-07-18T18:00:00 | B16: 20.62 | C16: 19.89 | D16: 19.89 | E16: 334.4 | F16: 334.4 | G16: 0.01 | I16: 3.79 | R16: 210
A17: 2007-07-18T18:15:00 | B17: 20.69 | C17: 19.52 | D17: 19.52 | E17: 374.2 | F17: 374.2 | R17: 225
A18: 2007-07-18T18:30:00 | B18: 20.76 | C18: 19.2 | D18: 19.2 | E18: 406.4 | F18: 406.4 | G18: 0 | I18: 3.79 | R18: 240
A19: 2007-07-18T18:45:00 | B19: 20.85 | C19: 18.93 | D19: 18.93 | E19: 444.9 | F19: 444.9 | R19: 255
A20: 2007-07-18T19:00:00 | B20: 20.92 | C20: 18.73 | D20: 18.73 | E20: 463.3 | F20: 463.3 | G20: 0 | I20: 3.8 | P20: X | R20: =R19+(15*((K12-F19)/(F20-F19))) -> 259.0811821
A21: 2007-07-18T19:15:00 | B21: 21.04 | C21: 18.56 | D21: 18.56 | E21: 482.3 | F21: 482.3 | R21: =R19+30 -> 285
A22: 2007-07-18T19:30:00 | B22: 21.14 | C22: 18.42 | D22: 18.42 | E22: 511.7 | F22: 511.7 | G22: 0 | I22: 3.8 | R22: =R21+15 -> 300
A23: 2007-07-18T19:45:00 | B23: 21.09 | C23: 18.3 | D23: 18.3 | E23: 542.7 | F23: 542.7 | R23: =R22+15 -> 315
A24: 2007-07-18T20:00:00 | B24: 20.96 | C24: 18.2 | D24: 18.2 | E24: 567.8 | F24: 567.8 | G24: 0.02 | H24: =SUM(G2:G24) -> 0.7 | I24: 3.82 | R24: 330
A25: 2007-07-18T20:15:00 | B25: 20.77 | C25: 18.12 | D25: 18.12 | E25: 584 | F25: 584 | R25: 345
A26: 2007-07-18T20:30:00 | B26: 20.74 | C26: 18.04 | D26: 18.04 | E26: 597.3 | F26: 597.3 | G26: 0 | I26: 3.82 | R26: 360
A27: 2007-07-18T20:45:00 | B27: 20.81 | C27: 17.97 | D27: 17.97 | E27: 606.8 | F27: 606.8 | R27: 375
A28: 2007-07-18T21:00:00 | B28: 20.83 | C28: 17.91 | D28: 17.91 | E28: 612.4 | F28: 612.4 | G28: 0 | I28: 3.83 | R28: 390
A29: 2007-07-18T21:15:00 | B29: 20.85 | C29: 17.86 | D29: 17.86 | E29: 616.5 | F29: 616.5 | R29: 405
A30: 2007-07-18T21:30:00 | B30: 20.73 | C30: 17.82 | D30: 17.82 | E30: 620.5 | F30: 620.5 | G30: 0 | I30: 3.82 | R30: 420
A31: 2007-07-18T21:45:00 | B31: 20.53 | C31: 17.78 | D31: 17.78 | E31: 626.8 | F31: 626.8 | Q31: X | R31: =R30+(15*((L12-F30)/(F31-F30))) -> 424.8839286
A32: 2007-07-18T22:00:00 | B32: 20.37 | C32: 17.75 | D32: 17.75 | E32: 631.2 | F32: 631.2 | G32: 0 | I32: 3.82
A33: 2007-07-18T22:15:00 | B33: 20.3 | C33: 17.72 | D33: 17.72 | E33: 633.8 | F33: 633.8
A34: 2007-07-18T22:30:00 | B34: 20.52 | C34: 17.69 | D34: 17.69 | E34: 635.1 | F34: 635.1 | G34: 0 | I34: 3.82

Sheet 2007_17
A1: Date/Time | B1: Air Temperature (deg C) | C1: 21-cm subsurface drain temp., unedited (°C) | D1: 21-cm subsurface drain temp. (°C) | E1: 21-cm subsurface drain SC, unedited (mS/cm) | F1: 21-cm subsurface drain SC (mS/cm) | G1: Precip (inch) | H1: Cumulative Precip (inch) | I1: Gage height (feet), relative | J1: SCEO (mS/cm) | K1: SC50 (mS/cm) | L1: SC90 (mS/cm) | M1: tS | N1: tEO | O1: tEM | P1: t50 | Q1: t90 | R1: Time (minutes)
A2: 2007-07-26T19:00:00 | B2: 26.92 | C2: 17.85 | D2: 17.85 | E2: 690.1 | F2: 690.1 | G2: 0 | I2: 3.63
A3: 2007-07-26T19:15:00 | B3: 26.51 | C3: 17.85 | D3: 17.85 | E3: 690.3 | F3: 690.3
A4: 2007-07-26T19:30:00 | B4: 26.02 | C4: 17.85 | D4: 17.85 | E4: 690.3 | F4: 690.3 | G4: 0.01 | I4: 3.64 | M4: X | R4: 0
A5: 2007-07-26T19:45:00 | B5: 25.12 | C5: 17.85 | D5: 17.85 | E5: 690.2 | F5: 690.2 | R5: =R4+15 -> 15
A6: 2007-07-26T20:00:00 | B6: 24.9 | C6: 17.85 | D6: 17.85 | E6: 689.9 | F6: 689.9 | G6: 0.02 | I6: 3.64 | R6: =R5+15 -> 30
A7: 2007-07-26T20:15:00 | B7: 24.81 | C7: 17.86 | D7: 17.86 | E7: 690.1 | F7: 690.1 | R7: 45
A8: 2007-07-26T20:30:00 | B8: 21.22 | C8: 17.86 | D8: 17.86 | E8: 690.2 | F8: 690.2 | G8: 0.31 | I8: 3.66 | R8: 60
A9: 2007-07-26T20:45:00 | B9: 20.05 | C9: 17.85 | D9: 17.85 | E9: 690.8 | F9: 690.8 | R9: 75
A10: 2007-07-26T21:00:00 | B10: 20.04 | C10: 17.85 | D10: 17.85 | E10: 691.2 | F10: 691.2 | G10: 0.14 | I10: 3.68 | J10: =AVERAGE(F3:F10) -> 690.375 | K10: =F13+((J10-F13)*0.5) -> 521.8375 | L10: =F13+((J10-F13)*0.9) -> 656.6675 | R10: 90
A11: 2007-07-26T21:15:00 | B11: 20.41 | C11: 17.59 | D11: 17.59 | E11: 644.2 | F11: 644.2 | N11: X | R11: 105
A12: 2007-07-26T21:30:00 | B12: 20.56 | C12: 18.38 | D12: 18.38 | E12: 362.4 | F12: 362.4 | G12: 0.09 | I12: 3.69 | R12: 120
A13: 2007-07-26T21:45:00 | B13: 20.63 | C13: 19.31 | D13: 19.31 | E13: 353.3 | F13: 353.3 | O13: X | R13: 135
A14: 2007-07-26T22:00:00 | B14: 20.69 | C14: 19.26 | D14: 19.26 | E14: 382 | F14: 382 | G14: 0.1 | I14: 3.71 | R14: 150
A15: 2007-07-26T22:15:00 | B15: 20.63 | C15: 19.07 | D15: 19.07 | E15: 405.2 | F15: 405.2 | R15: 165
A16: 2007-07-26T22:30:00 | B16: 20.55 | C16: 19.11 | D16: 19.11 | E16: 496.6 | F16: 496.6 | G16: 0.04 | I16: 3.72 | R16: 180
A17: 2007-07-26T22:45:00 | B17: 20.56 | C17: 19.36 | D17: 19.36 | E17: 555 | F17: 555 | R17: =R16+(15*((K10-F16)/(F17-F16))) -> 186.4822346
A18: 2007-07-26T23:00:00 | B18: 20.55 | C18: 19.6 | D18: 19.6 | E18: 509.7 | F18: 509.7 | G18: 0.01 | H18: =SUM(G4:G18) -> 0.72 | I18: 3.72 | R18: =R16+30 -> 210
A19: 2007-07-26T23:15:00 | B19: 20.61 | C19: 19.62 | D19: 19.62 | E19: 475.6 | F19: 475.6 | R19: =R18+15 -> 225
A20: 2007-07-26T23:30:00 | B20: 20.7 | C20: 19.51 | D20: 19.51 | E20: 483.6 | F20: 483.6 | G20: 0 | I20: 3.73 | R20: =R19+15 -> 240
A21: 2007-07-26T23:45:00 | B21: 20.82 | C21: 19.35 | D21: 19.35 | E21: 480.7 | F21: 480.7 | R21: 255
A22: 2007-07-27 | B22: 21.07 | C22: 19.18 | D22: 19.18 | E22: 488.9 | F22: 488.9 | G22: 0 | I22: 3.72 | R22: 270
A23: 2007-07-27T00:15:00 | B23: 21.29 | C23: 19.04 | D23: 19.04 | E23: 511.6 | F23: 511.6 | R23: 285
A24: 2007-07-27T00:30:00 | B24: 21.43 | C24: 18.93 | D24: 18.93 | E24: 530.2 | F24: 530.2 | G24: 0 | I24: 3.72 | P24: X | R24: =R23+(15*((K10-F23)/(F24-F23))) -> 293.2560484
A25: 2007-07-27T00:45:00 | B25: 21.66 | C25: 18.84 | D25: 18.84 | E25: 563.6 | F25: 563.6 | R25: =R23+30 -> 315
A26: 2007-07-27T01:00:00 | B26: 21.72 | C26: 18.76 | D26: 18.76 | E26: 592 | F26: 592 | G26: 0 | I26: 3.73 | R26: =R25+15 -> 330
A27: 2007-07-27T01:15:00 | B27: 21.63 | C27: 18.69 | D27: 18.69 | E27: 612.6 | F27: 612.6 | R27: =R26+15 -> 345
A28: 2007-07-27T01:30:00 | B28: 21.64 | C28: 18.63 | D28: 18.63 | E28: 616.5 | F28: 616.5 | G28: 0 | I28: 3.73 | R28: 360
A29: 2007-07-27T01:45:00 | B29: 21.74 | C29: 18.59 | D29: 18.59 | E29: 629.2 | F29: 629.2 | R29: 375
A30: 2007-07-27T02:00:00 | B30: 21.79 | C30: 18.56 | D30: 18.56 | E30: 630.1 | F30: 630.1 | G30: 0 | I30: 3.73 | R30: 390
A31: 2007-07-27T02:15:00 | B31: 21.81 | C31: 18.53 | D31: 18.53 | E31: 631.5 | F31: 631.5 | R31: 405
A32: 2007-07-27T02:30:00 | B32: 21.77 | C32: 18.5 | D32: 18.5 | E32: 646.6 | F32: 646.6 | G32: 0 | I32: 3.73 | R32: 420
A33: 2007-07-27T02:45:00 | B33: 21.75 | C33: 18.48 | D33: 18.48 | E33: 654.9 | F33: 654.9 | R33: 435
A34: 2007-07-27T03:00:00 | B34: 21.7 | C34: 18.46 | D34: 18.46 | E34: 662.6 | F34: 662.6 | G34: 0 | I34: 3.73 | Q34: X | R34: =R33+(15*((L10-F33)/(F34-F33))) -> 438.4431818
A35: 2007-07-27T03:15:00 | B35: 21.69 | C35: 18.44 | D35: 18.44 | E35: 668.9 | F35: 668.9
A36: 2007-07-27T03:30:00 | B36: 21.67 | C36: 18.43 | D36: 18.43 | E36: 674.2 | F36: 674.2 | G36: 0 | I36: 3.73

Sheet 2007_18
A1: Date/Time | B1: Air Temperature (deg C) | C1: 21-cm subsurface drain temp., unedited (°C) | D1: 21-cm subsurface drain temp. (°C) | E1: 21-cm subsurface drain SC, unedited (mS/cm) | F1: 21-cm subsurface drain SC (mS/cm) | G1: Precip (inch) | H1: Cumulative Precip (inch) | I1: Gage height (feet), relative | J1: SCEO (mS/cm) | K1: SC50 (mS/cm) | L1: SC90 (mS/cm) | M1: tS | N1: tEO | O1: tEM | P1: t50 | Q1: t90 | R1: Time (minutes)
A2: 2007-08-04T06:00:00 | B2: 18.5 | C2: 18.57 | D2: 18.57 | E2: 730 | F2: 730 | G2: 0 | I2: 3.6
A3: 2007-08-04T06:15:00 | B3: 18.58 | C3: 18.58 | D3: 18.58 | E3: 729 | F3: 729
A4: 2007-08-04T06:30:00 | B4: 18.25 | C4: 18.57 | D4: 18.57 | E4: 730 | F4: 730 | G4: 0.02 | I4: 3.61 | M4: X | R4: 0
A5: 2007-08-04T06:45:00 | B5: 17.95 | C5: 18.58 | D5: 18.58 | E5: 730 | F5: 730 | R5: =R4+15 -> 15
A6: 2007-08-04T07:00:00 | B6: 17.77 | C6: 18.59 | D6: 18.59 | E6: 732 | F6: 732 | G6: 0.05 | I6: 3.61 | R6: =R5+15 -> 30
A7: 2007-08-04T07:15:00 | B7: 17.4 | C7: 18.58 | D7: 18.58 | E7: 734 | F7: 734 | R7: 45
A8: 2007-08-04T07:30:00 | B8: 17.14 | C8: 18.58 | D8: 18.58 | E8: 733 | F8: 733 | G8: 0.2 | I8: 3.64 | R8: 60
A9: 2007-08-04T07:45:00 | B9: 17.07 | C9: 18.59 | D9: 18.59 | E9: 732 | F9: 732 | J9: =AVERAGE(F2:F9) -> 731.25 | K9: =F18+((J9-F18)*0.5) -> 449.375 | L9: =F18+((J9-F18)*0.9) -> 674.875 | R9: 75
A10: 2007-08-04T08:00:00 | B10: 16.91 | C10: 17.97 | D10: 17.97 | E10: 627.4 | F10: 627.4 | G10: 0.22 | I10: 3.65 | N10: X | R10: 90
A11: 2007-08-04T08:15:00 | B11: 16.93 | C11: 17.98 | D11: 17.98 | E11: 395.8 | F11: 395.8 | R11: 105
A12: 2007-08-04T08:30:00 | B12: 16.95 | C12: 18.2 | D12: 18.2 | E12: 353.2 | F12: 353.2 | G12: 0.17 | I12: 3.67 | R12: 120
A13: 2007-08-04T08:45:00 | B13: 16.97 | C13: 18.35 | D13: 18.35 | E13: 370.8 | F13: 370.8 | R13: 135
A14: 2007-08-04T09:00:00 | B14: 16.9 | C14: 18.43 | D14: 18.43 | E14: 354.6 | F14: 354.6 | G14: 0.15 | I14: 3.72 | R14: 150
A15: 2007-08-04T09:15:00 | B15: 16.84 | C15: 18.44 | D15: 18.44 | E15: 314.1 | F15: 314.1 | R15: 165
A16: 2007-08-04T09:30:00 | B16: 17.06 | C16: 18.48 | D16: 18.48 | E16: 302.3 | F16: 302.3 | G16: 0.21 | I16: 3.77 | R16: 180
A17: 2007-08-04T09:45:00 | B17: 17.12 | C17: 18.43 | D17: 18.43 | E17: 184.4 | F17: 184.4 | R17: 195
A18: 2007-08-04T10:00:00 | B18: 17.11 | C18: 18.25 | D18: 18.25 | E18: 167.5 | F18: 167.5 | G18: 0.22 | I18: 3.78 | O18: X | R18: 210
A19: 2007-08-04T10:15:00 | B19: 17.21 | C19: 18.27 | D19: 18.27 | E19: 301 | F19: 301 | R19: 225
A20: 2007-08-04T10:30:00 | B20: 17.41 | C20: 18.32 | D20: 18.32 | E20: 579.4 | F20: 579.4 | G20: 0.17 | I20: 3.79 | R20: =R19+(15*((K9-F19)/(F20-F19))) -> 232.9943427
A21: 2007-08-04T10:45:00 | B21: 17.83 | C21: 18.34 | D21: 18.34 | E21: 280.4 | F21: 280.4 | R21: =R19+30 -> 255
A22: 2007-08-04T11:00:00 | B22: 18 | C22: 18.35 | D22: 18.35 | E22: 280.7 | F22: 280.7 | G22: 0.09 | H22: =SUM(G4:G22) -> 1.5 | I22: 3.8 | R22: =R21+15 -> 270
A23: 2007-08-04T11:15:00 | B23: 18.28 | C23: 18.35 | D23: 18.35 | E23: 303.9 | F23: 303.9 | R23: =R22+15 -> 285
A24: 2007-08-04T11:30:00 | B24: 19.11 | C24: 18.35 | D24: 18.35 | E24: 323.1 | F24: 323.1 | G24: 0 | I24: 3.8 | R24: 300
A25: 2007-08-04T11:45:00 | B25: 19.24 | C25: 18.32 | D25: 18.32 | E25: 344.6 | F25: 344.6 | R25: 315
A26: 2007-08-04T12:00:00 | B26: 19.67 | C26: 18.31 | D26: 18.31 | E26: 400.8 | F26: 400.8 | G26: 0 | I26: 3.8 | R26: 330
A27: 2007-08-04T12:15:00 | B27: 19.77 | C27: 18.31 | D27: 18.31 | E27: 402.5 | F27: 402.5 | R27: 345
A28: 2007-08-04T12:30:00 | B28: 19.87 | C28: 18.31 | D28: 18.31 | E28: 401.2 | F28: 401.2 | G28: 0 | I28: 3.8 | R28: 360
A29: 2007-08-04T12:45:00 | B29: 20.17 | C29: 18.31 | D29: 18.31 | E29: 442.3 | F29: 442.3 | R29: 375
A30: 2007-08-04T13:00:00 | B30: 20.46 | C30: 18.32 | D30: 18.32 | E30: 495.2 | F30: 495.2 | G30: 0 | I30: 3.81 | P30: X | R30: =R29+(15*((K9-F29)/(F30-F29))) -> 377.0061437
A31: 2007-08-04T13:15:00 | B31: 20.51 | C31: 18.33 | D31: 18.33 | E31: 464.5 | F31: 464.5 | R31: =R29+30 -> 405
A32: 2007-08-04T13:30:00 | B32: 20.73 | C32: 18.33 | D32: 18.33 | E32: 471.4 | F32: 471.4 | G32: 0 | I32: 3.82 | R32: =R31+15 -> 420
A33: 2007-08-04T13:45:00 | B33: 20.92 | C33: 18.35 | D33: 18.35 | E33: 516.7 | F33: 516.7 | R33: =R32+15 -> 435
A34: 2007-08-04T14:00:00 | B34: 20.77 | C34: 18.36 | D34: 18.36 | E34: 541 | F34: 541 | G34: 0 | I34: 3.83 | R34: 450
A35: 2007-08-04T14:15:00 | B35: 21.16 | C35: 18.38 | D35: 18.38 | E35: 602 | F35: 602 | R35: 465
A36: 2007-08-04T14:30:00 | B36: 21.35 | C36: 18.39 | D36: 18.39 | E36: 636.6 | F36: 636.6 | G36: 0 | I36: 3.83 | R36: 480
A37: 2007-08-04T14:45:00 | B37: 21.57 | C37: 18.41 | D37: 18.41 | E37: 607.5 | F37: 607.5 | R37: 495
A38: 2007-08-04T15:00:00 | B38: 22.18 | C38: 18.43 | D38: 18.43 | E38: 576.4 | F38: 576.4 | G38: 0 | I38: 3.83 | R38: 510
A39: 2007-08-04T15:15:00 | B39: 22.48 | C39: 18.44 | D39: 18.44 | E39: 565.8 | F39: 565.8 | R39: 525
A40: 2007-08-04T15:30:00 | B40: 22.79 | C40: 18.45 | D40: 18.45 | E40: 570.7 | F40: 570.7 | G40: 0 | I40: 3.84 | R40: 540
A41: 2007-08-04T15:45:00 | B41: 23.34 | C41: 18.47 | D41: 18.47 | E41: 581.4 | F41: 581.4 | R41: 555
A42: 2007-08-04T16:00:00 | B42: 23.85 | C42: 18.47 | D42: 18.47 | E42: 593 | F42: 593 | G42: 0 | I42: 3.85 | R42: 570
A43: 2007-08-04T16:15:00 | B43: 24.02 | C43: 18.47 | D43: 18.47 | E43: 602.6 | F43: 602.6 | R43: 585
A44: 2007-08-04T16:30:00 | B44: 23.66 | C44: 18.48 | D44: 18.48 | E44: 616.1 | F44: 616.1 | G44: 0 | I44: 3.86 | R44: 600
A45: 2007-08-04T16:45:00 | B45: 23.75 | C45: 18.49 | D45: 18.49 | E45: 652.1 | F45: 652.1 | R45: 615
A46: 2007-08-04T17:00:00 | B46: 23.86 | C46: 18.5 | D46: 18.5 | E46: 653.8 | F46: 653.8 | G46: 0 | I46: 3.87 | R46: 630
A47: 2007-08-04T17:15:00 | B47: 24 | C47: 18.51 | D47: 18.51 | E47: 646 | F47: 646 | R47: 645
A48: 2007-08-04T17:30:00 | B48: 23.92 | C48: 18.51 | D48: 18.51 | E48: 655.1 | F48: 655.1 | G48: 0 | I48: 3.87 | R48: 660
A49: 2007-08-04T17:45:00 | B49: 23.82 | C49: 18.51 | D49: 18.51 | E49: 687.9 | F49: 687.9 | Q49: X | R49: =R48+(15*((L9-F48)/(F49-F48))) -> 669.0434451

Sheet 2007_19
A1: Date/Time | B1: Air Temperature (deg C) | C1: 21-cm subsurface drain temp., unedited (°C) | D1: 21-cm subsurface drain temp. (°C) | E1: 21-cm subsurface drain SC, unedited (mS/cm) | F1: 21-cm subsurface drain SC (mS/cm) | G1: Precip (inch) | H1: Cumulative Precip (inch) | I1: Gage height (feet), relative | J1: SCEO (mS/cm) | K1: SC50 (mS/cm) | L1: SC90 (mS/cm) | M1: tS | N1: tEO | O1: tEM | P1: t50 | Q1: t90 | R1: Time (minutes)
A2: 2007-10-02T07:30:00 | B2: 16.7 | C2: 16.27 | E2: 1051 | G2: 0.01 | I2: 4.21 | M2: X | R2: 0
A3: 2007-10-02T07:45:00 | B3: 15.36 | C3: 16.27 | E3: 674.7 | R3: =R2+15 -> 15
A4: 2007-10-02T08:00:00 | B4: 15.6 | C4: 16.26 | E4: 560.5 | G4: 0.03 | I4: 4.21 | R4: =R3+15 -> 30
A5: 2007-10-02T08:15:00 | B5: 16.13 | C5: 16.26 | D5: 16.26 | E5: 532 | F5: 532 | R5: 45
A6: 2007-10-02T08:30:00 | B6: 15.93 | C6: 16.26 | D6: 16.26 | E6: 524.7 | F6: 524.7 | G6: 0.01 | I6: 4.22 | R6: 60
A7: 2007-10-02T08:45:00 | B7: 15.52 | C7: 16.25 | D7: 16.25 | E7: 518.3 | F7: 518.3 | R7: 75
A8: 2007-10-02T09:00:00 | B8: 15.3 | C8: 16.26 | D8: 16.26 | E8: 515.8 | F8: 515.8 | G8: 0.04 | I8: 4.23 | R8: 90
A9: 2007-10-02T09:15:00 | B9: 15.14 | C9: 16.26 | D9: 16.26 | E9: 515.4 | F9: 515.4 | R9: 105
A10: 2007-10-02T09:30:00 | B10: 15.16 | C10: 16.25 | D10: 16.25 | E10: 511.6 | F10: 511.6 | G10: 0.06 | I10: 4.23 | R10: 120
A11: 2007-10-02T09:45:00 | B11: 15.26 | C11: 16.26 | D11: 16.26 | E11: 510.9 | F11: 510.9 | J11: =AVERAGE(F5:F11) -> 518.3857143 | K11: =F21+((J11-F21)*0.5) -> 469.3428571 | L11: =F21+((J11-F21)*0.9) -> 508.5771429 | R11: 135
A12: 2007-10-02T10:00:00 | B12: 15.02 | C12: 16.26 | D12: 16.26 | E12: 488.7 | F12: 488.7 | G12: 0.03 | I12: 4.24 | N12: X | R12: 150
A13: 2007-10-02T10:15:00 | B13: 14.95 | C13: 16.25 | D13: 16.25 | E13: 464.5 | F13: 464.5 | R13: 165
A14: 2007-10-02T10:30:00 | B14: 15.11 | C14: 16.25 | D14: 16.25 | E14: 467.3 | F14: 467.3 | G14: 0.1 | I14: 4.25 | R14: 180
A15: 2007-10-02T10:45:00 | B15: 15.46 | C15: 16.24 | D15: 16.24 | E15: 469.2 | F15: 469.2 | R15: 195
A16: 2007-10-02T11:00:00 | B16: 15.8 | C16: 16.24 | D16: 16.24 | E16: 428.4 | F16: 428.4 | G16: 0.07 | I16: 4.27 | R16: 210
A17: 2007-10-02T11:15:00 | B17: 16.14 | C17: 16.21 | D17: 16.21 | E17: 435.9 | F17: 435.9 | R17: 225
A18: 2007-10-02T11:30:00 | B18: 16.43 | C18: 16.18 | D18: 16.18 | E18: 448 | F18: 448 | G18: 0.04 | I18: 4.29 | R18: 240
A19: 2007-10-02T11:45:00 | B19: 16.44 | C19: 16.17 | D19: 16.17 | E19: 442.8 | F19: 442.8 | R19: 255
A20: 2007-10-02T12:00:00 | B20: 16.52 | C20: 16.18 | D20: 16.18 | E20: 429 | F20: 429 | G20: 0.04 | I20: 4.3 | R20: 270
A21: 2007-10-02T12:15:00 | B21: 17.02 | C21: 16.2 | D21: 16.2 | E21: 420.3 | F21: 420.3 | O21: X | R21: 285
A22: 2007-10-02T12:30:00 | B22: 17.2 | C22: 16.22 | D22: 16.22 | E22: 427.4 | F22: 427.4 | G22: 0 | I22: 4.34 | R22: 300
A23: 2007-10-02T12:45:00 | B23: 17.24 | C23: 16.25 | D23: 16.25 | E23: 435.9 | F23: 435.9 | R23: 315
A24: 2007-10-02T13:00:00 | B24: 17.24 | C24: 16.28 | D24: 16.28 | E24: 443.3 | F24: 443.3 | G24: 0.05 | I24: 4.38 | R24: 330
A25: 2007-10-02T13:15:00 | B25: 17.48 | C25: 16.3 | D25: 16.3 | E25: 438 | F25: 438 | R25: 345
A26: 2007-10-02T13:30:00 | B26: 17.99 | C26: 16.3 | D26: 16.3 | E26: 447.3 | F26: 447.3 | G26: 0 | I26: 4.46 | R26: 360
A27: 2007-10-02T13:45:00 | B27: 18.59 | C27: 16.3 | D27: 16.3 | E27: 475 | F27: 475 | R27: =R26+(15*((K11-F26)/(F27-F26))) -> 371.9365652
A28: 2007-10-02T14:00:00 | B28: 18.54 | C28: 16.3 | D28: 16.3 | E28: 489.6 | F28: 489.6 | G28: 0.07 | I28: 4.52 | R28: =R26+30 -> 390
A29: 2007-10-02T14:15:00 | B29: 18.57 | C29: 16.32 | D29: 16.32 | E29: 486.2 | F29: 486.2 | R29: =R28+15 -> 405
A30: 2007-10-02T14:30:00 | B30: 18.55 | C30: 16.32 | D30: 16.32 | E30: 469.6 | F30: 469.6 | G30: 0.01 | I30: 4.61 | R30: =R29+15 -> 420
A31: 2007-10-02T14:45:00 | B31: 18.57 | C31: 16.31 | D31: 16.31 | E31: 505.4 | F31: 505.4 | R31: 435
A32: 2007-10-02T15:00:00 | B32: 18.61 | C32: 16.34 | D32: 16.34 | E32: 504.3 | F32: 504.3 | G32: 0.01 | I32: 4.69 | R32: 450
A33: 2007-10-02T15:15:00 | B33: 18.74 | C33: 16.49 | D33: 16.49 | E33: 428.4 | F33: 428.4 | R33: 465
A34: 2007-10-02T15:30:00 | B34: 18.85 | C34: 16.53 | D34: 16.53 | E34: 456.4 | F34: 456.4 | G34: 0.09 | H34: =SUM(G2:G34) -> 0.66 | I34: 4.75 | R34: 480
A35: 2007-10-02T15:45:00 | B35: 17.42 | C35: 16.49 | D35: 16.49 | E35: 477.3 | F35: 477.3 | R35: =R34+(15*((K11-F34)/(F35-F34))) -> 489.2891319
A36: 2007-10-02T16:00:00 | B36: 17.4 | C36: 16.45 | D36: 16.45 | E36: 491.9 | F36: 491.9 | G36: 0 | I36: 4.83 | R36: =R34+30 -> 510
A37: 2007-10-02T16:15:00 | B37: 17.71 | C37: 16.42 | D37: 16.42 | E37: 503.9 | F37: 503.9 | R37: =R36+15 -> 525
A38: 2007-10-02T16:30:00 | B38: 17.82 | C38: 16.63 | D38: 16.63 | E38: 422.8 | F38: 422.8 | G38: 0 | I38: 4.84 | R38: =R37+15 -> 540
A39: 2007-10-02T16:45:00 | B39: 17.84 | C39: 16.71 | D39: 16.71 | E39: 435.7 | F39: 435.7 | R39: 555
A40: 2007-10-02T17:00:00 | B40: 17.97 | C40: 16.64 | D40: 16.64 | E40: 458.6 | F40: 458.6 | G40: 0 | I40: 4.9 | R40: 570
A41: 2007-10-02T17:15:00 | B41: 17.73 | C41: 16.55 | D41: 16.55 | E41: 481.8 | F41: 481.8 | P41: X | R41: =R40+(15*((K11-F40)/(F41-F40))) -> 576.9458128
A42: 2007-10-02T17:30:00 | B42: 17.62 | C42: 16.48 | D42: 16.48 | E42: 497.1 | F42: 497.1 | G42: 0 | I42: 4.91 | R42: =R40+30 -> 600
A43: 2007-10-02T17:45:00 | B43: 17.39 | C43: 16.43 | D43: 16.43 | E43: 509.6 | F43: 509.6 | Q43: X | R43: =R42+(15*((L11-F42)/(F43-F42))) -> 613.7725714
A44: 2007-10-02T18:00:00 | B44: 16.59 | C44: 16.39 | D44: 16.39 | E44: 518.7 | F44: 518.7 | G44: 0 | I44: 4.99
A45: 2007-10-02T18:15:00 | B45: 15.84 | C45: 16.37 | D45: 16.37 | E45: 523.4 | F45: 523.4

Sheet 2007_20
A1: Date/Time | B1: Air Temperature (deg C) | C1: 21-cm subsurface drain temp., unedited (°C) | D1: 21-cm subsurface drain temp. (°C) | E1: 21-cm subsurface drain SC, unedited (mS/cm) | F1: 21-cm subsurface drain SC (mS/cm) | G1: Precip (inch) | H1: Cumulative Precip (inch) | I1: Gage height (feet), relative | J1: SCEO (mS/cm) | K1: SC50 (mS/cm) | L1: SC90 (mS/cm) | M1: tS | N1: tEO | O1: tEM | P1: t50 | Q1: t90 | R1: Time (minutes)
A2: 2007-10-05T08:30:00 | B2: 19.75 | C2: 16.1 | D2: 16.1 | E2: 730 | F2: 730 | G2: 0.01 | I2: 4.61 | M2: X | R2: 0
A3: 2007-10-05T08:45:00 | B3: 19.81 | C3: 16.1 | D3: 16.1 | E3: 730 | F3: 730 | R3: =R2+15 -> 15
A4: 2007-10-05T09:00:00 | B4: 20.14 | C4: 16.11 | D4: 16.11 | E4: 730 | F4: 730 | G4: 0 | I4: 4.61 | R4: =R3+15 -> 30
A5: 2007-10-05T09:15:00 | B5: 20.28 | C5: 16.11 | D5: 16.11 | E5: 730 | F5: 730 | R5: 45
A6: 2007-10-05T09:30:00 | B6: 20.35 | C6: 16.11 | D6: 16.11 | E6: 729 | F6: 729 | G6: 0 | I6: 4.61 | R6: 60
A7: 2007-10-05T09:45:00 | B7: 20.26 | C7: 16.11 | D7: 16.11 | E7: 729 | F7: 729 | R7: 75
A8: 2007-10-05T10:00:00 | B8: 20 | C8: 16.11 | D8: 16.11 | E8: 732 | F8: 732 | G8: 0.07 | I8: 4.61 | R8: 90
A9: 2007-10-05T10:15:00 | B9: 19.9 | C9: 16.11 | D9: 16.11 | E9: 741 | F9: 741 | R9: 105
A10: 2007-10-05T10:30:00 | B10: 19.88 | C10: 16.11 | D10: 16.11 | E10: 733 | F10: 733 | G10: 0.05 | I10: 4.61 | R10: 120
A11: 2007-10-05T10:45:00 | B11: 19.94 | C11: 16.11 | D11: 16.11 | E11: 735 | F11: 735 | R11: 135
A12: 2007-10-05T11:00:00 | B12: 19.97 | C12: 16.1 | D12: 16.1 | E12: 729 | F12: 729 | G12: 0.01 | I12: 4.62 | J12: =AVERAGE(F5:F12) -> 732.25 | K12: =F15+((J12-F15)*0.5) -> 663.725 | L12: =F15+((J12-F15)*0.9) -> 718.545 | R12: 150
A13: 2007-10-05T11:15:00 | B13: 20.31 | C13: 16.1 | D13: 16.1 | E13: 719 | F13: 719 | N13: X | R13: 165
A14: 2007-10-05T11:30:00 | B14: 21.21 | C14: 16.1 | D14: 16.1 | E14: 690 | F14: 690 | G14: 0.01 | H14: =SUM(G2:G14) -> 0.15 | I14: 4.61 | R14: 180
A15: 2007-10-05T11:45:00 | B15: 22.59 | C15: 16.12 | D15: 16.12 | E15: 595.2 | F15: 595.2 | O15: X | R15: 195
A16: 2007-10-05T12:00:00 | B16: 24.13 | C16: 16.14 | D16: 16.14 | E16: 614.3 | F16: 614.3 | G16: 0 | I16: 4.61 | R16: 210
A17: 2007-10-05T12:15:00 | B17: 25.16 | C17: 16.17 | D17: 16.17 | E17: 640 | F17: 640 | R17: 225
A18: 2007-10-05T12:30:00 | B18: 25.98 | C18: 16.18 | D18: 16.18 | E18: 656.3 | F18: 656.3 | G18: 0 | I18: 4.61 | R18: 240
A19: 2007-10-05T12:45:00 | B19: 26.22 | C19: 16.16 | D19: 16.16 | E19: 680.4 | F19: 680.4 | P19: X | R19: =R18+(15*((K12-F18)/(F19-F18))) -> 244.6213693
A20: 2007-10-05T13:00:00 | B20: 27.09 | C20: 16.14 | D20: 16.14 | E20: 706 | F20: 706 | G20: 0 | I20: 4.61 | R20: =R18+30 -> 270
A21: 2007-10-05T13:15:00 | B21: 27.28 | C21: 16.12 | D21: 16.12 | E21: 693.3 | F21: 693.3 | R21: =R20+15 -> 285
A22: 2007-10-05T13:30:00 | B22: 28.45 | C22: 16.11 | D22: 16.11 | E22: 695 | F22: 695 | G22: 0 | I22: 4.6 | R22: =R21+15 -> 300
A23: 2007-10-05T13:45:00 | B23: 29 | C23: 16.1 | D23: 16.1 | E23: 717 | F23: 717 | R23: 315
A24: 2007-10-05T14:00:00 | B24: 29.33 | C24: 16.09 | D24: 16.09 | E24: 734 | F24: 734 | G24: 0 | I24: 4.6 | Q24: X | R24: =R23+(15*((L12-F23)/(F24-F23))) -> 316.3632353
A25: 2007-10-05T14:15:00 | B25: 29.39 | C25: 16.09 | D25: 16.09 | E25: 742 | F25: 742
A26: 2007-10-05T14:30:00 | B26: 29.6 | C26: 16.09 | D26: 16.09 | E26: 745 | F26: 745 | G26: 0 | I26: 4.61

Sheet 2008_21
A1: Date/Time | B1: Air Temperature (deg C) | C1: 21-cm subsurface drain temp., unedited (°C) | D1: 21-cm subsurface drain temp. (°C) | E1: 21-cm subsurface drain SC, unedited (mS/cm) | F1: 21-cm subsurface drain SC (mS/cm) | G1: Precip (inch) | H1: Cumulative Precip (inch) | I1: Gage height (feet), relative | J1: SCEO (mS/cm) | K1: SC50 (mS/cm) | L1: SC90 (mS/cm) | M1: tS | N1: tEO | O1: tEM | P1: t50 | Q1: t90 | R1: Time (minutes)
A2: 2008-01-07T12:00:00 | B2: 2.374 | C2: 5.902 | D2: 5.902 | E2: 685.1 | F2: 685.1 | G2: 0 | I2: 3.78
A3: 2008-01-07T12:15:00 | B3: 1.682 | C3: 5.74 | D3: 5.74 | E3: 686.5 | F3: 686.5
A4: 2008-01-07T12:30:00 | B4: 1.67 | C4: 5.742 | D4: 5.742 | E4: 686.8 | F4: 686.8 | G4: 0 | I4: 3.78
A5: 2008-01-07T12:45:00 | B5: 1.333 | C5: 5.738 | D5: 5.738 | E5: 689.7 | F5: 689.7
A6: 2008-01-07T13:00:00 | B6: 1.217 | C6: 5.734 | D6: 5.734 | E6: 694.2 | F6: 694.2 | G6: 0 | I6: 3.78
A7: 2008-01-07T13:15:00 | B7: 1.263 | C7: 5.733 | D7: 5.733 | E7: 700 | F7: 700
A8: 2008-01-07T13:30:00 | B8: 2.09 | C8: 5.738 | D8: 5.738 | E8: 706 | F8: 706 | G8: 0.03 | I8: 3.78 | M8: X | R8: 0
A9: 2008-01-07T13:45:00 | B9: 2.56 | C9: 5.747 | D9: 5.747 | E9: 712 | F9: 712 | R9: =R8+15 -> 15
A10: 2008-01-07T14:00:00 | B10: 2.226 | C10: 5.983 | D10: 5.983 | E10: 732 | F10: 732 | G10: 0.09 | I10: 3.77 | J10: =AVERAGE(F3:F10) -> 700.9 | K10: =F12+((J10-F12)*0.5) -> 492.5 | L10: =F13+((J10-F13)*0.9) -> 663.47 | R10: =R9+15 -> 30
A11: 2008-01-07T14:15:00 | B11: 2.149 | C11: 5.824 | D11: 5.824 | E11: 480.3 | F11: 480.3 | N11: X | R11: =R10+15 -> 45
A12: 2008-01-07T14:30:00 | B12: 1.335 | C12: 5.417 | D12: 5.417 | E12: 284.1 | F12: 284.1 | G12: 0.05 | H12: =SUM(G8:G12) -> 0.17 | I12: 3.78 | O12: X | R12: =R11+15 -> 60
A13: 2008-01-07T14:45:00 | B13: 1.469 | C13: 5.155 | D13: 5.155 | E13: 326.6 | F13: 326.6 | R13: =R12+15 -> 75
A14: 2008-01-07T15:00:00 | B14: 1.613 | C14: 5.081 | D14: 5.081 | E14: 334.5 | F14: 334.5 | G14: 0 | I14: 3.8 | R14: 90
A15: 2008-01-07T15:15:00 | B15: 1.634 | C15: 5.085 | D15: 5.085 | E15: 367.3 | F15: 367.3 | R15: 105
A16: 2008-01-07T15:30:00 | B16: 1.485 | C16: 5.125 | D16: 5.125 | E16: 416.9 | F16: 416.9 | G16: 0 | I16: 3.8 | R16: 120
A17: 2008-01-07T15:45:00 | B17: 1.042 | C17: 5.169 | D17: 5.169 | E17: 457.3 | F17: 457.3 | R17: 135
A18: 2008-01-07T16:00:00 | B18: 0.805 | C18: 5.205 | D18: 5.205 | E18: 491.1 | F18: 491.1 | G18: 0 | I18: 3.82 | R18: 150
A19: 2008-01-07T16:15:00 | B19: 0.264 | C19: 5.245 | D19: 5.245 | E19: 514.3 | F19: 514.3 | P19: X | R19: =R18+(15*((K10-F18)/(F19-F18))) -> 150.9051724
A20: 2008-01-07T16:30:00 | B20: 0.095 | C20: 5.27 | D20: 5.27 | E20: 535.8 | F20: 535.8 | G20: 0 | I20: 3.8 | R20: =R18+30 -> 180
A21: 2008-01-07T16:45:00 | B21: -0.162 | C21: 5.289 | D21: 5.289 | E21: 551.6 | F21: 551.6 | R21: =R20+15 -> 195
A22: 2008-01-07T17:00:00 | B22: -0.419 | C22: 5.305 | D22: 5.305 | E22: 559.4 | F22: 559.4 | G22: 0 | I22: 3.81 | R22: =R21+15 -> 210
A23: 2008-01-07T17:15:00 | B23: -0.409 | C23: 5.326 | D23: 5.326 | E23: 577.1 | F23: 577.1 | R23: 225
A24: 2008-01-07T17:30:00 | B24: 0.479 | C24: 5.344 | D24: 5.344 | E24: 606.6 | F24: 606.6 | G24: 0 | I24: 3.81 | R24: 240
A25: 2008-01-07T17:45:00 | B25: -0.353 | C25: 5.362 | D25: 5.362 | E25: 615.4 | F25: 615.4 | R25: 255
A26: 2008-01-07T18:00:00 | B26: -0.45 | C26: 5.388 | D26: 5.388 | E26: 626.7 | F26: 626.7 | G26: 0 | I26: 3.82 | R26: 270
A27: 2008-01-07T18:15:00 | B27: -0.785 | C27: 5.412 | D27: 5.412 | E27: 645.3 | F27: 645.3 | R27: 285
A28: 2008-01-07T18:30:00 | B28: -1.112 | C28: 5.416 | D28: 5.416 | E28: 662.3 | F28: 662.3 | G28: 0 | I28: 3.83 | R28: 300
A29: 2008-01-07T18:45:00 | B29: 0.079 | C29: 5.43 | D29: 5.43 | E29: 665 | F29: 665 | Q29: X | R29: =R28+(15*((L10-F28)/(F29-F28))) -> 306.5
A30: 2008-01-07T19:00:00 | B30: -0.164 | C30: 5.446 | D30: 5.446 | E30: 673.1 | F30: 673.1 | G30: 0 | I30: 3.84
A31: 2008-01-07T19:15:00 | B31: -1.162 | C31: 5.458 | D31: 5.458 | E31: 682.9 | F31: 682.9

Sheet 2008_22 (3)
A1: Date/Time | B1: Air Temperature (deg C) | C1: 21-cm subsurface drain temp., unedited (°C) | D1: 21-cm subsurface drain temp. (°C) | E1: 21-cm subsurface drain SC, unedited (mS/cm) | F1: 21-cm subsurface drain SC (mS/cm) | G1: Precip (inch) | H1: Cumulative Precip (inch) | I1: Gage height (feet), relative | J1: SCEO (mS/cm) | K1: SC50 (mS/cm) | L1: SC90 (mS/cm) | M1: tS | N1: tEO | O1: tEM | P1: t50 | Q1: t90 | R1: Time (minutes)
A2: 2008-04-10T02:30:00 | B2: 2.712 | C2: 2.954 | D2: 2.954 | E2: 673.7 | F2: 673.7 | G2: 0.02 | I2: 4.34
A3: 2008-04-10T02:45:00 | B3: 2.729 | C3: 2.943 | D3: 2.943 | E3: 673.1 | F3: 673.1
A4: 2008-04-10T03:00:00 | B4: 2.639 | C4: 2.947 | D4: 2.947 | E4: 673.9 | F4: 673.9 | G4: 0.02 | I4: 4.35
A5: 2008-04-10T03:15:00 | B5: 2.759 | C5: 2.955 | D5: 2.955 | E5: 674.5 | F5: 674.5
A6: 2008-04-10T03:30:00 | B6: 2.655 | C6: 2.944 | D6: 2.944 | E6: 674.7 | F6: 674.7 | G6: 0.01 | I6: 4.34
A7: 2008-04-10T03:45:00 | B7: 2.469 | C7: 2.944 | D7: 2.944 | E7: 675 | F7: 675
A8: 2008-04-10T04:00:00 | B8: 2.383 | C8: 2.942 | D8: 2.942 | E8: 674.2 | F8: 674.2 | G8: 0.01 | I8: 4.34
A9: 2008-04-10T04:15:00 | B9: 2.337 | C9: 2.943 | D9: 2.943 | E9: 674.2 | F9: 674.2
A10: 2008-04-10T04:30:00 | B10: 2.309 | C10: 2.934 | D10: 2.934 | E10: 674.2 | F10: 674.2 | G10: 0.02 | I10: 4.34
A11: 2008-04-10T04:45:00 | B11: 2.226 | C11: 2.954 | D11: 2.954 | E11: 673.4 | F11: 673.4
A12: 2008-04-10T05:00:00 | B12: 2.217 | C12: 2.944 | D12: 2.944 | E12: 674.9 | F12: 674.9 | G12: 0.01 | I12: 4.35
A13: 2008-04-10T05:15:00 | B13: 2.104 | C13: 2.943 | D13: 2.943 | E13: 674.8 | F13: 674.8
A14: 2008-04-10T05:30:00 | B14: 2.094 | C14: 2.943 | D14: 2.943 | E14: 676.1 | F14: 676.1 | G14: 0.01 | I14: 4.35
A15: 2008-04-10T05:45:00 | B15: 2.16 | C15: 2.943 | D15: 2.943 | E15: 675.8 | F15: 675.8
A16: 2008-04-10T06:00:00 | B16: 2.143 | C16: 2.954 | D16: 2.954 | E16: 674.8 | F16: 674.8 | G16: 0 | I16: 4.36
A17: 2008-04-10T06:15:00 | B17: 2.181 | C17: 2.945 | D17: 2.945 | E17: 675.8 | F17: 675.8
A18: 2008-04-10T06:30:00 | B18: 2.261 | C18: 2.942 | D18: 2.942 | E18: 676.1 | F18: 676.1 | G18: 0.01 | I18: 4.35
A19: 2008-04-10T06:45:00 | B19: 2.188 | C19: 2.943 | D19: 2.943 | E19: 677.7 | F19: 677.7
A20: 2008-04-10T07:00:00 | B20: 2.171 | C20: 2.945 | D20: 2.945 | E20: 677.7 | F20: 677.7 | G20: 0.01 | I20: 4.35
A21: 2008-04-10T07:15:00 | B21: 2.135 | C21: 2.946 | D21: 2.946 | E21: 677.9 | F21: 677.9
A22: 2008-04-10T07:30:00 | B22: 2.188 | C22: 2.944 | D22: 2.944 | E22: 676.9 | F22: 676.9 | G22: 0.01 | I22: 4.36
A23: 2008-04-10T07:45:00 | B23: 2.18 | C23: 2.945 | D23: 2.945 | E23: 677.9 | F23: 677.9
A24: 2008-04-10T08:00:00 | B24: 2.188 | C24: 2.943 | D24: 2.943 | E24: 678.5 | F24: 678.5 | G24: 0.01 | I24: 4.36
A25: 2008-04-10T08:15:00 | B25: 2.252 | C25: 2.942 | D25: 2.942 | E25: 680.7 | F25: 680.7
A26: 2008-04-10T08:30:00 | B26: 2.318 | C26: 2.952 | E26: 685.1 | G26: 0 | I26: 4.37
A27: 2008-04-10T08:45:00 | B27: 2.251 | C27: 2.931 | E27: 746
A28: 2008-04-10T09:00:00 | B28: 2.345 | C28: 2.914 | E28: 810 | G28: 0.01 | I28: 4.36
A29: 2008-04-10T09:15:00 | B29: 2.401 | C29: 2.924 | E29: 776
A30: 2008-04-10T09:30:00 | B30: 2.486 | C30: 2.934 | E30: 729 | G30: 0.01 | I30: 4.36
A31: 2008-04-10T09:45:00 | B31: 2.562 | C31: 2.926 | D31: 2.926 | E31: 740
A32: 2008-04-10T10:00:00 | B32: 2.624 | C32: 2.932 | D32: 2.932 | E32: 758 | G32: 0 | I32: 4.37
A33: 2008-04-10T10:15:00 | B33: 2.692 | C33: 2.925 | D33: 2.925 | E33: 769
A34: 2008-04-10T10:30:00 | B34: 2.793 | C34: 2.914 | D34: 2.914 | E34: 778 | G34: 0.04 | I34: 4.4 | M34: X | R34: 0
A35: 2008-04-10T10:45:00 | B35: 2.86 | C35: 2.916 | D35: 2.916 | E35: 759 | R35: =R34+15 -> 15
A36: 2008-04-10T11:00:00 | B36: 3.002 | C36: 2.918 | D36: 2.918 | E36: 741 | G36: 0.04 | I36: 4.4 | R36: =R35+15 -> 30
A37: 2008-04-10T11:15:00 | B37: 3.039 | C37: 2.927 | D37: 2.927 | E37: 726 | R37: 45
A38: 2008-04-10T11:30:00 | B38: 3.065 | C38: 2.925 | D38: 2.925 | E38: 740 | G38: 0.02 | I38: 4.41 | R38: 60
A39: 2008-04-10T11:45:00 | B39: 3.169 | C39: 2.898 | D39: 2.898 | E39: 757 | R39: 75
A40: 2008-04-10T12:00:00 | B40: 3.269 | C40: 2.905 | D40: 2.905 | E40: 668.7 | F40: 668.7 | G40: 0.04 | I40: 4.43 | J40: =AVERAGE(F19:F40) -> 677 | K40: =F45+((J40-F45)*0.5) -> 623.25 | L40: =F45+((J40-F45)*0.9) -> 666.25 | R40: 90
A41: 2008-04-10T12:15:00 | B41: 3.41 | C41: 2.916 | D41: 2.916 | E41: 630.7 | F41: 630.7 | N41: X | R41: 105
A42: 2008-04-10T12:30:00 | B42: 3.607 | C42: 2.935 | D42: 2.935 | E42: 625.3 | F42: 625.3 | G42: 0.04 | I42: 4.45 | R42: 120
A43: 2008-04-10T12:45:00 | B43: 3.596 | C43: 2.933 | D43: 2.933 | E43: 616.8 | F43: 616.8 | R43: 135
A44: 2008-04-10T13:00:00 | B44: 3.585 | C44: 2.932 | D44: 2.932 | E44: 597.4 | F44: 597.4 | G44: 0.01 | I44: 4.46 | R44: 150
A45: 2008-04-10T13:15:00 | B45: 3.673 | C45: 2.945 | D45: 2.945 | E45: 569.5 | F45: 569.5 | O45: X | R45: 165
A46: 2008-04-10T13:30:00 | B46: 3.822 | C46: 2.954 | D46: 2.954 | E46: 572.9 | F46: 572.9 | G46: 0.01 | H46: =SUM(G2:G46) -> 0.36 | I46: 4.49 | R46: 180
A47: 2008-04-10T13:45:00 | B47: 3.905 | C47: 2.953 | D47: 2.953 | E47: 572.9 | F47: 572.9 | R47: 195
A48: 2008-04-10T14:00:00 | B48: 3.924 | C48: 2.981 | D48: 2.981 | E48: 576.6 | F48: 576.6 | G48: 0 | I48: 4.5 | R48: 210
A49: 2008-04-10T14:15:00 | B49: 4.018 | C49: 2.99 | D49: 2.99 | E49: 600.5 | F49: 600.5 | R49: 225
A50: 2008-04-10T14:30:00 | B50: 4.118 | C50: 2.988 | D50: 2.988 | E50: 615.5 | F50: 615.5 | G50: 0 | I50: 4.51 | R50: 240
A51: 2008-04-10T14:45:00 | B51: 4.224 | C51: 2.972 | D51: 2.972 | E51: 630.7 | F51: 630.7 | P51: X | R51: =R50+(15*((K40-F50)/(F51-F50))) -> 247.6480263
A52: 2008-04-10T15:00:00 | B52: 4.412 | C52: 2.954 | D52: 2.954 | E52: 645.7 | F52: 645.7 | G52: 0 | I52: 4.58 | R52: =R50+30 -> 270
A53: 2008-04-10T15:15:00 | B53: 4.535 | C53: 2.955 | D53: 2.955 | E53: 658.1 | F53: 658.1 | R53: =R52+15 -> 285
A54: 2008-04-10T15:30:00 | B54: 4.7 | C54: 2.942 | D54: 2.942 | E54: 666.1 | F54: 666.1 | G54: 0.01 | I54: 4.65 | M54: X | R54: =R53+15 -> 300
A55: 2008-04-10T15:45:00 | B55: 4.833 | C55: 2.925 | D55: 2.925 | E55: 667.6 | F55: 667.6 | Q55: X | R55: =R54+(15*((L40-F54)/(F55-F54))) -> 301.5
A56: 2008-04-10T16:00:00 | B56: 4.956 | C56: 2.935 | D56: 2.935 | E56: 662 | F56: 662 | G56: 0.06 | H56: =SUM(G54:G56) -> 0.07 | I56: 4.71 | R56: 30
A57: 2008-04-10T16:15:00 | B57: 5.077 | C57: 2.915 | D57: 2.915 | E57: 666.5 | F57: 666.5 | R57: =R56+15 -> 45
A58: 2008-04-10T16:30:00 | B58: 5.247 | C58: 2.925 | D58: 2.925 | E58: 665.2 | F58: 665.2 | G58: 0 | I58: 4.74 | R58: =R57+15 -> 60
A59: 2008-04-10T16:45:00 | B59: 5.423 | C59: 2.923 | D59: 2.923 | E59: 665 | F59: 665 | J59: =AVERAGE(F52:F59) -> 662.025 | K59: =F60+((J59-F60)*0.5) -> 598.3625 | L59: =F60+((J59-F60)*0.9) -> 649.2925 | R59: =R58+15 -> 75
A60: 2008-04-10T17:00:00 | B60: 5.574 | C60: 2.998 | D60: 2.998 | E60: 534.7 | F60: 534.7 | G60: 0 | I60: 4.83 | N60: X | O60: X | R60: =R59+15 -> 90
A61: 2008-04-10T17:15:00 | B61: 5.547 | C61: 3.027 | D61: 3.027 | E61: 586.3 | F61: 586.3 | R61: =R60+15 -> 105
A62: 2008-04-10T17:30:00 | B62: 5.582 | C62: 2.987 | D62: 2.987 | E62: 614.5 | F62: 614.5 | G62: 0.11 | I62: 4.91 | M62: X | P62: X | R62: =R61+(15*((K59-F61)/(F62-F61))) -> 111.4162234
A63: 2008-04-10T17:45:00 | B63: 5.638 | C63: 2.968 | D63: 2.968 | E63: 634.4 | F63: 634.4 | R63: 15
A64: 2008-04-10T18:00:00 | B64: 5.61 | C64: 2.941 | D64: 2.941 | E64: 639 | F64: 639 | G64: 0.08 | H64: =SUM(G62:G64) -> 0.19 | I64: 4.95 | J64: =AVERAGE(F57:F64) -> 625.7 | K64: =F66+((J64-F66)*0.5) -> 539.35 | L64: =F66+((J64-F66)*0.9) -> 608.43 | R64: 30
A65: 2008-04-10T18:15:00 | B65: 5.631 | C65: 2.934 | D65: 2.934 | E65: 483.2 | F65: 483.2 | N65: X | R65: 45
A66: 2008-04-10T18:30:00 | B66: 5.649 | C66: 3.185 | D66: 3.185 | E66: 453 | F66: 453 | G66: 0 | I66: 5.02 | O66: X | R66: 60
A67: 2008-04-10T18:45:00 | B67: 5.761 | C67: 3.193 | D67: 3.193 | E67: 494.5 | F67: 494.5 | R67: 75
A68: 2008-04-10T19:00:00 | B68: 5.949 | C68: 3.089 | D68: 3.089 | E68: 559.8 | F68: 559.8 | G68: 0 | I68: 5.09 | P68: X | R68: =R67+(15*((K64-F67)/(F68-F67))) -> 85.30245023
A69: 2008-04-10T19:15:00 | B69: 5.959 | C69: 3.006 | D69: 3.006 | E69: 597.8 | F69: 597.8 | R69: =R67+30 -> 105
A70: 2008-04-10T19:30:00 | B70: 5.836 | C70: 2.95 | D70: 2.95 | E70: 614.2 | F70: 614.2 | G70: 0 | I70: 5.24 | Q70: X | R70: =R69+(15*((L64-F69)/(F70-F69))) -> 114.722561

Sheet 2008_23
A1: Date/Time | B1: Air Temperature (deg C) | C1: 21-cm subsurface drain temp., unedited (°C) | D1: 21-cm subsurface drain temp. (°C) | E1: 21-cm subsurface drain SC, unedited (mS/cm) | F1: 21-cm subsurface drain SC (mS/cm) | G1: Precip (inch) | H1: Cumulative Precip (inch) | I1: Gage height (feet), relative | J1: SCEO (mS/cm) | K1: SC50 (mS/cm) | L1: SC90 (mS/cm) | M1: tS | N1: tEO | O1: tEM | P1: t50 | Q1: t90 | R1: Time (minutes)
A2: 2008-04-17T08:00:00 | B2: 6.589 | C2: 3.322 | D2: 3.322 | E2: 658.3 | F2: 658.3 | G2: 0 | I2: 4.525
A3: 2008-04-17T08:15:00 | B3: 6.618 | C3: 3.322 | D3: 3.322 | E3: 655.6 | F3: 655.6
A4: 2008-04-17T08:30:00 | B4: 6.391 | C4: 3.332 | D4: 3.332 | E4: 654.1 | F4: 654.1 | G4: 0.01 | I4: 4.52 | M4: X | R4: 0
A5: 2008-04-17T08:45:00 | B5: 6.797 | C5: 3.331 | D5: 3.331 | E5: 652.8 | F5: 652.8 | R5: =R4+15 -> 15
A6: 2008-04-17T09:00:00 | B6: 6.1 | C6: 3.333 | D6: 3.333 | E6: 653.5 | F6: 653.5 | G6: 0.04 | I6: 4.51 | R6: =R5+15 -> 30
A7: 2008-04-17T09:15:00 | B7: 6.165 | C7: 3.332 | D7: 3.332 | E7: 653.8 | F7: 653.8 | R7: 45
A8: 2008-04-17T09:30:00 | B8: 6.344 | C8: 3.332 | D8: 3.332 | E8: 654.6 | F8: 654.6 | G8: 0.04 | H8: =SUM(G4:G8) -> 0.09 | I8: 4.53 | R8: 60
A9: 2008-04-17T09:45:00 | B9: 6.506 | C9: 3.324 | D9: 3.324 | E9: 655.9 | F9: 655.9 | R9: 75
A10: 2008-04-17T10:00:00 | B10: 6.436 | C10: 3.33 | D10: 3.33 | E10: 657 | F10: 657 | G10: 0 | I10: 4.53 | R10: 90
A11: 2008-04-17T10:15:00 | B11: 7.84 | C11: 3.333 | D11: 3.333 | E11: 664.4 | F11: 664.4 | J11: =AVERAGE(F4:F11) -> 655.7625 | K11: =F13+((J11-F13)*0.5) -> 613.03125 | L11: =F13+((J11-F13)*0.9) -> 647.21625 | R11: 105
A12: 2008-04-17T10:30:00 | B12: 7.6 | C12: 3.333 | D12: 3.333 | E12: 609.3 | F12: 609.3 | G12: 0 | I12: 4.53 | N12: X | R12: 120
A13: 2008-04-17T10:45:00 | B13: 7.34 | C13: 3.343 | D13: 3.343 | E13: 570.3 | F13: 570.3 | O13: X | R13: 135
A14: 2008-04-17T11:00:00 | B14: 7.41 | C14: 3.344 | D14: 3.344 | E14: 587.6 | F14: 587.6 | G14: 0 | I14: 4.53 | R14: 150
A15: 2008-04-17T11:15:00 | B15: 7.82 | C15: 3.344 | D15: 3.344 | E15: 593.2 | F15: 593.2 | R15: 165
A16: 2008-04-17T11:30:00 | B16: 7.54 | C16: 3.352 | D16: 3.352 | E16: 619.2 | F16: 619.2 | G16: 0 | I16: 4.51 | P16: X | R16: =R15+(15*((K11-F15)/(F16-F15))) -> 176.4411058
A17: 2008-04-17T11:45:00 | B17: 7.82 | C17: 3.352 | D17: 3.352 | E17: 636.8 | F17: 636.8 | R17: =R15+30 -> 195
A18: 2008-04-17T12:00:00 | B18: 7.76 | C18: 3.355 | D18: 3.355 | E18: 646.7 | F18: 646.7 | G18: 0 | I18: 4.5 | R18: =R17+15 -> 210
A19: 2008-04-17T12:15:00 | B19: 7.67 | C19: 3.343 | D19: 3.343 | E19: 650.1 | F19: 650.1 | Q19: X | R19: =R18+(15*((L11-F18)/(F19-F18))) -> 212.2775735

Sheet 2008_24
A1: Date/Time | B1: Air Temperature (deg C) | C1: 21-cm subsurface drain temp., unedited (°C) | D1: 21-cm subsurface drain temp. (°C) | E1: 21-cm subsurface drain SC, unedited (mS/cm) | F1: 21-cm subsurface drain SC (mS/cm) | G1: Precip (inch) | H1: Cumulative Precip (inch) | I1: Gage height (feet), relative | J1: SCEO (mS/cm) | K1: SC50 (mS/cm) | L1: SC90 (mS/cm) | M1: tS | N1: tEO | O1: tEM | P1: t50 | Q1: t90 | R1: Time (minutes)
A2: 2008-04-18T09:00:00 | B2: 5.724 | C2: 3.474 | D2: 3.474 | E2: 660.3 | F2: 660.3 | G2: 0 | I2: 4.65
A3: 2008-04-18T09:15:00 | B3: 5.79 | C3: 3.492 | D3: 3.492 | E3: 681.4 | F3: 681.4
A4: 2008-04-18T09:30:00 | B4: 5.828 | C4: 3.493 | D4: 3.493 | E4: 655.9 | F4: 655.9 | G4: 0 | I4: 4.62
A5: 2008-04-18T09:45:00 | B5: 5.959 | C5: 3.511 | D5: 3.511 | E5: 625.5 | F5: 625.5
A6: 2008-04-18T10:00:00 | B6: 6.035 | C6: 3.539 | D6: 3.539 | E6: 649.8 | F6: 649.8 | G6: 0 | I6: 4.65
A7: 2008-04-18T10:15:00 | B7: 6.054 | C7: 3.558 | D7: 3.558 | E7: 654.7 | F7: 654.7
A8: 2008-04-18T10:30:00 | B8: 6.09 | C8: 3.548 | D8: 3.548 | E8: 662 | F8: 662 | G8: 0.01 | I8: 4.66 | M8: X | R8: 0
A9: 2008-04-18T10:45:00 | B9: 6.089 | C9: 3.537 | D9: 3.537 | E9: 666.2 | F9: 666.2 | R9: =R8+15 -> 15
A10: 2008-04-18T11:00:00 | B10: 6.178 | C10: 3.532 | D10: 3.532 | E10: 667.7 | F10: 667.7 | G10: 0.05 | I10: 4.64 | R10: =R9+15 -> 30
A11: 2008-04-18T11:15:00 | B11: 6.32 | C11: 3.532 | E11: 670.6 | F11: 670.6 | R11: 45
A12: 2008-04-18T11:30:00 | B12: 6.307 | C12: 3.529 | E12: 669.6 | F12: 669.6 | G12: 0.04 | I12: 4.67 | J12: =AVERAGE(F5:F12) -> 658.2625 | K12: =F21+((J12-F21)*0.5) -> 529.53125 | L12: =F21+((J12-F21)*0.9) -> 632.51625 | R12: 60
A13: 2008-04-18T11:45:00 | B13: 6.242 | C13: 3.558 | E13: 1080 | R13: 75
A14: 2008-04-18T12:00:00 | B14: 6.295 | C14: 3.61 | E14: 623.3 | F14: 623.3 | G14: 0.03 | I14: 4.68 | N14: X | R14: 90
A15: 2008-04-18T12:15:00 | B15: 6.382 | C15: 3.855 | E15: 538.2 | F15: 538.2 | R15: 105
A16: 2008-04-18T12:30:00 | B16: 6.45 | C16: 3.903 | D16: 3.903 | E16: 536.8 | F16: 536.8 | G16: 0.06 | I16: 4.69 | R16: 120
A17: 2008-04-18T12:45:00 | B17: 6.486 | C17: 3.911 | D17: 3.911 | E17: 557.8 | F17: 557.8 | R17: 135
A18: 2008-04-18T13:00:00 | B18: 6.592 | C18: 3.978 | D18: 3.978 | E18: 552.1 | F18: 552.1 | G18: 0.08 | I18: 4.72 | R18: 150
A19: 2008-04-18T13:15:00 | B19: 6.628 | C19: 4.201 | D19: 4.201 | E19: 447.8 | F19: 447.8 | R19: 165
A20: 2008-04-18T13:30:00 | B20: 6.592 | C20: 4.26 | D20: 4.26 | E20: 456.7 | F20: 456.7 | G20: 0.01 | I20: 4.71 | R20: 180
A21: 2008-04-18T13:45:00 | B21: 6.602 | C21: 4.391 | D21: 4.391 | E21: 400.8 | F21: 400.8 | O21: X | R21: 195
A22: 2008-04-18T14:00:00 | B22: 6.819 | C22: 4.409 | D22: 4.409 | E22: 445.1 | F22: 445.1 | G22: 0.01 | I22: 4.77 | R22: 210
A23: 2008-04-18T14:15:00 | B23: 6.874 | C23: 4.258 | D23: 4.258 | E23: 504 | F23: 504 | R23: 225
A24: 2008-04-18T14:30:00 | B24: 6.968 | C24: 4.117 | D24: 4.117 | E24: 552.5 | F24: 552.5 | G24: 0.01 | H24: =SUM(G8:G24) -> 0.3 | I24: 4.89 | P24: X | R24: =R23+(15*((K12-F23)/(F24-F23))) -> 232.8962629
A25: 2008-04-18T14:45:00 | B25: 6.933 | C25: 4.007 | D25: 4.007 | E25: 590.4 | F25: 590.4 | R25: =R23+30 -> 255
A26: 2008-04-18T15:00:00 | B26: 6.903 | C26: 3.931 | D26: 3.931 | E26: 611.8 | F26: 611.8 | G26: 0 | I26: 4.89 | R26: =R25+15 -> 270
A27: 2008-04-18T15:15:00 | B27: 6.857 | C27: 3.857 | D27: 3.857 | E27: 617.5 | F27: 617.5 | R27: =R26+15 -> 285
A28: 2008-04-18T15:30:00 | B28: 6.872 | C28: 3.817 | D28: 3.817 | E28: 617.1 | F28: 617.1 | G28: 0.02 | I28: 4.94 | R28: 300
A29: 2008-04-18T15:45:00 | B29: 6.967 | C29: 3.798 | D29: 3.798 | E29: 619.2 | F29: 619.2 | R29: 315
A30: 2008-04-18T16:00:00 | B30: 7.03 | C30: 3.771 | D30: 3.771 | E30: 630.4 | F30: 630.4 | G30: 0.02 | I30: 5.04 | R30: 330
A31: 2008-04-18T16:15:00 | B31: 7.08 | C31: 3.761 | D31: 3.761 | E31: 643 | F31: 643 | Q31: X | R31: =R30+(15*((L12-F30)/(F31-F30))) -> 332.5193452

Sheet 2008_25
A1: Date/Time | B1: Air Temperature (deg C) | C1: 21-cm subsurface drain temp., unedited (°C) | D1: 21-cm subsurface drain temp. (°C) | E1: 21-cm subsurface drain SC, unedited (mS/cm) | F1: 21-cm subsurface drain SC (mS/cm) | G1: Precip (inch) | H1: Cumulative Precip (inch) | I1: Gage height (feet), relative | J1: SCEO (mS/cm) | K1: SC50 (mS/cm) | L1: SC90 (mS/cm) | M1: tS | N1: tEO | O1: tEM | P1: t50 | Q1: t90 | R1: Time (minutes)
A2: 2008-04-22T01:30:00 | B2: 6.894 | C2: 3.95 | D2: 3.95 | E2: 651 | F2: 651 | G2: 0 | I2: 4.8
A3: 2008-04-22T01:45:00 | B3: 6.639 | C3: 3.931 | D3: 3.931 | E3: 651.4 | F3: 651.4
A4: 2008-04-22T02:00:00 | B4: 6.592 | C4: 3.951 | D4: 3.951 | E4: 651.2 | F4: 651.2 | G4: 0 | I4: 4.8
A5: 2008-04-22T02:15:00 | B5: 6.44 | C5: 3.941 | D5: 3.941 | E5: 651.1 | F5: 651.1
A6: 2008-04-22T02:30:00 | B6: 6.355 | C6: 3.95 | D6: 3.95 | E6: 650.2 | F6: 650.2 | G6: 0.06 | I6: 4.8 | M6: X | R6: 0
A7: 2008-04-22T02:45:00 | B7: 6.194 | C7: 3.94 | D7: 3.94 | E7: 652 | F7: 652 | R7: =R6+15 -> 15
A8: 2008-04-22T03:00:00 | B8: 6.082 | C8: 3.951 | D8: 3.951 | E8: 651.2 | F8: 651.2 | G8: 0.1 | I8: 4.81 | R8: =R7+15 -> 30
A9: 2008-04-22T03:15:00 | B9: 5.949 | C9: 3.95 | D9: 3.95 | E9: 660.1 | F9: 660.1 | J9: =AVERAGE(F2:F9) -> 652.275 | K9: =F11+((J9-F11)*0.5) -> 574.1875 | L9: =F11+((J9-F11)*0.9) -> 636.6575 | R9: 45
A10: 2008-04-22T03:30:00 | B10: 6.006 | C10: 3.979 | E10: 735 | G10: 0.02 | I10: 4.8 | R10: 60
A11: 2008-04-22T03:45:00 | B11: 5.674 | C11: 4.06 | D11: 4.06 | E11: 496.1 | F11: 496.1 | N11: X | O11: X | R11: 75
A12: 2008-04-22T04:00:00 | B12: 5.572 | C12: 4.248 | D12: 4.248 | E12: 557 | F12: 557 | G12: 0.01 | H12: =SUM(G6:G12) -> 0.19 | I12: 4.81 | R12: 90
A13: 2008-04-22T04:15:00 | B13: 5.59 | C13: 4.332 | D13: 4.332 | E13: 559.3 | F13: 559.3 | R13: 105
A14: 2008-04-22T04:30:00 | B14: 5.365 | C14: 4.333 | D14: 4.333 | E14: 576.7 | F14: 576.7 | G14: 0 | I14: 4.81 | P14: X | R14: =R13+(15*((K9-F13)/(F14-F13))) -> 117.8340517
A15: 2008-04-22T04:45:00 | B15: 5.206 | C15: 4.287 | D15: 4.287 | E15: 600.4 | F15: 600.4 | R15: =R13+30 -> 135
A16: 2008-04-22T05:00:00 | B16: 5.047 | C16: 4.26 | D16: 4.26 | E16: 606.5 | F16: 606.5 | G16: 0 | I16: 4.8 | R16: =R15+15 -> 150
A17: 2008-04-22T05:15:00 | B17: 5.027 | C17: 4.221 | D17: 4.221 | E17: 619.1 | F17: 619.1 | R17: =R16+15 -> 165
A18: 2008-04-22T05:30:00 | B18: 4.96 | C18: 4.182 | D18: 4.182 | E18: 632.7 | F18: 632.7 | G18: 0 | I18: 4.8 | R18: =R17+15 -> 180
A19: 2008-04-22T05:45:00 | B19: 4.96 | C19: 4.154 | D19: 4.154 | E19: 642 | F19: 642 | Q19: X | R19: =R18+(15*((L9-F18)/(F19-F18))) -> 186.3830645

Sheet 2008_26
A1: Date/Time | B1: Air Temperature (deg C) | C1: 21-cm subsurface drain temp., unedited (°C) | D1: 21-cm subsurface drain temp. (°C) | E1: 21-cm subsurface drain SC, unedited (mS/cm) | F1: 21-cm subsurface drain SC (mS/cm) | G1: Precip (inch) | H1: Cumulative Precip (inch) | I1: Gage height (feet), relative | J1: SCEO (mS/cm) | K1: SC50 (mS/cm) | L1: SC90 (mS/cm) | M1: tS | N1: tEO | O1: tEM | P1: t50 | Q1: t90 | R1: Time (minutes)
A2: 2008-05-23T05:00:00 | B2: 11.68 | C2: 8.61 | D2: 8.61 | E2: 620 | F2: 620 | G2: 0 | I2: 4.25
A3: 2008-05-23T05:15:00 | B3: 11.04 | C3: 8.61 | D3: 8.61 | E3: 620.5 | F3: 620.5
A4: 2008-05-23T05:30:00 | B4: 10.7 | C4: 8.61 | D4: 8.61 | E4: 619.8 | F4: 619.8 | G4: 0 | I4: 4.26
A5: 2008-05-23T05:45:00 | B5: 10.67 | C5: 8.6 | D5: 8.6 | E5: 621.2 | F5: 621.2
A6: 2008-05-23T06:00:00 | B6: 10.56 | C6: 8.61 | D6: 8.61 | E6: 621.4 | F6: 621.4 | G6: 0.08 | I6: 4.26 | M6: X | R6: 0
A7: 2008-05-23T06:15:00 | B7: 10.58 | C7: 8.6 | D7: 8.6 | E7: 625.2 | F7: 625.2 | R7: =R6+15 -> 15
A8: 2008-05-23T06:30:00 | B8: 10.32 | C8: 8.63 | D8: 8.63 | E8: 630.7 | F8: 630.7 | G8: 0.09 | I8: 4.27 | R8: =R7+15 -> 30
A9: 2008-05-23T06:45:00 | B9: 10.33 | C9: 8.64 | D9: 8.64 | E9: 617.4 | F9: 617.4 | J9: =AVERAGE(F2:F9) -> 622.025 | K9: =F11+((J9-F11)*0.5) -> 532.1125 | L9: =F11+((J9-F11)*0.9) -> 604.0425 | R9: 45
A10: 2008-05-23T07:00:00 | B10: 10.11 | C10: 8.65 | E10: 508.2 | F10: 508.2 | G10: 0.09 | I10: 4.28 | N10: X | R10: 60
A11: 2008-05-23T07:15:00 | B11: 9.91 | C11: 8.76 | E11: 442.2 | F11: 442.2 | O11: X | R11: 75
A12: 2008-05-23T07:30:00 | B12: 10.06 | C12: 8.91 | E12: 714 | G12: 0.04 | H12: =SUM(G6:G12) -> 0.3 | I12: 4.28 | R12: 90
A13: 2008-05-23T07:45:00 | B13: 10.31 | C13: 9.11 | E13: 577.9 | R13: 105
A14: 2008-05-23T08:00:00 | B14: 10.41 | C14: 9.23 | E14: 538.7 | G14: 0 | I14: 4.28 | R14: 120
A15: 2008-05-23T08:15:00 | B15: 10.36 | C15: 9.22 | D15: 9.22 | E15: 520.9 | F15: 520.9 | R15: 135
A16: 2008-05-23T08:30:00 | B16: 10.15 | C16: 9.15 | D16: 9.15 | E16: 537.5 | F16: 537.5 | G16: 0 | I16: 4.28 | P16: X | R16: =R15+(15*((K9-F15)/(F16-F15))) -> 145.1317771
A17: 2008-05-23T08:45:00 | B17: 10.02 | C17: 9.1 | D17: 9.1 | E17: 558.5 | F17: 558.5 | R17: =R15+30 -> 165
A18: 2008-05-23T09:00:00 | B18: 10.75 | C18: 9.01 | D18: 9.01 | E18: 577.8 | F18: 577.8 | G18: 0 | I18: 4.28 | R18: =R17+15 -> 180
A19: 2008-05-23T09:15:00 | B19: 11.03 | C19: 8.96 | D19: 8.96 | E19: 596.3 | F19: 596.3 | R19: =R18+15 -> 195
A20: 2008-05-23T09:30:00 | B20: 11 | C20: 8.91 | D20: 8.91 | E20: 615.4 | F20: 615.4 | G20: 0 | I20: 4.28 | Q20: X | R20: =R19+(15*((L9-F19)/(F20-F19))) -> 201.0804974

Sheet 2008_27
A1: Date/Time | B1: Air Temperature (deg C) | C1: 21-cm subsurface drain temp., unedited (°C) | D1: 21-cm subsurface drain temp. (°C) | E1: 21-cm subsurface drain SC, unedited (mS/cm) | F1: 21-cm subsurface drain SC (mS/cm) | G1: Precip (inch) | H1: Cumulative Precip (inch) | I1: Gage height (feet), relative | J1: SCEO (mS/cm) | K1: SC50 (mS/cm) | L1: SC90 (mS/cm) | M1: tS | N1: tEO | O1: tEM | P1: t50 | Q1: t90 | R1: Time (minutes)
A2: 2008-05-29T03:30:00 | B2: 13.41 | C2: 9.23 | D2: 9.23 | E2: 626 | F2: 626 | G2: 0 | I2: 4.18
A3: 2008-05-29T03:45:00 | B3: 12.95 | C3: 9.24 | D3: 9.24 | E3: 625.3 | F3: 625.3
A4: 2008-05-29T04:00:00 | B4: 13.01 | C4: 9.25 | D4: 9.25 | E4: 625.5 | F4: 625.5 | G4: 0 | I4: 4.18
A5: 2008-05-29T04:15:00 | B5: 13.05 | C5: 9.25 | D5: 9.25 | E5: 625.5 | F5: 625.5
A6: 2008-05-29T04:30:00 | B6: 12.27 | C6: 9.25 | D6: 9.25 | E6: 625.7 | F6: 625.7 | G6: 0.09 | I6: 4.18 | M6: X | R6: 0
A7: 2008-05-29T04:45:00 | B7: 11.23 | C7: 9.25 | D7: 9.25 | E7: 625.5 | F7: 625.5 | R7: =R6+15 -> 15
A8: 2008-05-29T05:00:00 | B8: 11.06 | C8: 9.26 | D8: 9.26 | E8: 625.5 | F8: 625.5 | G8: 0.37 | I8: 4.22 | R8: =R7+15 -> 30
A9: 2008-05-29T05:15:00 | B9: 11.06 | C9: 9.25 | D9: 9.25 | E9: 625.1 | F9: 625.1 | J9: =AVERAGE(F2:F9) -> 625.5125 | K9: =F10+((J9-F10)*0.5) -> 420.75625 | L9: =F10+((J9-F10)*0.9) -> 584.56125 | R9: 45
A10: 2008-05-29T05:30:00 | B10: 11.11 | C10: 9.62 | D10: 9.62 | E10: 216 | F10: 216 | G10: 0.12 | I10: 4.23 | N10: X | O10: X | R10: 60
A11: 2008-05-29T05:45:00 | B11: 11.02 | C11: 10.02 | D11: 10.02 | E11: 398.4 | F11: 398.4 | R11: 75
A12: 2008-05-29T06:00:00 | B12: 11 | C12: 10.12 | D12: 10.12 | E12: 390.8 | F12: 390.8 | G12: 0.09 | I12: 4.24 | R12: 90
A13: 2008-05-29T06:15:00 | B13: 11.02 | C13: 10.1 | D13: 10.1 | E13: 407.3 | F13: 407.3 | R13: 105
A14: 2008-05-29T06:30:00 | B14: 10.96 | C14: 10.06 | D14: 10.06 | E14: 440.9 | F14: 440.9 | G14: 0.07 | I14: 4.25 | P14: X | R14: =R13+(15*((K9-F13)/(F14-F13))) -> 111.0072545
A15: 2008-05-29T06:45:00 | B15: 10.97 | C15: 10.11 | D15: 10.11 | E15: 453.1 | F15: 453.1 | R15: =R13+30 -> 135
A16: 2008-05-29T07:00:00 | B16: 11.12 | C16: 10.1 | D16: 10.1 | E16: 461.7 | F16: 461.7 | G16: 0.01 | H16: =SUM(G6:G16) -> 0.75 | I16: 4.26 | R16: =R15+15 -> 150
A17: 2008-05-29T07:15:00 | B17: 11.24 | C17: 10.03 | D17: 10.03 | E17: 486.3 | F17: 486.3 | R17: =R16+15 -> 165
A18: 2008-05-29T07:30:00 | B18: 11.4 | C18: 10.07 | D18: 10.07 | E18: 526.2 | F18: 526.2 | G18: 0 | I18: 4.27 | R18: 180
A19: 2008-05-29T07:45:00 | B19: 11.39 | C19: 10.02 | D19: 10.02 | E19: 479.1 | F19: 479.1 | R19: 195
A20: 2008-05-29T08:00:00 | B20: 11.5 | C20: 9.9 | D20: 9.9 | E20: 542.5 | F20: 542.5 | G20: 0.03 | I20: 4.31 | R20: 210
A21: 2008-05-29T08:15:00 | B21: 11.49 | C21: 9.84 | D21: 9.84 | E21: 578 | F21: 578 | R21: 225
A22: 2008-05-29T08:30:00 | B22: 11.56 | C22: 9.76 | D22: 9.76 | E22: 602.7 | F22: 602.7 | G22: 0 | I22: 4.33 | Q22: X | R22: =R21+(15*((L9-F21)/(F22-F21))) -> 228.9845648

Sheet 2008_28
A1: Date/Time | B1: Air Temperature (deg C) | C1: 21-cm subsurface drain temp., unedited (°C) | D1: 21-cm subsurface drain temp. (°C) | E1: 21-cm subsurface drain SC, unedited (mS/cm) | F1: 21-cm subsurface drain SC (mS/cm) | G1: Precip (inch) | H1: Cumulative Precip (inch) | I1: Gage height (feet), relative | J1: SCEO (mS/cm) | K1: SC50 (mS/cm) | L1: SC90 (mS/cm) | M1: tS | N1: tEO | O1: tEM | P1: t50 | Q1: t90 | R1: Time (minutes)
A2: 2008-06-27T15:00:00 | B2: 28.9 | C2: 14.1 | D2: 14.1 | E2: 632.4 | F2: 632.4 | G2: 0 | I2: 4.99
A3: 2008-06-27T15:15:00 | B3: 28.79 | C3: 14.09 | D3: 14.09 | E3: 632.5 | F3: 632.5
A4: 2008-06-27T15:30:00 | B4: 29.18 | C4: 14.1 | D4: 14.1 | E4: 633.3 | F4: 633.3 | G4: 0 | I4: 4.99
A5: 2008-06-27T15:45:00 | B5: 28.95 | C5: 14.1 | D5: 14.1 | E5: 632.1 | F5: 632.1
A6: 2008-06-27T16:00:00 | B6: 28.67 | C6: 14.09 | D6: 14.09 | E6: 633.1 | F6: 633.1 | G6: 0 | I6: 4.99
A7: 2008-06-27T16:15:00 | B7: 28.4 | C7: 14.09 | D7: 14.09 | E7: 634.1 | F7: 634.1
A8: 2008-06-27T16:30:00 | B8: 27.28 | C8: 14.1 | D8: 14.1 | E8: 635.6 | F8: 635.6 | G8: 0 | I8: 4.99
A9: 2008-06-27T16:45:00 | B9: 26.56 | C9: 14.11 | D9: 14.11 | E9: 635.4 | F9: 635.4
A10: 2008-06-27T17:00:00 | B10: 19.06 | C10: 14.11 | D10: 14.11 | E10: 634.9 | F10: 634.9 | G10: 0.04 | I10: 5.01 | J10: =AVERAGE(F3:F10) -> 633.875 | K10: =F14+((J10-F14)*0.5) -> 399.1875 | L10: =F14+((J10-F14)*0.9) -> 586.9375 | M10: X | R10: 0
A11: 2008-06-27T17:15:00 | B11: 21.2 | C11: 14.29 | D11: 14.29 | E11: 595.4 | F11: 595.4 | N11: X | R11: =R10+15 -> 15
A12: 2008-06-27T17:30:00 | B12: 21.79 | C12: 15.73 | D12: 15.73 | E12: 615.1 | F12: 615.1 | G12: 0.09 | I12: 5.04 | R12: =R11+15 -> 30
A13: 2008-06-27T17:45:00 | B13: 21.8 | C13: 14.26 | D13: 14.26 | E13: 605.2 | F13: 605.2 | R13: 45
A14: 2008-06-27T18:00:00 | B14: 21.69 | C14: 16.13 | D14: 16.13 | E14: 164.5 | F14: 164.5 | G14: 0.05 | I14: 5.08 | O14: X | R14: 60
A15: 2008-06-27T18:15:00 | B15: 21.72 | C15: 17.09 | D15: 17.09 | E15: 170.9 | F15: 170.9 | R15: 75
A16: 2008-06-27T18:30:00 | B16: 22.14 | C16: 17.17 | D16: 17.17 | E16: 297.4 | F16: 297.4 | G16: 0.05 | I16: 5.13 | R16: 90
A17: 2008-06-27T18:45:00 | B17: 22.11 | C17: 16.4 | D17: 16.4 | E17: 419.7 | F17: 419.7 | P17: X | R17: =R16+(15*((K10-F16)/(F17-F16))) -> 102.4841578
A18: 2008-06-27T19:00:00 | B18: 21.94 | C18: 15.88 | D18: 15.88 | E18: 505.5 | F18: 505.5 | G18: 0.04 | I18: 5.13 | R18: =R16+30 -> 120
A19: 2008-06-27T19:15:00 | B19: 22.26 | C19: 15.49 | D19: 15.49 | E19: 559.8 | F19: 559.8 | R19: =R18+15 -> 135
A20: 2008-06-27T19:30:00 | B20: 21.25 | C20: 15.24 | D20: 15.24 | E20: 576.2 | F20: 576.2 | G20: 0.02 | I20: 5.14 | R20: =R19+15 -> 150
A21: 2008-06-27T19:45:00 | B21: 20.84 | C21: 15.15 | D21: 15.15 | E21: 579 | F21: 579 | R21: 165
A22: 2008-06-27T20:00:00 | B22: 20.4 | C22: 15.06 | D22: 15.06 | E22: 578.9 | F22: 578.9 | G22: 0.02 | I22: 5.15 | R22: 180
A23: 2008-06-27T20:15:00 | B23: 20.02 | C23: 14.99 | D23: 14.99 | E23: 580.4 | F23: 580.4 | R23: 195
A24: 2008-06-27T20:30:00 | B24: 19.75 | C24: 14.96 | D24: 14.96 | E24: 580.4 | F24: 580.4 | G24: 0.02 | I24: 5.14 | R24: 210
A25: 2008-06-27T20:45:00 | B25: 19.37 | C25: 14.9 | D25: 14.9 | E25: 581 | F25: 581 | R25: 225
A26: 2008-06-27T21:00:00 | B26: 19.23 | C26: 14.9 | D26: 14.9 | E26: 580.5 | F26: 580.5 | G26: 0.01 | I26: 5.13 | R26: 240
A27: 2008-06-27T21:15:00 | B27: 18.58 | C27: 14.86 | D27: 14.86 | E27: 581.3 | F27: 581.3 | R27: 255
A28: 2008-06-27T21:30:00 | B28: 18.37 | C28: 14.86 | D28: 14.86 | E28: 581 | F28: 581 | G28: 0.01 | I28: 5.12 | R28: 270
A29: 2008-06-27T21:45:00 | B29: 18.39 | C29: 14.84 | D29: 14.84 | E29: 580.8 | F29: 580.8 | R29: 285
A30: 2008-06-27T22:00:00 | B30: 18.54 | C30: 14.81 | D30: 14.81 | E30: 581 | F30: 581 | G30: 0 | I30: 5.11 | R30: 300
A31: 2008-06-27T22:15:00 | B31: 18.41 | C31: 14.8 | D31: 14.8 | E31: 581.1 | F31: 581.1 | R31: 315
A32: 2008-06-27T22:30:00 | B32: 18.33 | C32: 14.79 | D32: 14.79 | E32: 582.4 | F32: 582.4 | G32: 0.01 | H32: =SUM(G10:G32) -> 0.36 | I32: 5.1 | R32: 330
A33: 2008-06-27T22:45:00 | B33: 18.42 | C33: 14.79 | D33: 14.79 | E33: 581.9 | F33: 581.9 | R33: 345
A34: 2008-06-27T23:00:00 | B34: 18.09 | C34: 14.77 | D34: 14.77 | E34: 582.2 | F34: 582.2 | G34: 0 | I34: 5.09 | R34: 360
A35: 2008-06-27T23:15:00 | B35: 18.25 | C35: 14.77 | D35: 14.77 | E35: 582 | F35: 582 | R35: 375
A36: 2008-06-27T23:30:00 | B36: 18.6 | C36: 14.76 | D36: 14.76 | E36: 581.5 | F36: 581.5 | G36: 0 | I36: 5.09 | R36: 390
A37: 2008-06-27T23:45:00 | B37: 18.62 | C37: 14.75 | D37: 14.75 | E37: 582.3 | F37: 582.3 | R37: 405
A38: 2008-06-28 | B38: 18.36 | C38: 14.76 | D38: 14.76 | E38: 582.3 | F38: 582.3 | G38: 0.01 | I38: 5.08 | R38: 420
A39: 2008-06-28T00:15:00 | B39: 18.42 | C39: 14.73 | D39: 14.73 | E39: 582.8 | F39: 582.8 | R39: 435
A40: 2008-06-28T00:30:00 | B40: 18.2 | C40: 14.73 | D40: 14.73 | E40: 593.2 | F40: 593.2 | G40: 0 | I40: 5.08 | Q40: X | R40: =R39+(15*((L10-F39)/(F40-F39))) -> 440.9675481

Sheet 2008_29 (2)
A1: Date/Time | B1: Air Temperature (deg C) | C1: 21-cm subsurface drain temp., unedited (°C) | D1: 21-cm subsurface drain temp. (°C) | E1: 21-cm subsurface drain SC, unedited (mS/cm) | F1: 21-cm subsurface drain SC (mS/cm) | G1: Precip (inch) | H1: Cumulative Precip (inch) | I1: Gage height (feet), relative | J1: SCEO (mS/cm) | K1: SC50 (mS/cm) | L1: SC90 (mS/cm) | M1: tS | N1: tEO | O1: tEM | P1: t50 | Q1: t90 | R1: Time (minutes)
A2: 2008-07-06T18:30:00 | B2: 21.11 | C2: 14.73 | D2: 14.73 | E2: 650.1 | F2: 650.1 | G2: 0.02 | I2: 4.34 | M2: X | R2: 0
A3: 2008-07-06T18:45:00 | B3: 20.81 | C3: 14.71 | D3: 14.71 | E3: 648.9 | F3: 648.9 | R3: =R2+15 -> 15
A4: 2008-07-06T19:00:00 | B4: 20.47 | C4: 14.75 | D4: 14.75 | E4: 648.1 | F4: 648.1 | G4: 0.03 | I4: 4.35 | R4: =R3+15 -> 30
A5: 2008-07-06T19:15:00 | B5: 20.43 | C5: 14.74 | D5: 14.74 | E5: 646.4 | F5: 646.4 | R5: 45
A6: 2008-07-06T19:30:00 | B6: 20.43 | C6: 14.72 | D6: 14.72 | E6: 648 | F6: 648 | G6: 0.01 | I6: 4.34 | R6: 60
A7: 2008-07-06T19:45:00 | B7: 20.45 | C7: 14.71 | D7: 14.71 | E7: 649.3 | F7: 649.3 | R7: 75
A8: 2008-07-06T20:00:00 | B8: 20.61 | C8: 14.72 | D8: 14.72 | E8: 653.8 | F8: 653.8 | G8: 0.01 | H8: =SUM(G2:G8) -> 0.07 | I8: 4.34 | R8: 90
A9: 2008-07-06T20:15:00 | B9: 20.51 | C9: 14.74 | D9: 14.74 | E9: 654.1 | F9: 654.1 | R9: 105
A10: 2008-07-06T20:30:00 | B10: 20.36 | C10: 14.75 | D10: 14.75 | E10: 658.9 | F10: 658.9 | G10: 0 | I10: 4.34 | J10: =AVERAGE(F3:F10) -> 650.9375 | K10: =F12+((J10-F12)*0.5) -> 615.36875 | L10: =F12+((J10-F12)*0.9) -> 643.82375 | R10: 120
A11: 2008-07-06T20:45:00 | B11: 20.42 | C11: 14.77 | D11: 14.77 | E11: 609.1 | F11: 609.1 | N11: X | R11: 135
A12: 2008-07-06T21:00:00 | B12: 20.4 | C12: 14.76 | D12: 14.76 | E12: 579.8 | F12: 579.8 | G12: 0 | I12: 4.34 | O12: X | R12: 150
A13: 2008-07-06T21:15:00 | B13: 20.39 | C13: 14.78 | D13: 14.78 | E13: 587 | F13: 587 | R13: 165
A14: 2008-07-06T21:30:00 | B14: 20.42 | C14: 14.77 | D14: 14.77 | E14: 606.4 | F14: 606.4 | G14: 0 | I14: 4.34 | R14: 180
A15: 2008-07-06T21:45:00 | B15: 20.45 | C15: 14.78 | D15: 14.78 | E15: 597.2 | F15: 597.2 | R15: 195
A16: 2008-07-06T22:00:00 | B16: 20.5 | C16: 14.75 | D16: 14.75 | E16: 602.8 | F16: 602.8 | G16: 0 | I16: 4.34 | R16: 210
A17: 2008-07-06T22:15:00 | B17: 20.63 | C17: 14.77 | D17: 14.77 | E17: 616.6 | F17: 616.6 | P17: X | R17: =R16+(15*((K10-F16)/(F17-F16))) -> 223.6616848
A18: 2008-07-06T22:30:00 | B18: 20.75 | C18: 14.77 | D18: 14.77 | E18: 629 | F18: 629 | G18: 0 | I18: 4.33 | R18: =R16+30 -> 240
A19: 2008-07-06T22:45:00 | B19: 20.76 | C19: 14.75 | D19: 14.75 | E19: 636.4 | F19: 636.4 | R19: =R18+15 -> 255
A20: 2008-07-06T23:00:00 | B20: 20.72 | C20: 14.76 | D20: 14.76 | E20: 639.2 | F20: 639.2 | G20: 0 | I20: 4.33 | R20: =R19+15 -> 270
A21: 2008-07-06T23:15:00 | B21: 20.62 | C21: 14.75 | D21: 14.75 | E21: 640.3 | F21: 640.3 | R21: 285
A22: 2008-07-06T23:30:00 | B22: 20.6 | C22: 14.76 | D22: 14.76 | E22: 642.5 | F22: 642.5 | G22: 0 | I22: 4.33 | R22: 300
A23: 2008-07-06T23:45:00 | B23: 20.62 | C23: 14.76 | D23: 14.76 | E23: 643.2 | F23: 643.2 | R23: 315
A24: 2008-07-07 | B24: 20.59 | C24: 14.77 | D24: 14.77 | E24: 644.2 | F24: 644.2 | G24: 0 | I24: 4.33 | Q24: X | R24: =R23+(15*((L10-F23)/(F24-F23))) -> 324.35625
A25: 2008-07-07T14:00:00 | B25: 31.93 | C25: 14.83 | D25: 14.83 | E25: 650.1 | F25: 650.1 | G25: 0 | I25: 4.31
A26: 2008-07-07T14:15:00 | B26: 31.33 | C26: 14.84 | D26: 14.84 | E26: 650.3 | F26: 650.3
A27: 2008-07-07T14:30:00 | B27: 32.36 | C27: 14.83 | D27: 14.83 | E27: 650.1 | F27: 650.1 | G27: 0 | I27: 4.32
A28: 2008-07-07T14:45:00 | B28: 32.47 | C28: 14.83 | D28: 14.83 | E28: 651.2 | F28: 651.2
A29: 2008-07-07T15:00:00 | B29: 31.62 | C29: 14.84 | D29: 14.84 | E29: 650.1 | F29: 650.1 | G29: 0 | I29: 4.32
A30: 2008-07-07T15:15:00 | B30: 30.98 | C30: 14.83 | D30: 14.83 | E30: 648.9 | F30: 648.9
A31: 2008-07-07T15:30:00 | B31: 30.88 | C31: 14.82 | D31: 14.82 | E31: 650.4 | F31: 650.4 | G31: 0 | I31: 4.32
A32: 2008-07-07T15:45:00 | B32: 23.61 | C32: 14.84 | D32: 14.84 | E32: 650.8 | F32: 650.8
A33: 2008-07-07T16:00:00 | B33: 21.98 | C33: 14.82 | D33: 14.82 | E33: 649.7 | F33: 649.7 | G33: 0.45 | I33: 4.36 | J33: =AVERAGE(F26:F33) -> 650.1875 | K33: =F37+((J33-F37)*0.5) -> 415.24375 | L33: =F37+((J33-F37)*0.9) -> 603.19875 | M33: X | R33: 0
A34: 2008-07-07T16:15:00 | B34: 22.88 | C34: 15.01 | D34: 15.01 | E34: 615.8 | F34: 615.8 | N34: X | R34: =R33+15 -> 15
A35: 2008-07-07T16:30:00 | B35: 22.66 | C35: 15.01 | D35: 15.01 | E35: 633.4 | F35: 633.4 | G35: 0.08 | I35: 4.39 | R35: =R34+15 -> 30
A36: 2008-07-07T16:45:00 | B36: 22.93 | C36: 15.93 | D36: 15.93 | E36: 225.9 | F36: 225.9 | R36: 45
A37: 2008-07-07T17:00:00 | B37: 21.02 | C37: 17.46 | D37: 17.46 | E37: 180.3 | F37: 180.3 | G37: 0.02 | I37: 4.4 | O37: X | R37: 60
A38: 2008-07-07T17:15:00 | B38: 20.68 | C38: 17.58 | D38: 17.58 | E38: 233.5 | F38: 233.5 | R38: 75
A39: 2008-07-07T17:30:00 | B39: 21.54 | C39: 17.25 | D39: 17.25 | E39: 387.9 | F39: 387.9 | G39: 0.02 | I39: 4.42 | R39: 90
A40: 2008-07-07T17:45:00 | B40: 21.25 | C40: 16.66 | D40: 16.66 | E40: 475.9 | F40: 475.9 | P40: X | R40: =R39+(15*((K33-F39)/(F40-F39))) -> 94.66086648
A41: 2008-07-07T18:00:00 | B41: 21.18 | C41: 16.35 | D41: 16.35 | E41: 515.4 | F41: 515.4 | G41: 0.02 | I41: 4.45 | R41: =R39+30 -> 120
A42: 2008-07-07T18:15:00 | B42: 21.13 | C42: 16.13 | D42: 16.13 | E42: 552.8 | F42: 552.8 | R42: =R41+15 -> 135
A43: 2008-07-07T18:30:00 | B43: 21.04 | C43: 15.98 | D43: 15.98 | E43: 576.2 | F43: 576.2 | G43: 0.02 | I43: 4.45 | R43: =R42+15 -> 150
A44: 2008-07-07T18:45:00 | B44: 21.31 | C44: 15.86 | D44: 15.86 | E44: 585.4 | F44: 585.4 | R44: =R43+15 -> 165
A45: 2008-07-07T19:00:00 | B45: 21.56 | C45: 15.83 | D45: 15.83 | E45: 610.8 | F45: 610.8 | G45: 0.02 | I45: 4.46 | Q45: X | R45: =R44+(15*((L33-F44)/(F45-F44))) -> 175.5110728
A46: 2008-07-07T19:15:00 | B46: 21.56 | C46: 15.82 | D46: 15.82 | E46: 579.4 | F46: 579.4
A47: 2008-07-07T19:30:00 | B47: 21.71 | C47: 15.8 | D47: 15.8 | E47: 529.5 | F47: 529.5 | G47: 0.03 | H47: =SUM(G33:G47) -> 0.66 | I47: 4.46

Sheet 2008_30
A1: Date/Time | B1: Air Temperature (deg C) | C1: 21-cm subsurface drain temp., unedited (°C) | D1: 21-cm subsurface drain temp. (°C) | E1: 21-cm subsurface drain SC, unedited (mS/cm) | F1: 21-cm subsurface drain SC (mS/cm) | G1: Precip (inch) | H1: Cumulative Precip (inch) | I1: Gage height (feet), relative | J1: SCEO (mS/cm) | K1: SC50 (mS/cm) | L1: SC90 (mS/cm) | M1: tS | N1: tEO | O1: tEM | P1: t50 | Q1: t90 | R1: Time (minutes)
A2: 2008-07-09T13:30:00 | B2: 25.25 | C2: 15.11 | D2: 15.11 | E2: 651.2 | F2: 651.2 | G2: 0 | I2: 4.3
A3: 2008-07-09T13:45:00 | B3: 21.16 | C3: 15.07 | D3: 15.07 | E3: 651.7 | F3: 651.7
A4: 2008-07-09T14:00:00 | B4: 22.6 | C4: 15.08 | D4: 15.08 | E4: 651.1 | F4: 651.1 | G4: 0 | I4: 4.3
A5: 2008-07-09T14:15:00 | B5: 19.75 | C5: 15.09 | D5: 15.09 | E5: 651.4 | F5: 651.4
A6: 2008-07-09T14:30:00 | B6: 20.1 | C6: 15.08 | D6: 15.08 | E6: 651.5 | F6: 651.5 | G6: 0.15 | H6: =SUM(G6) -> 0.15 | I6: 4.31 | M6: X | R6: 0
A7: 2008-07-09T14:45:00 | B7: 20.82 | C7: 15.08 | D7: 15.08 | E7: 651.4 | F7: 651.4 | R7: =R6+15 -> 15
A8: 2008-07-09T15:00:00 | B8: 22.45 | C8: 15.1 | D8: 15.1 | E8: 652.5 | F8: 652.5 | G8: 0 | I8: 4.31 | R8: =R7+15 -> 30
A9: 2008-07-09T15:15:00 | B9: 23.94 | C9: 15.1 | E9: 658.6 | F9: 658.6 | J9: =AVERAGE(F2:F9) -> 652.425 | K9: =F12+((J9-F12)*0.5) -> 582.6625 | L9: =F12+((J9-F12)*0.9) -> 638.4725 | R9: 45
A10: 2008-07-09T15:30:00 | B10: 23.5 | C10: 15.15 | E10: 704 | G10: 0 | I10: 4.31 | R10: 60
A11: 2008-07-09T15:45:00 | B11: 23.59 | C11: 15.21 | E11: 965 | R11: 75
A12: 2008-07-09T16:00:00 | B12: 23.96 | C12: 15.22 | E12: 512.9 | F12: 512.9 | G12: 0 | I12: 4.31 | N12: X | O12: X | R12: 90
A13: 2008-07-09T16:15:00 | B13: 24.57 | C13: 15.17 | E13: 551.4 | F13: 551.4 | R13: 105
A14: 2008-07-09T16:30:00 | B14: 24.58 | C14: 15.17 | D14: 15.17 | E14: 568.6 | F14: 568.6 | G14: 0 | I14: 4.31 | R14: 120
A15: 2008-07-09T16:45:00 | B15: 24.13 | C15: 15.17 | D15: 15.17 | E15: 578.2 | F15: 578.2 | R15: 135
A16: 2008-07-09T17:00:00 | B16: 23.68 | C16: 15.17 | D16: 15.17 | E16: 592.4 | F16: 592.4 | G16: 0 | I16: 4.32 | P16: X | R16: =R15+(15*((K9-F15)/(F16-F15))) -> 139.7139085
A17: 2008-07-09T17:15:00 | B17: 24.41 | C17: 15.14 | D17: 15.14 | E17: 610.9 | F17: 610.9 | R17: =R15+30 -> 165
A18: 2008-07-09T17:30:00 | B18: 24.91 | C18: 15.14 | D18: 15.14 | E18: 627.2 | F18: 627.2 | G18: 0 | I18: 4.33 | R18: =R17+15 -> 180
A19: 2008-07-09T17:45:00 | B19: 24.96 | C19: 15.15 | D19: 15.15 | E19: 637.4 | F19: 637.4 | R19: =R18+15 -> 195
A20: 2008-07-09T18:00:00 | B20: 24.71 | C20: 15.14 | D20: 15.14 | E20: 643.8 | F20: 643.8 | G20: 0 | I20: 4.35 | Q20: X | R20: =R19+(15*((L9-F19)/(F20-F19))) -> 197.5136719

Sheet 2008_31
A1: Date/Time | B1: Air Temperature (deg C) | C1: 21-cm subsurface drain temp., unedited (°C) | D1: 21-cm subsurface drain temp. (°C) | E1: 21-cm subsurface drain SC, unedited (mS/cm) | F1: 21-cm subsurface drain SC (mS/cm) | G1: Precip (inch) | H1: Cumulative Precip (inch) | I1: Gage height (feet), relative | J1: SCEO (mS/cm) | K1: SC50 (mS/cm) | L1: SC90 (mS/cm) | M1: tS | N1: tEO | O1: tEM | P1: t50 | Q1: t90 | R1: Time (minutes)
A2: 2008-07-17T11:00:00 | B2: 29.28 | C2: 15.64 | D2: 15.64 | E2: 677 | F2: 677 | G2: 0 | I2: 4.12
A3: 2008-07-17T11:15:00 | B3: 29.62 | C3: 15.65 | D3: 15.65 | E3: 673.1 | F3: 673.1
A4: 2008-07-17T11:30:00 | B4: 30.67 | C4: 15.63 | D4: 15.63 | E4: 683.8 | F4: 683.8 | G4: 0 | I4: 4.12
A5: 2008-07-17T11:45:00 | B5: 30.75 | C5: 15.66 | E5: 687.6
A6: 2008-07-17T12:00:00 | B6: 30.61 | C6: 15.65 | E6: 712 | G6: 0 | I6: 4.12
A7: 2008-07-17T12:15:00 | B7: 30.18 | C7: 15.71 | E7: 1910
A8: 2008-07-17T12:30:00 | B8: 30.63 | C8: 15.69 | E8: 736 | G8: 0 | I8: 4.12
A9: 2008-07-17T12:45:00 | B9: 30.02 | C9: 15.66 | E9: 688.7
A10: 2008-07-17T13:00:00 | B10: 28.87 | C10: 15.67 | D10: 15.67 | E10: 680 | F10: 680 | G10: 0 | I10: 4.12
A11: 2008-07-17T13:15:00 | B11: 28.33 | C11: 15.66 | D11: 15.66 | E11: 677.1 | F11: 677.1
A12: 2008-07-17T13:30:00 | B12: 27.87 | C12: 15.66 | D12: 15.66 | E12: 675.1 | F12: 675.1 | G12: 0 | I12: 4.12
A13: 2008-07-17T13:45:00 | B13: 28.03 | C13: 15.66 | D13: 15.66 | E13: 674.5 | F13: 674.5
A14: 2008-07-17T14:00:00 | B14: 27.85 | C14: 15.65 | D14: 15.65 | E14: 674.6 | F14: 674.6 | G14: 0 | I14: 4.12
A15: 2008-07-17T14:15:00 | B15: 18.77 | C15: 15.65 | D15: 15.65 | E15: 673.9 | F15: 673.9 | J15: =AVERAGE(F3:F15) -> 676.5125 | K15: =F17+((J15-F17)*0.5) -> 361.46125 | L15: =F17+((J15-F17)*0.9) -> 613.50225 | M15: X | R15: 0
A16: 2008-07-17T14:30:00 | B16: 18.76 | C16: 17.23 | D16: 17.23 | E16: 179.8 | F16: 179.8 | G16: 1.01 | I16: 4.24 | N16: X | R16: =R15+15 -> 15
A17: 2008-07-17T14:45:00 | B17: 18.46 | C17: 19.64 | D17: 19.64 | E17: 46.41 | F17: 46.41 | O17: X | R17: =R16+15 -> 30
A18: 2008-07-17T15:00:00 | B18: 18.44 | C18: 16.29 | D18: 16.29 | E18: 494.6 | F18: 494.6 | G18: 0.5 | I18: 4.35 | R18: =R17+15 -> 45
A19: 2008-07-17T15:15:00 | B19: 18.75 | C19: 17.81 | D19: 17.81 | E19: 168.1 | F19: 168.1 | R19: 60
A20: 2008-07-17T15:30:00 | B20: 19.01 | C20: 18.25 | D20: 18.25 | E20: 181 | F20: 181 | G20: 0.09 | I20: 4.4 | R20: 75
A21: 2008-07-17T15:45:00 | B21: 19.44 | C21: 18.44 | D21: 18.44 | E21: 162.9 | F21: 162.9 | R21: 90
A22: 2008-07-17T16:00:00 | B22: 19.9 | C22: 18.47 | D22: 18.47 | E22: 182.9 | F22: 182.9 | G22: 0 | I22: 4.47 | R22: 105
A23: 2008-07-17T16:15:00 | B23: 20.44 | C23: 18.56 | D23: 18.56 | E23: 199.5 | F23: 199.5 | R23: 120
A24: 2008-07-17T16:30:00 | B24: 21.42 | C24: 18.67 | D24: 18.67 | E24: 255.9 | F24: 255.9 | G24: 0 | I24: 4.69 | R24: 135
A25: 2008-07-17T16:45:00 | B25: 22.15 | C25: 18.55 | D25: 18.55 | E25: 323 | F25: 323 | R25: 150
A26: 2008-07-17T17:00:00 | B26: 22.98 | C26: 18.87 | D26: 18.87 | E26: 315.8 | F26: 315.8 | G26: 0 | I26: 5 | R26: 165
A27: 2008-07-17T17:15:00 | B27: 23.19 | C27: 19.21 | D27: 19.21 | E27: 320.5 | F27: 320.5 | R27: 180
A28: 2008-07-17T17:30:00 | B28: 23.07 | C28: 19.57 | D28: 19.57 | E28: 316.6 | F28: 316.6 | G28: 0 | I28: 5.37 | R28: 195
A29: 2008-07-17T17:45:00 | B29: 22.22 | C29: 19.87 | D29: 19.87 | E29: 310.6 | F29: 310.6 | R29: 210
A30: 2008-07-17T18:00:00 | B30: 21.98 | C30: 20.09 | D30: 20.09 | E30: 302.9 | F30: 302.9 | G30: 0 | I30: 5.6 | R30: 225
A31: 2008-07-17T18:15:00 | B31: 21.78 | C31: 20.14 | D31: 20.14 | E31: 303.4 | F31: 303.4 | R31: 240
A32: 2008-07-17T18:30:00 | B32: 20.87 | C32: 20.15 | D32: 20.15 | E32: 299.8 | F32: 299.8 | G32: 0.04 | I32: 5.68 | R32: 255
A33: 2008-07-17T18:45:00 | B33: 20.94 | C33: 20.13 | D33: 20.13 | E33: 299.6 | F33: 299.6 | R33: 270
A34: 2008-07-17T19:00:00 | B34: 20.54 | C34: 20.12 | D34: 20.12 | E34: 297.2 | F34: 297.2 | G34: 0.13 | I34: 5.77 | R34: 285
A35: 2008-07-17T19:15:00 | B35: 20.71 | C35: 19.98 | D35: 19.98 | E35: 311.9 | F35: 311.9 | R35: 300
A36: 2008-07-17T19:30:00 | B36: 20.44 | C36: 19.91 | D36: 19.91 | E36: 320.8 | F36: 320.8 | G36: 0.01 | I36: 5.84 | R36: 315
A37: 2008-07-17T19:45:00 | B37: 20.06 | C37: 19.34 | D37: 19.34 | E37: 249.1 | F37: 249.1 | R37: 330
A38: 2008-07-17T20:00:00 | B38: 19.83 | C38: 19.8 | D38: 19.8 | E38: 277.1 | F38: 277.1 | G38: 0.04 | I38: 5.87 | R38: 345
A39: 2008-07-17T20:15:00 | B39: 19.86 | C39: 19.83 | D39: 19.83 | E39: 281.7 | F39: 281.7 | R39: 360
A40: 2008-07-17T20:30:00 | B40: 19.94 | C40: 19.67 | D40: 19.67 | E40: 322 | F40: 322 | G40: 0.01 | I40: 5.88 | R40: 375
A41: 2008-07-17T20:45:00 | B41: 19.83 | C41: 19.47 | D41: 19.47 | E41: 337.6 | F41: 337.6 | R41: 390
A42: 2008-07-17T21:00:00 | B42: 19.73 | C42: 19.47 | D42: 19.47 | E42: 309.7 | F42: 309.7 | G42: 0.03 | H42: =SUM(G16:G42) -> 1.86 | I42: 5.87 | R42: 405
A43: 2008-07-17T21:15:00 | B43: 19.53 | C43: 19.4 | D43: 19.4 | E43: 332.8 | F43: 332.8 | R43: 420
A44: 2008-07-17T21:30:00 | B44: 19.6 | C44: 19.29 | D44: 19.29 | E44: 343.6 | F44: 343.6 | G44: 0 | I44: 5.85 | R44: 435
A45: 2008-07-17T21:45:00 | B45: 19.47 | C45: 19.29 | D45: 19.29 | E45: 322.2 | F45: 322.2 | R45: 450
A46: 2008-07-17T22:00:00 | B46: 19.53 | C46: 19.34 | D46: 19.34 | E46: 315.7 | F46: 315.7 | G46: 0 | I46: 5.83 | R46: 465
A47: 2008-07-17T22:15:00 | B47: 19.63 | C47: 19.34 | D47: 19.34 | E47: 315.1 | F47: 315.1 | R47: 480
A48: 2008-07-17T22:30:00 | B48: 19.71 | C48: 19.33 | D48: 19.33 | E48: 314.9 | F48: 314.9 | G48: 0 | I48: 5.82 | R48: 495
A49: 2008-07-17T22:45:00 | B49: 19.7 | C49: 19.29 | D49: 19.29 | E49: 316.4 | F49: 316.4 | R49: 510
A50: 2008-07-17T23:00:00 | B50: 19.65 | C50: 19.26 | D50: 19.26 | E50: 314.2 | F50: 314.2 | G50: 0.01 | I50: 5.84 | R50: 525
A51: 2008-07-17T23:15:00 | B51: 19.56 | C51: 19.25 | D51: 19.25 | E51: 315.9 | F51: 315.9 | R51: 540
A52: 2008-07-17T23:30:00 | B52: 19.57 | C52: 19.17 | D52: 19.17 | E52: 321.2 | F52: 321.2 | G52: 0 | I52: 5.91 | R52: 555
A53: 2008-07-17T23:45:00 | B53: 19.48 | C53: 19.13 | D53: 19.13 | E53: 329.1 | F53: 329.1 | R53: 570
A54: 2008-07-18 | B54: 19.43 | C54: 19.07 | D54: 19.07 | E54: 340.6 | F54: 340.6 | G54: 0 | I54: 5.93 | R54: 585
A55: 2008-07-18T00:15:00 | B55: 19.43 | C55: 18.97 | D55: 18.97 | E55: 351.6 | F55: 351.6 | R55: 600
A56: 2008-07-18T00:30:00 | B56: 19.39 | C56: 18.87 | D56: 18.87 | E56: 364.5 | F56: 364.5 | G56: 0 | I56: 5.94 | P56: X | R56: =R55+(15*((K15-F55)/(F56-F55))) -> 611.4665698
A57: 2008-07-18T00:45:00 | B57: 19.36 | C57: 18.81 | D57: 18.81 | E57: 381.2 | F57: 381.2 | R57: =R55+30 -> 630
A58: 2008-07-18T01:00:00 | B58: 19.32 | C58: 18.71 | D58: 18.71 | E58: 394.3 | F58: 394.3 | G58: 0 | I58: 5.94 | R58: =R57+15 -> 645
A59: 2008-07-18T01:15:00 | B59: 19.26 | C59: 18.63 | D59: 18.63 | E59: 407.8 | F59: 407.8 | R59: =R58+15 -> 660
A60: 2008-07-18T01:30:00 | B60: 19.21 | C60: 18.56 | D60: 18.56 | E60: 421.1 | F60: 421.1 | G60: 0 | I60: 5.92 | R60: 675
A61: 2008-07-18T01:45:00 | B61: 19.15 | C61: 18.47 | D61: 18.47 | E61: 431.6 | F61: 431.6 | R61: 690
A62: 2008-07-18T02:00:00 | B62: 19.23 | C62: 18.39 | D62: 18.39 | E62: 445.1 | F62: 445.1 | G62: 0 | I62: 5.91 | R62: 705
A63: 2008-07-18T02:15:00 | B63: 19.19 | C63: 18.31 | D63: 18.31 | E63: 459.7 | F63: 459.7 | R63: 720
A64: 2008-07-18T02:30:00 | B64: 19.24 | C64: 18.23 | D64: 18.23 | E64: 472.9 | F64: 472.9 | G64: 0 | I64: 5.89 | R64: 735
A65: 2008-07-18T02:45:00 | B65: 19.23 | C65: 18.15 | D65: 18.15 | E65: 482.8 | F65: 482.8 | R65: 750
A66: 2008-07-18T03:00:00 | B66: 19.22 | C66: 18.09 | D66: 18.09 | E66: 492 | F66: 492 | G66: 0 | I66: 5.81 | R66: 765
A67: 2008-07-18T03:15:00 | B67: 19.22 | C67: 18.04 | D67: 18.04 | E67: 504 | F67: 504 | R67: 780
A68: 2008-07-18T03:30:00 | B68: 19.19 | C68: 17.93 | D68: 17.93 | E68: 515.2 | F68: 515.2 | G68: 0 | I68: 5.79 | R68: 795
A69: 2008-07-18T03:45:00 | B69: 18.99 | C69: 17.89 | D69: 17.89 | E69: 523.6 | F69: 523.6 | R69: 810
A70: 2008-07-18T04:00:00 | B70: 19.03 | C70: 17.84 | D70: 17.84 | E70: 532 | F70: 532 | G70: 0 | I70: 5.77 | R70: 825
A71: 2008-07-18T04:15:00 | B71: 19.21 | C71: 17.78 | D71: 17.78 | E71: 537.1 | F71: 537.1 | R71: 840
A72: 2008-07-18T04:30:00 | B72: 19.15 | C72: 17.69 | D72: 17.69 | E72: 546.6 | F72: 546.6 | G72: 0 | I72: 5.75 | R72: 855
A73: 2008-07-18T04:45:00 | B73: 19.06 | C73: 17.64 | D73: 17.64 | E73: 555.9 | F73: 555.9 | R73: 870
A74: 2008-07-18T05:00:00 | B74: 18.96 | C74: 17.62 | D74: 17.62 | E74: 560.4 | F74: 560.4 | G74: 0 | I74: 5.72 | R74: 885
A75: 2008-07-18T05:15:00 | B75: 19.01 | C75: 17.59 | D75: 17.59 | E75: 562.9 | F75: 562.9 | R75: 900
A76: 2008-07-18T05:30:00 | B76: 19.07 | C76: 17.51 | D76: 17.51 | E76: 569.1 | F76: 569.1 | G76: 0 | I76: 5.66 | R76: 915
A77: 2008-07-18T05:45:00 | B77: 19.29 | C77: 17.47 | D77: 17.47 | E77: 575 | F77: 575 | R77: 930
A78: 2008-07-18T06:00:00 | B78: 19.65 | C78: 17.44 | D78: 17.44 | E78: 578 | F78: 578 | G78: 0 | I78: 5.64 | R78: 945
A79: 2008-07-18T06:15:00 | B79: 19.84 | C79: 17.4 | D79: 17.4 | E79: 578.6 | F79: 578.6 | R79: 960
A80: 2008-07-18T06:30:00 | B80: 19.95 | C80: 17.35 | D80: 17.35 | E80: 583.5 | F80: 583.5 | G80: 0 | I80: 5.63 | R80: 975
A81: 2008-07-18T06:45:00 | B81: 20.34 | C81: 17.34 | D81: 17.34 | E81: 583.8 | F81: 583.8 | R81: 990
A82: 2008-07-18T07:00:00 | B82: 20.72 | C82: 17.33 | D82: 17.33 | E82: 589.1 | F82: 589.1 | G82: 0 | I82: 5.6 | Q82: X | R82: 1005
A83: 2008-07-18T07:15:00 | B83: 20.96 | C83: 17.29 | D83: 17.29 | E83: 591.8 | F83: 591.8 | R83: 1020
A84: 2008-07-18T07:30:00 | B84: 21.88 | C84: 17.28 | D84: 17.28 | E84: 585.7 | F84: 585.7 | G84: 0 | I84: 5.58 | R84: 1035
A85: 2008-07-18T07:45:00 | B85: 22.01 | C85: 17.25 | D85: 17.25 | E85: 586.8 | F85: 586.8 | R85: 1050
A86: 2008-07-18T08:00:00 | B86: 22.8 | C86: 17.25 | D86: 17.25 | E86: 586.8 | F86: 586.8 | G86: 0 | I86: 5.51 | R86: 1065
A87: 2008-07-18T08:15:00 | B87: 23.69 | C87: 17.23 | D87: 17.23 | E87: 588.8 | F87: 588.8 | R87: 1080
A88: 2008-07-18T08:30:00 | B88: 24.25 | C88: 17.2 | D88: 17.2 | E88: 592.6 | F88: 592.6 | G88: 0 | I88: 5.5 | R88: 1095
A89: 2008-07-18T08:45:00 | B89: 24.03 | C89: 17.22 | D89: 17.22 | E89: 585.3 | F89: 585.3 | R89: 1110
A90: 2008-07-18T09:00:00 | B90: 24.13 | C90: 17.17 | D90: 17.17 | E90: 592 | F90: 592 | G90: 0.03 | I90: 5.48 | R90: 1125
A91: 2008-07-18T09:15:00 | B91: 24.32 | C91: 17.12 | D91: 17.12 | E91: 598.4 | F91: 598.4 | R91: 1140
A92: 2008-07-18T09:30:00 | B92: 24.52 | C92: 17.14 | D92: 17.14 | E92: 598.5 | F92: 598.5 | G92: 0 | I92: 5.46 | R92: 1155

Sheet 2008_32
A1: Date/Time | B1: Air Temperature (deg C) | C1: 21-cm subsurface drain temp., unedited (°C) | D1: 21-cm subsurface drain temp. (°C) | E1: 21-cm subsurface drain SC, unedited (mS/cm) | F1: 21-cm subsurface drain SC (mS/cm) | G1: Precip (inch) | H1: Cumulative Precip (inch) | I1: Gage height (feet), relative | J1: SCEO (mS/cm) | K1: SC50 (mS/cm) | L1: SC90 (mS/cm) | M1: tS | N1: tEO | O1: tEM | P1: t50 | Q1: t90 | R1: Time (minutes)
A2: 2008-07-19T17:00:00 | B2: 26.47 | C2: 17.09 | D2: 17.09 | E2: 587.1 | F2: 587.1 | G2: 0 | I2: 4.73
A3: 2008-07-19T17:15:00 | B3: 25.82 | C3: 17.09 | D3: 17.09 | E3: 588.2 | F3: 588.2
A4: 2008-07-19T17:30:00 | B4: 25.48 | C4: 17.07 | D4: 17.07 | E4: 587.7 | F4: 587.7 | G4: 0 | I4: 4.72
A5: 2008-07-19T17:45:00 | B5: 25.24 | C5: 17.04 | D5: 17.04 | E5: 591.2 | F5: 591.2
A6: 2008-07-19T18:00:00 | B6: 22.5 | C6: 17.04 | D6: 17.04 | E6: 592 | F6: 592 | G6: 0.35 | I6: 4.72 | M6: X | R6: 0
A7: 2008-07-19T18:15:00 | B7: 18.55 | C7: 17.07 | D7: 17.07 | E7: 593.1 | F7: 593.1 | R7: =R6+15 -> 15
A8: 2008-07-19T18:30:00 | B8: 18.45 | C8: 17.02 | D8: 17.02 | E8: 594.6 | F8: 594.6 | G8: 0.36 | I8: 4.76 | R8: =R7+15 -> 30
A9: 2008-07-19T18:45:00 | B9: 18.68 | C9: 17 | D9: 17 | E9: 586.4 | F9: 586.4 | J9: =AVERAGE(F2:F9) -> 590.0375 | K9: =F11+((J9-F11)*0.5) -> 363.56875 | L9: =F11+((J9-F11)*0.9) -> 544.74375 | R9: 45
A10: 2008-07-19T19:00:00 | B10: 18.53 | C10: 17.63 | D10: 17.63 | E10: 161 | F10: 161 | G10: 0.01 | H10: =SUM(G6:G10) -> 0.72 | I10: 4.77 | N10: X | R10: =R9+15 -> 60
A11: 2008-07-19T19:15:00 | B11: 18.58 | C11: 18.66 | D11: 18.66 | E11: 137.1 | F11: 137.1 | O11: X | R11: 75
A12: 2008-07-19T19:30:00 | B12: 18.69 | C12: 18.95 | D12: 18.95 | E12: 149.2 | F12: 149.2 | G12: 0.01 | I12: 4.86 | R12: 90
A13: 2008-07-19T19:45:00 | B13: 18.65 | C13: 18.91 | D13: 18.91 | E13: 238.1 | F13: 238.1 | R13: =R12+15 -> 105
A14: 2008-07-19T20:00:00 | B14: 18.7 | C14: 18.39 | D14: 18.39 | E14: 463.9 | F14: 463.9 | G14: 0.01 | I14: 4.97 | P14: X | R14: =R13+(15*((K9-F13)/(F14-F13))) -> 113.334948
A15: 2008-07-19T20:15:00 | B15: 18.71 | C15: 17.96 | D15: 17.96 | E15: 523.2 | F15: 523.2 | R15: =R13+30 -> 135
A16: 2008-07-19T20:30:00 | B16: 18.85 | C16: 17.72 | D16: 17.72 | E16: 564 | F16: 564 | G16: 0 | I16: 5.24 | Q16: X | R16: =R15+(15*((L9-F15)/(F16-F15))) -> 142.9204963

Sheet 2008_33
A1: Date/Time | B1: Air Temperature (deg C) | C1: 21-cm subsurface drain temp., unedited (°C) | D1: 21-cm subsurface drain temp. (°C) | E1: 21-cm subsurface drain SC, unedited (mS/cm) | F1: 21-cm subsurface drain SC (mS/cm) | G1: Precip (inch) | H1: Cumulative Precip (inch) | I1: Gage height (feet), relative | J1: SCEO (mS/cm) | K1: SC50 (mS/cm) | L1: SC90 (mS/cm) | M1: tS | N1: tEO | O1: tEM | P1: t50 | Q1: t90 | R1: Time (minutes)
A2: 2008-07-21T01:00:00 | B2: 21.55 | C2: 17.14 | D2: 17.14 | E2: 593.1 | F2: 593.1 | G2: 0 | I2: 5.01
A3: 2008-07-21T01:15:00 | B3: 22.18 | C3: 17.13 | D3: 17.13 | E3: 591.3 | F3: 591.3
A4: 2008-07-21T01:30:00 | B4: 21.96 | C4: 17.16 | D4: 17.16 | E4: 592.1 | F4: 592.1 | G4: 0.01 | I4: 5 | M4: X | R4: 0
A5: 2008-07-21T01:45:00 | B5: 21.75 | C5: 17.16 | D5: 17.16 | E5: 591.8 | F5: 591.8 | R5: =R4+15 -> 15
A6: 2008-07-21T02:00:00 | B6: 21.6 | C6: 17.12 | D6: 17.12 | E6: 593 | F6: 593 | G6: 0.1 | I6: 4.99 | R6: =R5+15 -> 30
A7: 2008-07-21T02:15:00 | B7: 21.35 | C7: 17.15 | D7: 17.15 | E7: 593.3 | F7: 593.3 | R7: 45
A8: 2008-07-21T02:30:00 | B8: 20.38 | C8: 17.15 | D8: 17.15 | E8: 592.9 | F8: 592.9 | G8: 0.08 | I8: 4.99 | R8: 60
A9: 2008-07-21T02:45:00 | B9: 19.75 | C9: 17.12 | D9: 17.12 | E9: 596.8 | F9: 596.8 | R9: 75
A10: 2008-07-21T03:00:00 | B10: 19.26 | C10: 17.1 | D10: 17.1 | E10: 608.3 | F10: 608.3 | G10: 0.13 | I10: 4.98 | J10: =AVERAGE(F3:F10) -> 594.9375 | K10: =F14+((J10-F14)*0.5) -> 532.56875 | L10: =F14+((J10-F14)*0.9) -> 582.46375 | R10: 90
A11: 2008-07-21T03:15:00 | B11: 18.71 | C11: 17.13 | D11: 17.13 | E11: 531.1 | F11: 531.1 | N11: X | R11: 105
A12: 2008-07-21T03:30:00 | B12: 18.52 | C12: 17.15 | D12: 17.15 | E12: 519.9 | F12: 519.9 | G12: 0.09 | I12: 4.99 | R12: 120
A13: 2008-07-21T03:45:00 | B13: 18.53 | C13: 17.28 | D13: 17.28 | E13: 513 | F13: 513 | R13: 135
A14: 2008-07-21T04:00:00 | B14: 18.43 | C14: 17.46 | D14: 17.46 | E14: 470.2 | F14: 470.2 | G14: 0.05 | I14: 4.98 | O14: X | R14: 150
A15: 2008-07-21T04:15:00 | B15: 18.42 | C15: 17.59 | D15: 17.59 | E15: 470.2 | F15: 470.2 | R15: 165
A16: 2008-07-21T04:30:00 | B16: 18.39 | C16: 17.62 | D16: 17.62 | E16: 471.1 | F16: 471.1 | G16: 0.01 | H16: =SUM(G4:G16) -> 0.47 | I16: 4.99 | R16: 180
A17: 2008-07-21T04:45:00 | B17: 18.44 | C17: 17.63 | D17: 17.63 | E17: 502.8 | F17: 502.8 | R17: 195
A18: 2008-07-21T05:00:00 | B18: 18.92 | C18: 17.54 | D18: 17.54 | E18: 524 | F18: 524 | G18: 0 | I18: 4.99 | R18: 210
A19: 2008-07-21T05:15:00 | B19: 18.72 | C19: 17.5 | D19: 17.5 | E19: 537.9 | F19: 537.9 | P19: X | R19: =R18+(15*((K10-F18)/(F19-F18))) -> 219.2468525
A20: 2008-07-21T05:30:00 | B20: 18.54 | C20: 17.47 | D20: 17.47 | E20: 558.1 | F20: 558.1 | G20: 0 | I20: 5.02 | R20: =R18+30 -> 240
A21: 2008-07-21T05:45:00 | B21: 18.66 | C21: 17.4 | D21: 17.4 | E21: 574.1 | F21: 574.1 | R21: =R20+15 -> 255
A22: 2008-07-21T06:00:00 | B22: 19.28 | C22: 17.38 | D22: 17.38 | E22: 588.5 | F22: 588.5 | G22: 0 | I22: 5.08 | Q22: X | R22: =R21+(15*((L10-F21)/(F22-F21))) -> 263.7122396

Sheet 2008_34
A1: Date/Time | B1: Air Temperature (deg C) | C1: 21-cm subsurface drain temp., unedited (°C) | D1: 21-cm subsurface drain temp. (°C) | E1: 21-cm subsurface drain SC, unedited (mS/cm) | F1: 21-cm subsurface drain SC (mS/cm) | G1: Precip (inch) | H1: Cumulative Precip (inch) | I1: Gage height (feet), relative | J1: SCEO (mS/cm) | K1: SC50 (mS/cm) | L1: SC90 (mS/cm) | M1: tS | N1: tEO | O1: tEM | P1: t50 | Q1: t90 | R1: Time (minutes)
A2: 2008-07-24T05:30:00 | B2: 16.21 | C2: 16.64 | D2: 16.64 | E2: 665.1 | F2: 665.1 | G2: 0.01 | I2: 4.45 | M2: X | R2: 0
A3: 2008-07-24T05:45:00 | B3: 15.94 | C3: 16.63 | D3: 16.63 | E3: 665.1 | F3: 665.1 | R3: =R2+15 -> 15
A4: 2008-07-24T06:00:00 | B4: 15.98 | C4: 16.63 | D4: 16.63 | E4: 664.4 | F4: 664.4 | G4: 0.03 | I4: 4.44 | R4: =R3+15 -> 30
A5: 2008-07-24T06:15:00 | B5: 15.86 | C5: 16.63 | D5: 16.63 | E5: 665.3 | F5: 665.3 | R5: 45
A6: 2008-07-24T06:30:00 | B6: 15.92 | C6: 16.63 | D6: 16.63 | E6: 665.5 | F6: 665.5 | G6: 0.02 | I6: 4.45 | R6: 60
A7: 2008-07-24T06:45:00 | B7: 15.97 | C7: 16.64 | D7: 16.64 | E7: 665 | F7: 665 | R7: 75
A8: 2008-07-24T07:00:00 | B8: 15.8 | C8: 16.63 | D8: 16.63 | E8: 664.7 | F8: 664.7 | G8: 0.03 | I8: 4.45 | R8: 90
A9: 2008-07-24T07:15:00 | B9: 15.91 | C9: 16.62 | D9: 16.62 | E9: 663.7 | F9: 663.7 | R9: 105
A10: 2008-07-24T07:30:00 | B10: 16.19 | C10: 16.62 | D10: 16.62 | E10: 670.6 | F10: 670.6 | G10: 0.08 | H10: =SUM(G2:G10) -> 0.17 | I10: 4.45 | R10: 120
A11: 2008-07-24T07:45:00 | B11: 16.67 | C11: 16.63 | D11: 16.63 | E11: 672 | F11: 672 | R11: 135
A12: 2008-07-24T08:00:00 | B12: 17.68 | C12: 16.63 | D12: 16.63 | E12: 673.1 | F12: 673.1 | G12: 0 | I12: 4.46 | J12: =AVERAGE(F5:F12) -> 667.4875 | K12: =F16+((J12-F16)*0.5) -> 582.99375 | L12: =F16+((J12-F16)*0.9) -> 650.58875 | R12: 150
A13: 2008-07-24T08:15:00 | B13: 17.64 | C13: 16.62 | D13: 16.62 | E13: 600.1 | F13: 600.1 | N13: X | R13: 165
A14: 2008-07-24T08:30:00 | B14: 17.77 | C14: 16.6 | D14: 16.6 | E14: 622.8 | F14: 622.8 | G14: 0 | I14: 4.46 | R14: 180
A15: 2008-07-24T08:45:00 | B15: 17.76 | C15: 16.61 | D15: 16.61 | E15: 590.7 | F15: 590.7 | R15: 195
A16: 2008-07-24T09:00:00 | B16: 18.01 | C16: 16.62 | D16: 16.62 | E16: 498.5 | F16: 498.5 | G16: 0 | I16: 4.46 | O16: X | R16: 210
A17: 2008-07-24T09:15:00 | B17: 18.2 | C17: 16.66 | D17: 16.66 | E17: 588.5 | F17: 588.5 | P17: X | R17: =R16+(15*((K12-F16)/(F17-F16))) -> 224.0822917
A18: 2008-07-24T09:30:00 | B18: 18.95 | C18: 16.65 | D18: 16.65 | E18: 598.5 | F18: 598.5 | G18: 0 | I18: 4.45 | R18: =R16+30 -> 240
A19: 2008-07-24T09:45:00 | B19: 18.95 | C19: 16.64 | D19: 16.64 | E19: 610.8 | F19: 610.8 | R19: =R18+15 -> 255
A20: 2008-07-24T10:00:00 | B20: 18.88 | C20: 16.62 | D20: 16.62 | E20: 628.6 | F20: 628.6 | G20: 0 | I20: 4.45 | R20: =R19+15 -> 270
A21: 2008-07-24T10:15:00 | B21: 18.97 | C21: 16.61 | D21: 16.61 | E21: 639.3 | F21: 639.3 | R21: 285
A22: 2008-07-24T10:30:00 | B22: 19.31 | C22: 16.61 | D22: 16.61 | E22: 649.6 | F22: 649.6 | G22: 0 | I22: 4.45 | R22: 300
A23: 2008-07-24T10:45:00 | B23: 19.74 | C23: 16.61 | D23: 16.61 | E23: 655.5 | F23: 655.5 | Q23: X | R23: =R22+(15*((L12-F22)/(F23-F22))) -> 302.5137712

Sheet 2008_35
A1: Date/Time | B1: Air Temperature (deg C) | C1: 21-cm subsurface drain temp., unedited (°C) | D1: 21-cm subsurface drain temp. (°C) | E1: 21-cm subsurface drain SC, unedited (mS/cm) | F1: 21-cm subsurface drain SC (mS/cm) | G1: Precip (inch) | H1: Cumulative Precip (inch) | I1: Gage height (feet), relative | J1: SCEO (mS/cm) | K1: SC50 (mS/cm) | L1: SC90 (mS/cm) | M1: tS | N1: tEO | O1: tEM | P1: t50 | Q1: t90 | R1: Time (minutes)
A2: 2008-08-12T07:00:00 | B2: 17.08 | C2: 17.25 | D2: 17.25 | E2: 699 | F2: 699 | G2: 0.01 | I2: 3.8 | M2: X | R2: 0
A3: 2008-08-12T07:15:00 | B3: 17.28 | C3: 17.25 | D3: 17.25 | E3: 700 | F3: 700 | R3: =R2+15 -> 15
A4: 2008-08-12T07:30:00 | B4: 17.38 | C4: 17.23 | D4: 17.23 | E4: 701 | F4: 701 | G4: 0.01 | I4: 3.79 | R4: =R3+15 -> 30
A5: 2008-08-12T07:45:00 | B5: 17.42 | C5: 17.24 | D5: 17.24 | E5: 702 | F5: 702 | R5: 45
A6: 2008-08-12T08:00:00 | B6: 17.22 | C6: 17.24 | D6: 17.24 | E6: 703 | F6: 703 | G6: 0.05 | I6: 3.8 | R6: 60
A7: 2008-08-12T08:15:00 | B7: 17.38 | C7: 17.25 | D7: 17.25 | E7: 705 | F7: 705 | R7: 75
A8: 2008-08-12T08:30:00 | B8: 17.27 | C8: 17.24 | D8: 17.24 | E8: 707 | F8: 707 | G8: 0.04 | I8: 3.82 | R8: 90
A9: 2008-08-12T08:45:00 | B9: 17.61 | C9: 17.24 | D9: 17.24 | E9: 707 | F9: 707 | R9: 105
A10: 2008-08-12T09:00:00 | B10: 17.31 | C10: 17.23 | D10: 17.23 | E10: 706 | F10: 706 | G10: 0.03 | I10: 3.83 | R10: 120
A11: 2008-08-12T09:15:00 | B11: 17.55 | C11: 17.25 | D11: 17.25 | E11: 706 | F11: 706 | R11: 135
A12: 2008-08-12T09:30:00 | B12: 17.94 | C12: 17.23 | D12: 17.23 | E12: 710 | F12: 710 | G12: 0.04 | H12: =SUM(G2:G12) -> 0.18 | I12: 3.84 | R12: 150
A13: 2008-08-12T09:45:00 | B13: 17.95 | C13: 17.18 | D13: 17.18 | E13: 711 | F13: 711 | R13: 165
A14: 2008-08-12T10:00:00 | B14: 18.02 | C14: 17.09 | D14: 17.09 | E14: 713 | F14: 713 | G14: 0 | I14: 3.84 | R14: 180
A15: 2008-08-12T10:15:00 | B15: 18.56 | C15: 17 | D15: 17 | E15: 715 | F15: 715 | R15: 195
A16: 2008-08-12T10:30:00 | B16: 18.6 | C16: 16.92 | D16: 16.92 | E16: 722 | F16: 722 | G16: 0 | I16: 3.85 | R16: 210
A17: 2008-08-12T10:45:00 | B17: 19.64 | C17: 16.89 | D17: 16.89 | E17: 729 | F17: 729 | J17: =AVERAGE(F10:F17) -> 714 | K17: =F22+((J17-F22)*0.5) -> 533.3 | L17: =F22+((J17-F22)*0.9) -> 677.86 | R17: 225
A18: 2008-08-12T11:00:00 | B18: 21.16 | C18: 16.93 | D18: 16.93 | E18: 537.2 | F18: 537.2 | G18: 0 | I18: 3.84 | N18: X | R18: 240
A19: 2008-08-12T11:15:00 | B19: 19.93 | C19: 16.97 | D19: 16.97 | E19: 404.4 | F19: 404.4 | R19: 255
A20: 2008-08-12T11:30:00 | B20: 19.96 | C20: 17.03 | D20: 17.03 | E20: 379.5 | F20: 379.5 | G20: 0 | I20: 3.84 | R20: 270
A21: 2008-08-12T11:45:00 | B21: 20.03 | C21: 17.07 | D21: 17.07 | E21: 356.2 | F21: 356.2 | R21: 285
A22: 2008-08-12T12:00:00 | B22: 20.86 | C22: 17.1 | D22: 17.1 | E22: 352.6 | F22: 352.6 | G22: 0 | I22: 3.84 | O22: X | R22: 300
A23: 2008-08-12T12:15:00 | B23: 21.43 | C23: 17.13 | D23: 17.13 | E23: 367.9 | F23: 367.9 | R23: 315
A24: 2008-08-12T12:30:00 | B24: 21.76 | C24: 17.17 | D24: 17.17 | E24: 389.1 | F24: 389.1 | G24: 0 | I24: 3.84 | R24: 330
A25: 2008-08-12T12:45:00 | B25: 21.09 | C25: 17.16 | D25: 17.16 | E25: 413.5 | F25: 413.5 | R25: 345
A26: 2008-08-12T13:00:00 | B26: 21.42 | C26: 17.18 | D26: 17.18 | E26: 437.3 | F26: 437.3 | G26: 0 | I26: 3.84 | R26: 360
A27: 2008-08-12T13:15:00 | B27: 22.66 | C27: 17.2 | D27: 17.2 | E27: 458.2 | F27: 458.2 | R27: 375
A28: 2008-08-12T13:30:00 | B28: 21.6 | C28: 17.2 | D28: 17.2 | E28: 471.8 | F28: 471.8 | G28: 0 | I28: 3.84 | R28: 390
A29: 2008-08-12T13:45:00 | B29: 21.88 | C29: 17.24 | D29: 17.24 | E29: 491.3 | F29: 491.3 | R29: 405
A30: 2008-08-12T14:00:00 | B30: 21.74 | C30: 17.24 | D30: 17.24 | E30: 517 | F30: 517 | G30: 0 | I30: 3.84 | R30: 420
A31: 2008-08-12T14:15:00 | B31: 22.19 | C31: 17.26 | D31: 17.26 | E31: 531.4 | F31: 531.4 | R31: 435
A32: 2008-08-12T14:30:00 | B32: 22.98 | C32: 17.26 | D32: 17.26 | E32: 546.7 | F32: 546.7 | G32: 0 | I32: 3.83 | P32: X | R32: =R31+(15*((K17-F31)/(F32-F31))) -> 436.8627451
A33: 2008-08-12T14:45:00 | B33: 22.94 | C33: 17.27 | D33: 17.27 | E33: 562.1 | F33: 562.1 | R33: =R31+30 -> 465
A34: 2008-08-12T15:00:00 | B34: 23.74 | C34: 17.27 | D34: 17.27 | E34: 578.3 | F34: 578.3 | G34: 0 | I34: 3.83 | R34: =R33+15 -> 480
A35: 2008-08-12T15:15:00 | B35: 24.75 | C35: 17.23 | D35: 17.23 | E35: 598.3 | F35: 598.3 | R35: =R34+15 -> 495
A36: 2008-08-12T15:30:00 | B36: 23.93 | C36: 17.27 | D36: 17.27 | E36: 623.1 | F36: 623.1 | G36: 0 | I36: 3.83 | R36: 510
A37: 2008-08-12T15:45:00 | B37: 24.42 | C37: 17.28 | D37: 17.28 | E37: 641.3 | F37: 641.3 | R37: 525
A38: 2008-08-12T16:00:00 | B38: 24.04 | C38: 17.25 | D38: 17.25 | E38: 655.7 | F38: 655.7 | G38: 0 | I38: 3.83 | R38: 540
A39: 2008-08-12T16:15:00 | B39: 24.15 | C39: 17.25 | D39: 17.25 | E39: 666.6 | F39: 666.6 | R39: 555
A40: 2008-08-12T16:30:00 | B40: 24.03 | C40: 17.26 | D40: 17.26 | E40: 676.9 | F40: 676.9 | G40: 0 | I40: 3.83 | R40: 570
A41: 2008-08-12T16:45:00 | B41: 23.49 | C41: 17.28 | D41: 17.28 | E41: 683.5 | F41: 683.5 | Q41: X | R41: =R40+(15*((L17-F40)/(F41-F40))) -> 572.1818182

Sheet 2008_36
A1: Date/Time | B1: Air Temperature (deg C) | C1: 21-cm subsurface drain temp., unedited (°C) | D1: 21-cm subsurface drain temp. (°C) | E1: 21-cm subsurface drain SC, unedited (mS/cm) | F1: 21-cm subsurface drain SC (mS/cm) | G1: Precip (inch) | H1: Cumulative Precip (inch) | I1: Gage height (feet), relative | J1: SCEO (mS/cm) | K1: SC50 (mS/cm) | L1: SC90 (mS/cm) | M1: tS | N1: tEO | O1: tEM | P1: t50 | Q1: t90 | R1: Time (minutes)
A2: 2008-08-27T07:00:00 | B2: 14.33 | C2: 17.78 | D2: 17.78 | E2: 789 | F2: 789 | G2: 0.05 | I2: 3.65 | M2: X | R2: 0
A3: 2008-08-27T07:15:00 | B3: 14.97 | C3: 17.76 | D3: 17.76 | E3: 791 | F3: 791 | R3: =R2+15 -> 15
A4: 2008-08-27T07:30:00 | B4: 15.42 | C4: 17.75 | D4: 17.75 | E4: 793 | F4: 793 | G4: 0.04 | I4: 3.66 | R4: =R3+15 -> 30
A5: 2008-08-27T07:45:00 | B5: 15.44 | C5: 17.79 | D5: 17.79 | E5: 795 | F5: 795 | R5: 45
A6: 2008-08-27T08:00:00 | B6: 15.72 | C6: 17.79 | D6: 17.79 | E6: 799 | F6: 799 | G6: 0.04 | I6: 3.67 | R6: 60
A7: 2008-08-27T08:15:00 | B7: 16.04 | C7: 17.8 | D7: 17.8 | E7: 798 | F7: 798 | R7: 75
A8: 2008-08-27T08:30:00 | B8: 16.13 | C8: 17.81 | D8: 17.81 | E8: 796 | F8: 796 | G8: 0.04 | I8: 3.68 | R8: 90
A9: 2008-08-27T08:45:00 | B9: 16.26 | C9: 17.78 | D9: 17.78 | E9: 797 | F9: 797 | R9: 105
A10: 2008-08-27T09:00:00 | B10: 16.36 | C10: 17.8 | D10: 17.8 | E10: 797 | F10: 797 | G10: 0.03 | I10: 3.69 | R10: 120
A11: 2008-08-27T09:15:00 | B11: 16.43 | C11: 17.81 | D11: 17.81 | E11: 796 | F11: 796 | R11: 135
A12: 2008-08-27T09:30:00 | B12: 16.44 | C12: 17.79 | D12: 17.79 | E12: 799 | F12: 799 | G12: 0.03 | I12: 3.7 | R12: 150
A13: 2008-08-27T09:45:00 | B13: 16.42 | C13: 17.85 | D13: 17.85 | E13: 811 | F13: 811 | R13: 165
A14: 2008-08-27T10:00:00 | B14: 16.26 | C14: 17.77 | E14: 1066 | G14: 0.03 | I14: 3.71 | R14: 180
A15: 2008-08-27T10:15:00 | B15: 16.28 | C15: 17.4 | D15: 17.4 | E15: 877 | J15: =AVERAGE(F6:F15) -> 799.125 | K15: =F17+((J15-F17)*0.5) -> 590.4125 | L15: =F17+((J15-F17)*0.9) -> 757.3825 | R15: 195
A16: 2008-08-27T10:30:00 | B16: 16.42 | C16: 17.21 | D16: 17.21 | E16: 451.9 | F16: 451.9 | G16: 0.02 | I16: 3.71 | N16: X | R16: 210
A17: 2008-08-27T10:45:00 | B17: 16.78 | C17: 16.99 | D17: 16.99 | E17: 381.7 | F17: 381.7 | O17: X | R17: 225
A18: 2008-08-27T11:00:00 | B18: 17.41 | C18: 16.88 | D18: 16.88 | E18: 552.6 | F18: 552.6 | G18: 0.02 | H18: =SUM(G2:G18) -> 0.3 | I18: 3.71 | R18: 240
A19: 2008-08-27T11:15:00 | B19: 18.09 | C19: 16.98 | D19: 16.98 | E19: 726 | F19: 726 | R19: 255
A20: 2008-08-27T11:30:00 | B20: 18.75 | C20: 17.06 | D20: 17.06 | E20: 582.4 | F20: 582.4 | G20: 0 | I20: 3.71 | R20: 270
A21: 2008-08-27T11:45:00 | B21: 19.56 | C21: 17.16 | D21: 17.16 | E21: 649.5 | F21: 649.5 | P21: X | R21: =R20+(15*((K15-F20)/(F21-F20))) -> 271.7911699

Sheet 2008_37
A1: Date/Time | B1: Air Temperature (deg C) | C1: 21-cm subsurface drain temp., unedited (°C) | D1: 21-cm subsurface drain temp. (°C) | E1: 21-cm subsurface drain SC, unedited (mS/cm) | F1: 21-cm subsurface drain SC (mS/cm) | G1: Precip (inch) | H1: Cumulative Precip (inch) | I1: Gage height (feet), relative | J1: SCEO (mS/cm) | K1: SC50 (mS/cm) | L1: SC90 (mS/cm) | M1: tS | N1: tEO | O1: tEM | P1: t50 | Q1: t90 | R1: Time (minutes)
A2: 2008-09-08 | B2: 12.66 | C2: 17.22 | D2: 17.22 | E2: 797 | F2: 797 | G2: 0 | I2: 3.62
A3: 2008-09-08T00:15:00 | B3: 12.37 | C3: 17.24 | D3: 17.24 | E3: 802 | F3: 802
A4: 2008-09-08T00:30:00 | B4: 12.43 | C4: 17.25 | D4: 17.25 | E4: 807 | F4: 807 | G4: 0 | I4: 3.63
A5: 2008-09-08T00:45:00 | B5: 12.35 | C5: 17.22 | D5: 17.22 | E5: 817 | F5: 817
A6: 2008-09-08T01:00:00 | B6: 12.36 | C6: 17.22 | D6: 17.22 | E6: 829 | F6: 829 | G6: 0 | I6: 3.62
A7: 2008-09-08T01:15:00 | B7: 12.38 | C7: 17.37 | D7: 17.37 | E7: 856 | F7: 856
A8: 2008-09-08T01:30:00 | B8: 12.39 | C8: 17.34 | D8: 17.34 | E8: 843 | F8: 843 | G8: 0 | I8: 3.62
A9: 2008-09-08T01:45:00 | B9: 12.33 | C9: 17.32 | D9: 17.32 | E9: 841 | F9: 841
A10: 2008-09-08T02:00:00 | B10: 12.35 | C10: 17.32 | E10: 1112 | G10: 0 | I10: 3.62
A11: 2008-09-08T02:15:00 | B11: 12.41 | C11: 17.32 | E11: 1512
A12: 2008-09-08T02:30:00 | B12: 12.23 | C12: 17.28 | E12: 1842 | G12: 0 | I12: 3.62
A13: 2008-09-08T02:45:00 | B13: 12.11 | C13: 17.3 | E13: 2156
A14: 2008-09-08T03:00:00 | B14: 11.94 | C14: 17.27 | E14: 2382 | G14: 0 | I14: 3.62
A15: 2008-09-08T03:15:00 | B15: 11.84 | C15: 17.27 | E15: 2499
A16: 2008-09-08T03:30:00 | B16: 11.33 | C16: 17.26 | E16: 2522 | G16: 0.01 | I16: 3.62 | M16: X | R16: 0
A17: 2008-09-08T03:45:00 | B17: 10.95 | C17: 17.18 | E17: 2494 | R17: =R16+15 -> 15
A18: 2008-09-08T04:00:00 | B18: 10.66 | C18: 17.2 | E18: 2446 | G18: 0.02 | I18: 3.62 | R18: =R17+15 -> 30
A19: 2008-09-08T04:15:00 | B19: 10.62 | C19: 17.17 | E19: 2399 | R19: 45
A20: 2008-09-08T04:30:00 | B20: 10.53 | C20: 17.12 | E20: 2364 | G20: 0.04 | I20: 3.62 | R20: 60
A21: 2008-09-08T04:45:00 | B21: 10.43 | C21: 17.06 | E21: 2331 | R21: 75
A22: 2008-09-08T05:00:00 | B22: 10.48 | C22: 17.13 | E22: 2304 | G22: 0.03 | I22: 3.63 | R22: 90
A23: 2008-09-08T05:15:00 | B23: 10.34 | C23: 17.18 | E23: 2281 | R23: 105
A24: 2008-09-08T05:30:00 | B24: 10.1 | C24: 17.11 | E24: 2234 | G24: 0.05 | I24: 3.63 | R24: 120
A25: 2008-09-08T05:45:00 | B25: 10.01 | C25: 17.09 | E25: 2171 | R25: 135
A26: 2008-09-08T06:00:00 | B26: 9.9 | C26: 17.04 | E26: 2087 | G26: 0.08 | I26: 3.64 | R26: 150
A27: 2008-09-08T06:15:00 | B27: 9.97 | C27: 17.08 | E27: 1993 | R27: 165
A28: 2008-09-08T06:30:00 | B28: 10.02 | C28: 17.09 | E28: 1879 | G28: 0.01 | I28: 3.64 | R28: 180
A29: 2008-09-08T06:45:00 | B29: 10.01 | C29: 17.16 | E29: 1774 | R29: 195
A30: 2008-09-08T07:00:00 | B30: 10.01 | C30: 17.13 | E30: 1674 | G30: 0.03 | I30: 3.65 | R30: 210
A31: 2008-09-08T07:15:00 | B31: 9.94 | C31: 17.31 | E31: 2520 | R31: 225
A32: 2008-09-08T07:30:00 | B32: 9.97 | C32: 16.82 | D32: 16.82 | E32: 868 | F32: 868 | G32: 0.02 | I32: 3.65 | R32: 240
A33: 2008-09-08T07:45:00 | B33: 10.1 | C33: 16.75 | D33: 16.75 | E33: 217.4 | F33: 217.4 | J33: =AVERAGE(E2:E9) -> 824 | K33: =F35+((J33-F35)*0.5) -> 488.45 | L33: =F35+((J33-F35)*0.9) -> 756.89 | R33: 255
A34: 2008-09-08T08:00:00 | B34: 10 | C34: 16.79 | D34: 16.79 | E34: 155.2 | F34: 155.2 | G34: 0 | I34: 3.65 | N34: X | R34: 270
A35: 2008-09-08T08:15:00 | B35: 10.2 | C35: 16.83 | D35: 16.83 | E35: 152.9 | F35: 152.9 | O35: X | R35: 285
A36: 2008-09-08T08:30:00 | B36: 10.23 | C36: 16.8 | D36: 16.8 | E36: 382 | F36: 382 | G36: 0.02 | I36: 3.65 | R36: 300
A37: 2008-09-08T08:45:00 | B37: 10.36 | C37: 16.8 | D37: 16.8 | E37: 562.5 | F37: 562.5 | P37: X | R37: =R36+(15*((K33-F36)/(F37-F36))) -> 308.8462604
A38: 2008-09-08T09:00:00 | B38: 10.45 | C38: 16.76 | D38: 16.76 | E38: 593.7 | F38: 593.7 | G38: 0.02 | I38: 3.65 | R38: =R36+30 -> 330
A39: 2008-09-08T09:15:00 | B39: 10.56 | C39: 16.71 | D39: 16.71 | E39: 616.9 | F39: 616.9 | R39: =R38+15 -> 345
A40: 2008-09-08T09:30:00 | B40: 11.04 | C40: 16.73 | D40: 16.73 | E40: 618.8 | F40: 618.8 | G40: 0.04 | I40: 3.66 | R40: =R39+15 -> 360
A41: 2008-09-08T09:45:00 | B41: 10.81 | C41: 16.73 | D41: 16.73 | E41: 619.1 | F41: 619.1 | R41: 375
A42: 2008-09-08T10:00:00 | B42: 10.97 | C42: 16.76 | D42: 16.76 | E42: 647.7 | F42: 647.7 | G42: 0 | I42: 3.66 | R42: 390
A43: 2008-09-08T10:15:00 | B43: 11.11 | C43: 16.76 | D43: 16.76 | E43: 653.1 | F43: 653.1 | R43: 405
A44: 2008-09-08T10:30:00 | B44: 11.29 | C44: 16.6 | D44: 16.6 | E44: 688.2 | F44: 688.2 | G44: 0 | I44: 3.66 | R44: 420
A45: 2008-09-08T10:45:00 | B45: 11.48 | C45: 16.47 | D45: 16.47 | E45: 767 | F45: 767 | Q45: X | R45: =R44+(15*((L33-F44)/(F45-F44))) -> 433.0755076
A46: 2008-09-08T11:00:00 | B46: 11.76 | C46: 16.48 | D46: 16.48 | E46: 739 | F46: 739 | G46: 0.01 | I46: 3.66
A47: 2008-09-08T11:15:00 | B47: 11.56 | C47: 16.52 | E47: 912
A48: 2008-09-08T11:30:00 | B48: 11.96 | C48: 16.6 | E48: 892 | G48: 0.01 | H48: =SUM(G16:G48) -> 0.39 | I48: 3.66

Sheet 2008_38
A1: Date/Time | B1: Air Temperature (deg C) | C1: 21-cm subsurface drain temp., unedited (°C) | D1: 21-cm subsurface drain temp. (°C) | E1: 21-cm subsurface drain SC, unedited (mS/cm) | F1: 21-cm subsurface drain SC (mS/cm) | G1: Precip (inch) | H1: Cumulative Precip (inch) | I1: Gage height (feet), relative | J1: SCEO (mS/cm) | K1: SC50 (mS/cm) | L1: SC90 (mS/cm) | M1: tS | N1: tEO | O1: tEM | P1: t50 | Q1: t90 | R1: Time (minutes)
A2: 2008-10-13T09:00:00 | B2: 19.18 | C2: 15.9 | E2: 877 | G2: 0 | I2: 3.72
A3: 2008-10-13T09:15:00 | B3: 19.54 | C3: 15.94 | E3: 872
A4: 2008-10-13T09:30:00 | B4: 20.46 | C4: 16.01 | E4: 860 | G4: 0 | I4: 3.72
A5: 2008-10-13T09:45:00 | B5: 20.38 | C5: 16.16 | E5: 854
A6: 2008-10-13T10:00:00 | B6: 19.92 | C6: 16.17 | E6: 852 | G6: 0 | I6: 3.72
A7: 2008-10-13T10:15:00 | B7: 20.08 | C7: 16.19 | E7: 851
A8: 2008-10-13T10:30:00 | B8: 20.26 | C8: 16.18 | E8: 851 | G8: 0 | I8: 3.72
A9: 2008-10-13T10:45:00 | B9: 19.98 | C9: 16.17 | E9: 849
A10: 2008-10-13T11:00:00 | B10: 19.91 | C10: 16.17 | E10: 831 | G10: 0 | I10: 3.72
A11: 2008-10-13T11:15:00 | B11: 19.06 | C11: 16.19 | E11: 582.2
A12: 2008-10-13T11:30:00 | B12: 15.34 | C12: 16.14 | E12: 431.4 | G12: 0 | I12: 3.72
A13: 2008-10-13T11:45:00 | B13: 14.89 | C13: 15.95 | E13: 172.7
A14: 2008-10-13T12:00:00 | B14: 13.98 | C14: 15.75 | E14: 49.79 | G14: 0.02 | I14: 3.72 | M14: X | R14: 0
A15: 2008-10-13T12:15:00 | B15: 13.72 | C15: 15.57 | E15: 72.9 | R15: =R14+15 -> 15
A16: 2008-10-13T12:30:00 | B16: 12.84 | C16: 15.28 | E16: 29.42 | G16: 0.04 | I16: 3.72 | R16: =R15+15 -> 30
A17: 2008-10-13T12:45:00 | B17: 12.26 | C17: 14.72 | E17: 82 | R17: 45
A18: 2008-10-13T13:00:00 | B18: 12.06 | C18: 14.64 | E18: 16.12 | G18: 0.04 | I18: 3.73 | R18: 60
A19: 2008-10-13T13:15:00 | B19: 11.67 | C19: 14.26 | E19: 9.66 | R19: 75
A20: 2008-10-13T13:30:00 | B20: 11.46 | C20: 13.83 | E20: 8.45 | G20: 0.02 | I20: 3.73 | R20: 90
A21: 2008-10-13T13:45:00 | B21: 10.68 | C21: 13.66 | E21: 8.32 | R21: 105
A22: 2008-10-13T14:00:00 | B22: 10.5 | C22: 14.26 | E22: 1802 | G22: 0.04 | I22: 3.73 | R22: 120
A23: 2008-10-13T14:15:00 | B23: 10.32 | C23: 14.5 | E23: 1857 | R23: 135
A24: 2008-10-13T14:30:00 | B24: 10.3 | C24: 14.57 | E24: 1887 | G24: 0.03 | I24: 3.73 | R24: 150
A25: 2008-10-13T14:45:00 | B25: 10.33 | C25: 14.59 | E25: 1897 | R25: 165
A26: 2008-10-13T15:00:00 | B26: 10.29 | C26: 14.53 | E26: 1906 | G26: 0.02 | I26: 3.74 | R26: 180
A27: 2008-10-13T15:15:00 | B27: 9.97 | C27: 14.54 | E27: 1913 | R27: 195
A28: 2008-10-13T15:30:00 | B28: 9.82 | C28: 14.75 | E28: 1679 | G28: 0.01 | I28: 3.73 | R28: 210
A29: 2008-10-13T15:45:00 | B29: 9.49 | C29: 14.64 | D29: 14.64 | E29: 778 | F29: 778 | J29: =AVERAGE(E3:E10) -> 852.5 | K29: =F32+((J29-F32)*0.5) -> 488.35 | L29: =F32+((J29-F32)*0.9) -> 779.67 | R29: 225
A30: 2008-10-13T16:00:00 | B30: 9.71 | C30: 14.65 | D30: 14.65 | E30: 188.6 | F30: 188.6 | G30: 0.01 | H30: =SUM(G14:G30) -> 0.23 | I30: 3.73 | N30: X | R30: 240
A31: 2008-10-13T16:15:00 | B31: 9.49 | C31: 14.67 | D31: 14.67 | E31: 136.7 | F31: 136.7 | R31: 255
A32: 2008-10-13T16:30:00 | B32: 9.3 | C32: 14.68 | D32: 14.68 | E32: 124.2 | F32: 124.2 | G32: 0 | I32: 3.73 | O32: X | R32: 270
A33: 2008-10-13T16:45:00 | B33: 9.52 | C33: 14.68 | D33: 14.68 | E33: 125 | F33: 125 | R33: 285
A34: 2008-10-13T17:00:00 | B34: 9.48 | C34: 14.7 | D34: 14.7 | E34: 394.8 | F34: 394.8 | G34: 0 | I34: 3.73 | R34: 300
A35: 2008-10-13T17:15:00 | B35: 9.34 | C35: 14.72 | D35: 14.72 | E35: 431.9 | F35: 431.9 | R35: 315
A36: 2008-10-13T17:30:00 | B36: 9.2 | C36: 14.7 | D36: 14.7 | E36: 494 | F36: 494 | G36: 0 | I36: 3.73 | P36: X | R36: =R35+(15*((K29-F35)/(F36-F35))) -> 328.6352657

Sheet 2008_39
A1: Date/Time | B1: Air Temperature (deg C) | C1: 21-cm subsurface drain temp., unedited (°C) | D1: 21-cm subsurface drain temp. (°C) | E1: 21-cm subsurface drain SC, unedited (mS/cm) | F1: 21-cm subsurface drain SC (mS/cm) | G1: Precip (inch) | H1: Cumulative Precip (inch) | I1: Gage height (feet), relative | J1: SCEO (mS/cm) | K1: SC50 (mS/cm) | L1: SC90 (mS/cm) | M1: tS | N1: tEO | O1: tEM | P1: t50 | Q1: t90 | R1: Time (minutes)
A2: 2008-10-14T17:00:00 | B2: 8.41 | C2: 14.09 | D2: 14.09 | E2: 711 | F2: 711 | G2: 0.01 | I2: 3.69 | M2: X | R2: 0
A3: 2008-10-14T17:15:00 | B3: 7.5 | C3: 13.68 | D3: 13.68 | E3: 711 | F3: 711 | R3: =R2+15 -> 15
A4: 2008-10-14T17:30:00 | B4: 7.17 | C4: 13.38 | D4: 13.38 | E4: 715 | F4: 715 | G4: 0.05 | I4: 3.69 | R4: =R3+15 -> 30
A5: 2008-10-14T17:45:00 | B5: 7.08 | C5: 13.39 | D5: 13.39 | E5: 718 | F5: 718 | R5: 45
A6: 2008-10-14T18:00:00 | B6: 7.08 | C6: 13.29 | D6: 13.29 | E6: 717 | F6: 717 | G6: 0.03 | I6: 3.7 | R6: 60
A7: 2008-10-14T18:15:00 | B7: 6.93 | C7: 13.28 | D7: 13.28 | E7: 720 | F7: 720 | R7: 75
A8: 2008-10-14T18:30:00 | B8: 7.06 | C8: 14.11 | D8: 14.11 | E8: 723 | F8: 723 | G8: 0.01 | I8: 3.7 | R8: 90
A9: 2008-10-14T18:45:00 | B9: 6.996 | C9: 14.35 | D9: 14.35 | E9: 721 | F9: 721 | R9: 105
A10: 2008-10-14T19:00:00 | B10: 7.02 | C10: 14.36 | D10: 14.36 | E10: 718 | F10: 718 | G10: 0.03 | I10: 3.7 | R10: 120
A11: 2008-10-14T19:15:00 | B11: 7.08 | C11: 14.68 | D11: 14.68 | E11: 712 | F11: 712 | R11: 135
A12: 2008-10-14T19:30:00 | B12: 7.03 | C12: 14.37 | D12: 14.37 | E12: 714 | F12: 714 | G12: 0.01 | I12: 3.7 | R12: 150
A13: 2008-10-14T19:45:00 | B13: 7.1 | C13: 14.6 | D13: 14.6 | E13: 715 | F13: 715 | R13: 165
A14: 2008-10-14T20:00:00 | B14: 7.09 | C14: 14.78 | E14: 3527 | G14: 0.01 | I14: 3.7 | R14: 180
A15: 2008-10-14T20:15:00 | B15: 7.05 | C15: 14.7 | E15: 850 | R15: 195
A16: 2008-10-14T20:30:00 | B16: 7.1 | C16: 14.65 | E16: 263.4 | G16: 0.01 | I16: 3.7 | R16: 210
A17: 2008-10-14T20:45:00 | B17: 6.954 | C17: 14.65 | E17: 628.6 | R17: 225
A18: 2008-10-14T21:00:00 | B18: 6.761 | C18: 14.68 | E18: 943 | G18: 0.08 | I18: 3.71 | R18: 240
A19: 2008-10-14T21:15:00 | B19: 6.741 | C19: 14.67 | E19: 867 | R19: 255
A20: 2008-10-14T21:30:00 | B20: 6.921 | C20: 14.67 | D20: 14.67 | E20: 893 | F20: 893 | G20: 0.02 | I20: 3.72 | R20: 270
A21: 2008-10-14T21:45:00 | B21: 7.07 | C21: 14.54 | D21: 14.54 | E21: 694.2 | F21: 694.2 | R21: 285
A22: 2008-10-14T22:00:00 | B22: 7.09 | C22: 14.49 | D22: 14.49 | E22: 773 | F22: 773 | G22: 0 | I22: 3.72 | R22: 300
A23: 2008-10-14T22:15:00 | B23: 7.16 | C23: 14.45 | D23: 14.45 | E23: 753 | F23: 753 | J23: =AVERAGE(F6:F13) -> 717.5 | K23: =F34+((J23-F34)*0.5) -> 440.45 | L23: =F34+((J23-F34)*0.9) -> 662.09 | R23: 315
A24: 2008-10-14T22:30:00 | B24: 7.25 | C24: 14.4 | D24: 14.4 | E24: 465.9 | F24: 465.9 | G24: 0.07 | I24: 3.73 | N24: X | R24: 330
A25: 2008-10-14T22:45:00 | B25: 7.19 | C25: 14.35 | D25: 14.35 | E25: 343.5 | F25: 343.5 | R25: 345
A26: 2008-10-14T23:00:00 | B26: 7.01 | C26: 14.34 | D26: 14.34 | E26: 334.5 | F26: 334.5 | G26: 0.03 | I26: 3.73 | R26: 360
A27: 2008-10-14T23:15:00 | B27: 6.887 | C27: 14.27 | D27: 14.27 | E27: 334.3 | F27: 334.3 | R27: 375
A28: 2008-10-14T23:30:00 | B28: 6.925 | C28: 14.13 | D28: 14.13 | E28: 340.6 | F28: 340.6 | G28: 0.09 | I28: 3.74 | R28: 390
A29: 2008-10-14T23:45:00 | B29: 6.813 | C29: 14.08 | D29: 14.08 | E29: 356.1 | F29: 356.1 | R29: 405
A30: 2008-10-15 | B30: 6.737 | C30: 13.97 | D30: 13.97 | E30: 381.1 | F30: 381.1 | G30: 0.11 | I30: 3.76 | R30: 420
A31: 2008-10-15T00:15:00 | B31: 6.716 | C31: 13.74 | D31: 13.74 | E31: 304.2 | F31: 304.2 | R31: 435
A32: 2008-10-15T00:30:00 | B32: 6.775 | C32: 13.33 | D32: 13.33 | E32: 263.6 | F32: 263.6 | G32: 0 | I32: 3.76 | R32: 450
A33: 2008-10-15T00:45:00 | B33: 6.83 | C33: 12.97 | D33: 12.97 | E33: 201 | F33: 201 | R33: 465
A34: 2008-10-15T01:00:00 | B34: 6.859 | C34: 12.9 | D34: 12.9 | E34: 163.4 | F34: 163.4 | G34: 0.02 | I34: 3.77 | O34: X | R34: 480
A35: 2008-10-15T01:15:00 | B35: 6.907 | C35: 13.01 | E35: 230.4 | R35: 495
A36: 2008-10-15T01:30:00 | B36: 6.952 | C36: 13.13 | D36: 13.13 | E36: 207.4 | F36: 207.4 | G36: 0.04 | I36: 3.78 | R36: 510
A37: 2008-10-15T01:45:00 | B37: 7.06 | C37: 13.25 | D37: 13.25 | E37: 207.5 | F37: 207.5 | R37: 525
A38: 2008-10-15T02:00:00 | B38: 7.01 | C38: 13.32 | D38: 13.32 | E38: 205.6 | F38: 205.6 | G38: 0.03 | I38: 3.79 | R38: 540
A39: 2008-10-15T02:15:00 | B39: 7.08 | C39: 13.31 | D39: 13.31 | E39: 217.2 | F39: 217.2 | R39: 555
A40: 2008-10-15T02:30:00 | B40: 7.11 | C40: 13.32 | D40: 13.32 | E40: 243.7 | F40: 243.7 | G40: 0.04 | I40: 3.79 | R40: 570
A41: 2008-10-15T02:45:00 | B41: 7.14 | C41: 13.35 | E41: 312.8 | R41: 585
A42: 2008-10-15T03:00:00 | B42: 7.17 | C42: 13.41 | D42: 13.41 | E42: 347.2 | F42: 347.2 | G42: 0.01 | I42: 3.8 | R42: 600
A43: 2008-10-15T03:15:00 | B43: 7.17 | C43: 13.38 | D43: 13.38 | E43: 276.7 | F43: 276.7 | R43: 615
A44: 2008-10-15T03:30:00 | B44: 7.24 | C44: 13.35 | D44: 13.35 | E44: 266.2 | F44: 266.2 | G44: 0.03 | I44: 3.81 | R44: 630
A45: 2008-10-15T03:45:00 | B45: 7.25 | C45: 13.35 | D45: 13.35 | E45: 326.6 | F45: 326.6 | R45: 645
A46: 2008-10-15T04:00:00 | B46: 7.22 | C46: 13.38 | D46: 13.38 | E46: 298.2 | F46: 298.2 | G46: 0.01 | I46: 3.82 | R46: 660
A47: 2008-10-15T04:15:00 | B47: 7.18 | C47: 13.42 | D47: 13.42 | E47: 302.9 | F47: 302.9 | R47: 675
A48: 2008-10-15T04:30:00 | B48: 7.18 | C48: 13.44 | D48: 13.44 | E48: 289.7 | F48: 289.7 | G48: 0.03 | I48: 3.83 | R48: 690
A49: 2008-10-15T04:45:00 | B49: 7.23 | C49: 13.47 | D49: 13.47 | E49: 284 | F49: 284 | R49: 705
A50: 2008-10-15T05:00:00 | B50: 7.26 | C50: 13.48 | D50: 13.48 | E50: 289.4 | F50: 289.4 | G50: 0.04 | I50: 3.85 | R50: 720
A51: 2008-10-15T05:15:00 | B51: 7.28 | C51: 13.53 | D51: 13.53 | E51: 307.4 | F51: 307.4 | R51: 735
A52: 2008-10-15T05:30:00 | B52: 7.31 | C52: 13.52 | D52: 13.52 | E52: 363.5 | F52: 363.5 | G52: 0.01 | I52: 3.86 | R52: 750
A53: 2008-10-15T05:45:00 | B53: 7.29 | C53: 13.48 | D53: 13.48 | E53: 335.2 | F53: 335.2 | R53: 765
A54: 2008-10-15T06:00:00 | B54: 7.25 | C54: 13.46 | D54: 13.46 | E54: 408.5 | F54: 408.5 | G54: 0 | I54: 3.87 | R54: 780
A55: 2008-10-15T06:15:00 | B55: 7.26 | C55: 13.48 | D55: 13.48 | E55: 367.9 | F55: 367.9 | R55: 795
A56: 2008-10-15T06:30:00 | B56: 7.26 | C56: 13.47 | D56: 13.47 | E56: 339.2 | F56: 339.2 | G56: 0.01 | H56: =SUM(G2:G56) -> 0.83 | I56: 3.9 | R56: 810
A57: 2008-10-15T06:45:00 | B57: 7.31 | C57: 13.55 | D57: 13.55 | E57: 313.1 | F57: 313.1 | R57: 825
A58: 2008-10-15T07:00:00 | B58: 7.37 | C58: 13.58 | D58: 13.58 | E58: 316.2 | F58: 316.2 | G58: 0 | I58: 3.91 | R58: 840
A59: 2008-10-15T07:15:00 | B59: 7.47 | C59: 13.62 | D59: 13.62 | E59: 319.9 | F59: 319.9 | R59: 855
A60: 2008-10-15T07:30:00 | B60: 7.57 | C60: 13.67 | D60: 13.67 | E60: 314.5 | F60: 314.5 | G60: 0 | I60: 3.93 | R60: 870
A61: 2008-10-15T07:45:00 | B61: 7.58 | C61: 13.69 | D61: 13.69 | E61: 304.4 | F61: 304.4 | R61: 885
A62: 2008-10-15T08:00:00 | B62: 7.62 | C62: 13.74 | D62: 13.74 | E62: 302.2 | F62: 302.2 | G62: 0 | I62: 3.96 | R62: 900
A63: 2008-10-15T08:15:00 | B63: 8.01 | C63: 13.77 | D63: 13.77 | E63: 307.6 | F63: 307.6 | R63: 915
A64: 2008-10-15T08:30:00 | B64: 8.08 | C64: 13.78 | D64: 13.78 | E64: 318.7 | F64: 318.7 | G64: 0 | I64: 4.04 | R64: 930
A65: 2008-10-15T08:45:00 | B65: 8.01 | C65: 13.81 | D65: 13.81 | E65: 334.6 | F65: 334.6 | R65: 945
A66: 2008-10-15T09:00:00 | B66: 8.04 | C66: 13.86 | D66: 13.86 | E66: 356.1 | F66: 356.1 | G66: 0 | I66: 4.1 | R66: 960
A67: 2008-10-15T09:15:00 | B67: 8.06 | C67: 13.89 | D67: 13.89 | E67: 418.1 | F67: 418.1 | R67: 975
A68: 2008-10-15T09:30:00 | B68: 7.96 | C68: 13.93 | D68: 13.93 | E68: 485.4 | F68: 485.4 | G68: 0 | I68: 4.12 | P68: X | R68: =R67+(15*((K23-F67)/(F68-F67))) -> 979.9814264
A69: 2008-10-15T09:45:00 | B69: 7.81 | C69: 13.94 | D69: 13.94 | E69: 484.3 | F69: 484.3 | R69: =R67+30 -> 1005
A70: 2008-10-15T10:00:00 | B70: 7.93 | C70: 13.96 | D70: 13.96 | E70: 487.7 | F70: 487.7 | G70: 0 | I70: 4.18 | R70: =R69+15 -> 1020
A71: 2008-10-15T10:15:00 | B71: 7.99 | C71: 13.99 | D71: 13.99 | E71: 494.2 | F71: 494.2 | R71: =R70+15 -> 1035
A72: 2008-10-15T10:30:00 | B72: 8.84 | C72: 14 | D72: 14 | E72: 500.9 | F72: 500.9 | G72: 0 | I72: 4.2 | R72: 1050
A73: 2008-10-15T10:45:00 | B73: 9.61 | C73: 14.04 | D73: 14.04 | E73: 509.4 | F73: 509.4 | R73: 1065
A74: 2008-10-15T11:00:00 | B74: 9.58 | C74: 14.05 | D74: 14.05 | E74: 528.2 | F74: 528.2 | G74: 0 | I74: 4.21 | R74: 1080
A75: 2008-10-15T11:15:00 | B75: 10.46 | C75: 14.08 | D75: 14.08 | E75: 579.4 | F75: 579.4 | R75: 1095
A76: 2008-10-15T11:30:00 | B76: 11.27 | C76: 14.1 | D76: 14.1 | E76: 579.3 | F76: 579.3 | G76: 0 | I76: 4.21 | R76: 1110
A77: 2008-10-15T11:45:00 | B77: 11.61 | C77: 14.1 | D77: 14.1 | E77: 565.5 | F77: 565.5 | R77: 1125
A78: 2008-10-15T12:00:00 | B78: 11.57 | C78: 14.12 | D78: 14.12 | E78: 566.9 | F78: 566.9 | G78: 0.01 | I78: 4.21 | R78: 1140
A79: 2008-10-15T12:15:00 | B79: 12.06 | C79: 14.15 | D79: 14.15 | E79: 575.9 | F79: 575.9 | R79: 1155
A80: 2008-10-15T12:30:00 | B80: 12.8 | C80: 14.14 | D80: 14.14 | E80: 587.6 | F80: 587.6 | G80: 0 | I80: 4.21 | R80: 1170
A81: 2008-10-15T12:45:00 | B81: 12.99 | C81: 14.18 | D81: 14.18 | E81: 592.2 | F81: 592.2 | R81: 1185
A82: 2008-10-15T13:00:00 | B82: 13.18 | C82: 14.18 | D82: 14.18 | E82: 591.3 | F82: 591.3 | G82: 0 | I82: 4.2 | R82: 1200
A83: 2008-10-15T13:15:00 | B83: 13.54 | C83: 14.19 | D83: 14.19 | E83: 586.5 | F83: 586.5 | R83: 1215
A84: 2008-10-15T13:30:00 | B84: 13.24 | C84: 14.2 | D84: 14.2 | E84: 585 | F84: 585 | G84: 0 | I84: 4.2 | R84: 1230
A85: 2008-10-15T13:45:00 | B85: 13.06 | C85: 14.21 | D85: 14.21 | E85: 591.8 | F85: 591.8 | R85: 1245
A86: 2008-10-15T14:00:00 | B86: 13.36 | C86: 14.22 | D86: 14.22 | E86: 608.8 | F86: 608.8 | G86: 0 | I86: 4.19 | R86: 1260
A87: 2008-10-15T14:15:00 | B87: 13.84 | C87: 14.24 | D87: 14.24 | E87: 630.8 | F87: 630.8 | R87: 1275
A88: 2008-10-15T14:30:00 | B88: 13.47 | C88: 14.24 | D88: 14.24 | E88: 652.5 | F88: 652.5 | G88: 0 | I88: 4.19 | R88: 1290
A89: 2008-10-15T14:45:00 | B89: 13.71 | C89: 14.24 | D89: 14.24 | E89: 670.4 | F89: 670.4 | Q89: X | R89: =R88+(15*((L23-F88)/(F89-F88))) -> 1298.036313

Sheet 2008_40 (2)
A1: Date/Time | B1: Air Temperature (°C) | C1: 21-cm subsurface drain temp., unedited (°C) | D1: 21-cm subsurface drain temp. (°C) | E1: 21-cm subsurface drain SC, unedited (mS/cm) | F1: 21-cm subsurface drain SC (mS/cm) | G1: Precip (inch) | H1: Cumulative Precip (inch) | I1: Gage height (feet), relative | J1: SCEO (mS/cm) | K1: SC50 (mS/cm) | L1: SC90 (mS/cm) | M1: tS | N1: tEO | O1: tEM | P1: t50 | Q1: t90 | R1: Time (minutes)
A2: 2008-10-23T10:30:00 | B2: 4.335 | C2: 12.88 | D2: 12.88 | E2: 791 | F2: 791 | G2: 0.01 | I2: 3.89 | M2: X | R2: 0
A3: 2008-10-23T10:45:00 | B3: 4.588 | C3: 12.92 | D3: 12.92 | E3: 793 | F3: 793 | R3: =R2+15 -> 15
A4: 2008-10-23T11:00:00 | B4: 5.198 | C4: 12.96 | D4: 12.96 | E4: 794 | F4: 794 | G4: 0.01 | I4: 3.89 | R4: =R3+15 -> 30
A5: 2008-10-23T11:15:00 | B5: 5.479 | C5: 12.98 | D5: 12.98 | E5: 795 | F5: 795 | R5: =R4+15 -> 45
A6: 2008-10-23T11:30:00 | B6: 5.487 | C6: 12.98 | D6: 12.98 | E6: 797 | F6: 797 | G6: 0 | I6: 3.89 | R6: 60
A7: 2008-10-23T11:45:00 | B7: 5.396 | C7: 13.03 | D7: 13.03 | E7: 796 | F7: 796 | R7: 75
A8: 2008-10-23T12:00:00 | B8: 5.169 | C8: 13.06 | D8: 13.06 | E8: 796 | F8: 796 | G8: 0.03 | I8: 3.89 | R8: 90
A9: 2008-10-23T12:15:00 | B9: 4.57 | C9: 13.04 | D9: 13.04 | E9: 796 | F9: 796 | R9: 105
A10: 2008-10-23T12:30:00 | B10: 4.748 | C10: 13.07 | D10: 13.07 | E10: 796 | F10: 796 | G10: 0 | I10: 3.89 | R10: 120
A11: 2008-10-23T12:45:00 | B11: 4.71 | C11: 13.1 | D11: 13.1 | E11: 797 | F11: 797 | R11: 135
A12: 2008-10-23T13:00:00 | B12: 4.953 | C12: 13.07 | D12: 13.07 | E12: 798 | F12: 798 | G12: 0.01 | H12: =SUM(G2:G12) -> 0.06 | I12: 3.89 | R12: 150
A13: 2008-10-23T13:15:00 | B13: 5.009 | C13: 13.03 | D13: 13.03 | E13: 798 | F13: 798 | R13: 165
A14: 2008-10-23T13:30:00 | B14: 5.189 | C14: 12.98 | D14: 12.98 | E14: 797 | F14: 797 | G14: 0 | I14: 3.89 | R14: 180
A15: 2008-10-23T13:45:00 | B15: 5.226 | C15: 13 | D15: 13 | E15: 795 | F15: 795 | R15: 195
A16: 2008-10-23T14:00:00 | B16: 5.188 | C16: 12.99 | D16: 12.99 | E16: 793 | F16: 793 | G16: 0 | I16: 3.89 | R16: 210
A17: 2008-10-23T14:15:00 | B17: 5.161 | C17: 12.99 | D17: 12.99 | E17: 791 | F17: 791 | R17: 225
A18: 2008-10-23T14:30:00 | B18: 5.075 | C18: 13.06 | D18: 13.06 | E18: 790 | F18: 790 | G18: 0 | I18: 3.89 | J18: =AVERAGE(F11:F18) -> 794.875 | K18: =F22+((J18-F22)*0.5) -> 602.1875 | L18: =F22+((J18-F22)*0.9) -> 756.3375 | R18: 240
A19: 2008-10-23T14:45:00 | B19: 5.225 | C19: 12.76 | D19: 12.76 | E19: 733 | F19: 733 | N19: X | R19: 255
A20: 2008-10-23T15:00:00 | B20: 5.199 | C20: 12.7 | D20: 12.7 | E20: 573.6 | F20: 573.6 | G20: 0 | I20: 3.89 | R20: 270
A21: 2008-10-23T15:15:00 | B21: 5.236 | C21: 12.73 | D21: 12.73 | E21: 438.2 | F21: 438.2 | R21: 285
A22: 2008-10-23T15:30:00 | B22: 5.218 | C22: 12.77 | D22: 12.77 | E22: 409.5 | F22: 409.5 | G22: 0 | I22: 3.89 | O22: X | R22: 300
A23: 2008-10-23T15:45:00 | B23: 5.199 | C23: 12.79 | D23: 12.79 | E23: 429.9 | F23: 429.9 | R23: 315
A24: 2008-10-23T16:00:00 | B24: 5.255 | C24: 12.82 | D24: 12.82 | E24: 432 | F24: 432 | G24: 0 | I24: 3.89 | R24: 330
A25: 2008-10-23T16:15:00 | B25: 5.264 | C25: 12.86 | D25: 12.86 | E25: 454.2 | F25: 454.2 | R25: 345
A26: 2008-10-23T16:30:00 | B26: 5.237 | C26: 12.89 | D26: 12.89 | E26: 510.9 | F26: 510.9 | G26: 0 | I26: 3.88 | R26: 360
A27: 2008-10-23T16:45:00 | B27: 5.103 | C27: 12.9 | D27: 12.9 | E27: 556.9 | F27: 556.9 | R27: 375
A28: 2008-10-23T17:00:00 | B28: 5.057 | C28: 12.93 | D28: 12.93 | E28: 595.1 | F28: 595.1 | G28: 0 | I28: 3.88 | R28: 390
A29: 2008-10-23T17:15:00 | B29: 5.094 | C29: 12.95 | D29: 12.95 | E29: 637.7 | F29: 637.7 | P29: X | R29: =R28+(15*((K18-F28)/(F29-F28))) -> 392.4955986
A30: 2008-10-23T17:30:00 | B30: 5.036 | C30: 12.97 | D30: 12.97 | E30: 667.4 | F30: 667.4 | G30: 0 | I30: 3.88 | R30: =R28+30 -> 420
A31: 2008-10-23T17:45:00 | B31: 5.059 | C31: 12.97 | D31: 12.97 | E31: 683.1 | F31: 683.1 | R31: =R30+15 -> 435
A32: 2008-10-23T18:00:00 | B32: 5.038 | C32: 12.99 | D32: 12.99 | E32: 707 | F32: 707 | G32: 0 | I32: 3.88 | R32: =R31+15 -> 450
A33: 2008-10-23T18:15:00 | B33: 5.048 | C33: 13 | D33: 13 | E33: 727 | F33: 727 | R33: =R32+15 -> 465
A34: 2008-10-23T18:30:00 | B34: 5.104 | C34: 12.99 | D34: 12.99 | E34: 746 | F34: 746 | G34: 0 | I34: 3.88 | R34: =R33+15 -> 480
A35: 2008-10-23T18:45:00 | B35: 5.15 | C35: 13.03 | D35: 13.03 | E35: 760 | F35: 760 | Q35: X | R35: =R34+(15*((L18-F34)/(F35-F34))) -> 491.0758929
A36: 2008-10-24T04:30:00 | B36: 5.412 | C36: 13.14 | D36: 13.14 | E36: 801 | F36: 801 | G36: 0 | I36: 3.88
A37: 2008-10-24T04:45:00 | B37: 5.414 | C37: 13.15 | D37: 13.15 | E37: 803 | F37: 803
A38: 2008-10-24T05:00:00 | B38: 5.403 | C38: 13.14 | D38: 13.14 | E38: 804 | F38: 804 | G38: 0 | I38: 3.88
A39: 2008-10-24T05:15:00 | B39: 5.432 | C39: 13.11 | D39: 13.11 | E39: 805 | F39: 805
A40: 2008-10-24T05:30:00 | B40: 5.357 | C40: 13.13 | D40: 13.13 | E40: 805 | F40: 805 | G40: 0 | I40: 3.88
A41: 2008-10-24T05:45:00 | B41: 5.366 | C41: 13.13 | D41: 13.13 | E41: 804 | F41: 804
A42: 2008-10-24T06:00:00 | B42: 5.273 | C42: 13.16 | D42: 13.16 | E42: 801 | F42: 801 | G42: 0.01 | I42: 3.89 | M42: X | R42: 0
A43: 2008-10-24T06:15:00 | B43: 5.301 | C43: 13.16 | D43: 13.16 | E43: 797 | F43: 797 | R43: =R42+15 -> 15
A44: 2008-10-24T06:30:00 | B44: 5.301 | C44: 13.16 | D44: 13.16 | E44: 790 | F44: 790 | G44: 0 | I44: 3.89 | R44: =R43+15 -> 30
A45: 2008-10-24T06:45:00 | B45: 5.216 | C45: 13.2 | D45: 13.2 | E45: 783 | F45: 783 | J45: =AVERAGE(F38:F45) -> 798.625 | K45: =F58+((J45-F58)*0.5) -> 529.7625 | L45: =F58+((J45-F58)*0.9) -> 744.8525 | R45: 45
A46: 2008-10-24T07:00:00 | B46: 5.235 | C46: 13.15 | D46: 13.15 | E46: 774 | F46: 774 | G46: 0.04 | I46: 3.89 | N46: X | R46: 60
A47: 2008-10-24T07:15:00 | B47: 5.178 | C47: 13.13 | D47: 13.13 | E47: 766 | F47: 766 | R47: 75
A48: 2008-10-24T07:30:00 | B48: 4.905 | C48: 13.14 | D48: 13.14 | E48: 757 | F48: 757 | G48: 0.08 | I48: 3.9 | R48: 90
A49: 2008-10-24T07:45:00 | B49: 4.736 | C49: 13.16 | D49: 13.16 | E49: 747 | F49: 747 | R49: 105
A50: 2008-10-24T08:00:00 | B50: 5.365 | C50: 13.2 | D50: 13.2 | E50: 737 | F50: 737 | G50: 0.01 | H50: =SUM(G42:G50) -> 0.14 | I50: 3.9 | R50: 120
A51: 2008-10-24T08:15:00 | B51: 5.527 | C51: 12.65 | D51: 12.65 | E51: 657.3 | F51: 657.3 | R51: 135
A52: 2008-10-24T08:30:00 | B52: 5.575 | C52: 12.82 | D52: 12.82 | E52: 788 | F52: 788 | G52: 0 | I52: 3.9 | R52: 150
A53: 2008-10-24T08:45:00 | B53: 5.753 | C53: 12.97 | D53: 12.97 | E53: 552.5 | F53: 552.5 | R53: 165
A54: 2008-10-24T09:00:00 | B54: 6.034 | C54: 12.91 | D54: 12.91 | E54: 468.1 | F54: 468.1 | G54: 0 | I54: 3.9 | R54: 180
A55: 2008-10-24T09:15:00 | B55: 5.962 | C55: 12.85 | D55: 12.85 | E55: 372.1 | F55: 372.1 | R55: 195
A56: 2008-10-24T09:30:00 | B56: 5.888 | C56: 12.8 | D56: 12.8 | E56: 296.1 | F56: 296.1 | G56: 0 | I56: 3.9 | R56: 210
A57: 2008-10-24T09:45:00 | B57: 5.903 | C57: 12.74 | D57: 12.74 | E57: 270.7 | F57: 270.7 | R57: 225
A58: 2008-10-24T10:00:00 | B58: 5.772 | C58: 12.74 | D58: 12.74 | E58: 260.9 | F58: 260.9 | G58: 0 | I58: 3.9 | O58: X | R58: 240
A59: 2008-10-24T10:15:00 | B59: 5.93 | C59: 12.74 | D59: 12.74 | E59: 264.1 | F59: 264.1 | R59: 255
A60: 2008-10-24T10:30:00 | B60: 5.95 | C60: 12.74 | D60: 12.74 | E60: 269.3 | F60: 269.3 | G60: 0 | I60: 3.9 | R60: 270
A61: 2008-10-24T10:45:00 | B61: 6.026 | C61: 12.75 | D61: 12.75 | E61: 274.3 | F61: 274.3 | R61: 285
A62: 2008-10-24T11:00:00 | B62: 6.122 | C62: 12.77 | D62: 12.77 | E62: 278.9 | F62: 278.9 | G62: 0 | I62: 3.9 | R62: 300
A63: 2008-10-24T11:15:00 | B63: 6.368 | C63: 12.77 | D63: 12.77 | E63: 281.9 | F63: 281.9 | R63: 315
A64: 2008-10-24T11:30:00 | B64: 6.49 | C64: 12.78 | D64: 12.78 | E64: 283.6 | F64: 283.6 | G64: 0 | I64: 3.9 | R64: 330
A65: 2008-10-24T11:45:00 | B65: 6.932 | C65: 12.8 | D65: 12.8 | E65: 284.1 | F65: 284.1 | R65: 345
A66: 2008-10-24T12:00:00 | B66: 7.23 | C66: 12.82 | D66: 12.82 | E66: 284.8 | F66: 284.8 | G66: 0.01 | I66: 3.9 | R66: 360
A67: 2008-10-24T12:15:00 | B67: 6.104 | C67: 12.81 | D67: 12.81 | E67: 285.5 | F67: 285.5 | R67: 375
A68: 2008-10-24T12:30:00 | B68: 6.037 | C68: 12.82 | D68: 12.82 | E68: 286.6 | F68: 286.6 | G68: 0.01 | I68: 3.9 | R68: 390
A69: 2008-10-24T12:45:00 | B69: 6.065 | C69: 12.83 | D69: 12.83 | E69: 288.5 | F69: 288.5 | R69: 405
A70: 2008-10-24T13:00:00 | B70: 6.31 | C70: 12.83 | D70: 12.83 | E70: 291.1 | F70: 291.1 | G70: 0 | I70: 3.9 | R70: 420
A71: 2008-10-24T13:15:00 | B71: 6.84 | C71: 12.85 | D71: 12.85 | E71: 294.2 | F71: 294.2 | R71: 435
A72: 2008-10-24T13:30:00 | B72: 7.36 | C72: 12.86 | D72: 12.86 | E72: 297.8 | F72: 297.8 | G72: 0 | I72: 3.91 | R72: 450
A73: 2008-10-24T13:45:00 | B73: 7.46 | C73: 12.86 | D73: 12.86 | E73: 302 | F73: 302 | R73: 465
A74: 2008-10-24T14:00:00 | B74: 7.21 | C74: 12.89 | D74: 12.89 | E74: 305.8 | F74: 305.8 | G74: 0 | I74: 3.91 | R74: 480
A75: 2008-10-24T14:15:00 | B75: 6.504 | C75: 12.9 | D75: 12.9 | E75: 310.5 | F75: 310.5 | R75: 495
A76: 2008-10-24T14:30:00 | B76: 6.487 | C76: 12.76 | D76: 12.76 | E76: 318.2 | F76: 318.2 | G76: 0.01 | I76: 3.91 | R76: 510
A77: 2008-10-24T14:45:00 | B77: 6.507 | C77: 12.65 | D77: 12.65 | E77: 329 | F77: 329 | R77: 525
A78: 2008-10-24T15:00:00 | B78: 6.562 | C78: 12.65 | D78: 12.65 | E78: 341.7 | F78: 341.7 | G78: 0.02 | I78: 3.91 | R78: 540
A79: 2008-10-24T15:15:00 | B79: 6.374 | C79: 12.63 | D79: 12.63 | E79: 352.9 | F79: 352.9 | R79: 555
A80: 2008-10-24T15:30:00 | B80: 6.299 | C80: 12.66 | D80: 12.66 | E80: 362.2 | F80: 362.2 | G80: 0 | I80: 3.91 | R80: 570
A81: 2008-10-24T15:45:00 | B81: 6.488 | C81: 12.66 | D81: 12.66 | E81: 370.3 | F81: 370.3 | R81: 585
A82: 2008-10-24T16:00:00 | B82: 6.631 | C82: 12.69 | D82: 12.69 | E82: 375.8 | F82: 375.8 | G82: 0 | I82: 3.92 | R82: 600
A83: 2008-10-24T16:15:00 | B83: 6.328 | C83: 12.7 | D83: 12.7 | E83: 386.1 | F83: 386.1 | R83: 615
A84: 2008-10-24T16:30:00 | B84: 6.167 | C84: 12.55 | D84: 12.55 | E84: 388.9 | F84: 388.9 | G84: 0 | I84: 3.92 | R84: 630
A85: 2008-10-24T16:45:00 | B85: 6.223 | C85: 12.44 | D85: 12.44 | E85: 411.4 | F85: 411.4 | R85: 645
A86: 2008-10-24T17:00:00 | B86: 6.186 | C86: 12.5 | D86: 12.5 | E86: 465.2 | F86: 465.2 | G86: 0 | I86: 3.92 | R86: 660
A87: 2008-10-24T17:15:00 | B87: 6.101 | C87: 12.54 | D87: 12.54 | E87: 533.1 | F87: 533.1 | P87: X | R87: =R86+(15*((K45-F86)/(F87-F86))) -> 674.2627025
A88: 2008-10-24T17:30:00 | B88: 5.969 | C88: 12.58 | D88: 12.58 | E88: 576.7 | F88: 576.7 | G88: 0 | I88: 3.92 | R88: =R86+30 -> 690
A89: 2008-10-24T17:45:00 | B89: 5.827 | C89: 12.63 | D89: 12.63 | E89: 645.9 | F89: 645.9 | R89: =R88+15 -> 705
A90: 2008-10-24T18:00:00 | B90: 5.641 | C90: 12.66 | D90: 12.66 | E90: 685.6 | F90: 685.6 | G90: 0 | I90: 3.92 | R90: =R89+15 -> 720
A91: 2008-10-24T18:15:00 | B91: 5.498 | C91: 12.66 | D91: 12.66 | E91: 715 | F91: 715 | R91: 735
A92: 2008-10-24T18:30:00 | B92: 4.916 | C92: 12.71 | D92: 12.71 | E92: 726 | F92: 726 | G92: 0 | I92: 3.93 | R92: 750
A93: 2008-10-24T18:45:00 | B93: 4.56 | C93: 12.69 | D93: 12.69 | E93: 710 | F93: 710 | R93: 765
A94: 2008-10-24T19:00:00 | B94: 5.051 | C94: 12.72 | D94: 12.72 | E94: 679.1 | F94: 679.1 | G94: 0 | I94: 3.93 | R94: 780
A95: 2008-10-24T19:15:00 | B95: 5.357 | C95: 12.71 | D95: 12.71 | E95: 668.2 | F95: 668.2 | R95: 795
A96: 2008-10-24T19:30:00 | B96: 5.291 | C96: 12.75 | D96: 12.75 | E96: 682.4 | F96: 682.4 | G96: 0 | I96: 3.93 | R96: 810
A97: 2008-10-24T19:45:00 | B97: 5.169 | C97: 12.78 | D97: 12.78 | E97: 714 | F97: 714 | R97: 825
A98: 2008-10-24T20:00:00 | B98: 4.327 | C98: 12.79 | D98: 12.79 | E98: 746 | F98: 746 | G98: 0 | I98: 3.93 | Q98: X | R98: =R97+(15*((L45-F97)/(F98-F97))) -> 839.4621094

Sheet Summary
A1: Event # | B1: Tab # | C1: Julian Day | D1: Date/Time | E1: Time since last rainfall (Date/Time) | F1: Time since last rainfall (days) | G1: Air Temperature (°C) | H1: Cumulative Precip (inch) | I1: Cumulative Precip (mm) | J1: Cumulative Precip (inch), previous 48 hours | K1: Cumulative Precip (inch), previous 7 days | L1: Cumulative Precip (inch), previous 14 days | M1: Cumulative Precip (mm), previous 48 hours | N1: Cumulative Precip (mm), previous 7 days | O1: Cumulative Precip (mm), previous 14 days | P1: Maximum gage height (feet), relative | Q1: SCEO (mS/cm) | R1: SC Event Range (mS/cm) | S1: SCEM (mS/cm) | T1: SC50 (mS/cm) | U1: SC90 (mS/cm) | V1: tEO | W1: tEM | X1: t50 | Y1: t90 | Z1: Webster City rainfall record substitution | AA1: Rainfall or Snowmelt
A2: 1 | B2: 2006_1 | C2: 345 | D2: 2006-12-11T19:00:00 | E2: 2006-11-28T18:30:00 | F2: 13.02083333 | G2: 5.9 | H2: 0.26 | I2: 6.604 | J2: 0 | K2: 0 | L2: 1 | M2: 0 | N2: 0 | O2: 25.4 | P2: 4.33 | Q2: 719 | R2: 361.4 | S2: 357.6 | T2: 538.3 | U2: 682.86 | V2: 180 | W2: 420 | X2: 468.4275184 | Y2: 587.5839416 | Z2: -- | AA2: Rainfall
A3: 2 | B3: 2006_2 (2) | C3: 354 | D3: 2006-12-20T13:30:00 | E3: 2006-12-12T01:00:00 | F3: 8.520833333 | G3: 1.574 | H3: 0.44 | I3: 11.176 | J3: 0 | K3: 0.01 | L3: 0.28 | M3: 0 | N3: 0.254 | O3: 7.112 | P3: 4.42 | Q3: 735.5 | R3: 326.1 | S3: 409.4 | T3: 572.45 | U3: 702.89 | V3: 180 | W3: 420 | X3: 508.6538462 | Y3: 854.5657895 | Z3: -- | AA3: Rainfall
A4: 3 | B4: 2006_2 (2) | C4: 355 | D4: 2006-12-21T04:00:00 | E4: 2006-12-21 | F4: 0.1666666667 | G4: 2.815 | H4: 0.14 | I4: 3.556 | J4: 0.44 | K4: 0.45 | L4: 0.72 | M4: 11.176 | N4: 11.43 | O4: 18.288 | P4: 4.69 | Q4: 723.375 | R4: 202.375 | S4: 521 | T4: 622.1875 | U4: 703.1375 | V4: 135 | W4: 210 | X4: 258.5067247 | Y4: 438.20625 | Z4: -- | AA4: Rainfall
A5: 4 | B5: 2007_3 | C5: 3 | D5: 2007-01-03T11:00:00 | G5: 7.1 | P5: 5.36 | Q5: 705.375 | R5: 90.475 | S5: 614.9 | T5: 660.1375 | U5: 696.3275 | V5: 255 | W5: 270 | X5: 461.2585616 | Y5: 494.6971154 | Z5: -- | AA5: Snowmelt
A6: 5 | B6: 2007_4 | C6: 26 | D6: 2007-01-26T12:15:00 | G6: 3.061 | P6: 4.36 | Q6: 706.625 | R6: 101.925 | S6: 604.7 | T6: 655.6625 | U6: 696.4325 | V6: 195 | W6: 225 | X6: 280.828125 | Y6: 528.8161765 | Z6: -- | AA6: Snowmelt
A7: 6 | B7: 2007_5 (4) | C7: 50 | D7: 2007-02-19T10:15:00 | G7: 5.708 | P7: 4.02 | Q7: 703.5 | R7: 197 | S7: 506.5 | T7: 605 | U7: 683.8 | V7: 285 | W7: 360 | X7: 491.6666667 | Y7: 723.1034483 | Z7: -- | AA7: Snowmelt
A8: 7 | B8: 2007_5 (4) | C8: 51 | D8: 2007-02-20T09:30:00 | G8: 9.05 | P8: 4.1 | Q8: 707.375 | R8: 85.075 | S8: 622.3 | T8: 664.8375 | U8: 698.8675 | V8: 330 | W8: 360 | X8: 571.8011084 | Y8: 788.0461957 | Z8: -- | AA8: Snowmelt
A9: 8 | B9: 2007_5 (4) | C9: 52 | D9: 2007-02-21T09:45:00 | G9: 9.41 | P9: 5.78 | Q9: 700.65 | R9: 120.95 | S9: 579.7 | T9: 640.175 | U9: 688.555 | V9: 300 | W9: 540 | X9: 819.222973 | Y9: 1365.184783 | Z9: -- | AA9: Snowmelt
A10: 9 | B10: 2007_5 (4) | C10: 55 | D10: 2007-02-24T03:00:00 | G10: -1.022 | H10: 0.18 | I10: 4.572 | P10: 4.15 | Q10: 703.2 | R10: 186.1 | S10: 517.1 | T10: 610.15 | U10: 684.59 | V10: 180 | W10: 195 | X10: 259.579918 | Y10: 465.7941176 | Z10: -- | AA10: Rainfall
A11: 10 | B11: 2007_6 (3) | C11: 67 | D11: 2007-03-08T14:00:00 | G11: 2.466 | P11: 5.81 | Q11: 728.25 | R11: 212.75 | S11: 515.5 | T11: 621.875 | U11: 706.975 | V11: 150 | W11: 225 | X11: 400.4435484 | Y11: 611.625 | Z11: -- | AA11: Snowmelt
A12: 11 | B12: 2007_6 (3) | C12: 68 | D12: 2007-03-09T10:15:00 | G12: 6.355 | P12: 6 | Q12: 724.1428571 | R12: 309.7428571 | S12: 414.4 | T12: 569.2714286 | U12: 693.1685714 | V12: 240 | W12: 435 | X12: 548.7981624 | Y12: 779.4025974 | Z12: -- | AA12: Snowmelt
A13: 12 | B13: 2007_6 (3) | C13: 69 | D13: 2007-03-10T10:00:00 | G13: 10.51 | P13: 6.23 | Q13: 731.75 | R13: 393.25 | S13: 338.5 | T13: 535.125 | U13: 692.425 | V13: 135 | W13: 255 | X13: 520.5650685 | Y13: 736.2053571 | Z13: -- | AA13: Snowmelt
A14: 13 | B14: 2007_7 (3) | C14: 88 | D14: 2007-03-29T22:00:00 | E14: 2007-03-28T11:00:00 | F14: 1.458333333 | G14: 10.99 | H14: 0.1 | I14: 2.54 | J14: 0.11 | K14: 0.3 | L14: 0.34 | M14: 2.794 | N14: 7.62 | O14: 8.636 | P14: 4.77 | Q14: 661.75 | R14: 108.15 | S14: 553.6 | T14: 607.675 | U14: 650.935 | V14: 75 | W14: 75 | X14: 124.833815 | Y14: 183.048913 | Z14: -- | AA14: Rainfall
A15: 14 | B15: 2007_7 (3) | C15: 89 | D15: 2007-03-30T03:30:00 | E15: 2007-03-29T22:30:00 | F15: 0.2083333333 | G15: 12.76 | H15: 0.07 | I15: 1.778 | J15: 0.14 | K15: 0.4 | L15: 0.44 | M15: 3.556 | N15: 10.16 | O15: 11.176 | P15: 4.77 | Q15: 667.8875 | R15: 170.1875 | S15: 497.7 | T15: 582.79375 | U15: 650.86875 | V15: 45 | W15: 60 | X15: 87.6405943 | Y15: 149.71875 | Z15: -- | AA15: Rainfall
A16: 15 | B16: 2007_7 (3) | C16: 89 | D16: 2007-03-30T14:00:00 | E16: 2007-03-30T05:30:00 | F16: 0.3541666667 | G16: 15.84 | H16: 0.14 | I16: 3.556 | J16: 0.17 | K16: 0.47 | L16: 0.51 | M16: 4.318 | N16: 11.938 | O16: 12.954 | P16: 4.8 | Q16: 666.7375 | R16: 97.7375 | S16: 569 | T16: 617.86875 | U16: 656.96375 | V16: 105 | W16: 210 | X16: 240.2525685 | Y16: 287.31875 | Z16: -- | AA16: Rainfall
A17: 16 | B17: 2007_8 (2) | C17: 90 | D17: 2007-03-31T02:00:00 | E17: 2007-03-30T19:00:00 | F17: 0.2916666667 | G17: 10.68 | H17: 0.37 | I17: 9.398 | J17: 0.33 | K17: 0.63 | L17: 0.67 | M17: 8.382 | N17: 16.002 | O17: 17.018 | P17: 5.05 | Q17: 668.4625 | R17: 296.3625 | S17: 372.1 | T17: 520.28125 | U17: 638.82625 | V17: 105 | W17: 195 | X17: 223.8654772 | Y17: 343.1280242 | Z17: -- | AA17: Rainfall
A18: 17 | B18: 2007_8 (2) | C18: 90 | D18: 2007-03-31T07:30:00 | E18: 2007-03-31T05:30:00 | F18: 0.08333333334 | G18: 12.67 | H18: 0.2 | I18: 5.08 | J18: 0.7 | K18: 1 | L18: 1.04 | M18: 17.78 | N18: 25.4 | O18: 26.416 | P18: 5.49 | Q18: 637.5375 | R18: 151.4375 | S18: 486.1 | T18: 561.81875 | U18: 622.39375 | V18: 135 | W18: 180 | X18: 227.8674451 | Y18: 330 | Z18: -- | AA18: Rainfall
A19: 18 | B19: 2007_9 | C19: 100 | D19: 2007-04-10T17:30:00 | E19: 2007-04-03T08:00:00 | F19: 7.395833333 | G19: 2.816 | H19: 0.25 | I19: 6.35 | J19: 0 | K19: 0 | L19: 2.1 | M19: 0 | N19: 0 | O19: 53.34 | P19: 5.09 | Q19: 558.9125 | R19: 104.6125 | S19: 454.3 | T19: 506.60625 | U19: 548.45125 | V19: 1035 | W19: 1155 | X19: 1338.530273 | Y19: 1654.763221 | Z19: -- | AA19: Rainfall
A20: 19 | B20: 2007_10 (2) | C20: 112 | D20: 2007-04-22T12:30:00 | E20: 2007-04-20T06:00:00 | F20: 2.270833333 | H20: 0.32 | I20: 8.128 | J20: 0 | K20: 0.08 | L20: 0.33 | M20: 0 | N20: 2.032 | O20: 8.382 | P20: 4.856521 | Q20: 654.9285714 | R20: 215.7285714 | S20: 439.2 | T20: 547.0642857 | U20: 633.3557143 | V20: 105 | W20: 135 | X20: 191.8001443 | Z20: SUB | AA20: Rainfall
A21: 20 | B21: 2007_10 (2) | C21: 112 | D21: 2007-04-22T17:00:00 | E21: 2007-04-22T15:00:00 | F21: 0.08333333334 | H21: 0.3 | I21: 7.62 | J21: 0.32 | K21: 0.4 | L21: 0.65 | M21: 8.128 | N21: 10.16 | O21: 16.51 | P21: 4.973911 | Q21: 619.8142857 | R21: 294.6142857 | S21: 325.2 | T21: 472.5071429 | U21: 590.3528571 | V21: 60 | W21: 90 | X21: 127.6498584 | Y21: 161.2795842 | Z21: SUB | AA21: Rainfall
A22: 21 | B22: 2007_11 | C22: 126 | D22: 2007-05-06T04:00:00 | E22: 2007-05-04T08:00:00 | F22: 1.833333333 | H22: 1.02 | I22: 25.908 | J22: 0.09 | K22: 0.09 | L22: 4.21 | M22: 2.286 | N22: 2.286 | O22: 106.934 | P22: 4.85 | Q22: 592.95 | R22: 238.15 | S22: 354.8 | T22: 473.875 | U22: 569.135 | V22: 195 | W22: 285 | X22: 377.3157371 | Y22: 518.00625 | Z22: SUB | AA22: Rainfall
A23: 22 | B23: 2007_12 | C23: 134 | D23: 2007-05-14T18:00:00 | E23: 2007-05-07T10:00:00 | F23: 7.333333333 | G23: 9.89 | H23: 0.11 | I23: 2.794 | J23: 0 | K23: 0 | L23: 1.28 | M23: 0 | N23: 0 | O23: 32.512 | P23: 4.83 | Q23: 616.875 | R23: 87.775 | S23: 529.1 | T23: 572.9875 | U23: 608.0975 | V23: 75 | W23: 90 | X23: 112.8125 | Y23: 141.3065476 | Z23: SUB | AA23: Rainfall
A24: 23 | B24: 2007_13 | C24: 172 | D24: 2007-06-21T16:00:00 | E24: 2007-06-18T18:00:00 | F24: 2.916666667 | G24: 23.1 | H24: 0.11 | I24: 2.794 | J24: 0 | K24: 0.34 | L24: 0.34 | M24: 0 | N24: 8.636 | O24: 8.636 | P24: 4.39 | Q24: 637.7125 | R24: 85.6125 | S24: 552.1 | T24: 594.90625 | U24: 629.15125 | V24: 90 | W24: 90 | X24: 133.0670646 | Y24: 171.1397727 | Z24: SUB | AA24: Rainfall
A25: 24 | B25: 2007_14 | C25: 173 | D25: 2007-06-22T02:30:00 | E25: 2007-06-18T20:00:00 | F25: 3.270833333 | G25: 22.34 | H25: 0.5 | I25: 12.7 | J25: 0.11 | K25: 0.45 | L25: 0.45 | M25: 2.794 | N25: 11.43 | O25: 11.43 | P25: 5.99 | Q25: 639.9375 | R25: 337.3375 | S25: 302.6 | T25: 471.26875 | U25: 606.20375 | V25: 90 | W25: 120 | X25: 509.2261319 | Z25: -- | AA25: Rainfall
A26: 25 | B26: 2007_15 | C26: 190 | D26: 2007-07-09T02:00:00 | E26: 2007-06-26T10:00:00 | F26: 12.66666667 | G26: 24.02 | H26: 0.07 | I26: 1.778 | J26: 0 | K26: 0 | L26: 0.65 | M26: 0 | N26: 0 | O26: 16.51 | P26: 4.01 | Q26: 628.1375 | R26: 65.5375 | S26: 562.6 | T26: 595.36875 | U26: 621.58375 | V26: 135 | W26: 150 | X26: 229.53125 | Y26: 422.0558036 | Z26: -- | AA26: Rainfall
A27: 26 | B27: 2007_16 | C27: 199 | D27: 2007-07-18T14:30:00 | E27: 2007-07-09T09:00:00 | F27: 9.229166667 | G27: 31.95 | H27: 0.7 | I27: 17.78 | J27: 0.03 | K27: 0.03 | L27: 0.11 | M27: 0.762 | N27: 0.762 | O27: 2.794 | P27: 3.83 | Q27: 665.7125 | R27: 431.6125 | S27: 234.1 | T27: 449.90625 | U27: 622.55125 | V27: 165 | W27: 180 | X27: 259.0811821 | Y27: 424.8839286 | Z27: -- | AA27: Rainfall
A28: 27 | B28: 2007_17 | C28: 207 | D28: 2007-07-26T19:30:00 | E28: 2007-07-23T07:00:00 | F28: 3.520833333 | G28: 26.02 | H28: 0.72 | I28: 18.288 | J28: 0 | K28: 0.76 | L28: 1.56 | M28: 0 | N28: 19.304 | O28: 39.624 | P28: 3.73 | Q28: 690.375 | R28: 337.075 | S28: 353.3 | T28: 521.8375 | U28: 656.6675 | V28: 105 | W28: 135 | X28: 293.2560484 | Y28: 438.4431818 | Z28: -- | AA28: Rainfall
A29: 28 | B29: 2007_18 | C29: 216 | D29: 2007-08-04T06:30:00 | E29: 2007-07-26T23:00:00 | F29: 8.3125 | G29: 24.02 | H29: 1.5 | I29: 38.1 | J29: 0 | K29: 0 | L29: 1.48 | M29: 0 | N29: 0 | O29: 37.592 | P29: 3.87 | Q29: 731.25 | R29: 563.75 | S29: 167.5 | T29: 449.375 | U29: 674.875 | V29: 90 | W29: 210 | X29: 377.0061437 | Y29: 669.0434451 | Z29: -- | AA29: Rainfall
A30: 29 | B30: 2007_19 | C30: 275 | D30: 2007-10-02T07:30:00 | E30: 2007-09-25T05:00:00 | F30: 7.104166667 | G30: 18.85 | H30: 0.66 | I30: 16.764 | J30: 0.03 | K30: 0.04 | L30: 1.04 | M30: 0.762 | N30: 1.016 | O30: 26.416 | P30: 4.91 | Q30: 518.3857143 | R30: 98.08571429 | S30: 420.3 | T30: 469.3428571 | U30: 508.5771429 | V30: 150 | W30: 285 | X30: 576.9458128 | Y30: 613.7725714 | Z30: -- | AA30: Rainfall
A31: 30 | B31: 2007_20 | C31: 278 | D31: 2007-10-05T08:30:00 | E31: 2007-10-02T15:30:00 | F31: 2.708333333 | G31: 16.18 | H31: 0.15 | I31: 3.81 | J31: 0 | K31: 0.69 | L31: 1.04 | M31: 0 | N31: 17.526 | O31: 26.416 | P31: 4.62 | Q31: 732.25 | R31: 137.05 | S31: 595.2 | T31: 663.725 | U31: 718.545 | V31: 165 | W31: 195 | X31: 244.6213693 | Y31: 316.3632353 | Z31: -- | AA31: Rainfall
A32: 31 | B32: 2008_21 | C32: 7 | D32: 2008-01-07T13:30:00 | E32: 2007-12-28T12:00:00 | F32: 10.0625 | G32: 2.56 | H32: 0.17 | I32: 4.318 | J32: 0.03 | K32: 0.03 | L32: 0.03 | M32: 0.762 | N32: 0.762 | O32: 0.762 | P32: 3.84 | Q32: 700.9 | R32: 416.8 | S32: 284.1 | T32: 492.5 | U32: 663.47 | V32: 45 | W32: 60 | X32: 150.9051724 | Y32: 306.5 | Z32: -- | AA32: Rainfall
A33: 32 | B33: 2008_22 (3) | C33: 101 | D33: 2008-04-10T10:30:00 | E33: 2008-04-08T07:00:00 | F33: 2.145833333 | G33: 2.99 | H33: 0.36 | I33: 9.144 | J33: 0.16 | K33: 1.45 | L33: 4.2 | M33: 4.064 | N33: 36.83 | O33: 106.68 | P33: 4.65 | Q33: 677 | R33: 107.5 | S33: 569.5 | T33: 623.25 | U33: 666.25 | V33: 105 | W33: 165 | X33: 247.6480263 | Y33: 301.5 | Z33: -- | AA33: Rainfall
A34: 33 | B34: 2008_22 (3) | C34: 101 | D34: 2008-04-10T15:30:00 | E34: 2008-04-10T13:30:00 | F34: 0.08333333334 | G34: 3.027 | H34: 0.07 | I34: 1.778 | J34: 0.36 | K34: 1.53 | L34: 4.35 | M34: 9.144 | N34: 38.862 | O34: 110.49 | P34: 4.91 | Q34: 662.025 | R34: 127.325 | S34: 534.7 | T34: 598.3625 | U34: 649.2925 | V34: 90 | W34: 90 | X34: 111.4162234 | Z34: -- | AA34: Rainfall
A35: 34 | B35: 2008_22 (3) | C35: 101 | D35: 2008-04-10T17:30:00 | E35: 2008-04-10T16:00:00 | F35: 0.0625 | G35: 3.193 | H35: 0.19 | I35: 4.826 | J35: 0.43 | K35: 1.55 | L35: 4.4 | M35: 10.922 | N35: 39.37 | O35: 111.76 | P35: 5.24 | Q35: 625.7 | R35: 172.7 | S35: 453 | T35: 539.35 | U35: 608.43 | V35: 45 | W35: 60 | X35: 85.30245023 | Y35: 114.722561 | Z35: -- | AA35: Rainfall
A36: 35 | B36: 2008_23 | C36: 108 | D36: 2008-04-17T08:30:00 | E36: 2008-04-11T15:00:00 | F36: 5.729166667 | G36: 7.84 | H36: 0.09 | I36: 2.286 | J36: 0 | K36: 0.71 | L36: 2.16 | M36: 0 | N36: 18.034 | O36: 54.864 | P36: 4.53 | Q36: 655.7625 | R36: 85.4625 | S36: 570.3 | T36: 613.03125 | U36: 647.21625 | V36: 120 | W36: 135 | X36: 176.4411058 | Y36: 212.2775735 | Z36: -- | AA36: Rainfall
A37: 36 | B37: 2008_24 | C37: 109 | D37: 2008-04-18T10:30:00 | E37: 2008-04-18T08:30:00 | F37: 0.08333333334 | G37: 7.08 | H37: 0.3 | I37: 7.62 | J37: 0.24 | K37: 0.38 | L37: 2.03 | M37: 6.096 | N37: 9.652 | O37: 51.562 | P37: 5.04 | Q37: 658.2625 | R37: 257.4625 | S37: 400.8 | T37: 529.53125 | U37: 632.51625 | V37: 90 | W37: 195 | X37: 232.8962629 | Y37: 332.5193452 | Z37: -- | AA37: Rainfall
A38: 37 | B38: 2008_25 | C38: 113 | D38: 2008-04-22T02:30:00 | E38: 2008-04-18T17:30:00 | F38: 3.375 | G38: 6.591 | H38: 0.19 | I38: 4.826 | J38: 0.02 | K38: 0.62 | L38: 1.52 | M38: 0.508 | N38: 15.748 | O38: 38.608 | P38: 4.81 | Q38: 652.275 | R38: 156.175 | S38: 496.1 | T38: 574.1875 | U38: 636.6575 | V38: 75 | W38: 75 | X38: 117.8340517 | Y38: 186.3830645 | Z38: -- | AA38: Rainfall
A39: 38 | B39: 2008_26 | C39: 144 | D39: 2008-05-23T06:00:00 | E39: 2008-05-19T20:00:00 | F39: 3.416666667 | G39: 11.03 | H39: 0.3 | I39: 7.62 | J39: 0.14 | K39: 0.25 | L39: 0.46 | M39: 3.556 | N39: 6.35 | O39: 11.684 | P39: 4.28 | Q39: 622.025 | R39: 179.825 | S39: 442.2 | T39: 532.1125 | U39: 604.0425 | V39: 60 | W39: 75 | X39: 145.1317771 | Y39: 201.0804974 | Z39: -- | AA39: Rainfall
A40: 39 | B40: 2008_27 | C40: 150 | D40: 2008-05-29T04:30:00 | E40: 2008-05-28T07:00:00 | F40: 0.8958333333 | G40: 12.27 | H40: 0.75 | I40: 19.05 | J40: 0.05 | K40: 0.49 | L40: 0.67 | M40: 1.27 | N40: 12.446 | O40: 17.018 | P40: 4.33 | Q40: 625.5125 | R40: 409.5125 | S40: 216 | T40: 420.75625 | U40: 584.56125 | V40: 60 | W40: 60 | X40: 111.0072545 | Y40: 228.9845648 | Z40: -- | AA40: Rainfall
A41: 40 | B41: 2008_28 | C41: 179 | D41: 2008-06-27T17:00:00 | E41: 2008-06-27T04:00:00 | F41: 0.5416666667 | G41: 22.26 | H41: 0.36 | I41: 9.144 | J41: 0.27 | K41: 0.27 | L41: 0.36 | M41: 6.858 | N41: 6.858 | O41: 9.144 | P41: 5.15 | Q41: 633.875 | R41: 469.375 | S41: 164.5 | T41: 399.1875 | U41: 586.9375 | V41: 15 | W41: 60 | X41: 102.4841578 | Y41: 440.9675481 | Z41: -- | AA41: Rainfall
A42: 41 | B42: 2008_29 (2) | C42: 188 | D42: 2008-07-06T18:30:00 | E42: 2008-06-27T22:30:00 | F42: 8.833333333 | G42: 21.11 | H42: 0.07 | I42: 1.778 | J42: 0 | K42: 0 | L42: 0.65 | M42: 0 | N42: 0 | O42: 16.51 | P42: 4.35 | Q42: 650.9375 | R42: 71.1375 | S42: 579.8 | T42: 615.36875 | U42: 643.82375 | V42: 135 | W42: 150 | X42: 223.6616848 | Y42: 324.35625 | Z42: -- | AA42: Rainfall
A43: 42 | B43: 2008_29 (2) | C43: 189 | D43: 2008-07-07T16:00:00 | E43: 2008-07-06T20:00:00 | F43: 0.8333333333 | G43: 22.93 | H43: 0.66 | I43: 16.764 | J43: 0.07 | K43: 0.07 | L43: 0.72 | M43: 1.778 | N43: 1.778 | O43: 18.288 | P43: 4.46 | Q43: 650.1875 | R43: 469.8875 | S43: 180.3 | T43: 415.24375 | U43: 603.19875 | V43: 15 | W43: 60 | X43: 94.66086648 | Y43: 175.5110728 | Z43: -- | AA43: Rainfall
A44: 43 | B44: 2008_30 | C44: 191 | D44: 2008-07-09T14:30:00 | E44: 2008-07-07T20:30:00 | F44: 1.75 | G44: 24.96 | H44: 0.15 | I44: 3.81 | J44: 0.67 | K44: 0.74 | L44: 1.39 | M44: 17.018 | N44: 18.796 | O44: 35.306 | P44: 4.35 | Q44: 652.425 | R44: 139.525 | S44: 512.9 | T44: 582.6625 | U44: 638.4725 | V44: 90 | W44: 90 | X44: 139.7139085 | Y44: 197.5136719 | Z44: -- | AA44: Rainfall
A45: 44 | B45: 2008_31 | C45: 199 | D45: 2008-07-17T14:15:00 | E45: 2008-07-11T23:30:00 | F45: 5.614583333 | G45: 23.19 | H45: 1.86 | I45: 47.244 | J45: 0 | K45: 0.16 | L45: 1.07 | M45: 0 | N45: 4.064 | O45: 27.178 | P45: 5.94 | Q45: 676.5125 | R45: 630.1025 | S45: 46.41 | T45: 361.46125 | U45: 613.50225 | V45: 15 | W45: 30 | X45: 611.4665698 | Y45: 1005 | Z45: -- | AA45: Rainfall
A46: 45 | B46: 2008_32 | C46: 201 | D46: 2008-07-19T18:00:00 | E46: 2008-07-17T23:00:00 | F46: 1.791666667 | G46: 22.5 | H46: 0.72 | I46: 18.288 | J46: 0.3 | K46: 1.9 | L46: 2.97 | M46: 7.62 | N46: 48.26 | O46: 75.438 | P46: 5.24 | Q46: 590.0375 | R46: 452.9375 | S46: 137.1 | T46: 363.56875 | U46: 544.74375 | V46: 60 | W46: 75 | X46: 113.334948 | Y46: 142.9204963 | Z46: SUB | AA46: Rainfall
A47: 46 | B47: 2008_33 | C47: 203 | D47: 2008-07-21T01:30:00 | E47: 2008-07-19T20:00:00 | F47: 1.229166667 | G47: 21.96 | H47: 0.47 | I47: 11.938 | J47: 0.72 | K47: 2.62 | L47: 3.62 | M47: 18.288 | N47: 66.548 | O47: 91.948 | P47: 5.08 | Q47: 594.9375 | R47: 124.7375 | S47: 470.2 | T47: 532.56875 | U47: 582.46375 | V47: 105 | W47: 150 | X47: 219.2468525 | Y47: 263.7122396 | Z47: -- | AA47: Rainfall
A48: 47 | B48: 2008_34 | C48: 206 | D48: 2008-07-24T05:30:00 | E48: 2008-07-21T04:30:00 | F48: 3.041666667 | G48: 19.74 | H48: 0.17 | I48: 4.318 | J48: 0.03 | K48: 3.13 | L48: 3.31 | M48: 0.762 | N48: 79.502 | O48: 84.074 | P48: 4.46 | Q48: 667.4875 | R48: 168.9875 | S48: 498.5 | T48: 582.99375 | U48: 650.58875 | V48: 165 | W48: 210 | X48: 224.0822917 | Y48: 302.5137712 | Z48: -- | AA48: Rainfall
A49: 48 | B49: 2008_35 | C49: 225 | D49: 2008-08-12T07:00:00 | E49: 2008-08-04T13:30:00 | F49: 7.729166667 | G49: 24.75 | H49: 0.18 | I49: 4.572 | J49: 0 | K49: 0 | L49: 0.06 | M49: 0 | N49: 0 | O49: 1.524 | P49: 3.85 | Q49: 714 | R49: 361.4 | S49: 352.6 | T49: 533.3 | U49: 677.86 | V49: 240 | W49: 300 | X49: 436.8627451 | Y49: 572.1818182 | Z49: -- | AA49: Rainfall
A50: 49 | B50: 2008_36 | C50: 240 | D50: 2008-08-27T07:00:00 | E50: 2008-08-14T19:30:00 | F50: 12.47916667 | G50: 19.56 | H50: 0.3 | I50: 7.62 | J50: 0 | K50: 0 | L50: 0.11 | M50: 0 | N50: 0 | O50: 2.794 | P50: 3.71 | Q50: 799.125 | R50: 417.425 | S50: 381.7 | T50: 590.4125 | U50: 757.3825 | V50: 210 | W50: 225 | X50: 271.7911699 | Z50: -- | AA50: Rainfall
A51: 50 | B51: 2008_37 | C51: 252 | D51: 2008-09-08T03:30:00 | E51: 2008-08-28T18:00:00 | F51: 10.39583333 | G51: 11.96 | H51: 0.39 | I51: 9.906 | J51: 0 | K51: 0.04 | L51: 0.83 | M51: 0 | N51: 1.016 | O51: 21.082 | P51: 3.66 | Q51: 824 | R51: 671.1 | S51: 152.9 | T51: 488.45 | U51: 756.89 | V51: 270 | W51: 285 | X51: 308.8462604 | Y51: 433.0755076 | Z51: -- | AA51: Rainfall
A52: 51 | B52: 2008_38 | C52: 287 | D52: 2008-10-13T12:00:00 | E52: 2008-10-07T15:30:00 | F52: 5.854166667 | G52: 13.98 | H52: 0.23 | I52: 5.842 | J52: 0 | K52: 1.31 | L52: 1.31 | M52: 0 | N52: 33.274 | O52: 33.274 | P52: 3.74 | Q52: 852.5 | R52: 728.3 | S52: 124.2 | T52: 488.35 | U52: 779.67 | V52: 240 | W52: 270 | X52: 328.6352657 | Z52: -- | AA52: Rainfall
A53: 52 | B53: 2008_39 | C53: 288 | D53: 2008-10-14T17:00:00 | E53: 2008-10-13T16:00:00 | F53: 1.041666667 | G53: 13.84 | H53: 0.83 | I53: 21.082 | J53: 0.23 | K53: 0.23 | L53: 1.54 | M53: 5.842 | N53: 5.842 | O53: 39.116 | P53: 4.21 | Q53: 717.5 | R53: 554.1 | S53: 163.4 | T53: 440.45 | U53: 662.09 | V53: 330 | W53: 480 | X53: 979.9814264 | Y53: 1298.036313 | Z53: -- | AA53: Rainfall
A54: 53 | B54: 2008_40 (2) | C54: 297 | D54: 2008-10-23T10:30:00 | E54: 2008-10-23T07:30:00 | F54: 0.125 | G54: 5.487 | H54: 0.06 | I54: 1.524 | J54: 0.42 | K54: 0.46 | L54: 1.53 | M54: 10.668 | N54: 11.684 | O54: 38.862 | P54: 3.89 | Q54: 794.875 | R54: 385.375 | S54: 409.5 | T54: 602.1875 | U54: 756.3375 | V54: 255 | W54: 300 | X54: 392.4955986 | Y54: 491.0758929 | Z54: SUB | AA54: Rainfall
A55: 54 | B55: 2008_40 (2) | C55: 298 | D55: 2008-10-24T06:00:00 | E55: 2008-10-23T13:00:00 | F55: 0.7083333333 | G55: 7.46 | H55: 0.14 | I55: 3.556 | J55: 0.47 | K55: 0.52 | L55: 1.59 | M55: 11.938 | N55: 13.208 | O55: 40.386 | P55: 3.93 | Q55: 798.625 | R55: 537.725 | S55: 260.9 | T55: 529.7625 | U55: 744.8525 | V55: 60 | W55: 240 | X55: 674.2627025 | Y55: 839.4621094 | Z55: -- | AA55: Rainfall
